Workbook

Sheet Instructions
A1: Payment in Lieu of Taxes Financial Agreement Forecasting Model (PFAF)
A2: Guide to the Payment in Lieu of Taxes Financial Agreement Forecasting Model
A4: Introduction
A6: The PILOT Financial Agreement Forecasting Model (PFAF model) produces 30-year project cash flow, PILOT payment, and municipality net benefit projections based on user-entered assumptions, 2020 Census data, and 2021 tax and budget information.
A7: The Model allows municipalities to forecast and understand the net financial impact of PILOT payments relative to the projected impact of the proposed project on municipal spending.
A8: The Model populates from user inputs on the "Inputs/Assumptions" tab and 2021 property tax and municipal budgeted expenditure data on the Data tab.
A9: Cells that are highlighted in yellow or with blue font are meant for user entry. All other cells are formula cells that should not be changed.
A10: For the Model to perform correctly, it is essential that operating expenses and debt service be entered as negative values.
A12: Interpreting and Using the Output
A13: The Model enables users to run their own project Net Cash Flow and PILOT calculations using different PILOT assumptions than those proposed by developers. These can be used in negotiations with developers to demonstrate project feasibility at PILOT levels that hold the municipal budget harmless or limit the net subsidy required from the municipality. For example, the Net Cash Flow data column shows developers the net profits they would make each year using the municipality's PILOT assumptions, while the Internal Rate of Return (IRR) figure calculates the overall profitability of the project over the life of the investment under those assumptions. In addition, municipalities can use the Net Benefit/Loss and Change in Municipal Property Tax Revenues data columns to show developers the cost to municipal taxpayers of subsidizing the project with a reduced tax liability from the PILOT, which can inform negotiations in reaching a reasonable PILOT level.
A21: Inputs & Assumptions Tab
A22: Projection Options
A24: Users have the option to select one of three projection methods, selected from a drop down box at the top of the Inputs & Assumptions Tab
B26: A: % of Actual Gross Revenues
B27: This option calculates PILOT payments as a user-specified percentage of actual gross revenues.
B29: B: % of Taxes
B30: This option calculates PILOT payments as a user-specified percentage of the full tax liability.
B32: C: Manual Entry
B33: This option allows the user to manually enter PILOT payments for each year.
A35: The assumptions for these options are entered in the PILOT Methods Assumptions section.
A37: Users may also select the methodology for allocating the PILOT between the municipality, county, and school district from a drop down box at the top of the Inputs & Assumptions Tab
B38: A. Share of Total Levy
B39: The PILOT is allocated between the municipality, county, and school district based on their shares of the combined levy.
B40: B. User Entered Allocation (Default)
B41: The user enters in the percentage PILOT allocation shares for the municipality, county, and school district
A43: In addition, users can specify if the project is already subject to a PILOT agreement using the "Existing PILOT Currently in Place?" drop down box. The default answer is "No". If "Yes" is selected, the user should enter in the PILOT payments under the existing agreement for the life of the project in column J of the Project Budget and Valuation Assumptions section.
A45: Project Type
A47: Users select from one of three project types, residential, commercial/industrial, and mixed-use. Each type has an assumptions section which is activated when that type is selected. This section projects the number of persons occupying the development. This number is multiplied by municipal spending per capita (municipal spending divided by daytime population) to estimate the municipal spending stemming from the project. Users can also indicate whether the project has affordable housing or not, which is strictly for informational purposes.
B49: For Residential Projects, users enter in the number of studio, 1 bedroom, 2 bedroom, and 3 bedroom units. The number of persons occupying the units are calculated based on multipliers from "Who Lives in New Jersey Housing: A Quick Guide to New Jersey Residential Demographic Multipliers,” published by Center for Urban Policy Research at Rutgers University. This also produces a public school children estimate for informational purposes that can be used to separately calculate direct school district impacts.
B51: For Commercial/Industrial Projects, users enter in the projected number of occupants in a commercial or industrial building
B53: For Mixed-Use Projects, users enter in the projected number of housing units for the residential portion and the projected occupancy in the commercial or industrial portion.
A55: Project Assumptions
A57: In this section, users enter projected gross revenue, operating expenses, debt service, equity, and the full property tax liability for the property before and after improvements (i.e. new construction).
B59: Net Rents/Gross Revenue | C59: Projected project gross revenue from net rents (taking into account vacancies) and other forms of revenue.
B60: Operating Expenses | C60: All project operating expenses excluding PILOT payments. Must be entered as negative values.
B61: Existing PILOT Payments (Municipal Portion) | C61: The municipal portion of total PILOT payments for a property already subject to a PILOT agreement. This is only applicable if the project is currently subject to a PILOT agreement.
B62: Property Assessed Value Pre-Improvement | C62: Projected full tax assessment for the development before improvements (i.e. assessed value of vacant land)
B63: Property Assessed Value Post-Improvement | C63: Estimated full tax assessment for the development after improvements (i.e. new construction)
B64: Debt Service | C64: Anticipated annual debt service on debt issued for the project
B65: Equity (In)/Out | C65: Total funds invested in the property (enter as negative values) and projected proceeds from sale of the property (enter as positive values)
A67: Municipal Spending Assumptions
A69: In this section, users enter projected annual growth rates for the municipal budget. These are used to grow the additional municipal spending impact from the project. Users also enter the percentage of spending in ten key budget areas that would be affected by new residents or jobs. These entries flow to the municipal spending per capita calculation. Municipal spending per capita is used to project the additional cost to the municipality from the project. Users can also add the value of additional benefits and costs not captured by the model in the "Additional Net Benefit/Loss to Municipality" section. This may include the value of affordable housing, community facilities, parks and green space, and other public benefits contributed by the project. In addition, users can enter other project-associated costs not accounted for in the core budget areas in the "Additional Municipal Costs Outside Core Budget" section.
A73: Projection Tab
A75: The projection tab calculates the PILOT payments, the municipal, county and school district split, the project net cash flows, the internal rate of return, and the net cost or benefit to the municipality. It is populated by data in the "Data" tab and entries on the "Inputs & Assumptions" tab. Outputs are as follows:
B77: Year | C77: The year of the payment.
B78: Year Number | C78: The sequential year of the payment.
B79: Net Rents/Gross Revenue | C79: Projected gross revenue from net rents (taking into account vacancies) and other forms of project revenue.
B80: Operating Expenses | C80: All project operating expenses excluding PILOT payments.
B81: Property Assessed Value Pre-Improvement | C81: Projected full tax assessment for the development after improvements (i.e. new construction).
B82: Municipal Property Tax Revenue Pre-Improvement | C82: Property tax bill for property before improvements (i.e. vacant land).
B83: Property Assessed Value Post-Improvement | C83: Projected full tax assessment for the development before improvements (i.e. assessed value of vacant land).
B84: Total Property Taxes without PILOT | C84: Total property taxes (county, municipal, school) due on property post-improvement with no abatement or exemption.
B85: Municipal Property Taxes without PILOT | C85: Total municipal property taxes due on property post-improvement with no abatement or exemption.
B86: PILOT Payments | C86: Calculated PILOT payment based on selected projection option.
B87: Municipal PILOT | C87: Calculated municipal portion of PILOT payment, based on the municipal percentage of the total levy.
B88: County PILOT | C88: Calculated county portion of PILOT payment, based on the county percentage of the total levy.
B89: School PILOT | C89: Calculated school district portion of PILOT payment, based on the school district percentage of the total levy.
B90: Project Net Operating Income before Debt Service | C90: Total project net operating income before debt service. Calculated as the net rents/revenue minus operating expenses and the PILOT payment.
B91: Debt Service | C91: Anticipated annual debt service on debt issued for the project.
B92: Project Cash Flow | C92: Project Net Operating Income minus debt service.
B93: Equity (In)/Out | C93: Total funds invested in the property (enter as negative values) and proceeds from sale of the property (enter as positive values).
B94: Net Cash Flow | C94: The sum of Project Cash Flow and Equity In/Out. Used to compute the Internal Rate of Return (IRR).
B95: PILOT % of Annual Gross Revenue | C95: Total PILOT payments divided by total annual gross revenue.
B96: PILOT % of Conventional Taxes | C96: Total PILOT payments divided by total property tax liability without abatements or exemptions.
B97: Additional Municipal Costs | C97: Calculated additional municipal spending due to the project.
B98: Net Benefit (Loss) to Municipality | C98: Calculated net financial benefit or loss to the municipality. Calculated as the municipal PILOT payment less pre-improvement property taxes and additional municipal costs.
B99: Change in Municipal Property Tax Revenue due to Project | C99: Calculated change in municipal property tax revenue from the PILOT.
B100: Adjust PILOT to IRR Target Button | C100: Adjusts PILOT payments to produce the IRR entered in cell AB6.
B101: Adjust PILOT to Hold Municipality Harmless (Net Benefit/Loss) Button | C101: Adjusts PILOT payments to produce no net financial impact to the municipality over the life of the project.
B102: Adjust PILOT to Hold Municipality Harmless (Chg. in Prop Tax) Button | C102: Adjusts PILOT payments to produce no net change in municipal property tax revenues
B103: Remove PILOT Adjustment Button | C103: Removes PILOT adjustments and reverts back to original calculation.
A106: Data Tab
A108: This tab contains the raw source data used to calculate property tax liabilities and municipal spending. The data are based on the US Census Bureau's 2016-20 American Community Survey 5-Year Estimates (daytime population), DCA's 2021 Property Tax Information release, and the 2021 municipal User Friendly Budget submissions. Users have the option to enter in more recent tax and spending data on this tab, if desired
A111: The following 44 municipalities do not have 2021 User Friendly Budget data available to perform the Net Benefit/Loss calculation:
B112: Audubon Park Borough, Camden County
B113: Belleville Township, Essex County
B114: Belvidere Town, Warren County
B115: Bound Brook Borough, Somerset County
B116: Bridgewater Township, Somerset County
B117: Camden City, Camden County
B118: Downe Township, Cumberland County
B119: Edgewater Borough, Bergen County
B120: Elmer Borough, Salem County
B121: Franklin Township, Somerset County
B122: Gloucester City City, Camden County
B123: Haddonfield Borough, Camden County
B124: Hardwick Township, Warren County
B125: Harrington Park Borough, Bergen County
B126: Hillsborough Township, Somerset County
B127: Hopatcong Borough, Sussex County
B128: Irvington Township, Essex County
B129: Longport Borough, Atlantic County
B130: Mantoloking Borough, Ocean County
B131: Mendham Borough, Morris County
B132: Metuchen Borough, Middlesex County
B133: Monroe Township, Gloucester County
B134: Montague Township, Sussex County
B135: North Brunswick Township, Middlesex County
B136: Ocean Township, Ocean County
B137: Oxford Township, Warren County
B138: Paulsboro Borough, Gloucester County
B139: Pilesgrove Township, Salem County
B140: Randolph Township, Morris County
B141: Raritan Borough, Somerset County
B142: Roselle Borough, Union County
B143: Shiloh Borough, Cumberland County
B144: Stillwater Township, Sussex County
B145: Stow Creek Township, Cumberland County
B146: Swedesboro Borough, Gloucester County
B147: Trenton City, Mercer County
B148: Union City City, Hudson County
B149: Washington Borough, Warren County
B150: Washington Township, Gloucester County
B151: Wayne Township, Passaic County
B152: Weehawken Township, Hudson County
B153: West Long Branch Borough, Monmouth County
B154: Woodland Park Borough, Passaic County
B155: Woodlynne Borough, Camden County

Sheet FAQ
A1: =Instructions!A1 -> Payment in Lieu of Taxes Financial Agreement Forecasting Model (PFAF)
A2: Frequently Asked Questions
A4: Can I clear out existing data in the model?
A5: You may clear out or replace any data in blue font or in a yellow-highlighted cell. The data in the Inputs and Assumptions tab are examples and should be replaced with actual project data and user assumptions.
A7: Can I print the model outputs?
A8: Yes, all of the model's tabs have been formatted to print.
A10: I have received a pro forma from the developer. However would I integrate that into the model?
A11: You would find the data corresponding to total operating expenses, debt service, total revenue or net rents, and enter them in the Project Budget & Valuation Assumptions section of the Inputs and Assumptions tab. The model will then calculate the IRR and municipality net benefit based on this data and the user-entered municipal spending, tax assessment, and PILOT method assumptions.
A13: I have received a proposed PILOT schedule from the developer. How do I use the model to determine if this is a net benefit to my town?
A14: You can enter in the PILOT numbers in the Manual Entry column of the PILOT Method Assumptions section on the Inputs and Assumptions tab. Select "Manual Entry" in the PILOT Method drop down menu to activate the scenario. The model will show the projected net benefit/loss on the Model tab.
A16: I would like to add additional costs to my municipality from the project beyond the core budget areas included in the model. How do I do that?
A17: Additional costs can be entered in the "Additional Municipal Costs Outside Core Budget" column in the Municipal Spending Assumptions section of the Inputs and Assumptions tab. These costs are added to the core budget costs projected by the model.
A19: The project provides additional benefits to my municipality beyond the PILOT payment. How do I account for this in the net benefit calculation?
A20: The estimated monetary value of additional benefits (such as affordable housing, parks and green space, or other developer contributions) or losses (i.e. noise pollution, environmental contamination) from the project can be entered in the "Additional Benefit/Loss to Municipality" column in the Municipal Spending Assumptions section of the Inputs and Assumptions tab. These benefits/losses will be added to the existing net benefit calculation.
A22: My projection shows a net loss to my municipality during the latter half of the project. Can I remedy that through the PILOT assumptions? | AN22: `
A23: Yes. You can adjust the % of Taxes, % of Gross Revenues, or Manual Entries on the Inputs & Assumptions tab in those net loss years to produce a net benefit.
A25: I have more recent tax and municipal budget information than is included in the model. How can I incorporate that into the calculation?
A26: You may enter more recent data for your municipality on the Data tab, replacing the data that is already there. Any data in blue font or yellow highlighting may be changed.
A28: I do not want to do a 30 year abatement, I would prefer a shorter timeframe. Does the model accommodate that?
A29: Yes. You may enter in data for any period of time less than 30 years, clearing out any data for years the PILOT would not be in effect on the Inputs and Assumptions tab.
A31: I want to calculate the fiscal impact of the project on the school district. Can I do that through this model? | AJ31: `
A32: The model produces two outputs that are relevant to that calculation, the projected number of new children from new developments (on the Inputs & Assumptions tab) and the School PILOT on the Model tab. However the calculation itself must be done outside the model based on school district data.
A35: I have entered in an IRR Target and clicked "Adjust PILOT to IRR Target" but the Current IRR is not matching. Why does this happen? | AJ35: `
A36: The model produces the IRR closest to the IRR Target that can be achieved through a PILOT. Because the PILOT is only one component of many that determine an IRR, In some cases, the target can only be approximated rather than exactly achieved.
A39: My projection shows nothing in the municipalilty net benefit/loss column despite entering in all the assumptions. How do I fix that?
A40: The lack of a net benefit/loss projection is due to the fact that the Division of Local Government Services does not have 2021 UFB information on file for your municipality. Simply enter in the requisite budget information on the Data tab if this is case and be sure to submit your UFB to the Division.

Sheet Inputs & Assumptions
A1: ="Payment in Lieu of Taxes Financial Agreement Forecasting Model "&"- "&VLOOKUP(Muni,$AL$4:$AM$568,2,FALSE)&IF(B11="",""," - ")&B11 -> Payment in Lieu of Taxes Financial Agreement Forecasting Model - Aberdeen Township, Monmouth County
A2: Inputs/Assumptions
H3: Existing PILOT Currently in Place?
B4: Select Municipality | H4: 2 | L4: Year 1 Municipal PILOT | M4: =-Model!K4 -> 128045.9704 | P4: Municipal Tax Rate (per $100 valuation) | Q4: =VLOOKUP(Muni,Data!E4:H568,4,FALSE) -> 0.5470210482 | AL4: =AL3+1 -> 1 | AM4: Aberdeen Township, Monmouth County | AU4: % of Actual Gross Revenue
B5: 1 | F5: First Year | G5: 2022 | H5: PILOT Allocation Methodology | L5: Average Municipal PILOT | M5: =-AVERAGE(Model!K4:K33) -> 203061.3424 | P5: Total Tax Rate (per $100 valuation) | Q5: =VLOOKUP(Muni,Data!E4:K568,7,FALSE) -> 2.523639861 | AL5: 2 | AM5: Absecon City, Atlantic County | AU5: % of Taxes
H6: 2 | L6: IRR (Internal Rate of Return) | M6: =Model!AB4 -> 0.04500872364 | P6: Mun. Spending/Daytime Pop. Ratio | Q6: =VLOOKUP(Muni,Data!$E$4:$S$568,15,FALSE) -> 270.5833466 | AL6: 3 | AM6: Alexandria Township, Hunterdon County | AU6: Manual Entry
B7: PILOT Method | F7: Project Type | H7: Includes Affordable Housing? | L7: Avg. Municipal Net Benefit (Loss) | M7: =IFERROR(AVERAGE(Model!Y4:Y33),"No Data") -> 96507.62842 | AL7: 4 | AM7: Allamuchy Township, Warren County
B8: 3 | F8: 1 | I8: 1 | AL8: 5 | AM8: Allendale Borough, Bergen County | AU8: Residential
AL9: =AL8+1 -> 6 | AM9: Allenhurst Borough, Monmouth County
B10: Name of Project | AL10: 7 | AM10: Allentown Borough, Monmouth County
AL11: 8 | AM11: Alloway Township, Salem County
AL12: =AL11+1 -> 9 | AM12: Alpha Borough, Warren County | AU12: Commercial/Industrial
B13: Residential Projects | I13: PILOT Allocation | AL13: 10 | AM13: Alpine Borough, Bergen County | AU13: Mixed Use
B14: Num. of Units | C14: Num. of Units | D14: Persons Multiplier | E14: Total New Persons | F14: Public School Multiplier | G14: Total New Public School Children | I14: Entity | J14: % | AL14: 11 | AM14: Andover Borough, Sussex County
B15: Studio | C15: 0 | D15: 1.644 | E15: =ROUND(D15*C15,0) -> 0 | F15: 0.051 | G15: =ROUND(F15*C15,0) -> 0 | I15: Municipal | J15: 0.95 | AL15: 12 | AM15: Andover Township, Sussex County | AU15: Yes
B16: 1 Bedroom | C16: 15 | D16: 1.644 | E16: =ROUND(D16*C16,0) -> 25 | F16: 0.051 | G16: =ROUND(F16*C16,0) -> 1 | I16: County | J16: 0.05 | AL16: 13 | AM16: Asbury Park City, Monmouth County | AU16: No
B17: 2 Bedroom | C17: 29 | D17: 2.107 | E17: =ROUND(D17*C17,0) -> 61 | F17: 0.115 | G17: =ROUND(F17*C17,0) -> 3 | I17: School | J17: 0 | AL17: 14 | AM17: Atlantic City, Atlantic County
B18: 3 Bedroom | C18: 12 | D18: 3.422 | E18: =ROUND(D18*C18,0) -> 41 | F18: 0.56 | G18: =ROUND(F18*C18,0) -> 7 | I18: TOTAL | J18: =SUM(J15:J17) -> 1 | AL18: 15 | AM18: Atlantic Highlands Borough, Monmouth County | AU18: Share of Total Levy
B19: TOTAL | C19: =SUM(C15:C18) -> 56 | E19: =SUM(E15:E18) -> 127 | G19: =SUM(G15:G18) -> 11 | AL19: 16 | AM19: Audubon Borough, Camden County | AU19: User Entered Allocation
AL20: 17 | AM20: Audubon Park Borough, Camden County
B21: Commercial/Industrial Projects | AL21: =AL20+1 -> 18 | AM21: Avalon Borough, Cape May County | AU21: Yes
C22: Num. of Persons | AL22: 19 | AM22: Avon-by-the-Sea Borough, Monmouth County | AU22: No
B23: Estimated Occupancy | C23: 0 | AL23: 20 | AM23: Barnegat Light Borough, Ocean County
AL24: 21 | AM24: Barnegat Township, Ocean County
B25: Mixed-Use Projects | AL25: 22 | AM25: Barrington Borough, Camden County
B26: Num. of Units | C26: Num. of Units | D26: Persons Multiplier | E26: Total New Persons | F26: Public School Multiplier | G26: Total New Public School Children | AL26: 23 | AM26: Bass River Township, Burlington County
B27: Residential Component | AL27: 24 | AM27: Bay Head Borough, Ocean County
B28: Studio | C28: 0 | D28: 1.644 | E28: =ROUND(D28*C28,0) -> 0 | F28: 0.051 | G28: =ROUND(F28*C28,0) -> 0 | AL28: 25 | AM28: Bayonne City, Hudson County
B29: 1 Bedroom | C29: 0 | D29: 1.644 | E29: =ROUND(D29*C29,0) -> 0 | F29: 0.051 | G29: =ROUND(F29*C29,0) -> 0 | AL29: 26 | AM29: Beach Haven Borough, Ocean County
B30: 2 Bedroom | C30: 0 | D30: 2.107 | E30: =ROUND(D30*C30,0) -> 0 | F30: 0.115 | G30: =ROUND(F30*C30,0) -> 0 | AL30: 27 | AM30: Beachwood Borough, Ocean County
B31: 3 Bedroom | C31: 0 | D31: 3.422 | E31: =ROUND(D31*C31,0) -> 0 | F31: 0.56 | G31: =ROUND(F31*C31,0) -> 0 | AL31: 28 | AM31: Bedminster Township, Somerset County
B32: TOTAL | C32: =SUM(C28:C31) -> 0 | E32: =SUM(E28:E31) -> 0 | G32: =SUM(G28:G31) -> 0 | AL32: 29 | AM32: Belleville Township, Essex County
B33: Commercial/Industrial Component | AL33: 30 | AM33: Bellmawr Borough, Camden County
B34: Estimated Occupancy | C34: 0 | AL34: 31 | AM34: Belmar Borough, Monmouth County
AL35: 32 | AM35: Belvidere Town, Warren County
B36: TOTAL NEW PERSONS | C36: =C34+SUM(E28:E31) -> 0 | AL36: =AL35+1 -> 33 | AM36: Bergenfield Borough, Bergen County
AL37: 34 | AM37: Berkeley Heights Township, Union County
C38: PILOT Method Assumptions | F38: Project Budget & Valuation Assumptions | M38: Municipal Spending Assumptions | AL38: 35 | AM38: Berkeley Township, Ocean County
B39: Year | C39: % of Actual Gross Revenue | D39: % of Taxes | E39: Total PILOT Payments (Manual Entry) | F39: Net Rents/Gross Revenue | G39: Operating Expenses (not including PILOT) | H39: Debt Service | I39: Equity (In)/Out | J39: Existing PILOT Payments (Municipal Portion) | K39: Property Assessed Value Pre-Improvement | L39: Property Assessed Value Post-Improvement | M39: Additional Benefit/Loss to Municipality | N39: Additional Municipal Costs Outside Core Budget | O39: % Growth in Municipal Budget | P39: Spending Area | Q39: % of Spending Applied in Municipal Cost Calculation | AL39: 36 | AM39: Berlin Borough, Camden County
B40: 1 | C40: 0.0628 | D40: 0.9 | E40: 92341 | F40: 1470394 | G40: =-1066661+E40 -> -974320 | H40: -362569 | I40: -8630249 | J40: =168285*$J$15 -> 159870.75 | K40: 6926200 | L40: =K40+(1003240) -> 7929440 | M40: 0 | N40: 0 | O40: -- | P40: General Government | Q40: 0.1 | AL40: 37 | AM40: Berlin Township, Camden County
B41: 2 | C41: 0.0628 | D41: 0.9 | E41: 95111.23 | F41: 1514505.82 | G41: =G40*1.03 -> -1003549.6 | H41: -362569 | J41: =J40*1.03 -> 164666.8725 | K41: 7133986 | L41: =L40*1.03 -> 8167323.2 | M41: 0 | N41: 0 | O41: 0.02 | P41: Land-Use Administration | Q41: 0.1 | AL41: 38 | AM41: Bernards Township, Somerset County
B42: 3 | C42: 0.0628 | D42: 0.9 | E42: 97964.5669 | F42: 1559940.995 | G42: =G41*1.03 -> -1033656.088 | H42: -362569 | J42: =J41*1.03 -> 169606.8787 | K42: 7348005.58 | L42: 8412342.896 | M42: 0 | N42: 0 | O42: 0.02 | P42: Uniform Construction Code | Q42: 0.5 | AL42: 39 | AM42: Bernardsville Borough, Somerset County
B43: 4 | C43: 0.0628 | D43: 0.9 | E43: 100903.5039 | F43: 1606739.224 | G43: -1064665.771 | H43: -362569 | J43: 174695.085 | K43: 7568445.747 | L43: 8664713.183 | M43: 0 | N43: 0 | O43: 0.02 | P43: Public Safety | Q43: 0.5 | AL43: 40 | AM43: Bethlehem Township, Hunterdon County
B44: 5 | C44: 0.0628 | D44: 0.9 | E44: 103930.609 | F44: 1654941.401 | G44: -1096605.744 | H44: -362569 | J44: 179935.9376 | K44: 7795499.12 | L44: 8924654.578 | M44: 0 | N44: 0 | O44: 0.02 | P44: Public Works | Q44: 0.1 | AL44: 41 | AM44: Beverly City, Burlington County | AU44: 505756 | AV44: 519298 | AW44: 533225 | AX44: 547552 | AY44: 562291 | AZ44: 577453 | BA44: 593049 | BB44: 609097 | BC44: 625605 | BD44: 642589 | BE44: 660061 | BF44: 678035 | BG44: 696526 | BH44: 715550 | BI44: 735120 | BJ44: 755256 | BK44: 775972 | BL44: 797286 | BM44: 819215 | BN44: 841777 | BO44: 864991 | BP44: 888875 | BQ44: 913450 | BR44: 938735 | BS44: 964752 | BT44: 991520 | BU44: 1019063 | BV44: 1047403 | BW44: 1076563 | BX44: 1106568
B45: 6 | C45: 0.0628 | D45: 0.9 | E45: 107048.5273 | F45: 1704589.643 | G45: -1129503.916 | H45: -362569 | J45: 185334.0157 | K45: 8029364.093 | L45: 9192394.216 | M45: 0 | N45: 0 | O45: 0.02 | P45: Health and Human Services | Q45: 0.1 | AL45: 42 | AM45: Blairstown Township, Warren County | AU45: =-AU44 -> -505756 | AV45: =-AV44 -> -519298 | AW45: -533225 | AX45: -547552 | AY45: -562291 | AZ45: -577453 | BA45: -593049 | BB45: -609097 | BC45: -625605 | BD45: -642589 | BE45: -660061 | BF45: -678035 | BG45: -696526 | BH45: -715550 | BI45: -735120 | BJ45: -755256 | BK45: -775972 | BL45: -797286 | BM45: -819215 | BN45: -841777 | BO45: -864991 | BP45: -888875 | BQ45: -913450 | BR45: -938735 | BS45: -964752 | BT45: -991520 | BU45: -1019063 | BV45: -1047403 | BW45: -1076563 | BX45: -1106568
B46: 7 | C46: 0.0628 | D46: 0.9 | E46: 110259.9831 | F46: 1755727.333 | G46: -1163389.034 | H46: -362569 | J46: 190894.0362 | K46: 8270245.016 | L46: 9468166.042 | M46: 0 | N46: 0 | O46: 0.02 | P46: Education (including Library) | Q46: 0.1 | AL46: 43 | AM46: Bloomfield Township, Essex County
B47: 8 | C47: 0.0628 | D47: 0.9 | E47: 113567.7826 | F47: 1808399.152 | G47: -1198290.705 | H47: -362569 | J47: 196620.8573 | K47: 8518352.367 | L47: 9752211.023 | M47: 0 | N47: 0 | O47: 0.02 | P47: Landfill / Solid Waste Disposal | Q47: 0.5 | AL47: 44 | AM47: Bloomingdale Borough, Passaic County | AU47: $42,635 $43,488 $44,357 $45,244 $46,148 $47,070 $48,011 $48,971 $49,950 $50,949 $51,967 $53,006 $54,066 $55,147 $56,249 $57,373 $58,520 $59,690 $60,883 $62,100 $63,342 $64,608 $65,900 $67,218 $68,562 $69,933 $71,331 $72,757 $74,212 $75,696
B48: 9 | C48: 0.0628 | D48: 0.9 | E48: 116974.8161 | F48: 1862651.127 | G48: -1234239.426 | H48: -362569 | J48: 202519.483 | K48: 8773902.938 | L48: 10044777.35 | M48: 0 | N48: 0 | O48: 0.02 | P48: Statutory Expenditures | Q48: 0.5 | AL48: 45 | AM48: Bloomsbury Borough, Hunterdon County
B49: 10 | C49: 0.0628 | D49: 0.8 | E49: 120484.0606 | F49: 1918530.661 | G49: -1271266.608 | H49: -362569 | J49: 208595.0675 | K49: 9037120.026 | L49: 10346120.67 | M49: 0 | N49: 0 | O49: 0.02 | P49: Court and Public Defender | Q49: 0.5 | AL49: 46 | AM49: Bogota Borough, Bergen County | AU49: 42635 | AV49: 43488 | AW49: 44357 | AX49: 45244 | AY49: 46148 | AZ49: 47070 | BA49: 48011 | BB49: 48971 | BC49: 49950 | BD49: 50949 | BE49: 51967 | BF49: 53006 | BG49: 54066 | BH49: 55147 | BI49: 56249 | BJ49: 57373 | BK49: 58520 | BL49: 59690 | BM49: 60883 | BN49: 62100 | BO49: 63342 | BP49: 64608 | BQ49: 65900 | BR49: 67218 | BS49: 68562 | BT49: 69933 | BU49: 71331 | BV49: 72757 | BW49: 74212 | BX49: 75696
B50: 11 | C50: 0.0628 | D50: 0.8 | E50: 124098.5824 | F50: 1976086.581 | G50: -1309404.607 | H50: -362569 | J50: 214852.9195 | K50: 9308233.627 | L50: 10656504.3 | M50: 0 | N50: 0 | O50: 0.02 | AL50: 47 | AM50: Boonton Town, Morris County
B51: 12 | C51: 0.0628 | D51: 0.8 | E51: 127821.5399 | F51: 2035369.178 | G51: -1348686.745 | H51: -362569 | J51: 221298.5071 | K51: 9587480.635 | L51: 10976199.42 | M51: 0 | N51: 0 | O51: 0.02 | AL51: 48 | AM51: Boonton Township, Morris County
B52: =B51+1 -> 13 | C52: 0.0628 | D52: 0.8 | E52: 131656.1861 | F52: 2096430.253 | G52: -1389147.347 | H52: -362569 | J52: 227937.4623 | K52: 9875105.054 | L52: 11305485.41 | M52: 0 | N52: 0 | O52: 0.02 | AL52: 49 | AM52: Bordentown City, Burlington County
B53: 14 | C53: 0.0628 | D53: 0.8 | E53: 135605.8716 | F53: 2159323.161 | G53: -1430821.768 | H53: -362569 | J53: 234775.5862 | K53: 10171358.21 | L53: 11644649.97 | M53: 0 | N53: 0 | O53: 0.02 | AL53: =AL52+1 -> 50 | AM53: Bordentown Township, Burlington County
B54: 15 | C54: 0.0628 | D54: 0.8 | E54: 139674.0478 | F54: 2224102.856 | G54: -1473746.421 | H54: -362569 | J54: 241818.8538 | K54: 10476498.95 | L54: 11993989.47 | M54: 0 | N54: 0 | O54: 0.02 | AL54: 51 | AM54: Bound Brook Borough, Somerset County
B55: 16 | C55: 0.0628 | D55: 0.8 | E55: 143864.2692 | F55: 2290825.942 | G55: -1517958.813 | H55: -362569 | J55: 249073.4194 | K55: 10790793.92 | L55: 12353809.15 | M55: 0 | N55: 0 | O55: 0.02 | AL55: 52 | AM55: Bradley Beach Borough, Monmouth County
B56: 17 | C56: 0.0628 | D56: 0.8 | E56: 148180.1973 | F56: 2359550.72 | G56: -1563497.578 | H56: -362569 | J56: 256545.6219 | K56: 11114517.74 | L56: 12724423.43 | M56: 0 | N56: 0 | O56: 0.02 | AL56: 53 | AM56: Branchburg Township, Somerset County
B57: 18 | C57: 0.0628 | D57: 0.8 | E57: 152625.6032 | F57: 2430337.241 | G57: -1610402.505 | H57: -362569 | J57: 264241.9906 | K57: 11447953.27 | L57: 13106156.13 | M57: 0 | N57: 0 | O57: 0.02 | AL57: 54 | AM57: Branchville Borough, Sussex County
B58: 19 | C58: 0.0628 | D58: 0.8 | E58: 157204.3713 | F58: 2503247.359 | G58: -1658714.58 | H58: -362569 | J58: 272169.2503 | K58: 11791391.87 | L58: 13499340.81 | M58: 0 | N58: 0 | O58: 0.02 | AL58: 55 | AM58: Brick Township, Ocean County
B59: 20 | C59: 0.0628 | D59: 0.8 | E59: 161920.5024 | F59: 2578344.779 | G59: -1708476.018 | H59: -362569 | J59: 280334.3278 | K59: 12145133.62 | L59: 13904321.04 | M59: 0 | N59: 0 | O59: 0.02 | AL59: 56 | AM59: Bridgeton City, Cumberland County
B60: 21 | C60: 0.0628 | D60: 0.8 | E60: 166778.1175 | F60: 2655695.123 | G60: -1759730.298 | H60: -362569 | J60: 288744.3577 | K60: 12509487.63 | L60: 14321450.67 | M60: 0 | N60: 0 | O60: 0.02 | AL60: 57 | AM60: Bridgewater Township, Somerset County
B61: 22 | C61: 0.0628 | D61: 0.8 | E61: 171781.461 | F61: 2735365.976 | G61: -1812522.207 | H61: -362569 | J61: 297406.6884 | K61: 12884772.26 | L61: 14751094.19 | M61: 0 | N61: 0 | O61: 0.02 | AL61: 58 | AM61: Brielle Borough, Monmouth County
B62: 23 | C62: 0.0628 | D62: 0.8 | E62: 176934.9049 | F62: 2817426.956 | G62: -1866897.873 | H62: -362569 | J62: 306328.8891 | K62: 13271315.43 | L62: 15193627.01 | M62: 0 | N62: 0 | O62: 0.02 | AL62: 59 | AM62: Brigantine City, Atlantic County
B63: 24 | C63: 0.0628 | D63: 0.8 | E63: 182242.952 | F63: 2901949.764 | G63: -1922904.81 | H63: -362569 | J63: 315518.7557 | K63: 13669454.89 | L63: 15649435.82 | M63: 0 | N63: 0 | O63: 0.02 | AL63: 60 | AM63: Brooklawn Borough, Camden County
B64: 25 | C64: 0.0628 | D64: 0.8 | E64: 187710.2406 | F64: 2989008.257 | G64: -1980591.954 | H64: -362569 | J64: 324984.3184 | K64: 14079538.54 | L64: 16118918.9 | M64: 0 | N64: 0 | O64: 0.02 | AL64: 61 | AM64: Buena Borough, Atlantic County
B65: 26 | C65: 0.0628 | D65: 0.8 | E65: 193341.5478 | F65: 3078678.505 | G65: -2040009.712 | H65: -362569 | J65: 334733.8479 | K65: 14501924.7 | L65: 16602486.47 | M65: 0 | N65: 0 | O65: 0.02 | AL65: 62 | AM65: Buena Vista Township, Atlantic County
B66: 27 | C66: 0.0628 | D66: 0.8 | E66: 199141.7942 | F66: 3171038.86 | G66: -2101210.004 | H66: -362569 | J66: 344775.8634 | K66: 14936982.44 | L66: 17100561.06 | M66: 0 | N66: 0 | O66: 0.02 | AL66: 63 | AM66: Burlington City, Burlington County
B67: 28 | C67: 0.0628 | D67: 0.8 | E67: 205116.0481 | F67: 3266170.026 | G67: -2164246.304 | H67: -362569 | J67: 355119.1393 | K67: 15385091.91 | L67: 17613577.89 | M67: 0 | N67: 0 | O67: 0.02 | AL67: =AL66+1 -> 64 | AM67: Burlington Township, Burlington County
B68: 29 | C68: 0.0628 | D68: 0.8 | E68: 211269.5295 | F68: 3364155.127 | G68: -2229173.693 | H68: -362569 | J68: 365772.7135 | K68: 15846644.67 | L68: 18141985.23 | M68: 0 | N68: 0 | O68: 0.02 | AL68: 65 | AM68: Butler Borough, Morris County
B69: 30 | C69: 0.0628 | D69: 0.8 | E69: 217607.6154 | F69: 3465079.781 | G69: -2296048.904 | H69: 0 | I69: =FV(0.03,30,0,I40) -> 20947879.51 | J69: 376745.8949 | K69: 16322044.01 | L69: 18686244.79 | M69: 0 | N69: 0 | O69: 0.02 | AL69: 66 | AM69: Byram Township, Sussex County
AL70: 67 | AM70: Caldwell Borough, Essex County
AL71: 68 | AM71: Califon Borough, Hunterdon County
AL72: 69 | AM72: Camden City, Camden County
AL73: 70 | AM73: Cape May City, Cape May County
AL74: 71 | AM74: Cape May Point Borough, Cape May County
AL75: 72 | AM75: Carlstadt Borough, Bergen County
AL76: =AL75+1 -> 73 | AM76: Carneys Point Township, Salem County
AL77: 74 | AM77: Carteret Borough, Middlesex County
AL78: 75 | AM78: Cedar Grove Township, Essex County
AL79: 76 | AM79: Chatham Borough, Morris County
AL80: 77 | AM80: Chatham Township, Morris County
AL81: 78 | AM81: Cherry Hill Township, Camden County
AL82: 79 | AM82: Chesilhurst Borough, Camden County
AL83: 80 | AM83: Chester Borough, Morris County
AL84: 81 | AM84: Chester Township, Morris County
AL85: 82 | AM85: Chesterfield Township, Burlington County
AL86: 83 | AM86: Cinnaminson Township, Burlington County
AL87: 84 | AM87: City of Orange Township, Essex County
AL88: 85 | AM88: Clark Township, Union County
AL89: 86 | AM89: Clayton Borough, Gloucester County
AL90: 87 | AM90: Clementon Borough, Camden County
AL91: 88 | AM91: Cliffside Park Borough, Bergen County
AL92: 89 | AM92: Clifton City, Passaic County
AL93: 90 | AM93: Clinton Town, Hunterdon County
AL94: 91 | AM94: Clinton Township, Hunterdon County
AL95: 92 | AM95: Closter Borough, Bergen County
AL96: 93 | AM96: Collingswood Borough, Camden County
AL97: 94 | AM97: Colts Neck Township, Monmouth County
AL98: 95 | AM98: Commercial Township, Cumberland County
AL99: 96 | AM99: Corbin City, Atlantic County
AL100: 97 | AM100: Cranbury Township, Middlesex County
AL101: 98 | AM101: Cranford Township, Union County
AL102: 99 | AM102: Cresskill Borough, Bergen County
AL103: 100 | AM103: Deal Borough, Monmouth County
AL104: 101 | AM104: Deerfield Township, Cumberland County
AL105: 102 | AM105: Delanco Township, Burlington County
AL106: 103 | AM106: Delaware Township, Hunterdon County
AL107: 104 | AM107: Delran Township, Burlington County
AL108: 105 | AM108: Demarest Borough, Bergen County
AL109: 106 | AM109: Dennis Township, Cape May County
AL110: 107 | AM110: Denville Township, Morris County
AL111: 108 | AM111: Deptford Township, Gloucester County
AL112: 109 | AM112: Dover Town, Morris County
AL113: 110 | AM113: Downe Township, Cumberland County
AL114: 111 | AM114: Dumont Borough, Bergen County
AL115: 112 | AM115: Dunellen Borough, Middlesex County
AL116: 113 | AM116: Eagleswood Township, Ocean County
AL117: 114 | AM117: East Amwell Township, Hunterdon County
AL118: 115 | AM118: East Brunswick Township, Middlesex County
AL119: 116 | AM119: East Greenwich Township, Gloucester County
AL120: 117 | AM120: East Hanover Township, Morris County
AL121: 118 | AM121: East Newark Borough, Hudson County
AL122: 119 | AM122: East Orange City, Essex County
AL123: 120 | AM123: East Rutherford Borough, Bergen County
AL124: 121 | AM124: East Windsor Township, Mercer County
AL125: 122 | AM125: Eastampton Township, Burlington County
AL126: 123 | AM126: Eatontown Borough, Monmouth County
AL127: 124 | AM127: Edgewater Borough, Bergen County
AL128: 125 | AM128: Edgewater Park Township, Burlington County
AL129: 126 | AM129: Edison Township, Middlesex County
AL130: 127 | AM130: Egg Harbor City, Atlantic County
AL131: 128 | AM131: Egg Harbor Township, Atlantic County
AL132: 129 | AM132: Elizabeth City, Union County
AL133: 130 | AM133: Elk Township, Gloucester County
AL134: 131 | AM134: Elmer Borough, Salem County
AL135: 132 | AM135: Elmwood Park Borough, Bergen County
AL136: 133 | AM136: Elsinboro Township, Salem County
AL137: 134 | AM137: Emerson Borough, Bergen County
AL138: 135 | AM138: Englewood City, Bergen County
AL139: 136 | AM139: Englewood Cliffs Borough, Bergen County
AL140: =AL139+1 -> 137 | AM140: Englishtown Borough, Monmouth County
AL141: 138 | AM141: Essex Fells Borough, Essex County
AL142: 139 | AM142: Estell Manor City, Atlantic County
AL143: 140 | AM143: Evesham Township, Burlington County
AL144: 141 | AM144: Ewing Township, Mercer County
AL145: 142 | AM145: Fair Haven Borough, Monmouth County
AL146: 143 | AM146: Fair Lawn Borough, Bergen County
AL147: 144 | AM147: Fairfield Township, Cumberland County
AL148: 145 | AM148: Fairfield Township, Essex County
AL149: 146 | AM149: Fairview Borough, Bergen County
AL150: 147 | AM150: Fanwood Borough, Union County
AL151: 148 | AM151: Far Hills Borough, Somerset County
AL152: 149 | AM152: Farmingdale Borough, Monmouth County
AL153: 150 | AM153: Fieldsboro Borough, Burlington County
AL154: 151 | AM154: Flemington Borough, Hunterdon County
AL155: 152 | AM155: Florence Township, Burlington County
AL156: 153 | AM156: Florham Park Borough, Morris County
AL157: 154 | AM157: Folsom Borough, Atlantic County
AL158: 155 | AM158: Fort Lee Borough, Bergen County
AL159: 156 | AM159: Frankford Township, Sussex County
AL160: 157 | AM160: Franklin Borough, Sussex County
AL161: 158 | AM161: Franklin Lakes Borough, Bergen County
AL162: 159 | AM162: Franklin Township, Gloucester County
AL163: 160 | AM163: Franklin Township, Hunterdon County
AL164: 161 | AM164: Franklin Township, Somerset County
AL165: 162 | AM165: Franklin Township, Warren County
AL166: 163 | AM166: Fredon Township, Sussex County
AL167: 164 | AM167: Freehold Borough, Monmouth County
AL168: 165 | AM168: Freehold Township, Monmouth County
AL169: 166 | AM169: Frelinghuysen Township, Warren County
AL170: 167 | AM170: Frenchtown Borough, Hunterdon County
AL171: 168 | AM171: Galloway Township, Atlantic County
AL172: 169 | AM172: Garfield City, Bergen County
AL173: 170 | AM173: Garwood Borough, Union County
AL174: 171 | AM174: Gibbsboro Borough, Camden County
AL175: 172 | AM175: Glassboro Borough, Gloucester County
AL176: 173 | AM176: Glen Gardner Borough, Hunterdon County
AL177: 174 | AM177: Glen Ridge Borough, Essex County
AL178: 175 | AM178: Glen Rock Borough, Bergen County
AL179: 176 | AM179: Gloucester City, Camden County
AL180: 177 | AM180: Gloucester Township, Camden County
AL181: 178 | AM181: Green Brook Township, Somerset County
AL182: 179 | AM182: Green Township, Sussex County
AL183: 180 | AM183: Greenwich Township, Cumberland County
AL184: 181 | AM184: Greenwich Township, Gloucester County
AL185: 182 | AM185: Greenwich Township, Warren County
AL186: 183 | AM186: Guttenberg Town, Hudson County
AL187: 184 | AM187: Hackensack City, Bergen County
AL188: 185 | AM188: Hackettstown Town, Warren County
AL189: 186 | AM189: Haddon Heights Borough, Camden County
AL190: 187 | AM190: Haddon Township, Camden County
AL191: 188 | AM191: Haddonfield Borough, Camden County
AL192: 189 | AM192: Hainesport Township, Burlington County
AL193: 190 | AM193: Haledon Borough, Passaic County
AL194: 191 | AM194: Hamburg Borough, Sussex County
AL195: 192 | AM195: Hamilton Township, Atlantic County
AL196: 193 | AM196: Hamilton Township, Mercer County
AL197: 194 | AM197: Hammonton Town, Atlantic County
AL198: 195 | AM198: Hampton Borough, Hunterdon County
AL199: 196 | AM199: Hampton Township, Sussex County
AL200: 197 | AM200: Hanover Township, Morris County
... 368 more rows

Sheet Model
A1: ='Inputs & Assumptions'!A1 -> Payment in Lieu of Taxes Financial Agreement Forecasting Model - Aberdeen Township, Monmouth County
A2: Projections
A3: Year | B3: Year Number | C3: Net Rents/Gross Revenue | D3: Operating Expenses | E3: Property Assessed Value Pre-Improvement | F3: =IF(existpilot=2,"Municipal Property Tax Revenue Pre-Improvement", "Municipal PILOT Revenue Pre-Improvement") -> Municipal Property Tax Revenue Pre-Improvement | G3: Property Assessed Value Post-Improvement | H3: Total Property Taxes without PILOT | I3: Municipal Property Taxes without PILOT | J3: PILOT Payments | K3: Municipal PILOT | L3: County PILOT | M3: School PILOT | N3: Project Net Operating Income before Debt Service | O3: Debt Service | P3: Project Cash Flow | Q3: Equity (In)/Out | R3: Net Cash Flow | S3: PILOT % of Annual Gross Revenue | T3: PILOT % of Conventional Taxes | U3: Additional Municipal Costs Outside Core Budget | V3: Additional Municipal Costs (Core Budget) | W3: Total Additional Municipal Costs | X3: Additional Net Benefit (Loss to Municipality) | Y3: Net Benefit (Loss) to Municipality | Z3: =IF(existpilot=2,"Change in Municipal Property Tax Revenue due to Project", "Change in Municipal PILOT Revenue due to Project") -> Change in Municipal Property Tax Revenue due to Project
A4: ='Inputs & Assumptions'!G5 -> 2022 | B4: 1 | C4: ='Inputs & Assumptions'!F40 -> 1470394 | D4: ='Inputs & Assumptions'!G40 -> -974320 | E4: ='Inputs & Assumptions'!K40 -> 6926200 | F4: =IF(existpilot=2,'Inputs & Assumptions'!$Q$4*(E4/100),'Inputs & Assumptions'!J40) -> 37887.77184 | G4: ='Inputs & Assumptions'!L40 -> 7929440 | H4: =(G4/100)*'Inputs & Assumptions'!$Q$5 -> 200110.5086 | I4: =(G4/100)*'Inputs & Assumptions'!$Q$4 -> 43375.7058 | J4: =IF(IF('Inputs & Assumptions'!$B$8=1,-C4*'Inputs & Assumptions'!$C40,IF('Inputs & Assumptions'!$B$8=2,-H4*'Inputs & Assumptions'!$D40,IF('Inputs & Assumptions'!$B$8=3,-'Inputs & Assumptions'!E40,"")))*$AA$10>0,0,IF('Inputs & Assumptions'!$B$8=1,-C4*'Inputs & Assumptions'!$C40,IF('Inputs & Assumptions'!$B$8=2,-H4*'Inputs & Assumptions'!$D40,IF('Inputs & Assumptions'!$B$8=3,-'Inputs & Assumptions'!E40,"")))*$AA$10) -> -134785.232 | K4: =IF(pilotmeth=1,VLOOKUP(Muni,Data!$E$4:$Q$568,11,FALSE),'Inputs & Assumptions'!$J$15)*J4 -> -128045.9704 | L4: =IF(pilotmeth=1,VLOOKUP(Muni,Data!$E$4:$Q$568,12,FALSE),'Inputs & Assumptions'!$J$16)*J4 -> -6739.2616 | M4: =IF(pilotmeth=1,VLOOKUP(Muni,Data!$E$4:$Q$568,13,FALSE),'Inputs & Assumptions'!$J$17)*J4 -> 0 | N4: =J4+D4+C4 -> 361288.768 | O4: ='Inputs & Assumptions'!H40 -> -362569 | P4: =SUM(N4:O4) -> -1280.231991 | Q4: ='Inputs & Assumptions'!I40 -> -8630249 | R4: =SUM(P4:Q4) -> -8631529.232 | S4: =IFERROR(-J4/C4,"--") -> 0.09166606501 | T4: =IFERROR(-J4/H4,"--") -> 0.6735539925 | U4: ='Inputs & Assumptions'!N40 -> 0 | V4: =IFERROR(IF(Type=1,'Inputs & Assumptions'!$Q$6*'Inputs & Assumptions'!E19,IF(Type=2,'Inputs & Assumptions'!$Q$6*'Inputs & Assumptions'!C23,IF(Type=3,'Inputs & Assumptions'!$Q$6*'Inputs & Assumptions'!C36,"--"))),"No Data") -> 34364.08502 | W4: =IFERROR(V4+U4,"--") -> 34364.08502 | X4: ='Inputs & Assumptions'!M40 -> 0 | Y4: =IFERROR(-K4-F4-W4+X4,"--") -> 55794.11354 | Z4: =-K4-F4 -> 90158.19855 | AA4: Current IRR | AB4: =IRR(R4:R33,0.1) -> 0.04500872364
A5: =A4+1 -> 2023 | B5: 2 | C5: ='Inputs & Assumptions'!F41 -> 1514505.82 | D5: ='Inputs & Assumptions'!G41 -> -1003549.6 | E5: ='Inputs & Assumptions'!K41 -> 7133986 | F5: =IF(existpilot=2,'Inputs & Assumptions'!$Q$4*(E5/100),'Inputs & Assumptions'!J41) -> 39024.40499 | G5: ='Inputs & Assumptions'!L41 -> 8167323.2 | H5: =(G5/100)*'Inputs & Assumptions'!$Q$5 -> 206113.8238 | I5: =(G5/100)*'Inputs & Assumptions'!$Q$4 -> 44676.97698 | J5: =IF(C5="","--",IF(IF('Inputs & Assumptions'!$B$8=1,-C5*'Inputs & Assumptions'!$C41,IF('Inputs & Assumptions'!$B$8=2,-H5*'Inputs & Assumptions'!$D41,IF('Inputs & Assumptions'!$B$8=3,-'Inputs & Assumptions'!E41,"")))*$AA$10>0,0,IF('Inputs & Assumptions'!$B$8=1,-C5*'Inputs & Assumptions'!$C41,IF('Inputs & Assumptions'!$B$8=2,-H5*'Inputs & Assumptions'!$D41,IF('Inputs & Assumptions'!$B$8=3,-'Inputs & Assumptions'!E41,"")))*$AA$10)) -> -138828.789 | K5: =IF(pilotmeth=1,VLOOKUP(Muni,Data!$E$4:$Q$568,11,FALSE),'Inputs & Assumptions'!$J$15)*J5 -> -131887.3495 | L5: =IF(pilotmeth=1,VLOOKUP(Muni,Data!$E$4:$Q$568,12,FALSE),'Inputs & Assumptions'!$J$16)*J5 -> -6941.439448 | M5: =IF(pilotmeth=1,VLOOKUP(Muni,Data!$E$4:$Q$568,13,FALSE),'Inputs & Assumptions'!$J$17)*J5 -> 0 | N5: =J5+D5+C5 -> 372127.431 | O5: ='Inputs & Assumptions'!H41 -> -362569 | P5: =SUM(N5:O5) -> 9558.431049 | Q5: ='Inputs & Assumptions'!I41 -> 0 | R5: =SUM(P5:Q5) -> 9558.431049 | S5: =IFERROR(-J5/C5,"--") -> 0.09166606501 | T5: =IFERROR(-J5/H5,"--") -> 0.6735539925 | U5: ='Inputs & Assumptions'!N41 -> 0 | V5: =IF(OR(C5>0),IFERROR(V4*((1+'Inputs & Assumptions'!O41)),"No Data"),"--") -> 35051.36672 | W5: =IFERROR(V5+U5,"--") -> 35051.36672 | X5: ='Inputs & Assumptions'!M41 -> 0 | Y5: =IFERROR(-K5-F5-W5+X5,"--") -> 57811.57779 | Z5: =-K5-F5 -> 92862.94451
A6: =A5+1 -> 2024 | B6: 3 | C6: ='Inputs & Assumptions'!F42 -> 1559940.995 | D6: ='Inputs & Assumptions'!G42 -> -1033656.088 | E6: ='Inputs & Assumptions'!K42 -> 7348005.58 | F6: =IF(existpilot=2,'Inputs & Assumptions'!$Q$4*(E6/100),'Inputs & Assumptions'!J42) -> 40195.13714 | G6: ='Inputs & Assumptions'!L42 -> 8412342.896 | H6: =(G6/100)*'Inputs & Assumptions'!$Q$5 -> 212297.2385 | I6: =(G6/100)*'Inputs & Assumptions'!$Q$4 -> 46017.28628 | J6: =IF(C6="","--",IF(IF('Inputs & Assumptions'!$B$8=1,-C6*'Inputs & Assumptions'!$C42,IF('Inputs & Assumptions'!$B$8=2,-H6*'Inputs & Assumptions'!$D42,IF('Inputs & Assumptions'!$B$8=3,-'Inputs & Assumptions'!E42,"")))*$AA$10>0,0,IF('Inputs & Assumptions'!$B$8=1,-C6*'Inputs & Assumptions'!$C42,IF('Inputs & Assumptions'!$B$8=2,-H6*'Inputs & Assumptions'!$D42,IF('Inputs & Assumptions'!$B$8=3,-'Inputs & Assumptions'!E42,"")))*$AA$10)) -> -142993.6526 | K6: =IF(pilotmeth=1,VLOOKUP(Muni,Data!$E$4:$Q$568,11,FALSE),'Inputs & Assumptions'!$J$15)*J6 -> -135843.97 | L6: =IF(pilotmeth=1,VLOOKUP(Muni,Data!$E$4:$Q$568,12,FALSE),'Inputs & Assumptions'!$J$16)*J6 -> -7149.682631 | M6: =IF(pilotmeth=1,VLOOKUP(Muni,Data!$E$4:$Q$568,13,FALSE),'Inputs & Assumptions'!$J$17)*J6 -> 0 | N6: 383291.254 | O6: ='Inputs & Assumptions'!H42 -> -362569 | P6: =SUM(N6:O6) -> 20722.25398 | Q6: ='Inputs & Assumptions'!I42 -> 0 | R6: =SUM(P6:Q6) -> 20722.25398 | S6: 0.09166606501 | T6: 0.6735539925 | U6: ='Inputs & Assumptions'!N42 -> 0 | V6: =IF(OR(C6>0),IFERROR(V5*((1+'Inputs & Assumptions'!O42)),"No Data"),"--") -> 35752.39405 | W6: 35752.39405 | X6: ='Inputs & Assumptions'!M42 -> 0 | Y6: =IFERROR(-K6-F6-W6+X6,"--") -> 59896.43879 | Z6: 95648.83285 | AA6: IRR Target | AB6: 0.045
A7: 2025 | B7: 4 | C7: ='Inputs & Assumptions'!F43 -> 1606739.224 | D7: ='Inputs & Assumptions'!G43 -> -1064665.771 | E7: ='Inputs & Assumptions'!K43 -> 7568445.747 | F7: =IF(existpilot=2,'Inputs & Assumptions'!$Q$4*(E7/100),'Inputs & Assumptions'!J43) -> 41400.99126 | G7: ='Inputs & Assumptions'!L43 -> 8664713.183 | H7: =(G7/100)*'Inputs & Assumptions'!$Q$5 -> 218666.1557 | I7: =(G7/100)*'Inputs & Assumptions'!$Q$4 -> 47397.80487 | J7: =IF(C7="","--",IF(IF('Inputs & Assumptions'!$B$8=1,-C7*'Inputs & Assumptions'!$C43,IF('Inputs & Assumptions'!$B$8=2,-H7*'Inputs & Assumptions'!$D43,IF('Inputs & Assumptions'!$B$8=3,-'Inputs & Assumptions'!E43,"")))*$AA$10>0,0,IF('Inputs & Assumptions'!$B$8=1,-C7*'Inputs & Assumptions'!$C43,IF('Inputs & Assumptions'!$B$8=2,-H7*'Inputs & Assumptions'!$D43,IF('Inputs & Assumptions'!$B$8=3,-'Inputs & Assumptions'!E43,"")))*$AA$10)) -> -147283.4622 | K7: =IF(pilotmeth=1,VLOOKUP(Muni,Data!$E$4:$Q$568,11,FALSE),'Inputs & Assumptions'!$J$15)*J7 -> -139919.2891 | L7: =IF(pilotmeth=1,VLOOKUP(Muni,Data!$E$4:$Q$568,12,FALSE),'Inputs & Assumptions'!$J$16)*J7 -> -7364.17311 | M7: =IF(pilotmeth=1,VLOOKUP(Muni,Data!$E$4:$Q$568,13,FALSE),'Inputs & Assumptions'!$J$17)*J7 -> 0 | N7: 394789.9916 | O7: ='Inputs & Assumptions'!H43 -> -362569 | P7: =SUM(N7:O7) -> 32220.9916 | Q7: ='Inputs & Assumptions'!I43 -> 0 | R7: 32220.9916 | S7: 0.09166606501 | T7: 0.6735539925 | U7: ='Inputs & Assumptions'!N43 -> 0 | V7: =IF(OR(C7>0),IFERROR(V6*((1+'Inputs & Assumptions'!O43)),"No Data"),"--") -> 36467.44193 | W7: 36467.44193 | X7: ='Inputs & Assumptions'!M43 -> 0 | Y7: 62050.8559 | Z7: 98518.29783
A8: 2026 | B8: 5 | C8: ='Inputs & Assumptions'!F44 -> 1654941.401 | D8: ='Inputs & Assumptions'!G44 -> -1096605.744 | E8: ='Inputs & Assumptions'!K44 -> 7795499.12 | F8: =IF(existpilot=2,'Inputs & Assumptions'!$Q$4*(E8/100),'Inputs & Assumptions'!J44) -> 42643.02099 | G8: ='Inputs & Assumptions'!L44 -> 8924654.578 | H8: =(G8/100)*'Inputs & Assumptions'!$Q$5 -> 225226.1404 | I8: =(G8/100)*'Inputs & Assumptions'!$Q$4 -> 48819.73902 | J8: =IF(C8="","--",IF(IF('Inputs & Assumptions'!$B$8=1,-C8*'Inputs & Assumptions'!$C44,IF('Inputs & Assumptions'!$B$8=2,-H8*'Inputs & Assumptions'!$D44,IF('Inputs & Assumptions'!$B$8=3,-'Inputs & Assumptions'!E44,"")))*$AA$10>0,0,IF('Inputs & Assumptions'!$B$8=1,-C8*'Inputs & Assumptions'!$C44,IF('Inputs & Assumptions'!$B$8=2,-H8*'Inputs & Assumptions'!$D44,IF('Inputs & Assumptions'!$B$8=3,-'Inputs & Assumptions'!E44,"")))*$AA$10)) -> -151701.9661 | K8: =IF(pilotmeth=1,VLOOKUP(Muni,Data!$E$4:$Q$568,11,FALSE),'Inputs & Assumptions'!$J$15)*J8 -> -144116.8678 | L8: =IF(pilotmeth=1,VLOOKUP(Muni,Data!$E$4:$Q$568,12,FALSE),'Inputs & Assumptions'!$J$16)*J8 -> -7585.098303 | M8: =IF(pilotmeth=1,VLOOKUP(Muni,Data!$E$4:$Q$568,13,FALSE),'Inputs & Assumptions'!$J$17)*J8 -> 0 | N8: 406633.6913 | O8: ='Inputs & Assumptions'!H44 -> -362569 | P8: 44064.69135 | Q8: ='Inputs & Assumptions'!I44 -> 0 | R8: =SUM(P8:Q8) -> 44064.69135 | S8: 0.09166606501 | T8: 0.6735539925 | U8: ='Inputs & Assumptions'!N44 -> 0 | V8: =IF(OR(C8>0),IFERROR(V7*((1+'Inputs & Assumptions'!O44)),"No Data"),"--") -> 37196.79077 | W8: 37196.79077 | X8: ='Inputs & Assumptions'!M44 -> 0 | Y8: 64277.05599 | Z8: 101473.8468
A9: 2027 | B9: 6 | C9: ='Inputs & Assumptions'!F45 -> 1704589.643 | D9: ='Inputs & Assumptions'!G45 -> -1129503.916 | E9: ='Inputs & Assumptions'!K45 -> 8029364.093 | F9: =IF(existpilot=2,'Inputs & Assumptions'!$Q$4*(E9/100),'Inputs & Assumptions'!J45) -> 43922.31162 | G9: ='Inputs & Assumptions'!L45 -> 9192394.216 | H9: =(G9/100)*'Inputs & Assumptions'!$Q$5 -> 231982.9246 | I9: =(G9/100)*'Inputs & Assumptions'!$Q$4 -> 50284.33119 | J9: =IF(C9="","--",IF(IF('Inputs & Assumptions'!$B$8=1,-C9*'Inputs & Assumptions'!$C45,IF('Inputs & Assumptions'!$B$8=2,-H9*'Inputs & Assumptions'!$D45,IF('Inputs & Assumptions'!$B$8=3,-'Inputs & Assumptions'!E45,"")))*$AA$10>0,0,IF('Inputs & Assumptions'!$B$8=1,-C9*'Inputs & Assumptions'!$C45,IF('Inputs & Assumptions'!$B$8=2,-H9*'Inputs & Assumptions'!$D45,IF('Inputs & Assumptions'!$B$8=3,-'Inputs & Assumptions'!E45,"")))*$AA$10)) -> -156253.025 | K9: =IF(pilotmeth=1,VLOOKUP(Muni,Data!$E$4:$Q$568,11,FALSE),'Inputs & Assumptions'!$J$15)*J9 -> -148440.3738 | L9: =IF(pilotmeth=1,VLOOKUP(Muni,Data!$E$4:$Q$568,12,FALSE),'Inputs & Assumptions'!$J$16)*J9 -> -7812.651252 | M9: =IF(pilotmeth=1,VLOOKUP(Muni,Data!$E$4:$Q$568,13,FALSE),'Inputs & Assumptions'!$J$17)*J9 -> 0 | N9: 418832.7021 | O9: ='Inputs & Assumptions'!H45 -> -362569 | P9: 56263.70209 | Q9: ='Inputs & Assumptions'!I45 -> 0 | R9: 56263.70209 | S9: 0.09166606501 | T9: 0.6735539925 | U9: ='Inputs & Assumptions'!N45 -> 0 | V9: =IF(OR(C9>0),IFERROR(V8*((1+'Inputs & Assumptions'!O45)),"No Data"),"--") -> 37940.72659 | W9: 37940.72659 | X9: ='Inputs & Assumptions'!M45 -> 0 | Y9: 66577.33558 | Z9: 104518.0622 | AA9: PILOT Adjustment Factor
A10: 2028 | B10: 7 | C10: ='Inputs & Assumptions'!F46 -> 1755727.333 | D10: ='Inputs & Assumptions'!G46 -> -1163389.034 | E10: ='Inputs & Assumptions'!K46 -> 8270245.016 | F10: =IF(existpilot=2,'Inputs & Assumptions'!$Q$4*(E10/100),'Inputs & Assumptions'!J46) -> 45239.98097 | G10: ='Inputs & Assumptions'!L46 -> 9468166.042 | H10: =(G10/100)*'Inputs & Assumptions'!$Q$5 -> 238942.4123 | I10: =(G10/100)*'Inputs & Assumptions'!$Q$4 -> 51792.86113 | J10: =IF(C10="","--",IF(IF('Inputs & Assumptions'!$B$8=1,-C10*'Inputs & Assumptions'!$C46,IF('Inputs & Assumptions'!$B$8=2,-H10*'Inputs & Assumptions'!$D46,IF('Inputs & Assumptions'!$B$8=3,-'Inputs & Assumptions'!E46,"")))*$AA$10>0,0,IF('Inputs & Assumptions'!$B$8=1,-C10*'Inputs & Assumptions'!$C46,IF('Inputs & Assumptions'!$B$8=2,-H10*'Inputs & Assumptions'!$D46,IF('Inputs & Assumptions'!$B$8=3,-'Inputs & Assumptions'!E46,"")))*$AA$10)) -> -160940.6158 | K10: =IF(pilotmeth=1,VLOOKUP(Muni,Data!$E$4:$Q$568,11,FALSE),'Inputs & Assumptions'!$J$15)*J10 -> -152893.585 | L10: =IF(pilotmeth=1,VLOOKUP(Muni,Data!$E$4:$Q$568,12,FALSE),'Inputs & Assumptions'!$J$16)*J10 -> -8047.03079 | M10: =IF(pilotmeth=1,VLOOKUP(Muni,Data!$E$4:$Q$568,13,FALSE),'Inputs & Assumptions'!$J$17)*J10 -> 0 | N10: 431397.6832 | O10: ='Inputs & Assumptions'!H46 -> -362569 | P10: 68828.68315 | Q10: ='Inputs & Assumptions'!I46 -> 0 | R10: 68828.68315 | S10: 0.09166606501 | T10: 0.6735539925 | U10: ='Inputs & Assumptions'!N46 -> 0 | V10: =IF(OR(C10>0),IFERROR(V9*((1+'Inputs & Assumptions'!O46)),"No Data"),"--") -> 38699.54112 | W10: 38699.54112 | X10: ='Inputs & Assumptions'!M46 -> 0 | Y10: 68954.06291 | Z10: 107653.604 | AA10: 1.459646657
A11: 2029 | B11: 8 | C11: ='Inputs & Assumptions'!F47 -> 1808399.152 | D11: ='Inputs & Assumptions'!G47 -> -1198290.705 | E11: ='Inputs & Assumptions'!K47 -> 8518352.367 | F11: =IF(existpilot=2,'Inputs & Assumptions'!$Q$4*(E11/100),'Inputs & Assumptions'!J47) -> 46597.1804 | G11: ='Inputs & Assumptions'!L47 -> 9752211.023 | H11: =(G11/100)*'Inputs & Assumptions'!$Q$5 -> 246110.6847 | I11: =(G11/100)*'Inputs & Assumptions'!$Q$4 -> 53346.64696 | J11: =IF(C11="","--",IF(IF('Inputs & Assumptions'!$B$8=1,-C11*'Inputs & Assumptions'!$C47,IF('Inputs & Assumptions'!$B$8=2,-H11*'Inputs & Assumptions'!$D47,IF('Inputs & Assumptions'!$B$8=3,-'Inputs & Assumptions'!E47,"")))*$AA$10>0,0,IF('Inputs & Assumptions'!$B$8=1,-C11*'Inputs & Assumptions'!$C47,IF('Inputs & Assumptions'!$B$8=2,-H11*'Inputs & Assumptions'!$D47,IF('Inputs & Assumptions'!$B$8=3,-'Inputs & Assumptions'!E47,"")))*$AA$10)) -> -165768.8343 | K11: =IF(pilotmeth=1,VLOOKUP(Muni,Data!$E$4:$Q$568,11,FALSE),'Inputs & Assumptions'!$J$15)*J11 -> -157480.3926 | L11: =IF(pilotmeth=1,VLOOKUP(Muni,Data!$E$4:$Q$568,12,FALSE),'Inputs & Assumptions'!$J$16)*J11 -> -8288.441714 | M11: =IF(pilotmeth=1,VLOOKUP(Muni,Data!$E$4:$Q$568,13,FALSE),'Inputs & Assumptions'!$J$17)*J11 -> 0 | N11: 444339.6136 | O11: ='Inputs & Assumptions'!H47 -> -362569 | P11: 81770.61365 | Q11: ='Inputs & Assumptions'!I47 -> 0 | R11: 81770.61365 | S11: 0.09166606501 | T11: 0.6735539925 | U11: ='Inputs & Assumptions'!N47 -> 0 | V11: =IF(OR(C11>0),IFERROR(V10*((1+'Inputs & Assumptions'!O47)),"No Data"),"--") -> 39473.53194 | W11: 39473.53194 | X11: ='Inputs & Assumptions'!M47 -> 0 | Y11: 71409.68021 | Z11: 110883.2122
A12: 2030 | B12: 9 | C12: ='Inputs & Assumptions'!F48 -> 1862651.127 | D12: ='Inputs & Assumptions'!G48 -> -1234239.426 | E12: ='Inputs & Assumptions'!K48 -> 8773902.938 | F12: =IF(existpilot=2,'Inputs & Assumptions'!$Q$4*(E12/100),'Inputs & Assumptions'!J48) -> 47995.09581 | G12: ='Inputs & Assumptions'!L48 -> 10044777.35 | H12: =(G12/100)*'Inputs & Assumptions'!$Q$5 -> 253494.0052 | I12: =(G12/100)*'Inputs & Assumptions'!$Q$4 -> 54947.04637 | J12: =IF(C12="","--",IF(IF('Inputs & Assumptions'!$B$8=1,-C12*'Inputs & Assumptions'!$C48,IF('Inputs & Assumptions'!$B$8=2,-H12*'Inputs & Assumptions'!$D48,IF('Inputs & Assumptions'!$B$8=3,-'Inputs & Assumptions'!E48,"")))*$AA$10>0,0,IF('Inputs & Assumptions'!$B$8=1,-C12*'Inputs & Assumptions'!$C48,IF('Inputs & Assumptions'!$B$8=2,-H12*'Inputs & Assumptions'!$D48,IF('Inputs & Assumptions'!$B$8=3,-'Inputs & Assumptions'!E48,"")))*$AA$10)) -> -170741.8993 | K12: =IF(pilotmeth=1,VLOOKUP(Muni,Data!$E$4:$Q$568,11,FALSE),'Inputs & Assumptions'!$J$15)*J12 -> -162204.8043 | L12: =IF(pilotmeth=1,VLOOKUP(Muni,Data!$E$4:$Q$568,12,FALSE),'Inputs & Assumptions'!$J$16)*J12 -> -8537.094965 | M12: =IF(pilotmeth=1,VLOOKUP(Muni,Data!$E$4:$Q$568,13,FALSE),'Inputs & Assumptions'!$J$17)*J12 -> 0 | N12: =J12+D12+C12 -> 457669.8021 | O12: ='Inputs & Assumptions'!H48 -> -362569 | P12: 95100.80205 | Q12: ='Inputs & Assumptions'!I48 -> 0 | R12: 95100.80205 | S12: 0.09166606501 | T12: 0.6735539925 | U12: ='Inputs & Assumptions'!N48 -> 0 | V12: =IF(OR(C12>0),IFERROR(V11*((1+'Inputs & Assumptions'!O48)),"No Data"),"--") -> 40263.00258 | W12: 40263.00258 | X12: ='Inputs & Assumptions'!M48 -> 0 | Y12: 73946.70594 | Z12: 114209.7085
A13: 2031 | B13: 10 | C13: ='Inputs & Assumptions'!F49 -> 1918530.661 | D13: ='Inputs & Assumptions'!G49 -> -1271266.608 | E13: ='Inputs & Assumptions'!K49 -> 9037120.026 | F13: =IF(existpilot=2,'Inputs & Assumptions'!$Q$4*(E13/100),'Inputs & Assumptions'!J49) -> 49434.94869 | G13: ='Inputs & Assumptions'!L49 -> 10346120.67 | H13: =(G13/100)*'Inputs & Assumptions'!$Q$5 -> 261098.8254 | I13: =(G13/100)*'Inputs & Assumptions'!$Q$4 -> 56595.45776 | J13: =IF(C13="","--",IF(IF('Inputs & Assumptions'!$B$8=1,-C13*'Inputs & Assumptions'!$C49,IF('Inputs & Assumptions'!$B$8=2,-H13*'Inputs & Assumptions'!$D49,IF('Inputs & Assumptions'!$B$8=3,-'Inputs & Assumptions'!E49,"")))*$AA$10>0,0,IF('Inputs & Assumptions'!$B$8=1,-C13*'Inputs & Assumptions'!$C49,IF('Inputs & Assumptions'!$B$8=2,-H13*'Inputs & Assumptions'!$D49,IF('Inputs & Assumptions'!$B$8=3,-'Inputs & Assumptions'!E49,"")))*$AA$10)) -> -175864.1563 | K13: =IF(pilotmeth=1,VLOOKUP(Muni,Data!$E$4:$Q$568,11,FALSE),'Inputs & Assumptions'!$J$15)*J13 -> -167070.9485 | L13: =IF(pilotmeth=1,VLOOKUP(Muni,Data!$E$4:$Q$568,12,FALSE),'Inputs & Assumptions'!$J$16)*J13 -> -8793.207814 | M13: =IF(pilotmeth=1,VLOOKUP(Muni,Data!$E$4:$Q$568,13,FALSE),'Inputs & Assumptions'!$J$17)*J13 -> 0 | N13: 471399.8961 | O13: ='Inputs & Assumptions'!H49 -> -362569 | P13: 108830.8961 | Q13: ='Inputs & Assumptions'!I49 -> 0 | R13: 108830.8961 | S13: 0.09166606501 | T13: 0.6735539925 | U13: ='Inputs & Assumptions'!N49 -> 0 | V13: =IF(OR(C13>0),IFERROR(V12*((1+'Inputs & Assumptions'!O49)),"No Data"),"--") -> 41068.26263 | W13: 41068.26263 | X13: ='Inputs & Assumptions'!M49 -> 0 | Y13: 76567.73714 | Z13: 117635.9998
A14: 2032 | B14: 11 | C14: ='Inputs & Assumptions'!F50 -> 1976086.581 | D14: ='Inputs & Assumptions'!G50 -> -1309404.607 | E14: ='Inputs & Assumptions'!K50 -> 9308233.627 | F14: =IF(existpilot=2,'Inputs & Assumptions'!$Q$4*(E14/100),'Inputs & Assumptions'!J50) -> 50917.99715 | G14: ='Inputs & Assumptions'!L50 -> 10656504.3 | H14: =(G14/100)*'Inputs & Assumptions'!$Q$5 -> 268931.7902 | I14: =(G14/100)*'Inputs & Assumptions'!$Q$4 -> 58293.32149 | J14: =IF(C14="","--",IF(IF('Inputs & Assumptions'!$B$8=1,-C14*'Inputs & Assumptions'!$C50,IF('Inputs & Assumptions'!$B$8=2,-H14*'Inputs & Assumptions'!$D50,IF('Inputs & Assumptions'!$B$8=3,-'Inputs & Assumptions'!E50,"")))*$AA$10>0,0,IF('Inputs & Assumptions'!$B$8=1,-C14*'Inputs & Assumptions'!$C50,IF('Inputs & Assumptions'!$B$8=2,-H14*'Inputs & Assumptions'!$D50,IF('Inputs & Assumptions'!$B$8=3,-'Inputs & Assumptions'!E50,"")))*$AA$10)) -> -181140.081 | K14: =IF(pilotmeth=1,VLOOKUP(Muni,Data!$E$4:$Q$568,11,FALSE),'Inputs & Assumptions'!$J$15)*J14 -> -172083.0769 | L14: =IF(pilotmeth=1,VLOOKUP(Muni,Data!$E$4:$Q$568,12,FALSE),'Inputs & Assumptions'!$J$16)*J14 -> -9057.004048 | M14: =IF(pilotmeth=1,VLOOKUP(Muni,Data!$E$4:$Q$568,13,FALSE),'Inputs & Assumptions'!$J$17)*J14 -> 0 | N14: =IFERROR(J14+D14+C14,"--") -> 485541.893 | O14: ='Inputs & Assumptions'!H50 -> -362569 | P14: =IF(C14="","--",SUM(N14:O14)) -> 122972.893 | Q14: ='Inputs & Assumptions'!I50 -> 0 | R14: =IF(C14="","--",SUM(P14:Q14)) -> 122972.893 | S14: 0.09166606501 | T14: 0.6735539925 | U14: ='Inputs & Assumptions'!N50 -> 0 | V14: =IF(OR(C14>0),IFERROR(V13*((1+'Inputs & Assumptions'!O50)),"No Data"),"--") -> 41889.62789 | W14: 41889.62789 | X14: ='Inputs & Assumptions'!M50 -> 0 | Y14: 79275.45188 | Z14: 121165.0798
A15: 2033 | B15: 12 | C15: ='Inputs & Assumptions'!F51 -> 2035369.178 | D15: ='Inputs & Assumptions'!G51 -> -1348686.745 | E15: ='Inputs & Assumptions'!K51 -> 9587480.635 | F15: =IF(existpilot=2,'Inputs & Assumptions'!$Q$4*(E15/100),'Inputs & Assumptions'!J51) -> 52445.53706 | G15: ='Inputs & Assumptions'!L51 -> 10976199.42 | H15: =(G15/100)*'Inputs & Assumptions'!$Q$5 -> 276999.7439 | I15: =(G15/100)*'Inputs & Assumptions'!$Q$4 -> 60042.12114 | J15: =IF(C15="","--",IF(IF('Inputs & Assumptions'!$B$8=1,-C15*'Inputs & Assumptions'!$C51,IF('Inputs & Assumptions'!$B$8=2,-H15*'Inputs & Assumptions'!$D51,IF('Inputs & Assumptions'!$B$8=3,-'Inputs & Assumptions'!E51,"")))*$AA$10>0,0,IF('Inputs & Assumptions'!$B$8=1,-C15*'Inputs & Assumptions'!$C51,IF('Inputs & Assumptions'!$B$8=2,-H15*'Inputs & Assumptions'!$D51,IF('Inputs & Assumptions'!$B$8=3,-'Inputs & Assumptions'!E51,"")))*$AA$10)) -> -186574.2834 | K15: =IF(pilotmeth=1,VLOOKUP(Muni,Data!$E$4:$Q$568,11,FALSE),'Inputs & Assumptions'!$J$15)*J15 -> -177245.5692 | L15: =IF(pilotmeth=1,VLOOKUP(Muni,Data!$E$4:$Q$568,12,FALSE),'Inputs & Assumptions'!$J$16)*J15 -> -9328.71417 | M15: =IF(pilotmeth=1,VLOOKUP(Muni,Data!$E$4:$Q$568,13,FALSE),'Inputs & Assumptions'!$J$17)*J15 -> 0 | N15: =IFERROR(J15+D15+C15,"--") -> 500108.1498 | O15: ='Inputs & Assumptions'!H51 -> -362569 | P15: =IF(C15="","--",SUM(N15:O15)) -> 137539.1498 | Q15: ='Inputs & Assumptions'!I51 -> 0 | R15: =IF(C15="","--",SUM(P15:Q15)) -> 137539.1498 | S15: 0.09166606501 | T15: 0.6735539925 | U15: ='Inputs & Assumptions'!N51 -> 0 | V15: =IF(OR(C15>0),IFERROR(V14*((1+'Inputs & Assumptions'!O51)),"No Data"),"--") -> 42727.42044 | W15: 42727.42044 | X15: ='Inputs & Assumptions'!M51 -> 0 | Y15: 82072.61172 | Z15: 124800.0322
A16: 2034 | B16: =B15+1 -> 13 | C16: ='Inputs & Assumptions'!F52 -> 2096430.253 | D16: ='Inputs & Assumptions'!G52 -> -1389147.347 | E16: ='Inputs & Assumptions'!K52 -> 9875105.054 | F16: =IF(existpilot=2,'Inputs & Assumptions'!$Q$4*(E16/100),'Inputs & Assumptions'!J52) -> 54018.90318 | G16: ='Inputs & Assumptions'!L52 -> 11305485.41 | H16: =(G16/100)*'Inputs & Assumptions'!$Q$5 -> 285309.7362 | I16: =(G16/100)*'Inputs & Assumptions'!$Q$4 -> 61843.38477 | J16: =IF(C16="","--",IF(IF('Inputs & Assumptions'!$B$8=1,-C16*'Inputs & Assumptions'!$C52,IF('Inputs & Assumptions'!$B$8=2,-H16*'Inputs & Assumptions'!$D52,IF('Inputs & Assumptions'!$B$8=3,-'Inputs & Assumptions'!E52,"")))*$AA$10>0,0,IF('Inputs & Assumptions'!$B$8=1,-C16*'Inputs & Assumptions'!$C52,IF('Inputs & Assumptions'!$B$8=2,-H16*'Inputs & Assumptions'!$D52,IF('Inputs & Assumptions'!$B$8=3,-'Inputs & Assumptions'!E52,"")))*$AA$10)) -> -192171.5119 | K16: =IF(pilotmeth=1,VLOOKUP(Muni,Data!$E$4:$Q$568,11,FALSE),'Inputs & Assumptions'!$J$15)*J16 -> -182562.9363 | L16: =IF(pilotmeth=1,VLOOKUP(Muni,Data!$E$4:$Q$568,12,FALSE),'Inputs & Assumptions'!$J$16)*J16 -> -9608.575595 | M16: =IF(pilotmeth=1,VLOOKUP(Muni,Data!$E$4:$Q$568,13,FALSE),'Inputs & Assumptions'!$J$17)*J16 -> 0 | N16: 515111.3943 | O16: ='Inputs & Assumptions'!H52 -> -362569 | P16: 152542.3943 | Q16: ='Inputs & Assumptions'!I52 -> 0 | R16: 152542.3943 | S16: 0.09166606501 | T16: 0.6735539925 | U16: ='Inputs & Assumptions'!N52 -> 0 | V16: =IF(OR(C16>0),IFERROR(V15*((1+'Inputs & Assumptions'!O52)),"No Data"),"--") -> 43581.96885 | W16: 43581.96885 | X16: ='Inputs & Assumptions'!M52 -> 0 | Y16: 84962.06427 | Z16: 128544.0331
A17: 2035 | B17: =B16+1 -> 14 | C17: ='Inputs & Assumptions'!F53 -> 2159323.161 | D17: ='Inputs & Assumptions'!G53 -> -1430821.768 | E17: ='Inputs & Assumptions'!K53 -> 10171358.21 | F17: =IF(existpilot=2,'Inputs & Assumptions'!$Q$4*(E17/100),'Inputs & Assumptions'!J53) -> 55639.47027 | G17: ='Inputs & Assumptions'!L53 -> 11644649.97 | H17: =(G17/100)*'Inputs & Assumptions'!$Q$5 -> 293869.0283 | I17: =(G17/100)*'Inputs & Assumptions'!$Q$4 -> 63698.68631 | J17: =IF(C17="","--",IF(IF('Inputs & Assumptions'!$B$8=1,-C17*'Inputs & Assumptions'!$C53,IF('Inputs & Assumptions'!$B$8=2,-H17*'Inputs & Assumptions'!$D53,IF('Inputs & Assumptions'!$B$8=3,-'Inputs & Assumptions'!E53,"")))*$AA$10>0,0,IF('Inputs & Assumptions'!$B$8=1,-C17*'Inputs & Assumptions'!$C53,IF('Inputs & Assumptions'!$B$8=2,-H17*'Inputs & Assumptions'!$D53,IF('Inputs & Assumptions'!$B$8=3,-'Inputs & Assumptions'!E53,"")))*$AA$10)) -> -197936.6573 | K17: =IF(pilotmeth=1,VLOOKUP(Muni,Data!$E$4:$Q$568,11,FALSE),'Inputs & Assumptions'!$J$15)*J17 -> -188039.8244 | L17: =IF(pilotmeth=1,VLOOKUP(Muni,Data!$E$4:$Q$568,12,FALSE),'Inputs & Assumptions'!$J$16)*J17 -> -9896.832863 | M17: =IF(pilotmeth=1,VLOOKUP(Muni,Data!$E$4:$Q$568,13,FALSE),'Inputs & Assumptions'!$J$17)*J17 -> 0 | N17: 530564.7361 | O17: ='Inputs & Assumptions'!H53 -> -362569 | P17: 167995.7361 | Q17: ='Inputs & Assumptions'!I53 -> 0 | R17: 167995.7361 | S17: 0.09166606501 | T17: 0.6735539925 | U17: ='Inputs & Assumptions'!N53 -> 0 | V17: =IF(OR(C17>0),IFERROR(V16*((1+'Inputs & Assumptions'!O53)),"No Data"),"--") -> 44453.60823 | W17: 44453.60823 | X17: ='Inputs & Assumptions'!M53 -> 0 | Y17: 87946.74589 | Z17: 132400.3541
A18: 2036 | B18: 15 | C18: ='Inputs & Assumptions'!F54 -> 2224102.856 | D18: ='Inputs & Assumptions'!G54 -> -1473746.421 | E18: ='Inputs & Assumptions'!K54 -> 10476498.95 | F18: =IF(existpilot=2,'Inputs & Assumptions'!$Q$4*(E18/100),'Inputs & Assumptions'!J54) -> 57308.65438 | G18: ='Inputs & Assumptions'!L54 -> 11993989.47 | H18: =(G18/100)*'Inputs & Assumptions'!$Q$5 -> 302685.0991 | I18: =(G18/100)*'Inputs & Assumptions'!$Q$4 -> 65609.6469 | J18: =IF(C18="","--",IF(IF('Inputs & Assumptions'!$B$8=1,-C18*'Inputs & Assumptions'!$C54,IF('Inputs & Assumptions'!$B$8=2,-H18*'Inputs & Assumptions'!$D54,IF('Inputs & Assumptions'!$B$8=3,-'Inputs & Assumptions'!E54,"")))*$AA$10>0,0,IF('Inputs & Assumptions'!$B$8=1,-C18*'Inputs & Assumptions'!$C54,IF('Inputs & Assumptions'!$B$8=2,-H18*'Inputs & Assumptions'!$D54,IF('Inputs & Assumptions'!$B$8=3,-'Inputs & Assumptions'!E54,"")))*$AA$10)) -> -203874.757 | K18: =IF(pilotmeth=1,VLOOKUP(Muni,Data!$E$4:$Q$568,11,FALSE),'Inputs & Assumptions'!$J$15)*J18 -> -193681.0191 | L18: =IF(pilotmeth=1,VLOOKUP(Muni,Data!$E$4:$Q$568,12,FALSE),'Inputs & Assumptions'!$J$16)*J18 -> -10193.73785 | M18: =IF(pilotmeth=1,VLOOKUP(Muni,Data!$E$4:$Q$568,13,FALSE),'Inputs & Assumptions'!$J$17)*J18 -> 0 | N18: 546481.6782 | O18: ='Inputs & Assumptions'!H54 -> -362569 | P18: 183912.6782 | Q18: ='Inputs & Assumptions'!I54 -> 0 | R18: 183912.6782 | S18: 0.09166606501 | T18: 0.6735539925 | U18: ='Inputs & Assumptions'!N54 -> 0 | V18: =IF(OR(C18>0),IFERROR(V17*((1+'Inputs & Assumptions'!O54)),"No Data"),"--") -> 45342.68039 | W18: 45342.68039 | X18: ='Inputs & Assumptions'!M54 -> 0 | Y18: 91029.68435 | Z18: 136372.3647
A19: 2037 | B19: 16 | C19: ='Inputs & Assumptions'!F55 -> 2290825.942 | D19: ='Inputs & Assumptions'!G55 -> -1517958.813 | E19: ='Inputs & Assumptions'!K55 -> 10790793.92 | F19: =IF(existpilot=2,'Inputs & Assumptions'!$Q$4*(E19/100),'Inputs & Assumptions'!J55) -> 59027.91401 | G19: ='Inputs & Assumptions'!L55 -> 12353809.15 | H19: =(G19/100)*'Inputs & Assumptions'!$Q$5 -> 311765.6521 | I19: =(G19/100)*'Inputs & Assumptions'!$Q$4 -> 67577.93631 | J19: =IF(C19="","--",IF(IF('Inputs & Assumptions'!$B$8=1,-C19*'Inputs & Assumptions'!$C55,IF('Inputs & Assumptions'!$B$8=2,-H19*'Inputs & Assumptions'!$D55,IF('Inputs & Assumptions'!$B$8=3,-'Inputs & Assumptions'!E55,"")))*$AA$10>0,0,IF('Inputs & Assumptions'!$B$8=1,-C19*'Inputs & Assumptions'!$C55,IF('Inputs & Assumptions'!$B$8=2,-H19*'Inputs & Assumptions'!$D55,IF('Inputs & Assumptions'!$B$8=3,-'Inputs & Assumptions'!E55,"")))*$AA$10)) -> -209990.9997 | K19: =IF(pilotmeth=1,VLOOKUP(Muni,Data!$E$4:$Q$568,11,FALSE),'Inputs & Assumptions'!$J$15)*J19 -> -199491.4497 | L19: =IF(pilotmeth=1,VLOOKUP(Muni,Data!$E$4:$Q$568,12,FALSE),'Inputs & Assumptions'!$J$16)*J19 -> -10499.54998 | M19: =IF(pilotmeth=1,VLOOKUP(Muni,Data!$E$4:$Q$568,13,FALSE),'Inputs & Assumptions'!$J$17)*J19 -> 0 | N19: 562876.1285 | O19: ='Inputs & Assumptions'!H55 -> -362569 | P19: 200307.1285 | Q19: ='Inputs & Assumptions'!I55 -> 0 | R19: 200307.1285 | S19: 0.09166606501 | T19: 0.6735539925 | U19: ='Inputs & Assumptions'!N55 -> 0 | V19: =IF(OR(C19>0),IFERROR(V18*((1+'Inputs & Assumptions'!O55)),"No Data"),"--") -> 46249.534 | W19: 46249.534 | X19: ='Inputs & Assumptions'!M55 -> 0 | Y19: 94214.00168 | Z19: 140463.5357
A20: 2038 | B20: 17 | C20: ='Inputs & Assumptions'!F56 -> 2359550.72 | D20: ='Inputs & Assumptions'!G56 -> -1563497.578 | E20: ='Inputs & Assumptions'!K56 -> 11114517.74 | F20: =IF(existpilot=2,'Inputs & Assumptions'!$Q$4*(E20/100),'Inputs & Assumptions'!J56) -> 60798.75143 | G20: ='Inputs & Assumptions'!L56 -> 12724423.43 | H20: =(G20/100)*'Inputs & Assumptions'!$Q$5 -> 321118.6216 | I20: =(G20/100)*'Inputs & Assumptions'!$Q$4 -> 69605.2744 | J20: =IF(C20="","--",IF(IF('Inputs & Assumptions'!$B$8=1,-C20*'Inputs & Assumptions'!$C56,IF('Inputs & Assumptions'!$B$8=2,-H20*'Inputs & Assumptions'!$D56,IF('Inputs & Assumptions'!$B$8=3,-'Inputs & Assumptions'!E56,"")))*$AA$10>0,0,IF('Inputs & Assumptions'!$B$8=1,-C20*'Inputs & Assumptions'!$C56,IF('Inputs & Assumptions'!$B$8=2,-H20*'Inputs & Assumptions'!$D56,IF('Inputs & Assumptions'!$B$8=3,-'Inputs & Assumptions'!E56,"")))*$AA$10)) -> -216290.7297 | K20: =IF(pilotmeth=1,VLOOKUP(Muni,Data!$E$4:$Q$568,11,FALSE),'Inputs & Assumptions'!$J$15)*J20 -> -205476.1932 | L20: =IF(pilotmeth=1,VLOOKUP(Muni,Data!$E$4:$Q$568,12,FALSE),'Inputs & Assumptions'!$J$16)*J20 -> -10814.53648 | M20: =IF(pilotmeth=1,VLOOKUP(Muni,Data!$E$4:$Q$568,13,FALSE),'Inputs & Assumptions'!$J$17)*J20 -> 0 | N20: 579762.4124 | O20: ='Inputs & Assumptions'!H56 -> -362569 | P20: 217193.4124 | Q20: ='Inputs & Assumptions'!I56 -> 0 | R20: 217193.4124 | S20: 0.09166606501 | T20: 0.6735539925 | U20: ='Inputs & Assumptions'!N56 -> 0 | V20: =IF(OR(C20>0),IFERROR(V19*((1+'Inputs & Assumptions'!O56)),"No Data"),"--") -> 47174.52468 | W20: 47174.52468 | X20: ='Inputs & Assumptions'!M56 -> 0 | Y20: 97502.91707 | Z20: 144677.4418
A21: 2039 | B21: 18 | C21: ='Inputs & Assumptions'!F57 -> 2430337.241 | D21: ='Inputs & Assumptions'!G57 -> -1610402.505 | E21: ='Inputs & Assumptions'!K57 -> 11447953.27 | F21: =IF(existpilot=2,'Inputs & Assumptions'!$Q$4*(E21/100),'Inputs & Assumptions'!J57) -> 62622.71397 | G21: ='Inputs & Assumptions'!L57 -> 13106156.13 | H21: =(G21/100)*'Inputs & Assumptions'!$Q$5 -> 330752.1803 | I21: =(G21/100)*'Inputs & Assumptions'!$Q$4 -> 71693.43263 | J21: =IF(C21="","--",IF(IF('Inputs & Assumptions'!$B$8=1,-C21*'Inputs & Assumptions'!$C57,IF('Inputs & Assumptions'!$B$8=2,-H21*'Inputs & Assumptions'!$D57,IF('Inputs & Assumptions'!$B$8=3,-'Inputs & Assumptions'!E57,"")))*$AA$10>0,0,IF('Inputs & Assumptions'!$B$8=1,-C21*'Inputs & Assumptions'!$C57,IF('Inputs & Assumptions'!$B$8=2,-H21*'Inputs & Assumptions'!$D57,IF('Inputs & Assumptions'!$B$8=3,-'Inputs & Assumptions'!E57,"")))*$AA$10)) -> -222779.4516 | K21: =IF(pilotmeth=1,VLOOKUP(Muni,Data!$E$4:$Q$568,11,FALSE),'Inputs & Assumptions'!$J$15)*J21 -> -211640.479 | L21: =IF(pilotmeth=1,VLOOKUP(Muni,Data!$E$4:$Q$568,12,FALSE),'Inputs & Assumptions'!$J$16)*J21 -> -11138.97258 | M21: =IF(pilotmeth=1,VLOOKUP(Muni,Data!$E$4:$Q$568,13,FALSE),'Inputs & Assumptions'!$J$17)*J21 -> 0 | N21: 597155.2848 | O21: ='Inputs & Assumptions'!H57 -> -362569 | P21: 234586.2848 | Q21: ='Inputs & Assumptions'!I57 -> 0 | R21: 234586.2848 | S21: 0.09166606501 | T21: 0.6735539925 | U21: ='Inputs & Assumptions'!N57 -> 0 | V21: =IF(OR(C21>0),IFERROR(V20*((1+'Inputs & Assumptions'!O57)),"No Data"),"--") -> 48118.01518 | W21: 48118.01518 | X21: ='Inputs & Assumptions'!M57 -> 0 | Y21: 100899.7498 | Z21: 149017.765
A22: 2040 | B22: 19 | C22: ='Inputs & Assumptions'!F58 -> 2503247.359 | D22: ='Inputs & Assumptions'!G58 -> -1658714.58 | E22: ='Inputs & Assumptions'!K58 -> 11791391.87 | F22: =IF(existpilot=2,'Inputs & Assumptions'!$Q$4*(E22/100),'Inputs & Assumptions'!J58) -> 64501.39539 | G22: ='Inputs & Assumptions'!L58 -> 13499340.81 | H22: =(G22/100)*'Inputs & Assumptions'!$Q$5 -> 340674.7457 | I22: =(G22/100)*'Inputs & Assumptions'!$Q$4 -> 73844.23561 | J22: =IF(C22="","--",IF(IF('Inputs & Assumptions'!$B$8=1,-C22*'Inputs & Assumptions'!$C58,IF('Inputs & Assumptions'!$B$8=2,-H22*'Inputs & Assumptions'!$D58,IF('Inputs & Assumptions'!$B$8=3,-'Inputs & Assumptions'!E58,"")))*$AA$10>0,0,IF('Inputs & Assumptions'!$B$8=1,-C22*'Inputs & Assumptions'!$C58,IF('Inputs & Assumptions'!$B$8=2,-H22*'Inputs & Assumptions'!$D58,IF('Inputs & Assumptions'!$B$8=3,-'Inputs & Assumptions'!E58,"")))*$AA$10)) -> -229462.8351 | K22: =IF(pilotmeth=1,VLOOKUP(Muni,Data!$E$4:$Q$568,11,FALSE),'Inputs & Assumptions'!$J$15)*J22 -> -217989.6934 | L22: =IF(pilotmeth=1,VLOOKUP(Muni,Data!$E$4:$Q$568,12,FALSE),'Inputs & Assumptions'!$J$16)*J22 -> -11473.14176 | M22: =IF(pilotmeth=1,VLOOKUP(Muni,Data!$E$4:$Q$568,13,FALSE),'Inputs & Assumptions'!$J$17)*J22 -> 0 | N22: 615069.9433 | O22: ='Inputs & Assumptions'!H58 -> -362569 | P22: 252500.9433 | Q22: ='Inputs & Assumptions'!I58 -> 0 | R22: 252500.9433 | S22: 0.09166606501 | T22: 0.6735539925 | U22: ='Inputs & Assumptions'!N58 -> 0 | V22: =IF(OR(C22>0),IFERROR(V21*((1+'Inputs & Assumptions'!O58)),"No Data"),"--") -> 49080.37548 | W22: 49080.37548 | X22: ='Inputs & Assumptions'!M58 -> 0 | Y22: 104407.9225 | Z22: 153488.298
A23: 2041 | B23: 20 | C23: ='Inputs & Assumptions'!F59 -> 2578344.779 | D23: ='Inputs & Assumptions'!G59 -> -1708476.018 | E23: ='Inputs & Assumptions'!K59 -> 12145133.62 | F23: =IF(existpilot=2,'Inputs & Assumptions'!$Q$4*(E23/100),'Inputs & Assumptions'!J59) -> 66436.43726 | G23: ='Inputs & Assumptions'!L59 -> 13904321.04 | H23: =(G23/100)*'Inputs & Assumptions'!$Q$5 -> 350894.9881 | I23: =(G23/100)*'Inputs & Assumptions'!$Q$4 -> 76059.56268 | J23: =IF(C23="","--",IF(IF('Inputs & Assumptions'!$B$8=1,-C23*'Inputs & Assumptions'!$C59,IF('Inputs & Assumptions'!$B$8=2,-H23*'Inputs & Assumptions'!$D59,IF('Inputs & Assumptions'!$B$8=3,-'Inputs & Assumptions'!E59,"")))*$AA$10>0,0,IF('Inputs & Assumptions'!$B$8=1,-C23*'Inputs & Assumptions'!$C59,IF('Inputs & Assumptions'!$B$8=2,-H23*'Inputs & Assumptions'!$D59,IF('Inputs & Assumptions'!$B$8=3,-'Inputs & Assumptions'!E59,"")))*$AA$10)) -> -236346.7202 | K23: =IF(pilotmeth=1,VLOOKUP(Muni,Data!$E$4:$Q$568,11,FALSE),'Inputs & Assumptions'!$J$15)*J23 -> -224529.3842 | L23: =IF(pilotmeth=1,VLOOKUP(Muni,Data!$E$4:$Q$568,12,FALSE),'Inputs & Assumptions'!$J$16)*J23 -> -11817.33601 | M23: =IF(pilotmeth=1,VLOOKUP(Muni,Data!$E$4:$Q$568,13,FALSE),'Inputs & Assumptions'!$J$17)*J23 -> 0 | N23: 633522.0416 | O23: ='Inputs & Assumptions'!H59 -> -362569 | P23: 270953.0416 | Q23: ='Inputs & Assumptions'!I59 -> 0 | R23: 270953.0416 | S23: 0.09166606501 | T23: 0.6735539925 | U23: ='Inputs & Assumptions'!N59 -> 0 | V23: =IF(OR(C23>0),IFERROR(V22*((1+'Inputs & Assumptions'!O59)),"No Data"),"--") -> 50061.98299 | W23: 50061.98299 | X23: ='Inputs & Assumptions'!M59 -> 0 | Y23: 108030.9639 | Z23: 158092.9469
A24: 2042 | B24: 21 | C24: ='Inputs & Assumptions'!F60 -> 2655695.123 | D24: ='Inputs & Assumptions'!G60 -> -1759730.298 | E24: ='Inputs & Assumptions'!K60 -> 12509487.63 | F24: =IF(existpilot=2,'Inputs & Assumptions'!$Q$4*(E24/100),'Inputs & Assumptions'!J60) -> 68429.53037 | G24: ='Inputs & Assumptions'!L60 -> 14321450.67 | H24: =(G24/100)*'Inputs & Assumptions'!$Q$5 -> 361421.8377 | I24: =(G24/100)*'Inputs & Assumptions'!$Q$4 -> 78341.34956 | J24: =IF(C24="","--",IF(IF('Inputs & Assumptions'!$B$8=1,-C24*'Inputs & Assumptions'!$C60,IF('Inputs & Assumptions'!$B$8=2,-H24*'Inputs & Assumptions'!$D60,IF('Inputs & Assumptions'!$B$8=3,-'Inputs & Assumptions'!E60,"")))*$AA$10>0,0,IF('Inputs & Assumptions'!$B$8=1,-C24*'Inputs & Assumptions'!$C60,IF('Inputs & Assumptions'!$B$8=2,-H24*'Inputs & Assumptions'!$D60,IF('Inputs & Assumptions'!$B$8=3,-'Inputs & Assumptions'!E60,"")))*$AA$10)) -> -243437.1218 | K24: =IF(pilotmeth=1,VLOOKUP(Muni,Data!$E$4:$Q$568,11,FALSE),'Inputs & Assumptions'!$J$15)*J24 -> -231265.2657 | L24: =IF(pilotmeth=1,VLOOKUP(Muni,Data!$E$4:$Q$568,12,FALSE),'Inputs & Assumptions'!$J$16)*J24 -> -12171.85609 | M24: =IF(pilotmeth=1,VLOOKUP(Muni,Data!$E$4:$Q$568,13,FALSE),'Inputs & Assumptions'!$J$17)*J24 -> 0 | N24: 652527.7029 | O24: ='Inputs & Assumptions'!H60 -> -362569 | P24: 289958.7029 | Q24: ='Inputs & Assumptions'!I60 -> 0 | R24: 289958.7029 | S24: 0.09166606501 | T24: 0.6735539925 | U24: ='Inputs & Assumptions'!N60 -> 0 | V24: =IF(OR(C24>0),IFERROR(V23*((1+'Inputs & Assumptions'!O60)),"No Data"),"--") -> 51063.22265 | W24: 51063.22265 | X24: ='Inputs & Assumptions'!M60 -> 0 | Y24: 111772.5127 | Z24: 162835.7353
A25: 2043 | B25: 22 | C25: ='Inputs & Assumptions'!F61 -> 2735365.976 | D25: ='Inputs & Assumptions'!G61 -> -1812522.207 | E25: ='Inputs & Assumptions'!K61 -> 12884772.26 | F25: =IF(existpilot=2,'Inputs & Assumptions'!$Q$4*(E25/100),'Inputs & Assumptions'!J61) -> 70482.41628 | G25: ='Inputs & Assumptions'!L61 -> 14751094.19 | H25: =(G25/100)*'Inputs & Assumptions'!$Q$5 -> 372264.4928 | I25: =(G25/100)*'Inputs & Assumptions'!$Q$4 -> 80691.59005 | J25: =IF(C25="","--",IF(IF('Inputs & Assumptions'!$B$8=1,-C25*'Inputs & Assumptions'!$C61,IF('Inputs & Assumptions'!$B$8=2,-H25*'Inputs & Assumptions'!$D61,IF('Inputs & Assumptions'!$B$8=3,-'Inputs & Assumptions'!E61,"")))*$AA$10>0,0,IF('Inputs & Assumptions'!$B$8=1,-C25*'Inputs & Assumptions'!$C61,IF('Inputs & Assumptions'!$B$8=2,-H25*'Inputs & Assumptions'!$D61,IF('Inputs & Assumptions'!$B$8=3,-'Inputs & Assumptions'!E61,"")))*$AA$10)) -> -250740.2354 | K25: =IF(pilotmeth=1,VLOOKUP(Muni,Data!$E$4:$Q$568,11,FALSE),'Inputs & Assumptions'!$J$15)*J25 -> -238203.2236 | L25: =IF(pilotmeth=1,VLOOKUP(Muni,Data!$E$4:$Q$568,12,FALSE),'Inputs & Assumptions'!$J$16)*J25 -> -12537.01177 | M25: =IF(pilotmeth=1,VLOOKUP(Muni,Data!$E$4:$Q$568,13,FALSE),'Inputs & Assumptions'!$J$17)*J25 -> 0 | N25: 672103.5339 | O25: ='Inputs & Assumptions'!H61 -> -362569 | P25: 309534.5339 | Q25: ='Inputs & Assumptions'!I61 -> 0 | R25: 309534.5339 | S25: 0.09166606501 | T25: 0.6735539925 | U25: ='Inputs & Assumptions'!N61 -> 0 | V25: =IF(OR(C25>0),IFERROR(V24*((1+'Inputs & Assumptions'!O61)),"No Data"),"--") -> 52084.4871 | W25: 52084.4871 | X25: ='Inputs & Assumptions'!M61 -> 0 | Y25: 115636.3203 | Z25: 167720.8074
A26: 2044 | B26: 23 | C26: ='Inputs & Assumptions'!F62 -> 2817426.956 | D26: ='Inputs & Assumptions'!G62 -> -1866897.873 | E26: ='Inputs & Assumptions'!K62 -> 13271315.43 | F26: =IF(existpilot=2,'Inputs & Assumptions'!$Q$4*(E26/100),'Inputs & Assumptions'!J62) -> 72596.88877 | G26: ='Inputs & Assumptions'!L62 -> 15193627.01 | H26: =(G26/100)*'Inputs & Assumptions'!$Q$5 -> 383432.4276 | I26: =(G26/100)*'Inputs & Assumptions'!$Q$4 -> 83112.33775 | J26: =IF(C26="","--",IF(IF('Inputs & Assumptions'!$B$8=1,-C26*'Inputs & Assumptions'!$C62,IF('Inputs & Assumptions'!$B$8=2,-H26*'Inputs & Assumptions'!$D62,IF('Inputs & Assumptions'!$B$8=3,-'Inputs & Assumptions'!E62,"")))*$AA$10>0,0,IF('Inputs & Assumptions'!$B$8=1,-C26*'Inputs & Assumptions'!$C62,IF('Inputs & Assumptions'!$B$8=2,-H26*'Inputs & Assumptions'!$D62,IF('Inputs & Assumptions'!$B$8=3,-'Inputs & Assumptions'!E62,"")))*$AA$10)) -> -258262.4425 | K26: =IF(pilotmeth=1,VLOOKUP(Muni,Data!$E$4:$Q$568,11,FALSE),'Inputs & Assumptions'!$J$15)*J26 -> -245349.3204 | L26: =IF(pilotmeth=1,VLOOKUP(Muni,Data!$E$4:$Q$568,12,FALSE),'Inputs & Assumptions'!$J$16)*J26 -> -12913.12212 | M26: =IF(pilotmeth=1,VLOOKUP(Muni,Data!$E$4:$Q$568,13,FALSE),'Inputs & Assumptions'!$J$17)*J26 -> 0 | N26: 692266.64 | O26: ='Inputs & Assumptions'!H62 -> -362569 | P26: 329697.64 | Q26: ='Inputs & Assumptions'!I62 -> 0 | R26: 329697.64 | S26: 0.09166606501 | T26: 0.6735539925 | U26: ='Inputs & Assumptions'!N62 -> 0 | V26: =IF(OR(C26>0),IFERROR(V25*((1+'Inputs & Assumptions'!O62)),"No Data"),"--") -> 53126.17684 | W26: 53126.17684 | X26: ='Inputs & Assumptions'!M62 -> 0 | Y26: 119626.2547 | Z26: 172752.4316
A27: 2045 | B27: 24 | C27: ='Inputs & Assumptions'!F63 -> 2901949.764 | D27: ='Inputs & Assumptions'!G63 -> -1922904.81 | E27: ='Inputs & Assumptions'!K63 -> 13669454.89 | F27: =IF(existpilot=2,'Inputs & Assumptions'!$Q$4*(E27/100),'Inputs & Assumptions'!J63) -> 74774.79544 | G27: ='Inputs & Assumptions'!L63 -> 15649435.82 | H27: =(G27/100)*'Inputs & Assumptions'!$Q$5 -> 394935.4005 | I27: =(G27/100)*'Inputs & Assumptions'!$Q$4 -> 85605.70788 | J27: =IF(C27="","--",IF(IF('Inputs & Assumptions'!$B$8=1,-C27*'Inputs & Assumptions'!$C63,IF('Inputs & Assumptions'!$B$8=2,-H27*'Inputs & Assumptions'!$D63,IF('Inputs & Assumptions'!$B$8=3,-'Inputs & Assumptions'!E63,"")))*$AA$10>0,0,IF('Inputs & Assumptions'!$B$8=1,-C27*'Inputs & Assumptions'!$C63,IF('Inputs & Assumptions'!$B$8=2,-H27*'Inputs & Assumptions'!$D63,IF('Inputs & Assumptions'!$B$8=3,-'Inputs & Assumptions'!E63,"")))*$AA$10)) -> -266010.3158 | K27: =IF(pilotmeth=1,VLOOKUP(Muni,Data!$E$4:$Q$568,11,FALSE),'Inputs & Assumptions'!$J$15)*J27 -> -252709.8 | L27: =IF(pilotmeth=1,VLOOKUP(Muni,Data!$E$4:$Q$568,12,FALSE),'Inputs & Assumptions'!$J$16)*J27 -> -13300.51579 | M27: =IF(pilotmeth=1,VLOOKUP(Muni,Data!$E$4:$Q$568,13,FALSE),'Inputs & Assumptions'!$J$17)*J27 -> 0 | N27: 713034.6392 | O27: ='Inputs & Assumptions'!H63 -> -362569 | P27: 350465.6392 | Q27: ='Inputs & Assumptions'!I63 -> 0 | R27: 350465.6392 | S27: 0.09166606501 | T27: 0.6735539925 | U27: ='Inputs & Assumptions'!N63 -> 0 | V27: =IF(OR(C27>0),IFERROR(V26*((1+'Inputs & Assumptions'!O63)),"No Data"),"--") -> 54188.70038 | W27: 54188.70038 | X27: ='Inputs & Assumptions'!M63 -> 0 | Y27: 123746.3042 | Z27: 177935.0045
A28: 2046 | B28: 25 | C28: ='Inputs & Assumptions'!F64 -> 2989008.257 | D28: ='Inputs & Assumptions'!G64 -> -1980591.954 | E28: ='Inputs & Assumptions'!K64 -> 14079538.54 | F28: =IF(existpilot=2,'Inputs & Assumptions'!$Q$4*(E28/100),'Inputs & Assumptions'!J64) -> 77018.0393 | G28: ='Inputs & Assumptions'!L64 -> 16118918.9 | H28: =(G28/100)*'Inputs & Assumptions'!$Q$5 -> 406783.4625 | I28: =(G28/100)*'Inputs & Assumptions'!$Q$4 -> 88173.87912 | J28: =IF(C28="","--",IF(IF('Inputs & Assumptions'!$B$8=1,-C28*'Inputs & Assumptions'!$C64,IF('Inputs & Assumptions'!$B$8=2,-H28*'Inputs & Assumptions'!$D64,IF('Inputs & Assumptions'!$B$8=3,-'Inputs & Assumptions'!E64,"")))*$AA$10>0,0,IF('Inputs & Assumptions'!$B$8=1,-C28*'Inputs & Assumptions'!$C64,IF('Inputs & Assumptions'!$B$8=2,-H28*'Inputs & Assumptions'!$D64,IF('Inputs & Assumptions'!$B$8=3,-'Inputs & Assumptions'!E64,"")))*$AA$10)) -> -273990.6252 | K28: =IF(pilotmeth=1,VLOOKUP(Muni,Data!$E$4:$Q$568,11,FALSE),'Inputs & Assumptions'!$J$15)*J28 -> -260291.094 | L28: =IF(pilotmeth=1,VLOOKUP(Muni,Data!$E$4:$Q$568,12,FALSE),'Inputs & Assumptions'!$J$16)*J28 -> -13699.53126 | M28: =IF(pilotmeth=1,VLOOKUP(Muni,Data!$E$4:$Q$568,13,FALSE),'Inputs & Assumptions'!$J$17)*J28 -> 0 | N28: 734425.6783 | O28: ='Inputs & Assumptions'!H64 -> -362569 | P28: 371856.6783 | Q28: ='Inputs & Assumptions'!I64 -> 0 | R28: 371856.6783 | S28: 0.09166606501 | T28: 0.6735539925 | U28: ='Inputs & Assumptions'!N64 -> 0 | V28: =IF(OR(C28>0),IFERROR(V27*((1+'Inputs & Assumptions'!O64)),"No Data"),"--") -> 55272.47439 | W28: 55272.47439 | X28: ='Inputs & Assumptions'!M64 -> 0 | Y28: 128000.5803 | Z28: 183273.0547
A29: 2047 | B29: 26 | C29: ='Inputs & Assumptions'!F65 -> 3078678.505 | D29: ='Inputs & Assumptions'!G65 -> -2040009.712 | E29: ='Inputs & Assumptions'!K65 -> 14501924.7 | F29: =IF(existpilot=2,'Inputs & Assumptions'!$Q$4*(E29/100),'Inputs & Assumptions'!J65) -> 79328.58048 | G29: ='Inputs & Assumptions'!L65 -> 16602486.47 | H29: =(G29/100)*'Inputs & Assumptions'!$Q$5 -> 418986.9664 | I29: =(G29/100)*'Inputs & Assumptions'!$Q$4 -> 90819.09549 | J29: =IF(C29="","--",IF(IF('Inputs & Assumptions'!$B$8=1,-C29*'Inputs & Assumptions'!$C65,IF('Inputs & Assumptions'!$B$8=2,-H29*'Inputs & Assumptions'!$D65,IF('Inputs & Assumptions'!$B$8=3,-'Inputs & Assumptions'!E65,"")))*$AA$10>0,0,IF('Inputs & Assumptions'!$B$8=1,-C29*'Inputs & Assumptions'!$C65,IF('Inputs & Assumptions'!$B$8=2,-H29*'Inputs & Assumptions'!$D65,IF('Inputs & Assumptions'!$B$8=3,-'Inputs & Assumptions'!E65,"")))*$AA$10)) -> -282210.344 | K29: =IF(pilotmeth=1,VLOOKUP(Muni,Data!$E$4:$Q$568,11,FALSE),'Inputs & Assumptions'!$J$15)*J29 -> -268099.8268 | L29: =IF(pilotmeth=1,VLOOKUP(Muni,Data!$E$4:$Q$568,12,FALSE),'Inputs & Assumptions'!$J$16)*J29 -> -14110.5172 | M29: =IF(pilotmeth=1,VLOOKUP(Muni,Data!$E$4:$Q$568,13,FALSE),'Inputs & Assumptions'!$J$17)*J29 -> 0 | N29: 756458.4487 | O29: ='Inputs & Assumptions'!H65 -> -362569 | P29: 393889.4487 | Q29: ='Inputs & Assumptions'!I65 -> 0 | R29: 393889.4487 | S29: 0.09166606501 | T29: 0.6735539925 | U29: ='Inputs & Assumptions'!N65 -> 0 | V29: =IF(OR(C29>0),IFERROR(V28*((1+'Inputs & Assumptions'!O65)),"No Data"),"--") -> 56377.92388 | W29: 56377.92388 | X29: ='Inputs & Assumptions'!M65 -> 0 | Y29: 132393.3224 | Z29: 188771.2463
A30: 2048 | B30: 27 | C30: ='Inputs & Assumptions'!F66 -> 3171038.86 | D30: ='Inputs & Assumptions'!G66 -> -2101210.004 | E30: ='Inputs & Assumptions'!K66 -> 14936982.44 | F30: =IF(existpilot=2,'Inputs & Assumptions'!$Q$4*(E30/100),'Inputs & Assumptions'!J66) -> 81708.43789 | G30: ='Inputs & Assumptions'!L66 -> 17100561.06 | H30: =(G30/100)*'Inputs & Assumptions'!$Q$5 -> 431556.5753 | I30: =(G30/100)*'Inputs & Assumptions'!$Q$4 -> 93543.66835 | J30: =IF(C30="","--",IF(IF('Inputs & Assumptions'!$B$8=1,-C30*'Inputs & Assumptions'!$C66,IF('Inputs & Assumptions'!$B$8=2,-H30*'Inputs & Assumptions'!$D66,IF('Inputs & Assumptions'!$B$8=3,-'Inputs & Assumptions'!E66,"")))*$AA$10>0,0,IF('Inputs & Assumptions'!$B$8=1,-C30*'Inputs & Assumptions'!$C66,IF('Inputs & Assumptions'!$B$8=2,-H30*'Inputs & Assumptions'!$D66,IF('Inputs & Assumptions'!$B$8=3,-'Inputs & Assumptions'!E66,"")))*$AA$10)) -> -290676.6543 | K30: =IF(pilotmeth=1,VLOOKUP(Muni,Data!$E$4:$Q$568,11,FALSE),'Inputs & Assumptions'!$J$15)*J30 -> -276142.8216 | L30: =IF(pilotmeth=1,VLOOKUP(Muni,Data!$E$4:$Q$568,12,FALSE),'Inputs & Assumptions'!$J$16)*J30 -> -14533.83272 | M30: =IF(pilotmeth=1,VLOOKUP(Muni,Data!$E$4:$Q$568,13,FALSE),'Inputs & Assumptions'!$J$17)*J30 -> 0 | N30: 779152.2021 | O30: ='Inputs & Assumptions'!H66 -> -362569 | P30: 416583.2021 | Q30: ='Inputs & Assumptions'!I66 -> 0 | R30: 416583.2021 | S30: 0.09166606501 | T30: 0.6735539925 | U30: ='Inputs & Assumptions'!N66 -> 0 | V30: =IF(OR(C30>0),IFERROR(V29*((1+'Inputs & Assumptions'!O66)),"No Data"),"--") -> 57505.48235 | W30: 57505.48235 | X30: ='Inputs & Assumptions'!M66 -> 0 | Y30: 136928.9013 | Z30: 194434.3837
A31: 2049 | B31: 28 | C31: ='Inputs & Assumptions'!F67 -> 3266170.026 | D31: ='Inputs & Assumptions'!G67 -> -2164246.304 | E31: ='Inputs & Assumptions'!K67 -> 15385091.91 | F31: =IF(existpilot=2,'Inputs & Assumptions'!$Q$4*(E31/100),'Inputs & Assumptions'!J67) -> 84159.69103 | G31: ='Inputs & Assumptions'!L67 -> 17613577.89 | H31: =(G31/100)*'Inputs & Assumptions'!$Q$5 -> 444503.2726 | I31: =(G31/100)*'Inputs & Assumptions'!$Q$4 -> 96349.97841 | J31: =IF(C31="","--",IF(IF('Inputs & Assumptions'!$B$8=1,-C31*'Inputs & Assumptions'!$C67,IF('Inputs & Assumptions'!$B$8=2,-H31*'Inputs & Assumptions'!$D67,IF('Inputs & Assumptions'!$B$8=3,-'Inputs & Assumptions'!E67,"")))*$AA$10>0,0,IF('Inputs & Assumptions'!$B$8=1,-C31*'Inputs & Assumptions'!$C67,IF('Inputs & Assumptions'!$B$8=2,-H31*'Inputs & Assumptions'!$D67,IF('Inputs & Assumptions'!$B$8=3,-'Inputs & Assumptions'!E67,"")))*$AA$10)) -> -299396.9539 | K31: =IF(pilotmeth=1,VLOOKUP(Muni,Data!$E$4:$Q$568,11,FALSE),'Inputs & Assumptions'!$J$15)*J31 -> -284427.1062 | L31: =IF(pilotmeth=1,VLOOKUP(Muni,Data!$E$4:$Q$568,12,FALSE),'Inputs & Assumptions'!$J$16)*J31 -> -14969.8477 | M31: =IF(pilotmeth=1,VLOOKUP(Muni,Data!$E$4:$Q$568,13,FALSE),'Inputs & Assumptions'!$J$17)*J31 -> 0 | N31: 802526.7682 | O31: ='Inputs & Assumptions'!H67 -> -362569 | P31: 439957.7682 | Q31: ='Inputs & Assumptions'!I67 -> 0 | R31: 439957.7682 | S31: 0.09166606501 | T31: 0.6735539925 | U31: ='Inputs & Assumptions'!N67 -> 0 | V31: =IF(OR(C31>0),IFERROR(V30*((1+'Inputs & Assumptions'!O67)),"No Data"),"--") -> 58655.592 | W31: 58655.592 | X31: ='Inputs & Assumptions'!M67 -> 0 | Y31: 141611.8232 | Z31: 200267.4152
A32: 2050 | B32: 29 | C32: ='Inputs & Assumptions'!F68 -> 3364155.127 | D32: ='Inputs & Assumptions'!G68 -> -2229173.693 | E32: ='Inputs & Assumptions'!K68 -> 15846644.67 | F32: =IF(existpilot=2,'Inputs & Assumptions'!$Q$4*(E32/100),'Inputs & Assumptions'!J68) -> 86684.48176 | G32: ='Inputs & Assumptions'!L68 -> 18141985.23 | H32: =(G32/100)*'Inputs & Assumptions'!$Q$5 -> 457838.3708 | I32: =(G32/100)*'Inputs & Assumptions'!$Q$4 -> 99240.47776 | J32: =IF(C32="","--",IF(IF('Inputs & Assumptions'!$B$8=1,-C32*'Inputs & Assumptions'!$C68,IF('Inputs & Assumptions'!$B$8=2,-H32*'Inputs & Assumptions'!$D68,IF('Inputs & Assumptions'!$B$8=3,-'Inputs & Assumptions'!E68,"")))*$AA$10>0,0,IF('Inputs & Assumptions'!$B$8=1,-C32*'Inputs & Assumptions'!$C68,IF('Inputs & Assumptions'!$B$8=2,-H32*'Inputs & Assumptions'!$D68,IF('Inputs & Assumptions'!$B$8=3,-'Inputs & Assumptions'!E68,"")))*$AA$10)) -> -308378.8626 | K32: =IF(pilotmeth=1,VLOOKUP(Muni,Data!$E$4:$Q$568,11,FALSE),'Inputs & Assumptions'!$J$15)*J32 -> -292959.9194 | L32: =IF(pilotmeth=1,VLOOKUP(Muni,Data!$E$4:$Q$568,12,FALSE),'Inputs & Assumptions'!$J$16)*J32 -> -15418.94313 | M32: =IF(pilotmeth=1,VLOOKUP(Muni,Data!$E$4:$Q$568,13,FALSE),'Inputs & Assumptions'!$J$17)*J32 -> 0 | N32: 826602.5713 | O32: ='Inputs & Assumptions'!H68 -> -362569 | P32: 464033.5713 | Q32: ='Inputs & Assumptions'!I68 -> 0 | R32: 464033.5713 | S32: 0.09166606501 | T32: 0.6735539925 | U32: ='Inputs & Assumptions'!N68 -> 0 | V32: =IF(OR(C32>0),IFERROR(V31*((1+'Inputs & Assumptions'!O68)),"No Data"),"--") -> 59828.70384 | W32: 59828.70384 | X32: ='Inputs & Assumptions'!M68 -> 0 | Y32: 146446.7338 | Z32: 206275.4377
A33: 2051 | B33: 30 | C33: ='Inputs & Assumptions'!F69 -> 3465079.781 | D33: ='Inputs & Assumptions'!G69 -> -2296048.904 | E33: ='Inputs & Assumptions'!K69 -> 16322044.01 | F33: =IF(existpilot=2,'Inputs & Assumptions'!$Q$4*(E33/100),'Inputs & Assumptions'!J69) -> 89285.01621 | G33: ='Inputs & Assumptions'!L69 -> 18686244.79 | H33: =(G33/100)*'Inputs & Assumptions'!$Q$5 -> 471573.5219 | I33: =(G33/100)*'Inputs & Assumptions'!$Q$4 -> 102217.6921 | J33: =IF(C33="","--",IF(IF('Inputs & Assumptions'!$B$8=1,-C33*'Inputs & Assumptions'!$C69,IF('Inputs & Assumptions'!$B$8=2,-H33*'Inputs & Assumptions'!$D69,IF('Inputs & Assumptions'!$B$8=3,-'Inputs & Assumptions'!E69,"")))*$AA$10>0,0,IF('Inputs & Assumptions'!$B$8=1,-C33*'Inputs & Assumptions'!$C69,IF('Inputs & Assumptions'!$B$8=2,-H33*'Inputs & Assumptions'!$D69,IF('Inputs & Assumptions'!$B$8=3,-'Inputs & Assumptions'!E69,"")))*$AA$10)) -> -317630.2284 | K33: =IF(pilotmeth=1,VLOOKUP(Muni,Data!$E$4:$Q$568,11,FALSE),'Inputs & Assumptions'!$J$15)*J33 -> -301748.717 | L33: =IF(pilotmeth=1,VLOOKUP(Muni,Data!$E$4:$Q$568,12,FALSE),'Inputs & Assumptions'!$J$16)*J33 -> -15881.51142 | M33: =IF(pilotmeth=1,VLOOKUP(Muni,Data!$E$4:$Q$568,13,FALSE),'Inputs & Assumptions'!$J$17)*J33 -> 0 | N33: 851400.6484 | O33: ='Inputs & Assumptions'!H69 -> 0 | P33: 851400.6484 | Q33: ='Inputs & Assumptions'!I69 -> 20947879.51 | R33: 21799280.16 | S33: 0.09166606501 | T33: 0.6735539925 | U33: ='Inputs & Assumptions'!N69 -> 0 | V33: =IF(OR(C33>0),IFERROR(V32*((1+'Inputs & Assumptions'!O69)),"No Data"),"--") -> 61025.27792 | W33: 61025.27792 | X33: ='Inputs & Assumptions'!M69 -> 0 | Y33: 151438.4229 | Z33: 212463.7008
B35: TOTAL | C35: =SUM(C4:C33) -> 69954605.8 | D35: -46353679.03 | E35: 329516844.3 | F35: 1802526.495 | G35: 377246404.3 | H35: 9520340.633 | I35: 2063617.235 | J35: -6412463.443 | K35: -6091840.271 | L35: -320623.1722 | M35: 0 | N35: 17188463.33 | O35: -10514501 | P35: 6673962.328 | Q35: 12317630.51 | R35: 18991592.84 | V35: =SUM(V4:V33) -> 1394084.923 | W35: =SUM(W4:W33) -> 1394084.923 | X35: =SUM(X4:X33) -> 0 | Y35: 2895228.853 | Z35: =SUM(Z4:Z33) -> 4289313.776

Sheet Data
A1: ='Inputs & Assumptions'!A1 -> Payment in Lieu of Taxes Financial Agreement Forecasting Model - Aberdeen Township, Monmouth County
A2: Data
A3: Municode | B3: Municipality | C3: County | D3: Census FIPS | E3: ID | F3: 2021 Net Valuation Taxable | G3: 2021 Total Municipal Tax Levy | H3: 2021 Total Municipal Tax Rate | I3: 2021 Municipal Expenditures Applicable to Project | J3: 2020 Land Area (in Acres) | K3: 2021 CY Total Rate | L3: 2021 County Levy | M3: 2021 School Levy | N3: 2021 Total Levy | O3: 2021 Municipal Share of Levy | P3: 2021 County Share of Levy | Q3: 2021 School Share of Levy | R3: Daytime Pop. (2016-20 estimate) | S3: Municipal Spending/Daytime Pop. Ratio | T3: General Government Approp. | U3: Land-Use Administration Approp. | V3: Uniform Construction Code Approp. | W3: Public Safety Approp. | X3: Public Works Approp. | Y3: Health and Human Services Approp. | Z3: Education (including Library) Approp. | AA3: Landfill / Solid Waste Disposal Approp. | AB3: Statutory Expenditures Approp. | AC3: Court and Public Defender Approp. | AD3: General Government Appl. to Project | AE3: Land-Use Admin. Appl. to Project | AF3: Uniform Construction Code Appl. to Project | AG3: Public Safety Appl. to Project | AH3: Public Works Appl. to Project | AI3: Health and Human Services Appl. to Project | AJ3: Education (including Library) Appl. to Project | AK3: Landfill / Solid Waste Disposal Appl. to Project | AL3: Statutory Expenditures Appl. to Project | AM3: Court and Public Defender Appl. to Project
A4: 1330 | B4: Aberdeen Township | C4: Monmouth | D4: 3402500070 | E4: 1 | F4: 2366694690 | G4: 12946318.1 | H4: =G4/(F4/100) -> 0.5470210482 | I4: =IF(IFERROR(SUM(AD4:AM4),"--")=0,"--",IFERROR(SUM(AD4:AM4),"--")) -> 6021291.212 | J4: 3484.420434 | K4: 2.523639861 | L4: 6437731.48 | M4: 40342801 | N4: 59726850.58 | O4: =G4/N4 -> 0.2167587605 | P4: =L4/N4 -> 0.1077862204 | Q4: =M4/N4 -> 0.6754550191 | R4: 22253 | S4: =IFERROR(I4/R4,"--") -> 270.5833466 | T4: 8165316.12 | U4: 99198 | V4: 487507 | W4: 5343991 | X4: 1808304 | Y4: 89401 | Z4: 815953 | AA4: 1544500 | AB4: 2277650 | AC4: 193300 | AD4: =IFERROR(T4*'Inputs & Assumptions'!$Q$40,"--") -> 816531.612 | AE4: =IFERROR(U4*'Inputs & Assumptions'!$Q$41,"--") -> 9919.8 | AF4: =IFERROR(V4*'Inputs & Assumptions'!$Q$42,"--") -> 243753.5 | AG4: =IFERROR(W4*'Inputs & Assumptions'!$Q$43,"--") -> 2671995.5 | AH4: =IFERROR(X4*'Inputs & Assumptions'!$Q$44,"--") -> 180830.4 | AI4: =IFERROR(Y4*'Inputs & Assumptions'!$Q$45,"--") -> 8940.1 | AJ4: =IFERROR(Z4*'Inputs & Assumptions'!$Q$46,"--") -> 81595.3 | AK4: =IFERROR(AA4*'Inputs & Assumptions'!$Q$47,"--") -> 772250 | AL4: =IFERROR(AB4*'Inputs & Assumptions'!$Q$48,"--") -> 1138825 | AM4: =IFERROR(AC4*'Inputs & Assumptions'!$Q$49,"--") -> 96650
A5: 0101 | B5: Absecon City | C5: Atlantic | D5: 3400100100 | E5: =E4+1 -> 2 | F5: 716356000 | G5: 7538900.36 | H5: =G5/(F5/100) -> 1.052395786 | I5: =IF(IFERROR(SUM(AD5:AM5),"--")=0,"--",IFERROR(SUM(AD5:AM5),"--")) -> 3683821.546 | J5: 3499.667571 | K5: 3.295264725 | L5: 3647281.21 | M5: 12419645 | N5: 23605826.57 | O5: 0.3193660827 | P5: 0.1545076678 | Q5: 0.5261262495 | R5: 10792 | S5: 341.3474375 | T5: 1061300 | U5: 29600 | V5: 148000 | W5: 3650200 | X5: 1053000 | Y5: 8400 | Z5: 239235.46 | AA5: 1684000 | AB5: 1273936 | AC5: 133200 | AD5: =IFERROR(T5*'Inputs & Assumptions'!$Q$40,"--") -> 106130 | AE5: =IFERROR(U5*'Inputs & Assumptions'!$Q$41,"--") -> 2960 | AF5: =IFERROR(V5*'Inputs & Assumptions'!$Q$42,"--") -> 74000 | AG5: =IFERROR(W5*'Inputs & Assumptions'!$Q$43,"--") -> 1825100 | AH5: =IFERROR(X5*'Inputs & Assumptions'!$Q$44,"--") -> 105300 | AI5: =IFERROR(Y5*'Inputs & Assumptions'!$Q$45,"--") -> 840 | AJ5: =IFERROR(Z5*'Inputs & Assumptions'!$Q$46,"--") -> 23923.546 | AK5: =IFERROR(AA5*'Inputs & Assumptions'!$Q$47,"--") -> 842000 | AL5: =IFERROR(AB5*'Inputs & Assumptions'!$Q$48,"--") -> 636968 | AM5: =IFERROR(AC5*'Inputs & Assumptions'!$Q$49,"--") -> 66600
A6: 1001 | B6: Alexandria Township | C6: Hunterdon | D6: 3401900550 | E6: 3 | F6: 720096362 | G6: 2211503.57 | H6: =G6/(F6/100) -> 0.3071121709 | I6: 435701.165 | J6: 17621.43755 | K6: 2.680826477 | L6: 2954523.36 | M6: 14138507 | N6: 19304533.93 | O6: 0.1145587652 | P6: 0.153048158 | Q6: 0.7323930767 | R6: 5327 | S6: 81.79109536 | T6: 610954.05 | U6: 33800 | V6: 115000 | W6: 269400 | X6: 746659.05 | Y6: 12250 | Z6: 0 | AA6: 0 | AB6: 166103 | AC6: 40166.71 | AD6: =IFERROR(T6*'Inputs & Assumptions'!$Q$40,"--") -> 61095.405 | AE6: =IFERROR(U6*'Inputs & Assumptions'!$Q$41,"--") -> 3380 | AF6: =IFERROR(V6*'Inputs & Assumptions'!$Q$42,"--") -> 57500 | AG6: =IFERROR(W6*'Inputs & Assumptions'!$Q$43,"--") -> 134700 | AH6: =IFERROR(X6*'Inputs & Assumptions'!$Q$44,"--") -> 74665.905 | AI6: =IFERROR(Y6*'Inputs & Assumptions'!$Q$45,"--") -> 1225 | AJ6: =IFERROR(Z6*'Inputs & Assumptions'!$Q$46,"--") -> 0 | AK6: =IFERROR(AA6*'Inputs & Assumptions'!$Q$47,"--") -> 0 | AL6: =IFERROR(AB6*'Inputs & Assumptions'!$Q$48,"--") -> 83051.5 | AM6: =IFERROR(AC6*'Inputs & Assumptions'!$Q$49,"--") -> 20083.355
A7: 2101 | B7: Allamuchy Township | C7: Warren | D7: 3404100670 | E7: 4 | F7: 597083400 | G7: 2681385 | H7: 0.4490804802 | I7: 458495.6 | J7: 12794.996 | K7: 2.975029544 | L7: 4954545.55 | M7: 10127477 | N7: 17763407.55 | O7: 0.1509499229 | P7: 0.2789186442 | Q7: 0.5701314329 | R7: 5304 | S7: 86.4433635 | T7: 592795 | U7: 39825 | V7: 7500 | W7: 161572 | X7: 1494281 | Y7: 60630 | Z7: 0 | AA7: 0 | AB7: 171213 | AC7: 139200 | AD7: =IFERROR(T7*'Inputs & Assumptions'!$Q$40,"--") -> 59279.5 | AE7: =IFERROR(U7*'Inputs & Assumptions'!$Q$41,"--") -> 3982.5 | AF7: =IFERROR(V7*'Inputs & Assumptions'!$Q$42,"--") -> 3750 | AG7: =IFERROR(W7*'Inputs & Assumptions'!$Q$43,"--") -> 80786 | AH7: =IFERROR(X7*'Inputs & Assumptions'!$Q$44,"--") -> 149428.1 | AI7: =IFERROR(Y7*'Inputs & Assumptions'!$Q$45,"--") -> 6063 | AJ7: =IFERROR(Z7*'Inputs & Assumptions'!$Q$46,"--") -> 0 | AK7: =IFERROR(AA7*'Inputs & Assumptions'!$Q$47,"--") -> 0 | AL7: =IFERROR(AB7*'Inputs & Assumptions'!$Q$48,"--") -> 85606.5 | AM7: =IFERROR(AC7*'Inputs & Assumptions'!$Q$49,"--") -> 69600
A8: 0201 | B8: Allendale Borough | C8: Bergen | D8: 3400300700 | E8: 5 | F8: 1800689700 | G8: 11004107 | H8: 0.6111051227 | I8: 2651437.4 | J8: 1982.143142 | K8: 2.348349173 | L8: 4522203.68 | M8: 26760171 | N8: 42286481.68 | O8: 0.2602275376 | P8: 0.1069420652 | Q8: 0.6328303973 | R8: 9564 | S8: 277.2310121 | T8: 957400 | U8: 71500 | V8: 171600 | W8: 3174871 | X8: 2058486 | Y8: 57350 | Z8: 594468 | AA8: 0 | AB8: 1179163 | AC8: 29400 | AD8: =IFERROR(T8*'Inputs & Assumptions'!$Q$40,"--") -> 95740 | AE8: =IFERROR(U8*'Inputs & Assumptions'!$Q$41,"--") -> 7150 | AF8: =IFERROR(V8*'Inputs & Assumptions'!$Q$42,"--") -> 85800 | AG8: =IFERROR(W8*'Inputs & Assumptions'!$Q$43,"--") -> 1587435.5 | AH8: =IFERROR(X8*'Inputs & Assumptions'!$Q$44,"--") -> 205848.6 | AI8: =IFERROR(Y8*'Inputs & Assumptions'!$Q$45,"--") -> 5735 | AJ8: =IFERROR(Z8*'Inputs & Assumptions'!$Q$46,"--") -> 59446.8 | AK8: =IFERROR(AA8*'Inputs & Assumptions'!$Q$47,"--") -> 0 | AL8: =IFERROR(AB8*'Inputs & Assumptions'!$Q$48,"--") -> 589581.5 | AM8: =IFERROR(AC8*'Inputs & Assumptions'!$Q$49,"--") -> 14700
A9: 1301 | B9: Allenhurst Borough | C9: Monmouth | D9: 3402500730 | E9: 6 | F9: 703307191 | G9: 2842245.4 | H9: 0.4041257414 | I9: 1181285 | J9: 160.3075736 | K9: 0.7566145673 | L9: 2148384.26 | M9: 330695 | N9: 5321324.66 | O9: 0.5341236594 | P9: 0.4037311003 | Q9: 0.06214524035 | R9: 713 | S9: 1656.781206 | T9: 588350 | U9: 50000 | V9: 25500 | W9: 1368220 | X9: 1040400 | Y9: 18000 | Z9: 0 | AA9: 0 | AB9: 555500 | AC9: 74000 | AD9: =IFERROR(T9*'Inputs & Assumptions'!$Q$40,"--") -> 58835 | AE9: =IFERROR(U9*'Inputs & Assumptions'!$Q$41,"--") -> 5000 | AF9: =IFERROR(V9*'Inputs & Assumptions'!$Q$42,"--") -> 12750 | AG9: =IFERROR(W9*'Inputs & Assumptions'!$Q$43,"--") -> 684110 | AH9: =IFERROR(X9*'Inputs & Assumptions'!$Q$44,"--") -> 104040 | AI9: =IFERROR(Y9*'Inputs & Assumptions'!$Q$45,"--") -> 1800 | AJ9: =IFERROR(Z9*'Inputs & Assumptions'!$Q$46,"--") -> 0 | AK9: =IFERROR(AA9*'Inputs & Assumptions'!$Q$47,"--") -> 0 | AL9: =IFERROR(AB9*'Inputs & Assumptions'!$Q$48,"--") -> 277750 | AM9: =IFERROR(AC9*'Inputs & Assumptions'!$Q$49,"--") -> 37000
A10: 1302 | B10: Allentown Borough | C10: Monmouth | D10: 3402500760 | E10: 7 | F10: 193424900 | G10: 1767550.35 | H10: 0.9138173782 | I10: 727214.83 | J10: 381.5569926 | K10: 3.025555531 | L10: 565624.41 | M10: 3519003 | N10: 5852177.76 | O10: 0.3020329222 | P10: 0.09665195303 | Q10: 0.6013151248 | R10: 2329 | S10: 312.2433791 | T10: 2258773.3 | U10: 11300 | V10: 1450 | W10: 621900 | X10: 144800 | Y10: 3025 | Z10: 2500 | AA10: 0 | AB10: 278725 | AC10: 68275 | AD10: =IFERROR(T10*'Inputs & Assumptions'!$Q$40,"--") -> 225877.33 | AE10: =IFERROR(U10*'Inputs & Assumptions'!$Q$41,"--") -> 1130 | AF10: =IFERROR(V10*'Inputs & Assumptions'!$Q$42,"--") -> 725 | AG10: =IFERROR(W10*'Inputs & Assumptions'!$Q$43,"--") -> 310950 | AH10: =IFERROR(X10*'Inputs & Assumptions'!$Q$44,"--") -> 14480 | AI10: =IFERROR(Y10*'Inputs & Assumptions'!$Q$45,"--") -> 302.5 | AJ10: =IFERROR(Z10*'Inputs & Assumptions'!$Q$46,"--") -> 250 | AK10: =IFERROR(AA10*'Inputs & Assumptions'!$Q$47,"--") -> 0 | AL10: =IFERROR(AB10*'Inputs & Assumptions'!$Q$48,"--") -> 139362.5 | AM10: =IFERROR(AC10*'Inputs & Assumptions'!$Q$49,"--") -> 34137.5
A11: 1701 | B11: Alloway Township | C11: Salem | D11: 3403300880 | E11: 8 | F11: 282968689 | G11: 825631.3 | H11: 0.2917747907 | I11: 230934.899 | J11: 21425.34015 | K11: 3.115458902 | L11: 3567500.91 | M11: 4422641 | N11: 8815773.21 | O11: 0.09365387248 | P11: 0.4046724916 | Q11: 0.501673636 | R11: 3714 | S11: 62.17956354 | T11: 303575 | U11: 7500 | V11: 52000 | W11: 42450 | X11: 573100 | Y11: 7787.09 | Z11: 0 | AA11: 117500 | AB11: 71527.38 | AC11: 0 | AD11: =IFERROR(T11*'Inputs & Assumptions'!$Q$40,"--") -> 30357.5 | AE11: =IFERROR(U11*'Inputs & Assumptions'!$Q$41,"--") -> 750 | AF11: =IFERROR(V11*'Inputs & Assumptions'!$Q$42,"--") -> 26000 | AG11: =IFERROR(W11*'Inputs & Assumptions'!$Q$43,"--") -> 21225 | AH11: =IFERROR(X11*'Inputs & Assumptions'!$Q$44,"--") -> 57310 | AI11: =IFERROR(Y11*'Inputs & Assumptions'!$Q$45,"--") -> 778.709 | AJ11: =IFERROR(Z11*'Inputs & Assumptions'!$Q$46,"--") -> 0 | AK11: =IFERROR(AA11*'Inputs & Assumptions'!$Q$47,"--") -> 58750 | AL11: =IFERROR(AB11*'Inputs & Assumptions'!$Q$48,"--") -> 35763.69 | AM11: =IFERROR(AC11*'Inputs & Assumptions'!$Q$49,"--") -> 0
A12: 2102 | B12: Alpha Borough | C12: Warren | D12: 3404101030 | E12: 9 | F12: 217030695 | G12: 1895180.28 | H12: 0.8732314477 | I12: 298119.99 | J12: 1075.628527 | K12: 3.32087393 | L12: 1426147.49 | M12: 3885988 | N12: 7207315.77 | O12: 0.262952303 | P12: 0.1978749836 | Q12: 0.5391727134 | R12: 3009 | S12: 99.07610169 | T12: 439533 | U12: 29350 | V12: 39574 | W12: 70700 | X12: 1429458.9 | Y12: 9700 | Z12: 74288 | AA12: 0 | AB12: 89500 | AC12: 0 | AD12: =IFERROR(T12*'Inputs & Assumptions'!$Q$40,"--") -> 43953.3 | AE12: =IFERROR(U12*'Inputs & Assumptions'!$Q$41,"--") -> 2935 | AF12: =IFERROR(V12*'Inputs & Assumptions'!$Q$42,"--") -> 19787 | AG12: =IFERROR(W12*'Inputs & Assumptions'!$Q$43,"--") -> 35350 | AH12: =IFERROR(X12*'Inputs & Assumptions'!$Q$44,"--") -> 142945.89 | AI12: =IFERROR(Y12*'Inputs & Assumptions'!$Q$45,"--") -> 970 | AJ12: =IFERROR(Z12*'Inputs & Assumptions'!$Q$46,"--") -> 7428.8 | AK12: =IFERROR(AA12*'Inputs & Assumptions'!$Q$47,"--") -> 0 | AL12: =IFERROR(AB12*'Inputs & Assumptions'!$Q$48,"--") -> 44750 | AM12: =IFERROR(AC12*'Inputs & Assumptions'!$Q$49,"--") -> 0
A13: 0202 | B13: Alpine Borough | C13: Bergen | D13: 3400301090 | E13: 10 | F13: 1991132500 | G13: 3632602 | H13: 0.1824389889 | I13: 1764713.4 | J13: 4096.623518 | K13: 0.7761315267 | L13: 4919127.07 | M13: 6902078 | N13: 15453807.07 | O13: 0.2350619484 | P13: 0.3183116657 | Q13: 0.4466263859 | R13: 1889 | S13: 934.2050821 | T13: 556300 | U13: 28150 | V13: 146900 | W13: 2322590 | X13: 401000 | Y13: 36204 | Z13: 1000 | AA13: 69900 | AB13: 750006 | AC13: 35500 | AD13: =IFERROR(T13*'Inputs & Assumptions'!$Q$40,"--") -> 55630 | AE13: =IFERROR(U13*'Inputs & Assumptions'!$Q$41,"--") -> 2815 | AF13: =IFERROR(V13*'Inputs & Assumptions'!$Q$42,"--") -> 73450 | AG13: =IFERROR(W13*'Inputs & Assumptions'!$Q$43,"--") -> 1161295 | AH13: =IFERROR(X13*'Inputs & Assumptions'!$Q$44,"--") -> 40100 | AI13: =IFERROR(Y13*'Inputs & Assumptions'!$Q$45,"--") -> 3620.4 | AJ13: =IFERROR(Z13*'Inputs & Assumptions'!$Q$46,"--") -> 100 | AK13: =IFERROR(AA13*'Inputs & Assumptions'!$Q$47,"--") -> 34950 | AL13: =IFERROR(AB13*'Inputs & Assumptions'!$Q$48,"--") -> 375003 | AM13: =IFERROR(AC13*'Inputs & Assumptions'!$Q$49,"--") -> 17750
A14: 1901 | B14: Andover Borough | C14: Sussex | D14: 3403701330 | E14: 11 | F14: 67156800 | G14: 369584 | H14: 0.550329974 | I14: 106861.2 | J14: 862.6361309 | K14: 2.910424201 | L14: 373691.76 | M14: 1211272 | N14: 1954547.76 | O14: 0.1890892653 | P14: 0.1911909075 | Q14: 0.6197198272 | R14: 1056 | S14: 101.1943182 | T14: 191654 | U14: 0 | V14: 20006 | W14: 52512 | X14: 156978 | Y14: 5170 | Z14: 0 | AA14: 0 | AB14: 44944 | AC14: 25500 | AD14: =IFERROR(T14*'Inputs & Assumptions'!$Q$40,"--") -> 19165.4 | AE14: =IFERROR(U14*'Inputs & Assumptions'!$Q$41,"--") -> 0 | AF14: =IFERROR(V14*'Inputs & Assumptions'!$Q$42,"--") -> 10003 | AG14: =IFERROR(W14*'Inputs & Assumptions'!$Q$43,"--") -> 26256 | AH14: =IFERROR(X14*'Inputs & Assumptions'!$Q$44,"--") -> 15697.8 | AI14: =IFERROR(Y14*'Inputs & Assumptions'!$Q$45,"--") -> 517 | AJ14: =IFERROR(Z14*'Inputs & Assumptions'!$Q$46,"--") -> 0 | AK14: =IFERROR(AA14*'Inputs & Assumptions'!$Q$47,"--") -> 0 | AL14: =IFERROR(AB14*'Inputs & Assumptions'!$Q$48,"--") -> 22472 | AM14: =IFERROR(AC14*'Inputs & Assumptions'!$Q$49,"--") -> 12750
A15: 1902 | B15: Andover Township | C15: Sussex | D15: 3403701360 | E15: 12 | F15: 652656444 | G15: 6920574 | H15: 1.060370132 | I15: 2159800.777 | J15: 12828.47185 | K15: 3.835615415 | L15: 4467429.17 | M15: 13645388 | N15: 25033391.17 | O15: 0.2764537155 | P15: 0.1784588089 | Q15: 0.5450874757 | R15: 7336 | S15: 294.4112291 | T15: 668671 | U15: 87830 | V15: 0 | W15: 2143179.99 | X15: 1173681.82 | Y15: 8500 | Z15: 0 | AA15: 702000 | AB15: 940494 | AC15: 146191 | AD15: =IFERROR(T15*'Inputs & Assumptions'!$Q$40,"--") -> 66867.1 | AE15: =IFERROR(U15*'Inputs & Assumptions'!$Q$41,"--") -> 8783 | AF15: =IFERROR(V15*'Inputs & Assumptions'!$Q$42,"--") -> 0 | AG15: =IFERROR(W15*'Inputs & Assumptions'!$Q$43,"--") -> 1071589.995 | AH15: =IFERROR(X15*'Inputs & Assumptions'!$Q$44,"--") -> 117368.182 | AI15: =IFERROR(Y15*'Inputs & Assumptions'!$Q$45,"--") -> 850 | AJ15: =IFERROR(Z15*'Inputs & Assumptions'!$Q$46,"--") -> 0 | AK15: =IFERROR(AA15*'Inputs & Assumptions'!$Q$47,"--") -> 351000 | AL15: =IFERROR(AB15*'Inputs & Assumptions'!$Q$48,"--") -> 470247 | AM15: =IFERROR(AC15*'Inputs & Assumptions'!$Q$49,"--") -> 73095.5
A16: 1303 | B16: Asbury Park City | C16: Monmouth | D16: 3402501960 | E16: 13 | F16: 2123021910 | G16: 16525895.69 | H16: 0.7784138078 | I16: 14318924.08 | J16: 914.549985 | K16: 1.579137447 | L16: 5417287.3 | M16: 11582251 | N16: 33525433.99 | O16: 0.4929360704 | P16: 0.1615873877 | Q16: 0.3454765419 | R16: 19681 | S16: 727.5506369 | T16: 3138902 | U16: 538777 | V16: 930900 | W16: 17600282.48 | X16: 9746688.44 | Y16: 597952 | Z16: 677614 | AA16: 0 | AB16: 6792769 | AC16: 373910 | AD16: =IFERROR(T16*'Inputs & Assumptions'!$Q$40,"--") -> 313890.2 | AE16: =IFERROR(U16*'Inputs & Assumptions'!$Q$41,"--") -> 53877.7 | AF16: =IFERROR(V16*'Inputs & Assumptions'!$Q$42,"--") -> 465450 | AG16: =IFERROR(W16*'Inputs & Assumptions'!$Q$43,"--") -> 8800141.24 | AH16: =IFERROR(X16*'Inputs & Assumptions'!$Q$44,"--") -> 974668.844 | AI16: =IFERROR(Y16*'Inputs & Assumptions'!$Q$45,"--") -> 59795.2 | AJ16: =IFERROR(Z16*'Inputs & Assumptions'!$Q$46,"--") -> 67761.4 | AK16: =IFERROR(AA16*'Inputs & Assumptions'!$Q$47,"--") -> 0 | AL16: =IFERROR(AB16*'Inputs & Assumptions'!$Q$48,"--") -> 3396384.5 | AM16: =IFERROR(AC16*'Inputs & Assumptions'!$Q$49,"--") -> 186955
A17: 0102 | B17: Atlantic City City | C17: Atlantic | D17: 3400102080 | E17: 14 | F17: 2429533483 | G17: 40953994.51 | H17: 1.685673188 | I17: 45638244.11 | J17: 6886.699118 | K17: 3.900367484 | L17: 12671332.47 | M17: 41135407 | N17: 94760733.98 | O17: 0.4321831711 | P17: 0.1337192309 | Q17: 0.4340975979 | R17: 63144 | S17: 722.7645399 | T17: 12118136 | U17: 729880 | V17: 3146513 | W17: 60368417.82 | X17: 15127943.91 | Y17: 2252022.97 | Z17: 1653119 | AA17: 0 | AB17: 19962595.02 | AC17: 1422742 | AD17: =IFERROR(T17*'Inputs & Assumptions'!$Q$40,"--") -> 1211813.6 | AE17: =IFERROR(U17*'Inputs & Assumptions'!$Q$41,"--") -> 72988 | AF17: =IFERROR(V17*'Inputs & Assumptions'!$Q$42,"--") -> 1573256.5 | AG17: =IFERROR(W17*'Inputs & Assumptions'!$Q$43,"--") -> 30184208.91 | AH17: =IFERROR(X17*'Inputs & Assumptions'!$Q$44,"--") -> 1512794.391 | AI17: =IFERROR(Y17*'Inputs & Assumptions'!$Q$45,"--") -> 225202.297 | AJ17: =IFERROR(Z17*'Inputs & Assumptions'!$Q$46,"--") -> 165311.9 | AK17: =IFERROR(AA17*'Inputs & Assumptions'!$Q$47,"--") -> 0 | AL17: =IFERROR(AB17*'Inputs & Assumptions'!$Q$48,"--") -> 9981297.51 | AM17: =IFERROR(AC17*'Inputs & Assumptions'!$Q$49,"--") -> 711371
A18: 1304 | B18: Atlantic Highlands Borough | C18: Monmouth | D18: 3402502110 | E18: 15 | F18: 939095451 | G18: 5764285.65 | H18: 0.613812541 | I18: 2499079.132 | J18: 809.0014357 | K18: 1.964635627 | L18: 2653935.15 | M18: 10031583 | N18: 18449803.8 | O18: 0.3124307289 | P18: 0.1438462533 | Q18: 0.5437230178 | R18: 5422 | S18: 460.9146315 | T18: 5954273.57 | U18: 61200 | V18: 92250 | W18: 2221175 | X18: 889600 | Y18: 0 | Z18: 0 | AA18: 255000 | AB18: 1048718.55 | AC18: 0 | AD18: =IFERROR(T18*'Inputs & Assumptions'!$Q$40,"--") -> 595427.357 | AE18: =IFERROR(U18*'Inputs & Assumptions'!$Q$41,"--") -> 6120 | AF18: =IFERROR(V18*'Inputs & Assumptions'!$Q$42,"--") -> 46125 | AG18: =IFERROR(W18*'Inputs & Assumptions'!$Q$43,"--") -> 1110587.5 | AH18: =IFERROR(X18*'Inputs & Assumptions'!$Q$44,"--") -> 88960 | AI18: =IFERROR(Y18*'Inputs & Assumptions'!$Q$45,"--") -> 0 | AJ18: =IFERROR(Z18*'Inputs & Assumptions'!$Q$46,"--") -> 0 | AK18: =IFERROR(AA18*'Inputs & Assumptions'!$Q$47,"--") -> 127500 | AL18: =IFERROR(AB18*'Inputs & Assumptions'!$Q$48,"--") -> 524359.275 | AM18: =IFERROR(AC18*'Inputs & Assumptions'!$Q$49,"--") -> 0
A19: 0401 | B19: Audubon Borough | C19: Camden | D19: 3400702200 | E19: 16 | F19: 711771640 | G19: 6636000 | H19: 0.9323214957 | I19: 2421519.962 | J19: 948.5830539 | K19: 3.640783477 | L19: 5862724.26 | M19: 13415340 | N19: 25914064.26 | O19: 0.2560771608 | P19: 0.2262371584 | Q19: 0.5176856808 | R19: 10828 | S19: 223.6350168 | T19: 647153 | U19: 40575 | V19: 55750 | W19: 2526185 | X19: 1487963 | Y19: 0 | Z19: 245198.62 | AA19: 495000 | AB19: 1024638 | AC19: 257289 | AD19: =IFERROR(T19*'Inputs & Assumptions'!$Q$40,"--") -> 64715.3 | AE19: =IFERROR(U19*'Inputs & Assumptions'!$Q$41,"--") -> 4057.5 | AF19: =IFERROR(V19*'Inputs & Assumptions'!$Q$42,"--") -> 27875 | AG19: =IFERROR(W19*'Inputs & Assumptions'!$Q$43,"--") -> 1263092.5 | AH19: =IFERROR(X19*'Inputs & Assumptions'!$Q$44,"--") -> 148796.3 | AI19: =IFERROR(Y19*'Inputs & Assumptions'!$Q$45,"--") -> 0 | AJ19: =IFERROR(Z19*'Inputs & Assumptions'!$Q$46,"--") -> 24519.862 | AK19: =IFERROR(AA19*'Inputs & Assumptions'!$Q$47,"--") -> 247500 | AL19: =IFERROR(AB19*'Inputs & Assumptions'!$Q$48,"--") -> 512319 | AM19: =IFERROR(AC19*'Inputs & Assumptions'!$Q$49,"--") -> 128644.5
A20: 0402 | B20: Audubon Park Borough | C20: Camden | D20: 3400702230 | E20: 17 | F20: 20988426 | G20: 813000 | H20: 3.873563458 | I20: -- | J20: 96.27369972 | K20: 6.497343774 | L20: 178646.19 | M20: 372044 | N20: 1363690.19 | O20: 0.5961764673 | P20: 0.131002035 | Q20: 0.2728214977 | R20: 1234 | S20: -- | T20: No data | U20: No data | V20: No data | W20: No data | X20: No data | Y20: No data | Z20: No data | AA20: No data | AB20: No data | AC20: No data | AD20: =IFERROR(T20*'Inputs & Assumptions'!$Q$40,"--") -> -- | AE20: =IFERROR(U20*'Inputs & Assumptions'!$Q$41,"--") -> -- | AF20: =IFERROR(V20*'Inputs & Assumptions'!$Q$42,"--") -> -- | AG20: =IFERROR(W20*'Inputs & Assumptions'!$Q$43,"--") -> -- | AH20: =IFERROR(X20*'Inputs & Assumptions'!$Q$44,"--") -> -- | AI20: =IFERROR(Y20*'Inputs & Assumptions'!$Q$45,"--") -> -- | AJ20: =IFERROR(Z20*'Inputs & Assumptions'!$Q$46,"--") -> -- | AK20: =IFERROR(AA20*'Inputs & Assumptions'!$Q$47,"--") -> -- | AL20: =IFERROR(AB20*'Inputs & Assumptions'!$Q$48,"--") -> -- | AM20: =IFERROR(AC20*'Inputs & Assumptions'!$Q$49,"--") -> --
A21: 0501 | B21: Avalon Borough | C21: Cape May | D21: 3400902320 | E21: 18 | F21: 9345244374 | G21: 22009422 | H21: 0.2355146759 | I21: 4159836.944 | J21: 2732.755824 | K21: 0.5448736935 | L21: 25770088.19 | M21: 3140268 | N21: 50919778.19 | O21: 0.4322371931 | P21: 0.5060919176 | Q21: 0.06167088922 | R21: 2794 | S21: 1488.846437 | T21: 2320611.995 | U21: 74380.00022 | V21: 254504.0001 | W21: 3627984.998 | X21: 4770195.451 | Y21: 41129.99825 | Z21: 3454422 | AA21: 280000 | AB21: 1855747 | AC21: 169290 | AD21: =IFERROR(T21*'Inputs & Assumptions'!$Q$40,"--") -> 232061.1995 | AE21: =IFERROR(U21*'Inputs & Assumptions'!$Q$41,"--") -> 7438.000022 | AF21: =IFERROR(V21*'Inputs & Assumptions'!$Q$42,"--") -> 127252 | AG21: =IFERROR(W21*'Inputs & Assumptions'!$Q$43,"--") -> 1813992.499 | AH21: =IFERROR(X21*'Inputs & Assumptions'!$Q$44,"--") -> 477019.5451 | AI21: =IFERROR(Y21*'Inputs & Assumptions'!$Q$45,"--") -> 4112.999825 | AJ21: =IFERROR(Z21*'Inputs & Assumptions'!$Q$46,"--") -> 345442.2 | AK21: =IFERROR(AA21*'Inputs & Assumptions'!$Q$47,"--") -> 140000 | AL21: =IFERROR(AB21*'Inputs & Assumptions'!$Q$48,"--") -> 927873.5 | AM21: =IFERROR(AC21*'Inputs & Assumptions'!$Q$49,"--") -> 84645
A22: 1305 | B22: Avon-by-the-Sea Borough | C22: Monmouth | D22: 3402502440 | E22: 19 | F22: 934373800 | G22: 4020257.93 | H22: 0.4302622708 | I22: 1658518.68 | J22: 272.3530149 | K22: 1.224565387 | L22: 3153931.21 | M22: 4267829 | N22: 11442018.14 | O22: 0.3513591642 | P22: 0.2756446609 | Q22: 0.372996175 | R22: 2128 | S22: 779.3790789 | T22: 1480836 | U22: 18600 | V22: 135930 | W22: 1577205 | X22: 1259535.45 | Y22: 11250 | Z22: 750398 | AA22: 176468.47 | AB22: 699910 | AC22: 23400 | AD22: =IFERROR(T22*'Inputs & Assumptions'!$Q$40,"--") -> 148083.6 | AE22: =IFERROR(U22*'Inputs & Assumptions'!$Q$41,"--") -> 1860 | AF22: =IFERROR(V22*'Inputs & Assumptions'!$Q$42,"--") -> 67965 | AG22: =IFERROR(W22*'Inputs & Assumptions'!$Q$43,"--") -> 788602.5 | AH22: =IFERROR(X22*'Inputs & Assumptions'!$Q$44,"--") -> 125953.545 | AI22: =IFERROR(Y22*'Inputs & Assumptions'!$Q$45,"--") -> 1125 | AJ22: =IFERROR(Z22*'Inputs & Assumptions'!$Q$46,"--") -> 75039.8 | AK22: =IFERROR(AA22*'Inputs & Assumptions'!$Q$47,"--") -> 88234.235 | AL22: =IFERROR(AB22*'Inputs & Assumptions'!$Q$48,"--") -> 349955 | AM22: =IFERROR(AC22*'Inputs & Assumptions'!$Q$49,"--") -> 11700
A23: 1501 | B23: Barnegat Light Borough | C23: Ocean | D23: 3402903130 | E23: 20 | F23: 1022266600 | G23: 2514775.84 | H23: 0.2460000004 | I23: 575743.327 | J23: 531.7253423 | K23: 0.8893780106 | L23: 4025676.51 | M23: 2551362 | N23: 9091814.35 | O23: 0.2765977992 | P23: 0.4427803247 | Q23: 0.2806218761 | R23: 908 | S23: 634.078554 | T23: 2686778.27 | U23: 31250 | V23: 25000 | W23: 22800 | X23: 280500 | Y23: 17600 | Z23: 0 | AA23: 335000 | AB23: 132661 | AC23: 32800 | AD23: =IFERROR(T23*'Inputs & Assumptions'!$Q$40,"--") -> 268677.827 | AE23: =IFERROR(U23*'Inputs & Assumptions'!$Q$41,"--") -> 3125 | AF23: =IFERROR(V23*'Inputs & Assumptions'!$Q$42,"--") -> 12500 | AG23: =IFERROR(W23*'Inputs & Assumptions'!$Q$43,"--") -> 11400 | AH23: =IFERROR(X23*'Inputs & Assumptions'!$Q$44,"--") -> 28050 | AI23: =IFERROR(Y23*'Inputs & Assumptions'!$Q$45,"--") -> 1760 | AJ23: =IFERROR(Z23*'Inputs & Assumptions'!$Q$46,"--") -> 0 | AK23: =IFERROR(AA23*'Inputs & Assumptions'!$Q$47,"--") -> 167500 | AL23: =IFERROR(AB23*'Inputs & Assumptions'!$Q$48,"--") -> 66330.5 | AM23: =IFERROR(AC23*'Inputs & Assumptions'!$Q$49,"--") -> 16400
A24: 1533 | B24: Barnegat Township | C24: Ocean | D24: 3402903050 | E24: 21 | F24: 2519024000 | G24: 23987914.64 | H24: 0.9522701904 | I24: 8314307.16 | J24: 21912.95004 | K24: 2.803663021 | L24: 10736611.74 | M24: 35900418 | N24: 70624944.38 | O24: 0.3396521562 | P24: 0.1520229408 | Q24: 0.508324903 | R24: 25426 | S24: 327.0002029 | T24: 7971410 | U24: 141600 | V24: 1216200 | W24: 8545562.32 | X24: 3137900 | Y24: 53350 | Z24: 0 | AA24: 855000 | AB24: 3460000 | AC24: 291000 | AD24: =IFERROR(T24*'Inputs & Assumptions'!$Q$40,"--") -> 797141 | AE24: =IFERROR(U24*'Inputs & Assumptions'!$Q$41,"--") -> 14160 | AF24: =IFERROR(V24*'Inputs & Assumptions'!$Q$42,"--") -> 608100 | AG24: =IFERROR(W24*'Inputs & Assumptions'!$Q$43,"--") -> 4272781.16 | AH24: =IFERROR(X24*'Inputs & Assumptions'!$Q$44,"--") -> 313790 | AI24: =IFERROR(Y24*'Inputs & Assumptions'!$Q$45,"--") -> 5335 | AJ24: =IFERROR(Z24*'Inputs & Assumptions'!$Q$46,"--") -> 0 | AK24: =IFERROR(AA24*'Inputs & Assumptions'!$Q$47,"--") -> 427500 | AL24: =IFERROR(AB24*'Inputs & Assumptions'!$Q$48,"--") -> 1730000 | AM24: =IFERROR(AC24*'Inputs & Assumptions'!$Q$49,"--") -> 145500
A25: 0403 | B25: Barrington Borough | C25: Camden | D25: 3400703250 | E25: 22 | F25: 495424931 | G25: 6311700 | H25: 1.273997251 | I25: 2016714.233 | J25: 1011.980137 | K25: 4.473131842 | L25: 4568564.34 | M25: 11280746 | N25: 22161010.34 | O25: 0.2848110218 | P25: 0.2061532516 | Q25: 0.5090357266 | R25: 9087 | S25: 221.9339972 | T25: 746108.66 | U25: 24300 | V25: 0 | W25: 2002728.289 | X25: 1393435.87 | Y25: 49993 | Z25: 0 | AA25: 613714 | AB25: 859218.67 | AC25: 115000 | AD25: =IFERROR(T25*'Inputs & Assumptions'!$Q$40,"--") -> 74610.866 | AE25: =IFERROR(U25*'Inputs & Assumptions'!$Q$41,"--") -> 2430 | AF25: =IFERROR(V25*'Inputs & Assumptions'!$Q$42,"--") -> 0 | AG25: =IFERROR(W25*'Inputs & Assumptions'!$Q$43,"--") -> 1001364.145 | AH25: =IFERROR(X25*'Inputs & Assumptions'!$Q$44,"--") -> 139343.587 | AI25: =IFERROR(Y25*'Inputs & Assumptions'!$Q$45,"--") -> 4999.3 | AJ25: =IFERROR(Z25*'Inputs & Assumptions'!$Q$46,"--") -> 0 | AK25: =IFERROR(AA25*'Inputs & Assumptions'!$Q$47,"--") -> 306857 | AL25: =IFERROR(AB25*'Inputs & Assumptions'!$Q$48,"--") -> 429609.335 | AM25: =IFERROR(AC25*'Inputs & Assumptions'!$Q$49,"--") -> 57500
A26: 0301 | B26: Bass River Township | C26: Burlington | D26: 3400503370 | E26: 23 | F26: 173172996 | G26: 633744.73 | H26: 0.3659604815 | I26: 229394.4 | J26: 48079.38726 | K26: 2.226459534 | L26: 706649.95 | M26: 2515232 | N26: 3855626.68 | O26: 0.1643687998 | P26: 0.1832775859 | Q26: 0.6523536143 | R26: 2852 | S26: 80.43281907 | T26: 321096 | U26: 18200 | V26: 4900 | W26: 88100 | X26: 295748 | Y26: 6000 | Z26: 0 | AA26: 3100 | AB26: 69480 | AC26: 165000 | AD26: =IFERROR(T26*'Inputs & Assumptions'!$Q$40,"--") -> 32109.6 | AE26: =IFERROR(U26*'Inputs & Assumptions'!$Q$41,"--") -> 1820 | AF26: =IFERROR(V26*'Inputs & Assumptions'!$Q$42,"--") -> 2450 | AG26: =IFERROR(W26*'Inputs & Assumptions'!$Q$43,"--") -> 44050 | AH26: =IFERROR(X26*'Inputs & Assumptions'!$Q$44,"--") -> 29574.8 | AI26: =IFERROR(Y26*'Inputs & Assumptions'!$Q$45,"--") -> 600 | AJ26: =IFERROR(Z26*'Inputs & Assumptions'!$Q$46,"--") -> 0 | AK26: =IFERROR(AA26*'Inputs & Assumptions'!$Q$47,"--") -> 1550 | AL26: =IFERROR(AB26*'Inputs & Assumptions'!$Q$48,"--") -> 34740 | AM26: =IFERROR(AC26*'Inputs & Assumptions'!$Q$49,"--") -> 82500
A27: 1502 | B27: Bay Head Borough | C27: Ocean | D27: 3402903520 | E27: 24 | F27: 1625624100 | G27: 3966982.2 | H27: 0.2440282597 | I27: 1273776.72 | J27: 374.7195895 | K27: 0.8771597136 | L27: 6701982.5 | M27: 3590355 | N27: 14259319.7 | O27: 0.2782027673 | P27: 0.4700071701 | Q27: 0.2517900626 | R27: 1559 | S27: 817.0472867 | T27: 703180 | U27: 91000 | V27: 150550 | W27: 1350952.44 | X27: 329000 | Y27: 5850 | Z27: 3000 | AA27: 237000 | AB27: 532145 | AC27: 50500 | AD27: =IFERROR(T27*'Inputs & Assumptions'!$Q$40,"--") -> 70318 | AE27: =IFERROR(U27*'Inputs & Assumptions'!$Q$41,"--") -> 9100 | AF27: =IFERROR(V27*'Inputs & Assumptions'!$Q$42,"--") -> 75275 | AG27: =IFERROR(W27*'Inputs & Assumptions'!$Q$43,"--") -> 675476.22 | AH27: =IFERROR(X27*'Inputs & Assumptions'!$Q$44,"--") -> 32900 | AI27: =IFERROR(Y27*'Inputs & Assumptions'!$Q$45,"--") -> 585 | AJ27: =IFERROR(Z27*'Inputs & Assumptions'!$Q$46,"--") -> 300 | AK27: =IFERROR(AA27*'Inputs & Assumptions'!$Q$47,"--") -> 118500 | AL27: =IFERROR(AB27*'Inputs & Assumptions'!$Q$48,"--") -> 266072.5 | AM27: =IFERROR(AC27*'Inputs & Assumptions'!$Q$49,"--") -> 25250
A28: 0901 | B28: Bayonne City | C28: Hudson | D28: 3401703580 | E28: 25 | F28: 7540289306 | G28: 85318960.54 | H28: 1.131507785 | I28: 38427256.99 | J28: 3725.750369 | K28: 2.611014675 | L28: 30653566.78 | M28: 80905533 | N28: 196878060.3 | O28: 0.4333594124 | P28: 0.1556982364 | Q28: 0.4109423512 | R28: 73043 | S28: 526.0908915 | T28: 8341000 | U28: 584000 | V28: 0 | W28: 48481264 | X28: 7284132.95 | Y28: 3122452.81 | Z28: 2639689.42 | AA28: 3650000 | AB28: 18908994.94 | AC28: 1420000 | AD28: =IFERROR(T28*'Inputs & Assumptions'!$Q$40,"--") -> 834100 | AE28: =IFERROR(U28*'Inputs & Assumptions'!$Q$41,"--") -> 58400 | AF28: =IFERROR(V28*'Inputs & Assumptions'!$Q$42,"--") -> 0 | AG28: =IFERROR(W28*'Inputs & Assumptions'!$Q$43,"--") -> 24240632 | AH28: =IFERROR(X28*'Inputs & Assumptions'!$Q$44,"--") -> 728413.295 | AI28: =IFERROR(Y28*'Inputs & Assumptions'!$Q$45,"--") -> 312245.281 | AJ28: =IFERROR(Z28*'Inputs & Assumptions'!$Q$46,"--") -> 263968.942 | AK28: =IFERROR(AA28*'Inputs & Assumptions'!$Q$47,"--") -> 1825000 | AL28: =IFERROR(AB28*'Inputs & Assumptions'!$Q$48,"--") -> 9454497.47 | AM28: =IFERROR(AC28*'Inputs & Assumptions'!$Q$49,"--") -> 710000
A29: 1503 | B29: Beach Haven Borough | C29: Ocean | D29: 3402903940 | E29: 26 | F29: 2133179200 | G29: 8960608.28 | H29: 0.4200588624 | I29: 2423312.377 | J29: 626.7986046 | K29: 1.096597497 | L29: 8176594.44 | M29: 6255187 | N29: 23392389.72 | O29: 0.3830565576 | P29: 0.3495407924 | Q29: 0.26740265 | R29: 2231 | S29: 1086.200079 | T29: 2136791 | U29: 136350 | V29: 193839 | W29: 2236334 | X29: 1496855.83 | Y29: 101000 | Z29: 790531.94 | AA29: 240000 | AB29: 1138221 | AC29: 105925 | AD29: =IFERROR(T29*'Inputs & Assumptions'!$Q$40,"--") -> 213679.1 | AE29: =IFERROR(U29*'Inputs & Assumptions'!$Q$41,"--") -> 13635 | AF29: =IFERROR(V29*'Inputs & Assumptions'!$Q$42,"--") -> 96919.5 | AG29: =IFERROR(W29*'Inputs & Assumptions'!$Q$43,"--") -> 1118167 | AH29: =IFERROR(X29*'Inputs & Assumptions'!$Q$44,"--") -> 149685.583 | AI29: =IFERROR(Y29*'Inputs & Assumptions'!$Q$45,"--") -> 10100 | AJ29: =IFERROR(Z29*'Inputs & Assumptions'!$Q$46,"--") -> 79053.194 | AK29: =IFERROR(AA29*'Inputs & Assumptions'!$Q$47,"--") -> 120000 | AL29: =IFERROR(AB29*'Inputs & Assumptions'!$Q$48,"--") -> 569110.5 | AM29: =IFERROR(AC29*'Inputs & Assumptions'!$Q$49,"--") -> 52962.5
A30: 1504 | B30: Beachwood Borough | C30: Ocean | D30: 3402904180 | E30: 27 | F30: 816015346 | G30: 8094683.12 | H30: 0.9919768249 | I30: 2692031.807 | J30: 1768.374589 | K30: 2.565401067 | L30: 3717931.27 | M30: 9121452 | N30: 20934066.39 | O30: 0.3866751432 | P30: 0.1776019623 | Q30: 0.4357228944 | R30: 11766 | S30: 228.7975359 | T30: 2265862.42 | U30: 27910 | V30: 125800 | W30: 2596344.13 | X30: 1229500 | Y30: 11000 | Z30: 5000 | AA30: 535000 | AB30: 1285565 | AC30: 133500 | AD30: =IFERROR(T30*'Inputs & Assumptions'!$Q$40,"--") -> 226586.242 | AE30: =IFERROR(U30*'Inputs & Assumptions'!$Q$41,"--") -> 2791 | AF30: =IFERROR(V30*'Inputs & Assumptions'!$Q$42,"--") -> 62900 | AG30: =IFERROR(W30*'Inputs & Assumptions'!$Q$43,"--") -> 1298172.065 | AH30: =IFERROR(X30*'Inputs & Assumptions'!$Q$44,"--") -> 122950 | AI30: =IFERROR(Y30*'Inputs & Assumptions'!$Q$45,"--") -> 1100 | AJ30: =IFERROR(Z30*'Inputs & Assumptions'!$Q$46,"--") -> 500 | AK30: =IFERROR(AA30*'Inputs & Assumptions'!$Q$47,"--") -> 267500 | AL30: =IFERROR(AB30*'Inputs & Assumptions'!$Q$48,"--") -> 642782.5 | AM30: =IFERROR(AC30*'Inputs & Assumptions'!$Q$49,"--") -> 66750
A31: 1801 | B31: Bedminster Township | C31: Somerset | D31: 3403504450 | E31: 28 | F31: 2460945305 | G31: 7967837.74 | H31: 0.3237714273 | I31: 2370090.927 | J31: 16718.59146 | K31: 1.394734247 | L31: 8653321.24 | M31: 17702488 | N31: 34323646.98 | O31: 0.2321384364 | P31: 0.2521096096 | Q31: 0.515751954 | R31: 15090 | S31: 157.0636797 | T31: 1275814 | U31: 86252 | V31: 230669 | W31: 2722433.72 | X31: 1351692.21 | Y31: 115411 | Z31: 832574.71 | AA31: 0 | AB31: 1010525 | AC31: 44205.35 | AD31: =IFERROR(T31*'Inputs & Assumptions'!$Q$40,"--") -> 127581.4 | AE31: =IFERROR(U31*'Inputs & Assumptions'!$Q$41,"--") -> 8625.2 | AF31: =IFERROR(V31*'Inputs & Assumptions'!$Q$42,"--") -> 115334.5 | AG31: =IFERROR(W31*'Inputs & Assumptions'!$Q$43,"--") -> 1361216.86 | AH31: =IFERROR(X31*'Inputs & Assumptions'!$Q$44,"--") -> 135169.221 | AI31: =IFERROR(Y31*'Inputs & Assumptions'!$Q$45,"--") -> 11541.1 | AJ31: =IFERROR(Z31*'Inputs & Assumptions'!$Q$46,"--") -> 83257.471 | AK31: =IFERROR(AA31*'Inputs & Assumptions'!$Q$47,"--") -> 0 | AL31: =IFERROR(AB31*'Inputs & Assumptions'!$Q$48,"--") -> 505262.5 | AM31: =IFERROR(AC31*'Inputs & Assumptions'!$Q$49,"--") -> 22102.675
A32: 0701 | B32: Belleville Township | C32: Essex | D32: 3401304695 | E32: 29 | F32: 3107706300 | G32: 56964078 | H32: 1.832994257 | I32: -- | J32: 2109.329219 | K32: 3.794148347 | L32: 15832221.2 | M32: 45114688 | N32: 117910987.2 | O32: 0.4831108564 | P32: 0.1342726541 | Q32: 0.3826164895 | R32: 42799 | S32: -- | T32: No data | U32: No data | V32: No data | W32: No data | X32: No data | Y32: No data | Z32: No data | AA32: No data | AB32: No data | AC32: No data | AD32: =IFERROR(T32*'Inputs & Assumptions'!$Q$40,"--") -> -- | AE32: =IFERROR(U32*'Inputs & Assumptions'!$Q$41,"--") -> -- | AF32: =IFERROR(V32*'Inputs & Assumptions'!$Q$42,"--") -> -- | AG32: =IFERROR(W32*'Inputs & Assumptions'!$Q$43,"--") -> -- | AH32: =IFERROR(X32*'Inputs & Assumptions'!$Q$44,"--") -> -- | AI32: =IFERROR(Y32*'Inputs & Assumptions'!$Q$45,"--") -> -- | AJ32: =IFERROR(Z32*'Inputs & Assumptions'!$Q$46,"--") -> -- | AK32: =IFERROR(AA32*'Inputs & Assumptions'!$Q$47,"--") -> -- | AL32: =IFERROR(AB32*'Inputs & Assumptions'!$Q$48,"--") -> -- | AM32: =IFERROR(AC32*'Inputs & Assumptions'!$Q$49,"--") -> --
A33: 0404 | B33: Bellmawr Borough | C33: Camden | D33: 3400704750 | E33: 30 | F33: 788494700 | G33: 9343691.57 | H33: 1.185003725 | I33: 3267899.55 | J33: 1909.949605 | K33: 3.898111096 | L33: 7035474.82 | M33: 14357233 | N33: 30736399.39 | O33: 0.303994344 | P33: 0.2288971695 | Q33: 0.4671084865 | R33: 16290 | S33: 200.6077072 | T33: 2489461.55 | U33: 17332 | V33: 142178 | W33: 3612451 | X33: 2563000 | Y33: 48432 | Z33: 0 | AA33: 0 | AB33: 1500712.99 | AC33: 256812 | AD33: =IFERROR(T33*'Inputs & Assumptions'!$Q$40,"--") -> 248946.155 | AE33: =IFERROR(U33*'Inputs & Assumptions'!$Q$41,"--") -> 1733.2 | AF33: =IFERROR(V33*'Inputs & Assumptions'!$Q$42,"--") -> 71089 | AG33: =IFERROR(W33*'Inputs & Assumptions'!$Q$43,"--") -> 1806225.5 | AH33: =IFERROR(X33*'Inputs & Assumptions'!$Q$44,"--") -> 256300 | AI33: =IFERROR(Y33*'Inputs & Assumptions'!$Q$45,"--") -> 4843.2 | AJ33: =IFERROR(Z33*'Inputs & Assumptions'!$Q$46,"--") -> 0 | AK33: =IFERROR(AA33*'Inputs & Assumptions'!$Q$47,"--") -> 0 | AL33: =IFERROR(AB33*'Inputs & Assumptions'!$Q$48,"--") -> 750356.495 | AM33: =IFERROR(AC33*'Inputs & Assumptions'!$Q$49,"--") -> 128406
A34: 1306 | B34: Belmar Borough | C34: Monmouth | D34: 3402504930 | E34: 31 | F34: 1734811200 | G34: 8976502.06 | H34: 0.5174339467 | I34: 4582005.754 | J34: 668.8984253 | K34: 1.356062596 | L34: 5053745.74 | M34: 9494878 | N34: 23525125.8 | O34: 0.381570842 | P34: 0.2148233248 | Q34: 0.4036058332 | R34: 7453 | S34: 614.7867643 | T34: 1519605 | U34: 50500 | V34: 173300 | W34: 5380428.34 | X34: 3083066 | Y34: 32100 | Z34: 636141.34 | AA34: 523000 | AB34: 1870000.7 | AC34: 153000 | AD34: =IFERROR(T34*'Inputs & Assumptions'!$Q$40,"--") -> 151960.5 | AE34: =IFERROR(U34*'Inputs & Assumptions'!$Q$41,"--") -> 5050 | AF34: =IFERROR(V34*'Inputs & Assumptions'!$Q$42,"--") -> 86650 | AG34: =IFERROR(W34*'Inputs & Assumptions'!$Q$43,"--") -> 2690214.17 | AH34: =IFERROR(X34*'Inputs & Assumptions'!$Q$44,"--") -> 308306.6 | AI34: =IFERROR(Y34*'Inputs & Assumptions'!$Q$45,"--") -> 3210 | AJ34: =IFERROR(Z34*'Inputs & Assumptions'!$Q$46,"--") -> 63614.134 | AK34: =IFERROR(AA34*'Inputs & Assumptions'!$Q$47,"--") -> 261500 | AL34: =IFERROR(AB34*'Inputs & Assumptions'!$Q$48,"--") -> 935000.35 | AM34: =IFERROR(AC34*'Inputs & Assumptions'!$Q$49,"--") -> 76500
A35: 2103 | B35: Belvidere Town | C35: Warren | D35: 3404104990 | E35: 32 | F35: 126914221 | G35: 2018527.4 | H35: 1.590465894 | I35: -- | J35: 927.6435995 | K35: 5.671179016 | L35: 1324480.27 | M35: 3854525 | N35: 7197532.67 | O35: 0.2804471327 | P35: 0.1840186534 | Q35: 0.5355342138 | R35: 3468 | S35: -- | T35: No data | U35: No data | V35: No data | W35: No data | X35: No data | Y35: No data | Z35: No data | AA35: No data | AB35: No data | AC35: No data | AD35: =IFERROR(T35*'Inputs & Assumptions'!$Q$40,"--") -> -- | AE35: =IFERROR(U35*'Inputs & Assumptions'!$Q$41,"--") -> -- | AF35: =IFERROR(V35*'Inputs & Assumptions'!$Q$42,"--") -> -- | AG35: =IFERROR(W35*'Inputs & Assumptions'!$Q$43,"--") -> -- | AH35: =IFERROR(X35*'Inputs & Assumptions'!$Q$44,"--") -> -- | AI35: =IFERROR(Y35*'Inputs & Assumptions'!$Q$45,"--") -> -- | AJ35: =IFERROR(Z35*'Inputs & Assumptions'!$Q$46,"--") -> -- | AK35: =IFERROR(AA35*'Inputs & Assumptions'!$Q$47,"--") -> -- | AL35: =IFERROR(AB35*'Inputs & Assumptions'!$Q$48,"--") -> -- | AM35: =IFERROR(AC35*'Inputs & Assumptions'!$Q$49,"--") -> --
A36: 0203 | B36: Bergenfield Borough | C36: Bergen | D36: 3400305170 | E36: 33 | F36: 2709517430 | G36: 31022970 | H36: 1.144962924 | I36: 8339594.1 | J36: 1858.64363 | K36: 3.321573258 | L36: 8321895.37 | M36: 50653741 | N36: 89998606.37 | O36: 0.3447050043 | P36: 0.09246693594 | Q36: 0.5628280597 | R36: 30274 | S36: 275.470506 | T36: 2010950 | U36: 18050 | V36: 482400 | W36: 9885120 | X36: 4272550 | Y36: 409236 | Z36: 1457800 | AA36: 1007000 | AB36: 3459451 | AC36: 211500 | AD36: =IFERROR(T36*'Inputs & Assumptions'!$Q$40,"--") -> 201095 | AE36: =IFERROR(U36*'Inputs & Assumptions'!$Q$41,"--") -> 1805 | AF36: =IFERROR(V36*'Inputs & Assumptions'!$Q$42,"--") -> 241200 | AG36: =IFERROR(W36*'Inputs & Assumptions'!$Q$43,"--") -> 4942560 | AH36: =IFERROR(X36*'Inputs & Assumptions'!$Q$44,"--") -> 427255 | AI36: =IFERROR(Y36*'Inputs & Assumptions'!$Q$45,"--") -> 40923.6 | AJ36: =IFERROR(Z36*'Inputs & Assumptions'!$Q$46,"--") -> 145780 | AK36: =IFERROR(AA36*'Inputs & Assumptions'!$Q$47,"--") -> 503500 | AL36: =IFERROR(AB36*'Inputs & Assumptions'!$Q$48,"--") -> 1729725.5 | AM36: =IFERROR(AC36*'Inputs & Assumptions'!$Q$49,"--") -> 105750
A37: 2001 | B37: Berkeley Heights Township | C37: Union | D37: 3403905320 | E37: 34 | F37: 1842215324 | G37: 15301291.55 | H37: 0.8305919156 | I37: 3923802.537 | J37: 3981.028409 | K37: 4.175087543 | L37: 16573588.95 | M37: 45039222 | N37: 76914102.5 | O37: 0.19894 | P37: 0.2154817961 | Q37: 0.5855782039 | R37: 18881 | S37: 207.8175169 | T37: 1513900 | U37: 171125 | V37: 553350 | W37: 4137477.33 | X37: 3278995.8 | Y37: 20160 | Z37: 1119707.92 | AA37: 0 | AB37: 1903500 | AC37: 32500 | AD37: =IFERROR(T37*'Inputs & Assumptions'!$Q$40,"--") -> 151390 | AE37: =IFERROR(U37*'Inputs & Assumptions'!$Q$41,"--") -> 17112.5 | AF37: =IFERROR(V37*'Inputs & Assumptions'!$Q$42,"--") -> 276675 | AG37: =IFERROR(W37*'Inputs & Assumptions'!$Q$43,"--") -> 2068738.665 | AH37: =IFERROR(X37*'Inputs & Assumptions'!$Q$44,"--") -> 327899.58 | AI37: =IFERROR(Y37*'Inputs & Assumptions'!$Q$45,"--") -> 2016 | AJ37: =IFERROR(Z37*'Inputs & Assumptions'!$Q$46,"--") -> 111970.792 | AK37: =IFERROR(AA37*'Inputs & Assumptions'!$Q$47,"--") -> 0 | AL37: =IFERROR(AB37*'Inputs & Assumptions'!$Q$48,"--") -> 951750 | AM37: =IFERROR(AC37*'Inputs & Assumptions'!$Q$49,"--") -> 16250
A38: 1505 | B38: Berkeley Township | C38: Ocean | D38: 3402905305 | E38: 35 | F38: 5265550469 | G38: 36648413.01 | H38: 0.6960034516 | I38: 10827582.76 | J38: 27334.15398 | K38: 2.228957674 | L38: 23473376.24 | M38: 57245102 | N38: 117366891.2 | O38: 0.3122551225 | P38: 0.1999999829 | Q38: 0.4877448946 | R38: 45983 | S38: 235.4692551 | T38: 3191892 | U38: 382420 | V38: 287226 | W38: 12029852.88 | X38: 5594348.41 | Y38: 172597.75 | Z38: 0 | AA38: 2200000 | AB38: 4958167 | AC38: 311668 | AD38: =IFERROR(T38*'Inputs & Assumptions'!$Q$40,"--") -> 319189.2 | AE38: =IFERROR(U38*'Inputs & Assumptions'!$Q$41,"--") -> 38242 | AF38: =IFERROR(V38*'Inputs & Assumptions'!$Q$42,"--") -> 143613 | AG38: =IFERROR(W38*'Inputs & Assumptions'!$Q$43,"--") -> 6014926.44 | AH38: =IFERROR(X38*'Inputs & Assumptions'!$Q$44,"--") -> 559434.841 | AI38: =IFERROR(Y38*'Inputs & Assumptions'!$Q$45,"--") -> 17259.775 | AJ38: =IFERROR(Z38*'Inputs & Assumptions'!$Q$46,"--") -> 0 | AK38: =IFERROR(AA38*'Inputs & Assumptions'!$Q$47,"--") -> 1100000 | AL38: =IFERROR(AB38*'Inputs & Assumptions'!$Q$48,"--") -> 2479083.5 | AM38: =IFERROR(AC38*'Inputs & Assumptions'!$Q$49,"--") -> 155834
A39: 0405 | B39: Berlin Borough | C39: Camden | D39: 3400705440 | E39: 36 | F39: 756952653 | G39: 6363132.01 | H39: 0.8406248376 | I39: 2418225.041 | J39: 2299.998371 | K39: 3.309969217 | L39: 6025133.79 | M39: 12666634 | N39: 25054899.8 | O39: 0.2539675696 | P39: 0.2404772654 | Q39: 0.5055551649 | R39: 11686 | S39: 206.9335137 | T39: 558378 | U39: 22700 | V39: 109630 | W39: 2426925.89 | X39: 2591523.6 | Y39: 0 | Z39: 247680.21 | AA39: 399802.83 | AB39: 1058190 | AC39: 157845 | AD39: =IFERROR(T39*'Inputs & Assumptions'!$Q$40,"--") -> 55837.8 | AE39: =IFERROR(U39*'Inputs & Assumptions'!$Q$41,"--") -> 2270 | AF39: =IFERROR(V39*'Inputs & Assumptions'!$Q$42,"--") -> 54815 | AG39: =IFERROR(W39*'Inputs & Assumptions'!$Q$43,"--") -> 1213462.945 | AH39: =IFERROR(X39*'Inputs & Assumptions'!$Q$44,"--") -> 259152.36 | AI39: =IFERROR(Y39*'Inputs & Assumptions'!$Q$45,"--") -> 0 | AJ39: =IFERROR(Z39*'Inputs & Assumptions'!$Q$46,"--") -> 24768.021 | AK39: =IFERROR(AA39*'Inputs & Assumptions'!$Q$47,"--") -> 199901.415 | AL39: =IFERROR(AB39*'Inputs & Assumptions'!$Q$48,"--") -> 529095 | AM39: =IFERROR(AC39*'Inputs & Assumptions'!$Q$49,"--") -> 78922.5
A40: 0406 | B40: Berlin Township | C40: Camden | D40: 3400705470 | E40: 37 | F40: 636156573 | G40: 8126133.9 | H40: 1.277379539 | I40: 2104538.571 | J40: 2139.126162 | K40: 3.65945819 | L40: 5748585.91 | M40: 9405164 | N40: 23279883.81 | O40: 0.3490624767 | P40: 0.2469336169 | Q40: 0.4040039064 | R40: 9847 | S40: 213.7238317 | T40: 845365.71 | U40: 26840 | V40: 178765 | W40: 2107360 | X40: 1641770 | Y40: 5830 | Z40: 39600 | AA40: 249000 | AB40: 996134 | AC40: 165937 | AD40: =IFERROR(T40*'Inputs & Assumptions'!$Q$40,"--") -> 84536.571 | AE40: =IFERROR(U40*'Inputs & Assumptions'!$Q$41,"--") -> 2684 | AF40: =IFERROR(V40*'Inputs & Assumptions'!$Q$42,"--") -> 89382.5 | AG40: =IFERROR(W40*'Inputs & Assumptions'!$Q$43,"--") -> 1053680 | AH40: =IFERROR(X40*'Inputs & Assumptions'!$Q$44,"--") -> 164177 | AI40: =IFERROR(Y40*'Inputs & Assumptions'!$Q$45,"--") -> 583 | AJ40: =IFERROR(Z40*'Inputs & Assumptions'!$Q$46,"--") -> 3960 | AK40: =IFERROR(AA40*'Inputs & Assumptions'!$Q$47,"--") -> 124500 | AL40: =IFERROR(AB40*'Inputs & Assumptions'!$Q$48,"--") -> 498067 | AM40: =IFERROR(AC40*'Inputs & Assumptions'!$Q$49,"--") -> 82968.5
A41: 1802 | B41: Bernards Township | C41: Somerset | D41: 3403505560 | E41: 38 | F41: 6763337979 | G41: 23511929.45 | H41: 0.3476379492 | I41: 6890795.666 | J41: 15488.9432 | K41: 2.109197514 | L41: 24266920.09 | M41: 94873307 | N41: 142652156.5 | O41: 0.1648200071 | P41: 0.1701125358 | Q41: 0.6650674571 | R41: 44482 | S41: 154.9120018 | T41: 4764226 | U41: 677555 | V41: 1209893 | W41: 6331464.55 | X41: 4993053 | Y41: 858490.91 | Z41: 2389934 | AA41: 305209 | AB41: 3198373 | AC41: 0 | AD41: =IFERROR(T41*'Inputs & Assumptions'!$Q$40,"--") -> 476422.6 | AE41: =IFERROR(U41*'Inputs & Assumptions'!$Q$41,"--") -> 67755.5 | AF41: =IFERROR(V41*'Inputs & Assumptions'!$Q$42,"--") -> 604946.5 | AG41: =IFERROR(W41*'Inputs & Assumptions'!$Q$43,"--") -> 3165732.275 | AH41: =IFERROR(X41*'Inputs & Assumptions'!$Q$44,"--") -> 499305.3 | AI41: =IFERROR(Y41*'Inputs & Assumptions'!$Q$45,"--") -> 85849.091 | AJ41: =IFERROR(Z41*'Inputs & Assumptions'!$Q$46,"--") -> 238993.4 | AK41: =IFERROR(AA41*'Inputs & Assumptions'!$Q$47,"--") -> 152604.5 | AL41: =IFERROR(AB41*'Inputs & Assumptions'!$Q$48,"--") -> 1599186.5 | AM41: =IFERROR(AC41*'Inputs & Assumptions'!$Q$49,"--") -> 0
A42: 1803 | B42: Bernardsville Borough | C42: Somerset | D42: 3403505590 | E42: 39 | F42: 2249815367 | G42: 11836737.1 | H42: 0.5261203774 | I42: 3243688.528 | J42: 8214.734569 | K42: 2.09708515 | L42: 7852519.86 | M42: 27491287 | N42: 47180543.96 | O42: 0.2508817429 | P42: 0.1664355516 | Q42: 0.5826827055 | R42: 10224 | S42: 317.26218 | T42: 1305826.96 | U42: 295126.4 | V42: 220000 | W42: 3462780.27 | X42: 3123646.47 | Y42: 129600 | Z42: 852082 | AA42: 145200 | AB42: 1518140.42 | AC42: 0 | AD42: =IFERROR(T42*'Inputs & Assumptions'!$Q$40,"--") -> 130582.696 | AE42: =IFERROR(U42*'Inputs & Assumptions'!$Q$41,"--") -> 29512.64 | AF42: =IFERROR(V42*'Inputs & Assumptions'!$Q$42,"--") -> 110000 | AG42: =IFERROR(W42*'Inputs & Assumptions'!$Q$43,"--") -> 1731390.135 | AH42: =IFERROR(X42*'Inputs & Assumptions'!$Q$44,"--") -> 312364.647 | AI42: =IFERROR(Y42*'Inputs & Assumptions'!$Q$45,"--") -> 12960 | AJ42: =IFERROR(Z42*'Inputs & Assumptions'!$Q$46,"--") -> 85208.2 | AK42: =IFERROR(AA42*'Inputs & Assumptions'!$Q$47,"--") -> 72600 | AL42: =IFERROR(AB42*'Inputs & Assumptions'!$Q$48,"--") -> 759070.21 | AM42: =IFERROR(AC42*'Inputs & Assumptions'!$Q$49,"--") -> 0
A43: 1002 | B43: Bethlehem Township | C43: Hunterdon | D43: 3401905650 | E43: 40 | F43: 526978493 | G43: 2129467.22 | H43: 0.4040899673 | I43: 367370.716 | J43: 13236.82914 | K43: 3.02064008 | L43: 2221324.35 | M43: 11567332 | N43: 15918123.57 | O43: 0.1337762715 | P43: 0.1395468719 | Q43: 0.7266768567 | R43: 4203 | S43: 87.40678468 | T43: 446197.64 | U43: 97960.07 | V43: 0 | W43: 259449.89 | X43: 694300 | Y43: 6500 | Z43: 0 | AA43: 0 | AB43: 150100 | AC43: 76200 | AD43: =IFERROR(T43*'Inputs & Assumptions'!$Q$40,"--") -> 44619.764 | AE43: =IFERROR(U43*'Inputs & Assumptions'!$Q$41,"--") -> 9796.007 | AF43: =IFERROR(V43*'Inputs & Assumptions'!$Q$42,"--") -> 0 | AG43: =IFERROR(W43*'Inputs & Assumptions'!$Q$43,"--") -> 129724.945 | AH43: =IFERROR(X43*'Inputs & Assumptions'!$Q$44,"--") -> 69430 | AI43: =IFERROR(Y43*'Inputs & Assumptions'!$Q$45,"--") -> 650 | AJ43: =IFERROR(Z43*'Inputs & Assumptions'!$Q$46,"--") -> 0 | AK43: =IFERROR(AA43*'Inputs & Assumptions'!$Q$47,"--") -> 0 | AL43: =IFERROR(AB43*'Inputs & Assumptions'!$Q$48,"--") -> 75050 | AM43: =IFERROR(AC43*'Inputs & Assumptions'!$Q$49,"--") -> 38100
A44: 0302 | B44: Beverly City | C44: Burlington | D44: 3400505740 | E44: 41 | F44: 118323972 | G44: 1947540.02 | H44: 1.645938678 | I44: 919468.862 | J44: 346.402807 | K44: 4.767751923 | L44: 472157.43 | M44: 3221696 | N44: 5641393.45 | O44: 0.3452232214 | P44: 0.08369517818 | Q44: 0.5710816004 | R44: 2673 | S44: 343.9838616 | T44: 915093.56 | U44: 14560 | V44: 81900 | W44: 958470 | X44: 276890.06 | Y44: 6750 | Z44: 1500 | AA44: 115000 | AB44: 348809 | AC44: 91800 | AD44: =IFERROR(T44*'Inputs & Assumptions'!$Q$40,"--") -> 91509.356 | AE44: =IFERROR(U44*'Inputs & Assumptions'!$Q$41,"--") -> 1456 | AF44: =IFERROR(V44*'Inputs & Assumptions'!$Q$42,"--") -> 40950 | AG44: =IFERROR(W44*'Inputs & Assumptions'!$Q$43,"--") -> 479235 | AH44: =IFERROR(X44*'Inputs & Assumptions'!$Q$44,"--") -> 27689.006 | AI44: =IFERROR(Y44*'Inputs & Assumptions'!$Q$45,"--") -> 675 | AJ44: =IFERROR(Z44*'Inputs & Assumptions'!$Q$46,"--") -> 150 | AK44: =IFERROR(AA44*'Inputs & Assumptions'!$Q$47,"--") -> 57500 | AL44: =IFERROR(AB44*'Inputs & Assumptions'!$Q$48,"--") -> 174404.5 | AM44: =IFERROR(AC44*'Inputs & Assumptions'!$Q$49,"--") -> 45900
A45: 2104 | B45: Blairstown Township | C45: Warren | D45: 3404106160 | E45: 42 | F45: 707307990 | G45: 870210.5 | H45: 0.1230313403 | I45: 892505.04 | J45: 19127.53138 | K45: 2.560462828 | L45: 5092694.66 | M45: 12147453 | N45: 18110358.16 | O45: 0.04805043016 | P45: 0.2812034204 | Q45: 0.6707461494 | R45: 7349 | S45: 121.4457804 | T45: 568734.5 | U45: 77139 | V45: 0 | W45: 1028982.48 | X45: 560001 | Y45: 18606 | Z45: 0 | AA45: 13431.5 | AB45: 432700 | AC45: 65000 | AD45: =IFERROR(T45*'Inputs & Assumptions'!$Q$40,"--") -> 56873.45 | AE45: =IFERROR(U45*'Inputs & Assumptions'!$Q$41,"--") -> 7713.9 | AF45: =IFERROR(V45*'Inputs & Assumptions'!$Q$42,"--") -> 0 | AG45: =IFERROR(W45*'Inputs & Assumptions'!$Q$43,"--") -> 514491.24 | AH45: =IFERROR(X45*'Inputs & Assumptions'!$Q$44,"--") -> 56000.1 | AI45: =IFERROR(Y45*'Inputs & Assumptions'!$Q$45,"--") -> 1860.6 | AJ45: =IFERROR(Z45*'Inputs & Assumptions'!$Q$46,"--") -> 0 | AK45: =IFERROR(AA45*'Inputs & Assumptions'!$Q$47,"--") -> 6715.75 | AL45: =IFERROR(AB45*'Inputs & Assumptions'!$Q$48,"--") -> 216350 | AM45: =IFERROR(AC45*'Inputs & Assumptions'!$Q$49,"--") -> 32500
A46: 0702 | B46: Bloomfield Township | C46: Essex | D46: 3401306260 | E46: 43 | F46: 5292335126 | G46: 62476525.11 | H46: 1.180509617 | I46: 26806328.4 | J46: 3415.629289 | K46: 3.142672628 | L46: 25341047.26 | M46: 78503195 | N46: 166320767.4 | O46: 0.3756387497 | P46: 0.152362496 | Q46: 0.4719987542 | R46: 59187 | S46: 452.9090577 | T46: 14934241 | U46: 412500 | V46: 580000 | W46: 29173100 | X46: 3511281 | Y46: 2524600 | Z46: 1750217 | AA46: 7966306 | AB46: 10483833 | AC46: 782850 | AD46: =IFERROR(T46*'Inputs & Assumptions'!$Q$40,"--") -> 1493424.1 | AE46: =IFERROR(U46*'Inputs & Assumptions'!$Q$41,"--") -> 41250 | AF46: =IFERROR(V46*'Inputs & Assumptions'!$Q$42,"--") -> 290000 | AG46: =IFERROR(W46*'Inputs & Assumptions'!$Q$43,"--") -> 14586550 | AH46: =IFERROR(X46*'Inputs & Assumptions'!$Q$44,"--") -> 351128.1 | AI46: =IFERROR(Y46*'Inputs & Assumptions'!$Q$45,"--") -> 252460 | AJ46: =IFERROR(Z46*'Inputs & Assumptions'!$Q$46,"--") -> 175021.7 | AK46: =IFERROR(AA46*'Inputs & Assumptions'!$Q$47,"--") -> 3983153 | AL46: =IFERROR(AB46*'Inputs & Assumptions'!$Q$48,"--") -> 5241916.5 | AM46: =IFERROR(AC46*'Inputs & Assumptions'!$Q$49,"--") -> 391425
A47: 1601 | B47: Bloomingdale Borough | C47: Passaic | D47: 3403106340 | E47: 44 | F47: 732942900 | G47: 8495881 | H47: 1.159146367 | I47: 3286271.3 | J47: 5632.435713 | K47: 4.397884082 | L47: 5656226.13 | M47: 18081872 | N47: 32233979.13 | O47: 0.2635691041 | P47: 0.1754740272 | Q47: 0.5609568687 | R47: 8976 | S47: 366.1175691 | T47: 1079010 | U47: 60610 | V47: 161200 | W47: 2994557 | X47: 5128800 | Y47: 164066 | Z47: 373370 | AA47: 330000 | AB47: 1623362 | AC47: 102252.4 | AD47: =IFERROR(T47*'Inputs & Assumptions'!$Q$40,"--") -> 107901 | AE47: =IFERROR(U47*'Inputs & Assumptions'!$Q$41,"--") -> 6061 | AF47: =IFERROR(V47*'Inputs & Assumptions'!$Q$42,"--") -> 80600 | AG47: =IFERROR(W47*'Inputs & Assumptions'!$Q$43,"--") -> 1497278.5 | AH47: =IFERROR(X47*'Inputs & Assumptions'!$Q$44,"--") -> 512880 | AI47: =IFERROR(Y47*'Inputs & Assumptions'!$Q$45,"--") -> 16406.6 | AJ47: =IFERROR(Z47*'Inputs & Assumptions'!$Q$46,"--") -> 37337 | AK47: =IFERROR(AA47*'Inputs & Assumptions'!$Q$47,"--") -> 165000 | AL47: =IFERROR(AB47*'Inputs & Assumptions'!$Q$48,"--") -> 811681 | AM47: =IFERROR(AC47*'Inputs & Assumptions'!$Q$49,"--") -> 51126.2
A48: 1003 | B48: Bloomsbury Borough | C48: Hunterdon | D48: 3401906370 | E48: 45 | F48: 89717195 | G48: 593787.56 | H48: 0.6618436522 | I48: 148391 | J48: 596.7718536 | K48: 3.198885777 | L48: 377959.03 | M48: 1898204 | N48: 2869950.59 | O48: 0.2068981822 | P48: 0.1316953091 | Q48: 0.6614065087 | R48: 1014 | S48: 146.3422091 | T48: 247700 | U48: 9535 | V48: 0 | W48: 44175 | X48: 219820 | Y48: 5750 | Z48: 0 | AA48: 78000 | AB48: 28046 | AC48: 50000 | AD48: =IFERROR(T48*'Inputs & Assumptions'!$Q$40,"--") -> 24770 | AE48: =IFERROR(U48*'Inputs & Assumptions'!$Q$41,"--") -> 953.5 | AF48: =IFERROR(V48*'Inputs & Assumptions'!$Q$42,"--") -> 0 | AG48: =IFERROR(W48*'Inputs & Assumptions'!$Q$43,"--") -> 22087.5 | AH48: =IFERROR(X48*'Inputs & Assumptions'!$Q$44,"--") -> 21982 | AI48: =IFERROR(Y48*'Inputs & Assumptions'!$Q$45,"--") -> 575 | AJ48: =IFERROR(Z48*'Inputs & Assumptions'!$Q$46,"--") -> 0 | AK48: =IFERROR(AA48*'Inputs & Assumptions'!$Q$47,"--") -> 39000 | AL48: =IFERROR(AB48*'Inputs & Assumptions'!$Q$48,"--") -> 14023 | AM48: =IFERROR(AC48*'Inputs & Assumptions'!$Q$49,"--") -> 25000
A49: 0204 | B49: Bogota Borough | C49: Bergen | D49: 3400306490 | E49: 46 | F49: 644085500 | G49: 8244293 | H49: 1.279999783 | I49: 2315080.7 | J49: 482.9638103 | K49: 4.137289987 | L49: 2360413.9 | M49: 16042978 | N49: 26647684.9 | O49: 0.3093812101 | P49: 0.08857857292 | Q49: 0.602040217 | R49: 9326 | S49: 248.239406 | T49: 902549 | U49: 16610 | V49: 162225 | W49: 2743934 | X49: 1378292 | Y49: 78850 | Z49: 309756 | AA49: 400000 | AB49: 786791 | AC49: 0 | AD49: =IFERROR(T49*'Inputs & Assumptions'!$Q$40,"--") -> 90254.9 | AE49: =IFERROR(U49*'Inputs & Assumptions'!$Q$41,"--") -> 1661 | AF49: =IFERROR(V49*'Inputs & Assumptions'!$Q$42,"--") -> 81112.5 | AG49: =IFERROR(W49*'Inputs & Assumptions'!$Q$43,"--") -> 1371967 | AH49: =IFERROR(X49*'Inputs & Assumptions'!$Q$44,"--") -> 137829.2 | AI49: =IFERROR(Y49*'Inputs & Assumptions'!$Q$45,"--") -> 7885 | AJ49: =IFERROR(Z49*'Inputs & Assumptions'!$Q$46,"--") -> 30975.6 | AK49: =IFERROR(AA49*'Inputs & Assumptions'!$Q$47,"--") -> 200000 | AL49: =IFERROR(AB49*'Inputs & Assumptions'!$Q$48,"--") -> 393395.5 | AM49: =IFERROR(AC49*'Inputs & Assumptions'!$Q$49,"--") -> 0
A50: 1401 | B50: Boonton Town | C50: Morris | D50: 3402706610 | E50: 47 | F50: 1099067100 | G50: 9758971.82 | H50: 0.8879323037 | I50: 3777731.095 | J50: 1494.687947 | K50: 3.118428279 | L50: 3129094.43 | M50: 21385553 | N50: 34273619.25 | O50: 0.2847371253 | P50: 0.09129746138 | Q50: 0.6239654133 | R50: 11120 | S50: 339.7240193 | T50: 1157495 | U50: 212280 | V50: 142300 | W50: 3838393.66 | X50: 4860912 | Y50: 73595 | Z50: 450866 | AA50: 529031.83 | AB50: 1472568.1 | AC50: 222139 | AD50: =IFERROR(T50*'Inputs & Assumptions'!$Q$40,"--") -> 115749.5 | AE50: =IFERROR(U50*'Inputs & Assumptions'!$Q$41,"--") -> 21228 | AF50: =IFERROR(V50*'Inputs & Assumptions'!$Q$42,"--") -> 71150 | AG50: =IFERROR(W50*'Inputs & Assumptions'!$Q$43,"--") -> 1919196.83 | AH50: =IFERROR(X50*'Inputs & Assumptions'!$Q$44,"--") -> 486091.2 | AI50: =IFERROR(Y50*'Inputs & Assumptions'!$Q$45,"--") -> 7359.5 | AJ50: =IFERROR(Z50*'Inputs & Assumptions'!$Q$46,"--") -> 45086.6 | AK50: =IFERROR(AA50*'Inputs & Assumptions'!$Q$47,"--") -> 264515.915 | AL50: =IFERROR(AB50*'Inputs & Assumptions'!$Q$48,"--") -> 736284.05 | AM50: =IFERROR(AC50*'Inputs & Assumptions'!$Q$49,"--") -> 111069.5
A51: 1402 | B51: Boonton Township | C51: Morris | D51: 3402706640 | E51: 48 | F51: 879943700 | G51: 4484923.95 | H51: 0.509683057 | I51: 1628413.405 | J51: 5203.885721 | K51: 2.374827243 | L51: 2518379.76 | M51: 13893839 | N51: 20897142.71 | O51: 0.2146190038 | P51: 0.1205131149 | Q51: 0.6648678814 | R51: 5071 | S51: 321.1227381 | T51: 628155 | U51: 87953 | V51: 1800 | W51: 2115653.98 | X51: 1371042.15 | Y51: 63709 | Z51: 0 | AA51: 0 | AB51: 672576 | AC51: 36625 | AD51: =IFERROR(T51*'Inputs & Assumptions'!$Q$40,"--") -> 62815.5 | AE51: =IFERROR(U51*'Inputs & Assumptions'!$Q$41,"--") -> 8795.3 | AF51: =IFERROR(V51*'Inputs & Assumptions'!$Q$42,"--") -> 900 | AG51: =IFERROR(W51*'Inputs & Assumptions'!$Q$43,"--") -> 1057826.99 | AH51: =IFERROR(X51*'Inputs & Assumptions'!$Q$44,"--") -> 137104.215 | AI51: =IFERROR(Y51*'Inputs & Assumptions'!$Q$45,"--") -> 6370.9 | AJ51: =IFERROR(Z51*'Inputs & Assumptions'!$Q$46,"--") -> 0 | AK51: =IFERROR(AA51*'Inputs & Assumptions'!$Q$47,"--") -> 0 | AL51: =IFERROR(AB51*'Inputs & Assumptions'!$Q$48,"--") -> 336288 | AM51: =IFERROR(AC51*'Inputs & Assumptions'!$Q$49,"--") -> 18312.5
A52: 0303 | B52: Bordentown City | C52: Burlington | D52: 3400506670 | E52: 49 | F52: 335137825 | G52: 3634487 | H52: 1.08447532 | I52: 1662527.97 | J52: 598.10128 | K52: 3.449334452 | L52: 1414454.46 | M52: 6511083 | N52: 11560024.46 | O52: 0.3144013244 | P52: 0.1223573934 | Q52: 0.5632412823 | R52: 5637 | S52: 294.9313411 | T52: 2107380 | U52: 47000 | V52: 0 | W52: 1656900 | X52: 700700 | Y52: 2000 | Z52: 0 | AA52: 422000 | AB52: 674739.94 | AC52: 0 | AD52: =IFERROR(T52*'Inputs & Assumptions'!$Q$40,"--") -> 210738 | AE52: =IFERROR(U52*'Inputs & Assumptions'!$Q$41,"--") -> 4700 | AF52: =IFERROR(V52*'Inputs & Assumptions'!$Q$42,"--") -> 0 | AG52: =IFERROR(W52*'Inputs & Assumptions'!$Q$43,"--") -> 828450 | AH52: =IFERROR(X52*'Inputs & Assumptions'!$Q$44,"--") -> 70070 | AI52: =IFERROR(Y52*'Inputs & Assumptions'!$Q$45,"--") -> 200 | AJ52: =IFERROR(Z52*'Inputs & Assumptions'!$Q$46,"--") -> 0 | AK52: =IFERROR(AA52*'Inputs & Assumptions'!$Q$47,"--") -> 211000 | AL52: =IFERROR(AB52*'Inputs & Assumptions'!$Q$48,"--") -> 337369.97 | AM52: =IFERROR(AC52*'Inputs & Assumptions'!$Q$49,"--") -> 0
A53: 0304 | B53: Bordentown Township | C53: Burlington | D53: 3400506700 | E53: 50 | F53: 1209192397 | G53: 6751725.4 | H53: 0.5583665111 | I53: 3213044.553 | J53: 5544.101506 | K53: 3.272361599 | L53: 6259575.26 | M53: 26557847 | N53: 39569147.66 | O53: 0.1706310547 | P53: 0.1581933307 | Q53: 0.6711756146 | R53: 15744 | S53: 204.0805737 | T53: 1331370.53 | U53: 151500 | V53: 363000 | W53: 3318262 | X53: 1619400 | Y53: 12500 | Z53: 0 | AA53: 420000 | AB53: 1432748 | AC53: 269125 | AD53: =IFERROR(T53*'Inputs & Assumptions'!$Q$40,"--") -> 133137.053 | AE53: =IFERROR(U53*'Inputs & Assumptions'!$Q$41,"--") -> 15150 | AF53: =IFERROR(V53*'Inputs & Assumptions'!$Q$42,"--") -> 181500 | AG53: =IFERROR(W53*'Inputs & Assumptions'!$Q$43,"--") -> 1659131 | AH53: =IFERROR(X53*'Inputs & Assumptions'!$Q$44,"--") -> 161940 | AI53: =IFERROR(Y53*'Inputs & Assumptions'!$Q$45,"--") -> 1250 | AJ53: =IFERROR(Z53*'Inputs & Assumptions'!$Q$46,"--") -> 0 | AK53: =IFERROR(AA53*'Inputs & Assumptions'!$Q$47,"--") -> 210000 | AL53: =IFERROR(AB53*'Inputs & Assumptions'!$Q$48,"--") -> 716374 | AM53: =IFERROR(AC53*'Inputs & Assumptions'!$Q$49,"--") -> 134562.5
A54: 1804 | B54: Bound Brook Borough | C54: Somerset | D54: 3403506790 | E54: 51 | F54: 932539306 | G54: 8928888.04 | H54: 0.9574811466 | I54: -- | J54: 1063.229772 | K54: 2.813173949 | L54: 3643167.78 | M54: 13661897 | N54: 26233952.82 | O54: 0.3403561827 | P54: 0.1388722395 | Q54: 0.5207715777 | R54: 12730 | S54: -- | T54: No data | U54: No data | V54: No data | W54: No data | X54: No data | Y54: No data | Z54: No data | AA54: No data | AB54: No data | AC54: No data | AD54: =IFERROR(T54*'Inputs & Assumptions'!$Q$40,"--") -> -- | AE54: =IFERROR(U54*'Inputs & Assumptions'!$Q$41,"--") -> -- | AF54: =IFERROR(V54*'Inputs & Assumptions'!$Q$42,"--") -> -- | AG54: =IFERROR(W54*'Inputs & Assumptions'!$Q$43,"--") -> -- | AH54: =IFERROR(X54*'Inputs & Assumptions'!$Q$44,"--") -> -- | AI54: =IFERROR(Y54*'Inputs & Assumptions'!$Q$45,"--") -> -- | AJ54: =IFERROR(Z54*'Inputs & Assumptions'!$Q$46,"--") -> -- | AK54: =IFERROR(AA54*'Inputs & Assumptions'!$Q$47,"--") -> -- | AL54: =IFERROR(AB54*'Inputs & Assumptions'!$Q$48,"--") -> -- | AM54: =IFERROR(AC54*'Inputs & Assumptions'!$Q$49,"--") -> --
A55: 1307 | B55: Bradley Beach Borough | C55: Monmouth | D55: 3402506970 | E55: 52 | F55: 1535185500 | G55: 7490365.89 | H55: 0.4879127565 | I55: 2698514.392 | J55: 390.6914864 | K55: 1.171207751 | L55: 3871359.68 | M55: 6618486 | N55: 17980211.57 | O55: 0.4165894189 | P55: 0.2153122428 | Q55: 0.3680983382 | R55: 4652 | S55: 580.0761806 | T55: 5726228 | U55: 41000 | V55: 145000 | W55: 2734154 | X55: 1323700 | Y55: 34460 | Z55: 492235.92 | AA55: 0 | AB55: 994350 | AC55: 0 | AD55: =IFERROR(T55*'Inputs & Assumptions'!$Q$40,"--") -> 572622.8 | AE55: =IFERROR(U55*'Inputs & Assumptions'!$Q$41,"--") -> 4100 | AF55: =IFERROR(V55*'Inputs & Assumptions'!$Q$42,"--") -> 72500 | AG55: =IFERROR(W55*'Inputs & Assumptions'!$Q$43,"--") -> 1367077 | AH55: =IFERROR(X55*'Inputs & Assumptions'!$Q$44,"--") -> 132370 | AI55: =IFERROR(Y55*'Inputs & Assumptions'!$Q$45,"--") -> 3446 | AJ55: =IFERROR(Z55*'Inputs & Assumptions'!$Q$46,"--") -> 49223.592 | AK55: =IFERROR(AA55*'Inputs & Assumptions'!$Q$47,"--") -> 0 | AL55: =IFERROR(AB55*'Inputs & Assumptions'!$Q$48,"--") -> 497175 | AM55: =IFERROR(AC55*'Inputs & Assumptions'!$Q$49,"--") -> 0
A56: 1805 | B56: Branchburg Township | C56: Somerset | D56: 3403507180 | E56: 53 | F56: 3375338550 | G56: 12977572.45 | H56: 0.3844820974 | I56: 4672634.298 | J56: 12845.17023 | K56: 2.113651641 | L56: 13557398.2 | M56: 44807928 | N56: 71342898.65 | O56: 0.1819041936 | P56: 0.1900315022 | Q56: 0.6280643042 | R56: 27139 | S56: 172.1741515 | T56: 3162550 | U56: 123750 | V56: 497092 | W56: 4460140.49 | X56: 6514714.53 | Y56: 357886 | Z56: 0 | AA56: 0 | AB56: 2141856 | AC56: 214400 | AD56: =IFERROR(T56*'Inputs & Assumptions'!$Q$40,"--") -> 316255 | AE56: =IFERROR(U56*'Inputs & Assumptions'!$Q$41,"--") -> 12375 | AF56: =IFERROR(V56*'Inputs & Assumptions'!$Q$42,"--") -> 248546 | AG56: =IFERROR(W56*'Inputs & Assumptions'!$Q$43,"--") -> 2230070.245 | AH56: =IFERROR(X56*'Inputs & Assumptions'!$Q$44,"--") -> 651471.453 | AI56: =IFERROR(Y56*'Inputs & Assumptions'!$Q$45,"--") -> 35788.6 | AJ56: =IFERROR(Z56*'Inputs & Assumptions'!$Q$46,"--") -> 0 | AK56: =IFERROR(AA56*'Inputs & Assumptions'!$Q$47,"--") -> 0 | AL56: =IFERROR(AB56*'Inputs & Assumptions'!$Q$48,"--") -> 1070928 | AM56: =IFERROR(AC56*'Inputs & Assumptions'!$Q$49,"--") -> 107200
A57: 1903 | B57: Branchville Borough | C57: Sussex | D57: 3403707300 | E57: 54 | F57: 127935000 | G57: 194198 | H57: 0.1517942705 | I57: 252837.442 | J57: 379.4175551 | K57: 2.365578059 | L57: 764894.29 | M57: 2067310 | N57: 3026402.29 | O57: 0.06416793981 | P57: 0.2527404544 | Q57: 0.6830916058 | R57: 2240 | S57: 112.873858 | T57: 1024550 | U57: 14500 | V57: 4 | W57: 50376 | X57: 220000 | Y57: 4684.42 | Z57: 0 | AA57: 155000 | AB57: 47548 | AC57: 0 | AD57: =IFERROR(T57*'Inputs & Assumptions'!$Q$40,"--") -> 102455 | AE57: =IFERROR(U57*'Inputs & Assumptions'!$Q$41,"--") -> 1450 | AF57: =IFERROR(V57*'Inputs & Assumptions'!$Q$42,"--") -> 2 | AG57: =IFERROR(W57*'Inputs & Assumptions'!$Q$43,"--") -> 25188 | AH57: =IFERROR(X57*'Inputs & Assumptions'!$Q$44,"--") -> 22000 | AI57: =IFERROR(Y57*'Inputs & Assumptions'!$Q$45,"--") -> 468.442 | AJ57: =IFERROR(Z57*'Inputs & Assumptions'!$Q$46,"--") -> 0 | AK57: =IFERROR(AA57*'Inputs & Assumptions'!$Q$47,"--") -> 77500 | AL57: =IFERROR(AB57*'Inputs & Assumptions'!$Q$48,"--") -> 23774 | AM57: =IFERROR(AC57*'Inputs & Assumptions'!$Q$49,"--") -> 0
A58: 1506 | B58: Brick Township | C58: Ocean | D58: 3402907420 | E58: 55 | F58: 10468278338 | G58: 79243747.06 | H58: 0.7569893014 | I58: 24118711.1 | J58: 16375.48429 | K58: 2.325658797 | L58: 46855416.02 | M58: 117357273 | N58: 243456436.1 | O58: 0.3254945662 | P58: 0.1924591388 | Q58: 0.482046295 | R58: 88695 | S58: 271.9286442 | T58: 6299285 | U58: 1002763 | V58: 2033410 | W58: 26891249.66 | X58: 9136761.69 | Y58: 562313 | Z58: 0 | AA58: 3241783 | AB58: 11650300 | AC58: 1020455 | AD58: =IFERROR(T58*'Inputs & Assumptions'!$Q$40,"--") -> 629928.5 | AE58: =IFERROR(U58*'Inputs & Assumptions'!$Q$41,"--") -> 100276.3 | AF58: =IFERROR(V58*'Inputs & Assumptions'!$Q$42,"--") -> 1016705 | AG58: =IFERROR(W58*'Inputs & Assumptions'!$Q$43,"--") -> 13445624.83 | AH58: =IFERROR(X58*'Inputs & Assumptions'!$Q$44,"--") -> 913676.169 | AI58: =IFERROR(Y58*'Inputs & Assumptions'!$Q$45,"--") -> 56231.3 | AJ58: =IFERROR(Z58*'Inputs & Assumptions'!$Q$46,"--") -> 0 | AK58: =IFERROR(AA58*'Inputs & Assumptions'!$Q$47,"--") -> 1620891.5 | AL58: =IFERROR(AB58*'Inputs & Assumptions'!$Q$48,"--") -> 5825150 | AM58: =IFERROR(AC58*'Inputs & Assumptions'!$Q$49,"--") -> 510227.5
A59: 0601 | B59: Bridgeton City | C59: Cumberland | D59: 3401107600 | E59: 56 | F59: 483452575 | G59: 13929772.68 | H59: 2.881311094 | I59: 8431606.535 | J59: 3986.159303 | K59: 5.013630383 | L59: 6629354.51 | M59: 3679398 | N59: 24238525.19 | O59: 0.5746955547 | P59: 0.2735048629 | Q59: 0.1517995823 | R59: 29705 | S59: 283.8446906 | T59: 10746330 | U59: 29850 | V59: 466200 | W59: 9538794.76 | X59: 3213331.55 | Y59: 196490 | Z59: 342445 | AA59: 0 | AB59: 3560029 | AC59: 392500 | AD59: =IFERROR(T59*'Inputs & Assumptions'!$Q$40,"--") -> 1074633 | AE59: =IFERROR(U59*'Inputs & Assumptions'!$Q$41,"--") -> 2985 | AF59: =IFERROR(V59*'Inputs & Assumptions'!$Q$42,"--") -> 233100 | AG59: =IFERROR(W59*'Inputs & Assumptions'!$Q$43,"--") -> 4769397.38 | AH59: =IFERROR(X59*'Inputs & Assumptions'!$Q$44,"--") -> 321333.155 | AI59: =IFERROR(Y59*'Inputs & Assumptions'!$Q$45,"--") -> 19649 | AJ59: =IFERROR(Z59*'Inputs & Assumptions'!$Q$46,"--") -> 34244.5 | AK59: =IFERROR(AA59*'Inputs & Assumptions'!$Q$47,"--") -> 0 | AL59: =IFERROR(AB59*'Inputs & Assumptions'!$Q$48,"--") -> 1780014.5 | AM59: =IFERROR(AC59*'Inputs & Assumptions'!$Q$49,"--") -> 196250
A60: 1806 | B60: Bridgewater Township | C60: Somerset | D60: 3403507720 | E60: 57 | F60: 9378421822 | G60: 22325335.79 | H60: 0.2380500282 | I60: -- | J60: 20408.0129 | K60: 2.07881506 | L60: 37852580.48 | M60: 134782129 | N60: 194960045.3 | O60: 0.1145123646 | P60: 0.194155579 | Q60: 0.6913320563 | R60: 73689 | S60: -- | T60: No data | U60: No data | V60: No data | W60: No data | X60: No data | Y60: No data | Z60: No data | AA60: No data | AB60: No data | AC60: No data | AD60: =IFERROR(T60*'Inputs & Assumptions'!$Q$40,"--") -> -- | AE60: =IFERROR(U60*'Inputs & Assumptions'!$Q$41,"--") -> -- | AF60: =IFERROR(V60*'Inputs & Assumptions'!$Q$42,"--") -> -- | AG60: =IFERROR(W60*'Inputs & Assumptions'!$Q$43,"--") -> -- | AH60: =IFERROR(X60*'Inputs & Assumptions'!$Q$44,"--") -> -- | AI60: =IFERROR(Y60*'Inputs & Assumptions'!$Q$45,"--") -> -- | AJ60: =IFERROR(Z60*'Inputs & Assumptions'!$Q$46,"--") -> -- | AK60: =IFERROR(AA60*'Inputs & Assumptions'!$Q$47,"--") -> -- | AL60: =IFERROR(AB60*'Inputs & Assumptions'!$Q$48,"--") -> -- | AM60: =IFERROR(AC60*'Inputs & Assumptions'!$Q$49,"--") -> --
A61: 1308 | B61: Brielle Borough | C61: Monmouth | D61: 3402507750 | E61: 58 | F61: 1680289700 | G61: 7131045.83 | H61: 0.424393831 | I61: 2726788.745 | J61: 1123.528897 | K61: 1.532331897 | L61: 4428363.21 | M61: 14188206 | N61: 25747615.04 | O61: 0.2769594706 | P61: 0.1719912001 | Q61: 0.5510493293 | R61: 5770 | S61: 472.5803718 | T61: 2638086.29 | U61: 64000 | V61: 1800 | W61: 2886261.99 | X61: 806099.01 | Y61: 79500 | Z61: 165000 | AA61: 718651.44 | AB61: 1053127 | AC61: 43200 | AD61: =IFERROR(T61*'Inputs & Assumptions'!$Q$40,"--") -> 263808.629 | AE61: =IFERROR(U61*'Inputs & Assumptions'!$Q$41,"--") -> 6400 | AF61: =IFERROR(V61*'Inputs & Assumptions'!$Q$42,"--") -> 900 | AG61: =IFERROR(W61*'Inputs & Assumptions'!$Q$43,"--") -> 1443130.995 | AH61: =IFERROR(X61*'Inputs & Assumptions'!$Q$44,"--") -> 80609.901 | AI61: =IFERROR(Y61*'Inputs & Assumptions'!$Q$45,"--") -> 7950 | AJ61: =IFERROR(Z61*'Inputs & Assumptions'!$Q$46,"--") -> 16500 | AK61: =IFERROR(AA61*'Inputs & Assumptions'!$Q$47,"--") -> 359325.72 | AL61: =IFERROR(AB61*'Inputs & Assumptions'!$Q$48,"--") -> 526563.5 | AM61: =IFERROR(AC61*'Inputs & Assumptions'!$Q$49,"--") -> 21600
A62: 0103 | B62: Brigantine City | C62: Atlantic | D62: 3400107810 | E62: 59 | F62: 3356576700 | G62: 21692741.71 | H62: 0.6462757639 | I62: 7876899.39 | J62: 4174.320584 | K62: 1.705149584 | L62: 18765797.91 | M62: 16776114 | N62: 57234653.62 | O62: 0.3790141171 | P62: 0.3278747528 | Q62: 0.29311113 | R62: 9571 | S62: 822.9964884 | T62: 6169665 | U62: 52510 | V62: 393200 | W62: 9182277.18 | X62: 4648700 | Y62: 45428 | Z62: 0 | AA62: 0 | AB62: 3824061 | AC62: 171000 | AD62: =IFERROR(T62*'Inputs & Assumptions'!$Q$40,"--") -> 616966.5 | AE62: =IFERROR(U62*'Inputs & Assumptions'!$Q$41,"--") -> 5251 | AF62: =IFERROR(V62*'Inputs & Assumptions'!$Q$42,"--") -> 196600 | AG62: =IFERROR(W62*'Inputs & Assumptions'!$Q$43,"--") -> 4591138.59 | AH62: =IFERROR(X62*'Inputs & Assumptions'!$Q$44,"--") -> 464870 | AI62: =IFERROR(Y62*'Inputs & Assumptions'!$Q$45,"--") -> 4542.8 | AJ62: =IFERROR(Z62*'Inputs & Assumptions'!$Q$46,"--") -> 0 | AK62: =IFERROR(AA62*'Inputs & Assumptions'!$Q$47,"--") -> 0 | AL62: =IFERROR(AB62*'Inputs & Assumptions'!$Q$48,"--") -> 1912030.5 | AM62: =IFERROR(AC62*'Inputs & Assumptions'!$Q$49,"--") -> 85500
A63: 0407 | B63: Brooklawn Borough | C63: Camden | D63: 3400708170 | E63: 60 | F63: 116782100 | G63: 2141350 | H63: 1.833628613 | I63: 769468.5 | J63: 312.6153608 | K63: 3.927329694 | L63: 1072350.09 | M63: 1372718 | N63: 4586418.09 | O63: 0.4668894021 | P63: 0.2338099294 | Q63: 0.2993006684 | R63: 2542 | S63: 302.7020063 | T63: 709020 | U63: 8500 | V63: 26061 | W63: 860700 | X63: 421590 | Y63: 9500 | Z63: 0 | AA63: 75000 | AB63: 347454 | AC63: 0 | AD63: =IFERROR(T63*'Inputs & Assumptions'!$Q$40,"--") -> 70902 | AE63: =IFERROR(U63*'Inputs & Assumptions'!$Q$41,"--") -> 850 | AF63: =IFERROR(V63*'Inputs & Assumptions'!$Q$42,"--") -> 13030.5 | AG63: =IFERROR(W63*'Inputs & Assumptions'!$Q$43,"--") -> 430350 | AH63: =IFERROR(X63*'Inputs & Assumptions'!$Q$44,"--") -> 42159 | AI63: =IFERROR(Y63*'Inputs & Assumptions'!$Q$45,"--") -> 950 | AJ63: =IFERROR(Z63*'Inputs & Assumptions'!$Q$46,"--") -> 0 | AK63: =IFERROR(AA63*'Inputs & Assumptions'!$Q$47,"--") -> 37500 | AL63: =IFERROR(AB63*'Inputs & Assumptions'!$Q$48,"--") -> 173727 | AM63: =IFERROR(AC63*'Inputs & Assumptions'!$Q$49,"--") -> 0
A64: 0104 | B64: Buena Borough | C64: Atlantic | D64: 3400108680 | E64: 61 | F64: 286718300 | G64: 2880769.02 | H64: 1.004738456 | I64: 607075.976 | J64: 4846.573216 | K64: 3.204833347 | L64: 1450776.67 | M64: 4857298 | N64: 9188843.69 | O64: 0.3135072396 | P64: 0.1578845738 | Q64: 0.5286081866 | R64: 5200 | S64: 116.74538 | T64: 441226.16 | U64: 20043 | V64: 87618 | W64: 439142 | X64: 349675 | Y64: 18000 | Z64: 12742 | AA64: 331528.72 | AB64: 187526 | AC64: 0 | AD64: =IFERROR(T64*'Inputs & Assumptions'!$Q$40,"--") -> 44122.616 | AE64: =IFERROR(U64*'Inputs & Assumptions'!$Q$41,"--") -> 2004.3 | AF64: =IFERROR(V64*'Inputs & Assumptions'!$Q$42,"--") -> 43809 | AG64: =IFERROR(W64*'Inputs & Assumptions'!$Q$43,"--") -> 219571 | AH64: =IFERROR(X64*'Inputs & Assumptions'!$Q$44,"--") -> 34967.5 | AI64: =IFERROR(Y64*'Inputs & Assumptions'!$Q$45,"--") -> 1800 | AJ64: =IFERROR(Z64*'Inputs & Assumptions'!$Q$46,"--") -> 1274.2 | AK64: =IFERROR(AA64*'Inputs & Assumptions'!$Q$47,"--") -> 165764.36 | AL64: =IFERROR(AB64*'Inputs & Assumptions'!$Q$48,"--") -> 93763 | AM64: =IFERROR(AC64*'Inputs & Assumptions'!$Q$49,"--") -> 0
A65: 0105 | B65: Buena Vista Township | C65: Atlantic | D65: 3400108710 | E65: 62 | F65: 647452073 | G65: 3013833.45 | H65: 0.4654913585 | I65: 483362.3 | J65: 26290.99854 | K65: 2.698176053 | L65: 3412159.34 | M65: 11043404 | N65: 17469396.79 | O65: 0.1725207508 | P65: 0.1953221042 | Q65: 0.632157145 | R65: 9293 | S65: 52.01359087 | T65: 878394 | U65: 46525 | V65: 0 | W65: 23504 | X65: 1322579 | Y65: 19800 | Z65: 0 | AA65: 235000 | AB65: 254761 | AC65: 0 | AD65: =IFERROR(T65*'Inputs & Assumptions'!$Q$40,"--") -> 87839.4 | AE65: =IFERROR(U65*'Inputs & Assumptions'!$Q$41,"--") -> 4652.5 | AF65: =IFERROR(V65*'Inputs & Assumptions'!$Q$42,"--") -> 0 | AG65: =IFERROR(W65*'Inputs & Assumptions'!$Q$43,"--") -> 11752 | AH65: =IFERROR(X65*'Inputs & Assumptions'!$Q$44,"--") -> 132257.9 | AI65: =IFERROR(Y65*'Inputs & Assumptions'!$Q$45,"--") -> 1980 | AJ65: =IFERROR(Z65*'Inputs & Assumptions'!$Q$46,"--") -> 0 | AK65: =IFERROR(AA65*'Inputs & Assumptions'!$Q$47,"--") -> 117500 | AL65: =IFERROR(AB65*'Inputs & Assumptions'!$Q$48,"--") -> 127380.5 | AM65: =IFERROR(AC65*'Inputs & Assumptions'!$Q$49,"--") -> 0
A66: 0305 | B66: Burlington City | C66: Burlington | D66: 3400508920 | E66: 63 | F66: 599089494 | G66: 8586793.53 | H66: 1.433307313 | I66: 5083807.811 | J66: 1942.539826 | K66: 4.145727872 | L66: 2399235.6 | M66: 13850591 | N66: 24836620.13 | O66: 0.3457311617 | P66: 0.09660072858 | Q66: 0.5576681097 | R66: 14428 | S66: 352.3570703 | T66: 1951574.04 | U66: 54000 | V66: 106280 | W66: 5538374.52 | X66: 6341906.47 | Y66: 60400 | Z66: 66000 | AA66: 490500 | AB66: 1893385 | AC66: 444300 | AD66: =IFERROR(T66*'Inputs & Assumptions'!$Q$40,"--") -> 195157.404 | AE66: =IFERROR(U66*'Inputs & Assumptions'!$Q$41,"--") -> 5400 | AF66: =IFERROR(V66*'Inputs & Assumptions'!$Q$42,"--") -> 53140 | AG66: =IFERROR(W66*'Inputs & Assumptions'!$Q$43,"--") -> 2769187.26 | AH66: =IFERROR(X66*'Inputs & Assumptions'!$Q$44,"--") -> 634190.647 | AI66: =IFERROR(Y66*'Inputs & Assumptions'!$Q$45,"--") -> 6040 | AJ66: =IFERROR(Z66*'Inputs & Assumptions'!$Q$46,"--") -> 6600 | AK66: =IFERROR(AA66*'Inputs & Assumptions'!$Q$47,"--") -> 245250 | AL66: =IFERROR(AB66*'Inputs & Assumptions'!$Q$48,"--") -> 946692.5 | AM66: =IFERROR(AC66*'Inputs & Assumptions'!$Q$49,"--") -> 222150
A67: 0306 | B67: Burlington Township | C67: Burlington | D67: 3400508950 | E67: 64 | F67: 2388380581 | G67: 12683811.07 | H67: 0.5310632305 | I67: 6454158.3 | J67: 8624.69829 | K67: 2.910559359 | L67: 10601603.47 | M67: 46229820 | N67: 69515234.54 | O67: 0.1824608829 | P67: 0.1525076271 | Q67: 0.6650314899 | R67: 31089 | S67: 207.6026344 | T67: 8523992 | U67: 132945 | V67: 484964 | W67: 6351241 | X67: 3741756 | Y67: 24000 | Z67: 7500 | AA67: 0 | AB67: 3117338 | AC67: 468735 | AD67: =IFERROR(T67*'Inputs & Assumptions'!$Q$40,"--") -> 852399.2 | AE67: =IFERROR(U67*'Inputs & Assumptions'!$Q$41,"--") -> 13294.5 | AF67: =IFERROR(V67*'Inputs & Assumptions'!$Q$42,"--") -> 242482 | AG67: =IFERROR(W67*'Inputs & Assumptions'!$Q$43,"--") -> 3175620.5 | AH67: =IFERROR(X67*'Inputs & Assumptions'!$Q$44,"--") -> 374175.6 | AI67: =IFERROR(Y67*'Inputs & Assumptions'!$Q$45,"--") -> 2400 | AJ67: =IFERROR(Z67*'Inputs & Assumptions'!$Q$46,"--") -> 750 | AK67: =IFERROR(AA67*'Inputs & Assumptions'!$Q$47,"--") -> 0 | AL67: =IFERROR(AB67*'Inputs & Assumptions'!$Q$48,"--") -> 1558669 | AM67: =IFERROR(AC67*'Inputs & Assumptions'!$Q$49,"--") -> 234367.5
A68: 1403 | B68: Butler Borough | C68: Morris | D68: 3402709040 | E68: 65 | F68: 765850350 | G68: 7929032 | H68: 1.035323938 | I68: 3274955.2 | J68: 1301.564298 | K68: 3.833589668 | L68: 2705897.89 | M68: 18724630 | N68: 29359559.89 | O68: =G68/N68 -> 0.2700664461 | P68: =L68/N68 -> 0.09216411622 | Q68: =M68/N68 -> 0.6377694376 | R68: 10016 | S68: =IFERROR(I68/R68,"--") -> 326.9723642 | T68: 2260306 | U68: 79474 | V68: 0 | W68: 3026299 | X68: 5732379 | Y68: 242765 | Z68: 353538 | AA68: 0 | AB68: 1786419 | AC68: 3500 | AD68: =IFERROR(T68*'Inputs & Assumptions'!$Q$40,"--") -> 226030.6 | AE68: =IFERROR(U68*'Inputs & Assumptions'!$Q$41,"--") -> 7947.4 | AF68: =IFERROR(V68*'Inputs & Assumptions'!$Q$42,"--") -> 0 | AG68: =IFERROR(W68*'Inputs & Assumptions'!$Q$43,"--") -> 1513149.5 | AH68: =IFERROR(X68*'Inputs & Assumptions'!$Q$44,"--") -> 573237.9 | AI68: =IFERROR(Y68*'Inputs & Assumptions'!$Q$45,"--") -> 24276.5 | AJ68: =IFERROR(Z68*'Inputs & Assumptions'!$Q$46,"--") -> 35353.8 | AK68: =IFERROR(AA68*'Inputs & Assumptions'!$Q$47,"--") -> 0 | AL68: =IFERROR(AB68*'Inputs & Assumptions'!$Q$48,"--") -> 893209.5 | AM68: =IFERROR(AC68*'Inputs & Assumptions'!$Q$49,"--") -> 1750
A69: 1904 | B69: Byram Township | C69: Sussex | D69: 3403709160 | E69: =E68+1 -> 66 | F69: 926008400 | G69: 8812676 | H69: 0.9516842396 | I69: =IF(IFERROR(SUM(AD69:AM69),"--")=0,"--",IFERROR(SUM(AD69:AM69),"--")) -> 2592272.68 | J69: 13779.55635 | K69: 3.60366061 | L69: 5950591.96 | M69: 18606932 | N69: 33370199.96 | O69: 0.2640881988 | P69: 0.1783205365 | Q69: 0.5575912647 | R69: 9085 | S69: 285.3354629 | T69: 1090564 | U69: 176600 | V69: 219000 | W69: 2332614.36 | X69: 2026866 | Y69: 47200 | Z69: 0 | AA69: 751200 | AB69: 1067031 | AC69: 146454 | AD69: =IFERROR(T69*'Inputs & Assumptions'!$Q$40,"--") -> 109056.4 | AE69: =IFERROR(U69*'Inputs & Assumptions'!$Q$41,"--") -> 17660 | AF69: =IFERROR(V69*'Inputs & Assumptions'!$Q$42,"--") -> 109500 | AG69: =IFERROR(W69*'Inputs & Assumptions'!$Q$43,"--") -> 1166307.18 | AH69: =IFERROR(X69*'Inputs & Assumptions'!$Q$44,"--") -> 202686.6 | AI69: =IFERROR(Y69*'Inputs & Assumptions'!$Q$45,"--") -> 4720 | AJ69: =IFERROR(Z69*'Inputs & Assumptions'!$Q$46,"--") -> 0 | AK69: =IFERROR(AA69*'Inputs & Assumptions'!$Q$47,"--") -> 375600 | AL69: =IFERROR(AB69*'Inputs & Assumptions'!$Q$48,"--") -> 533515.5 | AM69: =IFERROR(AC69*'Inputs & Assumptions'!$Q$49,"--") -> 73227
A70: 0703 | B70: Caldwell Borough | C70: Essex | D70: 3401309250 | E70: 67 | F70: 1056514800 | G70: 8538568.23 | H70: =G70/(F70/100) -> 0.8081825479 | I70: 3052560.366 | J70: 753.9869045 | K70: 2.877514462 | L70: 5988731.93 | M70: 15874066 | N70: 30401366.16 | O70: 0.2808613332 | P70: 0.1969889083 | Q70: 0.5221497585 | R70: 10450 | S70: 292.1110398 | T70: 5984846 | U70: 22500 | V70: 156525 | W70: 2837453.56 | X70: 1540906.47 | Y70: 150841 | Z70: 404860.89 | AA70: 0 | AB70: 1335436 | AC70: 154915.3 | AD70: =IFERROR(T70*'Inputs & Assumptions'!$Q$40,"--") -> 598484.6 | AE70: =IFERROR(U70*'Inputs & Assumptions'!$Q$41,"--") -> 2250 | AF70: =IFERROR(V70*'Inputs & Assumptions'!$Q$42,"--") -> 78262.5 | AG70: =IFERROR(W70*'Inputs & Assumptions'!$Q$43,"--") -> 1418726.78 | AH70: =IFERROR(X70*'Inputs & Assumptions'!$Q$44,"--") -> 154090.647 | AI70: =IFERROR(Y70*'Inputs & Assumptions'!$Q$45,"--") -> 15084.1 | AJ70: =IFERROR(Z70*'Inputs & Assumptions'!$Q$46,"--") -> 40486.089 | AK70: =IFERROR(AA70*'Inputs & Assumptions'!$Q$47,"--") -> 0 | AL70: =IFERROR(AB70*'Inputs & Assumptions'!$Q$48,"--") -> 667718 | AM70: =IFERROR(AC70*'Inputs & Assumptions'!$Q$49,"--") -> 77457.65
A71: 1004 | B71: Califon Borough | C71: Hunterdon | D71: 3401909280 | E71: 68 | F71: 146176408 | G71: 988289 | H71: 0.676093368 | I71: 104634.2 | J71: 613.6669358 | K71: 3.574082994 | L71: 568771.14 | M71: 3667406 | N71: 5224466.14 | O71: 0.1891655479 | P71: 0.108866844 | Q71: 0.7019676081 | R71: 1438 | S71: 72.76369958 | T71: 269338 | U71: 25063 | V71: 0 | W71: 86148 | X71: 119824 | Y71: 9452 | Z71: 100 | AA71: 0 | AB71: 34365 | AC71: 4000 | AD71: =IFERROR(T71*'Inputs & Assumptions'!$Q$40,"--") -> 26933.8 | AE71: =IFERROR(U71*'Inputs & Assumptions'!$Q$41,"--") -> 2506.3 | AF71: =IFERROR(V71*'Inputs & Assumptions'!$Q$42,"--") -> 0 | AG71: =IFERROR(W71*'Inputs & Assumptions'!$Q$43,"--") -> 43074 | AH71: =IFERROR(X71*'Inputs & Assumptions'!$Q$44,"--") -> 11982.4 | AI71: =IFERROR(Y71*'Inputs & Assumptions'!$Q$45,"--") -> 945.2 | AJ71: =IFERROR(Z71*'Inputs & Assumptions'!$Q$46,"--") -> 10 | AK71: =IFERROR(AA71*'Inputs & Assumptions'!$Q$47,"--") -> 0 | AL71: =IFERROR(AB71*'Inputs & Assumptions'!$Q$48,"--") -> 17182.5 | AM71: =IFERROR(AC71*'Inputs & Assumptions'!$Q$49,"--") -> 2000
A72: 0408 | B72: Camden City | C72: Camden | D72: 3400710000 | E72: 69 | F72: 1714453640 | G72: 28374191.62 | H72: 1.65499906 | I72: -- | J72: 5709.659573 | K72: 3.348312052 | L72: 16322366.24 | M72: 12708700 | N72: 57405257.86 | O72: 0.4942786197 | P72: 0.2843357359 | Q72: 0.2213856443 | R72: 99873 | S72: -- | T72: No data | U72: No data | V72: No data | W72: No data | X72: No data | Y72: No data | Z72: No data | AA72: No data | AB72: No data | AC72: No data | AD72: =IFERROR(T72*'Inputs & Assumptions'!$Q$40,"--") -> -- | AE72: =IFERROR(U72*'Inputs & Assumptions'!$Q$41,"--") -> -- | AF72: =IFERROR(V72*'Inputs & Assumptions'!$Q$42,"--") -> -- | AG72: =IFERROR(W72*'Inputs & Assumptions'!$Q$43,"--") -> -- | AH72: =IFERROR(X72*'Inputs & Assumptions'!$Q$44,"--") -> -- | AI72: =IFERROR(Y72*'Inputs & Assumptions'!$Q$45,"--") -> -- | AJ72: =IFERROR(Z72*'Inputs & Assumptions'!$Q$46,"--") -> -- | AK72: =IFERROR(AA72*'Inputs & Assumptions'!$Q$47,"--") -> -- | AL72: =IFERROR(AB72*'Inputs & Assumptions'!$Q$48,"--") -> -- | AM72: =IFERROR(AC72*'Inputs & Assumptions'!$Q$49,"--") -> --
A73: 0502 | B73: Cape May City | C73: Cape May | D73: 3400910270 | E73: 70 | F73: 2912777800 | G73: 10560829.82 | H73: 0.3625690164 | I73: 4632514.04 | J73: 1582.845968 | K73: 1.014847826 | L73: 9150148.37 | M73: 9849284 | N73: 29560262.19 | O73: 0.3572644164 | P73: 0.3095421925 | Q73: 0.3331933911 | R73: 7296 | S73: 634.9388761 | T73: 1747315 | U73: 118550 | V73: 488300 | W73: 4176894.68 | X73: 8451500 | Y73: 243637 | Z73: 0 | AA73: 0 | AB73: 2289083 | AC73: 198550 | AD73: =IFERROR(T73*'Inputs & Assumptions'!$Q$40,"--") -> 174731.5 | AE73: =IFERROR(U73*'Inputs & Assumptions'!$Q$41,"--") -> 11855 | AF73: =IFERROR(V73*'Inputs & Assumptions'!$Q$42,"--") -> 244150 | AG73: =IFERROR(W73*'Inputs & Assumptions'!$Q$43,"--") -> 2088447.34 | AH73: =IFERROR(X73*'Inputs & Assumptions'!$Q$44,"--") -> 845150 | AI73: =IFERROR(Y73*'Inputs & Assumptions'!$Q$45,"--") -> 24363.7 | AJ73: =IFERROR(Z73*'Inputs & Assumptions'!$Q$46,"--") -> 0 | AK73: =IFERROR(AA73*'Inputs & Assumptions'!$Q$47,"--") -> 0 | AL73: =IFERROR(AB73*'Inputs & Assumptions'!$Q$48,"--") -> 1144541.5 | AM73: =IFERROR(AC73*'Inputs & Assumptions'!$Q$49,"--") -> 99275
A74: 0503 | B74: Cape May Point Borough | C74: Cape May | D74: 3400910330 | E74: 71 | F74: 469079000 | G74: 1467500 | H74: 0.3128470897 | I74: 390355.7 | J74: 188.7800323 | K74: 0.6451237084 | L74: 1455521.84 | M74: 103118 | N74: 3026139.84 | O74: 0.4849412379 | P74: 0.4809830071 | Q74: 0.03407575507 | R74: 312 | S74: 1251.140064 | T74: 501825 | U74: 24800 | V74: 30400 | W74: 348247 | X74: 844122 | Y74: 2800 | Z74: 0 | AA74: 0 | AB74: 112705 | AC74: 14650 | AD74: =IFERROR(T74*'Inputs & Assumptions'!$Q$40,"--") -> 50182.5 | AE74: =IFERROR(U74*'Inputs & Assumptions'!$Q$41,"--") -> 2480 | AF74: =IFERROR(V74*'Inputs & Assumptions'!$Q$42,"--") -> 15200 | AG74: =IFERROR(W74*'Inputs & Assumptions'!$Q$43,"--") -> 174123.5 | AH74: =IFERROR(X74*'Inputs & Assumptions'!$Q$44,"--") -> 84412.2 | AI74: =IFERROR(Y74*'Inputs & Assumptions'!$Q$45,"--") -> 280 | AJ74: =IFERROR(Z74*'Inputs & Assumptions'!$Q$46,"--") -> 0 | AK74: =IFERROR(AA74*'Inputs & Assumptions'!$Q$47,"--") -> 0 | AL74: =IFERROR(AB74*'Inputs & Assumptions'!$Q$48,"--") -> 56352.5 | AM74: =IFERROR(AC74*'Inputs & Assumptions'!$Q$49,"--") -> 7325
A75: 0205 | B75: Carlstadt Borough | C75: Bergen | D75: 3400310480 | E75: 72 | F75: 2628725652 | G75: 20913299.82 | H75: 0.7955679895 | I75: 4707482.898 | J75: 2525.809353 | K75: 1.812672943 | L75: 6638352.81 | M75: 20098546 | N75: 47650198.63 | O75: 0.4388921856 | P75: 0.1393142736 | Q75: 0.4217935408 | R75: 15345 | S75: 306.7763374 | T75: 1704750 | U75: 161500 | V75: 247000 | W75: 5537876 | X75: 3080367.75 | Y75: 84500 | Z75: 879701.23 | AA75: 0 | AB75: 2349926 | AC75: 98000 | AD75: =IFERROR(T75*'Inputs & Assumptions'!$Q$40,"--") -> 170475 | AE75: =IFERROR(U75*'Inputs & Assumptions'!$Q$41,"--") -> 16150 | AF75: =IFERROR(V75*'Inputs & Assumptions'!$Q$42,"--") -> 123500 | AG75: =IFERROR(W75*'Inputs & Assumptions'!$Q$43,"--") -> 2768938 | AH75: =IFERROR(X75*'Inputs & Assumptions'!$Q$44,"--") -> 308036.775 | AI75: =IFERROR(Y75*'Inputs & Assumptions'!$Q$45,"--") -> 8450 | AJ75: =IFERROR(Z75*'Inputs & Assumptions'!$Q$46,"--") -> 87970.123 | AK75: =IFERROR(AA75*'Inputs & Assumptions'!$Q$47,"--") -> 0 | AL75: =IFERROR(AB75*'Inputs & Assumptions'!$Q$48,"--") -> 1174963 | AM75: =IFERROR(AC75*'Inputs & Assumptions'!$Q$49,"--") -> 49000
A76: 1713 | B76: Carneys Point Township | C76: Salem | D76: 3403310610 | E76: 73 | F76: 658849200 | G76: 4410779.47 | H76: 0.6694672271 | I76: 2281659.879 | J76: 10823.58439 | K76: 3.317546882 | L76: 7735020.62 | M76: 9711831 | N76: 21857631.09 | O76: 0.2017958603 | P76: 0.3538819275 | Q76: 0.4443222122 | R76: 10129 | S76: 225.2601322 | T76: 963163.49 | U76: 59750 | V76: 304400 | W76: 2498952.66 | X76: 721375 | Y76: 76815 | Z76: 0 | AA76: 403763.4 | AB76: 883510 | AC76: 108473 | AD76: =IFERROR(T76*'Inputs & Assumptions'!$Q$40,"--") -> 96316.349 | AE76: =IFERROR(U76*'Inputs & Assumptions'!$Q$41,"--") -> 5975 | AF76: =IFERROR(V76*'Inputs & Assumptions'!$Q$42,"--") -> 152200 | AG76: =IFERROR(W76*'Inputs & Assumptions'!$Q$43,"--") -> 1249476.33 | AH76: =IFERROR(X76*'Inputs & Assumptions'!$Q$44,"--") -> 72137.5 | AI76: =IFERROR(Y76*'Inputs & Assumptions'!$Q$45,"--") -> 7681.5 | AJ76: =IFERROR(Z76*'Inputs & Assumptions'!$Q$46,"--") -> 0 | AK76: =IFERROR(AA76*'Inputs & Assumptions'!$Q$47,"--") -> 201881.7 | AL76: =IFERROR(AB76*'Inputs & Assumptions'!$Q$48,"--") -> 441755 | AM76: =IFERROR(AC76*'Inputs & Assumptions'!$Q$49,"--") -> 54236.5
A77: 1201 | B77: Carteret Borough | C77: Middlesex | D77: 3402310750 | E77: 74 | F77: 2496082733 | G77: 33170014.6 | H77: 1.32888282 | I77: 11196732.38 | J77: 2810.207515 | K77: 2.987613264 | L77: 11373485.21 | M77: 30029799 | N77: 74573298.81 | O77: 0.4447974695 | P77: 0.1525141759 | Q77: 0.4026883547 | R77: 31313 | S77: 357.5745657 | T77: 3218500 | U77: 61500 | V77: 317000 | W77: 13007258.86 | X77: 9576000 | Y77: 168734 | Z77: 929781.17 | AA77: 1790656.86 | AB77: 4067196 | AC77: 420450 | AD77: =IFERROR(T77*'Inputs & Assumptions'!$Q$40,"--") -> 321850 | AE77: =IFERROR(U77*'Inputs & Assumptions'!$Q$41,"--") -> 6150 | AF77: =IFERROR(V77*'Inputs & Assumptions'!$Q$42,"--") -> 158500 | AG77: =IFERROR(W77*'Inputs & Assumptions'!$Q$43,"--") -> 6503629.43 | AH77: =IFERROR(X77*'Inputs & Assumptions'!$Q$44,"--") -> 957600 | AI77: =IFERROR(Y77*'Inputs & Assumptions'!$Q$45,"--") -> 16873.4 | AJ77: =IFERROR(Z77*'Inputs & Assumptions'!$Q$46,"--") -> 92978.117 | AK77: =IFERROR(AA77*'Inputs & Assumptions'!$Q$47,"--") -> 895328.43 | AL77: =IFERROR(AB77*'Inputs & Assumptions'!$Q$48,"--") -> 2033598 | AM77: =IFERROR(AC77*'Inputs & Assumptions'!$Q$49,"--") -> 210225
A78: 0704 | B78: Cedar Grove Township | C78: Essex | D78: 3401311200 | E78: 75 | F78: 2222561600 | G78: 11690674.85 | H78: 0.5260000375 | I78: 5534224.13 | J78: 2711.571983 | K78: 2.459310246 | L78: 11649287.31 | M78: 31319723 | N78: 54659685.16 | O78: 0.2138811231 | P78: 0.2131239372 | Q78: 0.5729949397 | R78: 16184 | S78: 341.9565083 | T78: 1047808 | U78: 71360 | V78: 307897 | W78: 5282771.26 | X78: 3388595.75 | Y78: 213922.25 | Z78: 869649 | AA78: 2012052 | AB78: 2050427 | AC78: 297034 | AD78: =IFERROR(T78*'Inputs & Assumptions'!$Q$40,"--") -> 104780.8 | AE78: =IFERROR(U78*'Inputs & Assumptions'!$Q$41,"--") -> 7136 | AF78: =IFERROR(V78*'Inputs & Assumptions'!$Q$42,"--") -> 153948.5 | AG78: =IFERROR(W78*'Inputs & Assumptions'!$Q$43,"--") -> 2641385.63 | AH78: =IFERROR(X78*'Inputs & Assumptions'!$Q$44,"--") -> 338859.575 | AI78: =IFERROR(Y78*'Inputs & Assumptions'!$Q$45,"--") -> 21392.225 | AJ78: =IFERROR(Z78*'Inputs & Assumptions'!$Q$46,"--") -> 86964.9 | AK78: =IFERROR(AA78*'Inputs & Assumptions'!$Q$47,"--") -> 1006026 | AL78: =IFERROR(AB78*'Inputs & Assumptions'!$Q$48,"--") -> 1025213.5 | AM78: =IFERROR(AC78*'Inputs & Assumptions'!$Q$49,"--") -> 148517
A79: 1404 | B79: Chatham Borough | C79: Morris | D79: 3402712100 | E79: 76 | F79: 2125865076 | G79: 9719850 | H79: 0.4572185747 | I79: 3720103.6 | J79: 1502.287422 | K79: 2.136555845 | L79: 6682436.54 | M79: 29018008 | N79: 45420294.54 | O79: 0.2139979518 | P79: 0.1471244651 | Q79: 0.6388775831 | R79: 12006 | S79: 309.8537065 | T79: 1320150 | U79: 105420 | V79: 0 | W79: 4018522 | X79: 2539226 | Y79: 125608 | Z79: 957092 | AA79: 773790 | AB79: 1459796 | AC79: 178600 | AD79: =IFERROR(T79*'Inputs & Assumptions'!$Q$40,"--") -> 132015 | AE79: =IFERROR(U79*'Inputs & Assumptions'!$Q$41,"--") -> 10542 | AF79: =IFERROR(V79*'Inputs & Assumptions'!$Q$42,"--") -> 0 | AG79: =IFERROR(W79*'Inputs & Assumptions'!$Q$43,"--") -> 2009261 | AH79: =IFERROR(X79*'Inputs & Assumptions'!$Q$44,"--") -> 253922.6 | AI79: =IFERROR(Y79*'Inputs & Assumptions'!$Q$45,"--") -> 12560.8 | AJ79: =IFERROR(Z79*'Inputs & Assumptions'!$Q$46,"--") -> 95709.2 | AK79: =IFERROR(AA79*'Inputs & Assumptions'!$Q$47,"--") -> 386895 | AL79: =IFERROR(AB79*'Inputs & Assumptions'!$Q$48,"--") -> 729898 | AM79: =IFERROR(AC79*'Inputs & Assumptions'!$Q$49,"--") -> 89300
A80: 1405 | B80: Chatham Township | C80: Morris | D80: 3402712130 | E80: 77 | F80: 3298559670 | G80: 12384994.93 | H80: 0.3754667543 | I80: 3479603.676 | J80: 5810.120224 | K80: 1.930045796 | L80: 9681770.3 | M80: 41596947 | N80: 63663712.23 | O80: 0.1945377437 | P80: 0.1520767477 | Q80: 0.6533855087 | R80: 11874 | S80: 293.0439343 | T80: 3271287.76 | U80: 123000 | V80: 351000 | W80: 3591600 | X80: 3030500 | Y80: 125500 | Z80: 1121284 | AA80: 0 | AB80: 1412293 | AC80: 70000 | AD80: =IFERROR(T80*'Inputs & Assumptions'!$Q$40,"--") -> 327128.776 | AE80: =IFERROR(U80*'Inputs & Assumptions'!$Q$41,"--") -> 12300 | AF80: =IFERROR(V80*'Inputs & Assumptions'!$Q$42,"--") -> 175500 | AG80: =IFERROR(W80*'Inputs & Assumptions'!$Q$43,"--") -> 1795800 | AH80: =IFERROR(X80*'Inputs & Assumptions'!$Q$44,"--") -> 303050 | AI80: =IFERROR(Y80*'Inputs & Assumptions'!$Q$45,"--") -> 12550 | AJ80: =IFERROR(Z80*'Inputs & Assumptions'!$Q$46,"--") -> 112128.4 | AK80: =IFERROR(AA80*'Inputs & Assumptions'!$Q$47,"--") -> 0 | AL80: =IFERROR(AB80*'Inputs & Assumptions'!$Q$48,"--") -> 706146.5 | AM80: =IFERROR(AC80*'Inputs & Assumptions'!$Q$49,"--") -> 35000
A81: 0409 | B81: Cherry Hill Township | C81: Camden | D81: 3400712280 | E81: 78 | F81: 7961383837 | G81: 46540391.33 | H81: 0.584576655 | I81: 16845142.52 | J81: 15406.09003 | K81: 3.800652551 | L81: 73189525.6 | M81: 182854621 | N81: 302584537.9 | O81: 0.1538095491 | P81: 0.2418812478 | Q81: 0.6043092031 | R81: 110374 | S81: 152.6187555 | T81: 4502652 | U81: 613218 | V81: 1430422 | W81: 18259275.54 | X81: 12044756.54 | Y81: 0 | Z81: 3041201 | AA81: 2198750 | AB81: 7340000 | AC81: 421472 | AD81: =IFERROR(T81*'Inputs & Assumptions'!$Q$40,"--") -> 450265.2 | AE81: =IFERROR(U81*'Inputs & Assumptions'!$Q$41,"--") -> 61321.8 | AF81: =IFERROR(V81*'Inputs & Assumptions'!$Q$42,"--") -> 715211 | AG81: =IFERROR(W81*'Inputs & Assumptions'!$Q$43,"--") -> 9129637.77 | AH81: =IFERROR(X81*'Inputs & Assumptions'!$Q$44,"--") -> 1204475.654 | AI81: =IFERROR(Y81*'Inputs & Assumptions'!$Q$45,"--") -> 0 | AJ81: =IFERROR(Z81*'Inputs & Assumptions'!$Q$46,"--") -> 304120.1 | AK81: =IFERROR(AA81*'Inputs & Assumptions'!$Q$47,"--") -> 1099375 | AL81: =IFERROR(AB81*'Inputs & Assumptions'!$Q$48,"--") -> 3670000 | AM81: =IFERROR(AC81*'Inputs & Assumptions'!$Q$49,"--") -> 210736
A82: 0410 | B82: Chesilhurst Borough | C82: Camden | D82: 3400712550 | E82: 79 | F82: 88810406 | G82: 1637535.91 | H82: 1.843855899 | I82: 868745.656 | J82: 1097.845516 | K82: 3.580827645 | L82: 743535.66 | M82: 799076 | N82: 3180147.57 | O82: 0.514924504 | P82: 0.2338053954 | Q82: 0.2512701007 | R82: 1634 | S82: 531.6680881 | T82: 490874.39 | U82: 28519.52 | V82: 0 | W82: 993307.85 | X82: 602755.4 | Y82: 27758 | Z82: 0 | AA82: 61000 | AB82: 360108 | AC82: 93094 | AD82: =IFERROR(T82*'Inputs & Assumptions'!$Q$40,"--") -> 49087.439 | AE82: =IFERROR(U82*'Inputs & Assumptions'!$Q$41,"--") -> 2851.952 | AF82: =IFERROR(V82*'Inputs & Assumptions'!$Q$42,"--") -> 0 | AG82: =IFERROR(W82*'Inputs & Assumptions'!$Q$43,"--") -> 496653.925 | AH82: =IFERROR(X82*'Inputs & Assumptions'!$Q$44,"--") -> 60275.54 | AI82: =IFERROR(Y82*'Inputs & Assumptions'!$Q$45,"--") -> 2775.8 | AJ82: =IFERROR(Z82*'Inputs & Assumptions'!$Q$46,"--") -> 0 | AK82: =IFERROR(AA82*'Inputs & Assumptions'!$Q$47,"--") -> 30500 | AL82: =IFERROR(AB82*'Inputs & Assumptions'!$Q$48,"--") -> 180054 | AM82: =IFERROR(AC82*'Inputs & Assumptions'!$Q$49,"--") -> 46547
A83: 1406 | B83: Chester Borough | C83: Morris | D83: 3402712580 | E83: 80 | F83: 404207320 | G83: 3924821.1 | H83: 0.9709920889 | I83: 1119370.584 | J83: 1019.052538 | K83: 2.726245007 | L83: 1036266.78 | M83: 6058594 | N83: 11019681.88 | O83: 0.3561646464 | P83: 0.09403781264 | Q83: 0.549797541 | R83: 3885 | S83: 288.1262764 | T83: 909697.69 | U83: 99620 | V83: 60500 | W83: 1398490 | X83: 1116550 | Y83: 81051.13 | Z83: 132372.02 | AA83: 142600 | AB83: 169293 | AC83: 0 | AD83: =IFERROR(T83*'Inputs & Assumptions'!$Q$40,"--") -> 90969.769 | AE83: =IFERROR(U83*'Inputs & Assumptions'!$Q$41,"--") -> 9962 | AF83: =IFERROR(V83*'Inputs & Assumptions'!$Q$42,"--") -> 30250 | AG83: =IFERROR(W83*'Inputs & Assumptions'!$Q$43,"--") -> 699245 | AH83: =IFERROR(X83*'Inputs & Assumptions'!$Q$44,"--") -> 111655 | AI83: =IFERROR(Y83*'Inputs & Assumptions'!$Q$45,"--") -> 8105.113 | AJ83: =IFERROR(Z83*'Inputs & Assumptions'!$Q$46,"--") -> 13237.202 | AK83: =IFERROR(AA83*'Inputs & Assumptions'!$Q$47,"--") -> 71300 | AL83: =IFERROR(AB83*'Inputs & Assumptions'!$Q$48,"--") -> 84646.5 | AM83: =IFERROR(AC83*'Inputs & Assumptions'!$Q$49,"--") -> 0
A84: 1407 | B84: Chester Township | C84: Morris | D84: 3402712610 | E84: 81 | F84: 1815684590 | G84: 9690148.69 | H84: 0.5336911897 | I84: 2496545.707 | J84: 18644.22236 | K84: 2.404779458 | L84: 4784871.36 | M84: 29188190 | N84: 43663210.05 | O84: 0.2219293698 | P84: 0.1095858814 | Q84: 0.6684847488 | R84: 9821 | S84: 254.2048373 | T84: 1040950 | U84: 199500 | V84: 213300 | W84: 2300891.06 | X84: 1819700 | Y84: 32600 | Z84: 615686.77 | AA84: 452665 | AB84: 1214496 | AC84: 70052 | AD84: =IFERROR(T84*'Inputs & Assumptions'!$Q$40,"--") -> 104095 | AE84: =IFERROR(U84*'Inputs & Assumptions'!$Q$41,"--") -> 19950 | AF84: =IFERROR(V84*'Inputs & Assumptions'!$Q$42,"--") -> 106650 | AG84: =IFERROR(W84*'Inputs & Assumptions'!$Q$43,"--") -> 1150445.53 | AH84: =IFERROR(X84*'Inputs & Assumptions'!$Q$44,"--") -> 181970 | AI84: =IFERROR(Y84*'Inputs & Assumptions'!$Q$45,"--") -> 3260 | AJ84: =IFERROR(Z84*'Inputs & Assumptions'!$Q$46,"--") -> 61568.677 | AK84: =IFERROR(AA84*'Inputs & Assumptions'!$Q$47,"--") -> 226332.5 | AL84: =IFERROR(AB84*'Inputs & Assumptions'!$Q$48,"--") -> 607248 | AM84: =IFERROR(AC84*'Inputs & Assumptions'!$Q$49,"--") -> 35026
A85: 0307 | B85: Chesterfield Township | C85: Burlington | D85: 3400512670 | E85: 82 | F85: 834725867 | G85: 3042819.65 | H85: 0.364529215 | I85: 1230350 | J85: 13639.28358 | K85: 2.961561615 | L85: 3374591.22 | M85: 18303510 | N85: 24720920.87 | O85: 0.1230868246 | P85: 0.1365075046 | Q85: 0.7404056708 | R85: 8569 | S85: 143.5815148 | T85: 1122100 | U85: 33350 | V85: 143550 | W85: 1344002.35 | X85: 468775 | Y85: 14650 | Z85: 25000 | AA85: 0 | AB85: 525372.65 | AC85: 115000 | AD85: =IFERROR(T85*'Inputs & Assumptions'!$Q$40,"--") -> 112210 | AE85: =IFERROR(U85*'Inputs & Assumptions'!$Q$41,"--") -> 3335 | AF85: =IFERROR(V85*'Inputs & Assumptions'!$Q$42,"--") -> 71775 | AG85: =IFERROR(W85*'Inputs & Assumptions'!$Q$43,"--") -> 672001.175 | AH85: =IFERROR(X85*'Inputs & Assumptions'!$Q$44,"--") -> 46877.5 | AI85: =IFERROR(Y85*'Inputs & Assumptions'!$Q$45,"--") -> 1465 | AJ85: =IFERROR(Z85*'Inputs & Assumptions'!$Q$46,"--") -> 2500 | AK85: =IFERROR(AA85*'Inputs & Assumptions'!$Q$47,"--") -> 0 | AL85: =IFERROR(AB85*'Inputs & Assumptions'!$Q$48,"--") -> 262686.325 | AM85: =IFERROR(AC85*'Inputs & Assumptions'!$Q$49,"--") -> 57500
A86: 0308 | B86: Cinnaminson Township | C86: Burlington | D86: 3400512940 | E86: 83 | F86: 1612182986 | G86: 10210113.3 | H86: 0.6333098283 | I86: 3258180.801 | J86: 4751.272617 | K86: 3.397680837 | L86: 7327282.07 | M86: 37239437 | N86: 54776832.37 | O86: 0.1863947377 | P86: 0.1337660787 | Q86: 0.6798391836 | R86: 22626 | S86: 144.0016265 | T86: 1165551.01 | U86: 105750 | V86: 240750 | W86: 3697418 | X86: 3106480 | Y86: 19657 | Z86: 0 | AA86: 0 | AB86: 1490656 | AC86: 208050 | AD86: =IFERROR(T86*'Inputs & Assumptions'!$Q$40,"--") -> 116555.101 | AE86: =IFERROR(U86*'Inputs & Assumptions'!$Q$41,"--") -> 10575 | AF86: =IFERROR(V86*'Inputs & Assumptions'!$Q$42,"--") -> 120375 | AG86: =IFERROR(W86*'Inputs & Assumptions'!$Q$43,"--") -> 1848709 | AH86: =IFERROR(X86*'Inputs & Assumptions'!$Q$44,"--") -> 310648 | AI86: =IFERROR(Y86*'Inputs & Assumptions'!$Q$45,"--") -> 1965.7 | AJ86: =IFERROR(Z86*'Inputs & Assumptions'!$Q$46,"--") -> 0 | AK86: =IFERROR(AA86*'Inputs & Assumptions'!$Q$47,"--") -> 0 | AL86: =IFERROR(AB86*'Inputs & Assumptions'!$Q$48,"--") -> 745328 | AM86: =IFERROR(AC86*'Inputs & Assumptions'!$Q$49,"--") -> 104025
A87: 0717 | B87: City of Orange Township | C87: Essex | D87: 3401313045 | E87: 84 | F87: 1304770782 | G87: 55663138 | H87: 4.266123887 | I87: 20291668.9 | J87: 1416.110939 | K87: 5.779640674 | L87: 6791024.82 | M87: 12956900 | N87: 75411062.82 | O87: 0.7381296048 | P87: 0.09005342938 | Q87: 0.1718169658 | R87: 35431 | S87: 572.7094606 | T87: 7207889 | U87: 34620 | V87: 727120 | W87: 24835967 | X87: 15000121 | Y87: 1995949 | Z87: 885000 | AA87: 0 | AB87: 8785260 | AC87: 1210275 | AD87: =IFERROR(T87*'Inputs & Assumptions'!$Q$40,"--") -> 720788.9 | AE87: =IFERROR(U87*'Inputs & Assumptions'!$Q$41,"--") -> 3462 | AF87: =IFERROR(V87*'Inputs & Assumptions'!$Q$42,"--") -> 363560 | AG87: =IFERROR(W87*'Inputs & Assumptions'!$Q$43,"--") -> 12417983.5 | AH87: =IFERROR(X87*'Inputs & Assumptions'!$Q$44,"--") -> 1500012.1 | AI87: =IFERROR(Y87*'Inputs & Assumptions'!$Q$45,"--") -> 199594.9 | AJ87: =IFERROR(Z87*'Inputs & Assumptions'!$Q$46,"--") -> 88500 | AK87: =IFERROR(AA87*'Inputs & Assumptions'!$Q$47,"--") -> 0 | AL87: =IFERROR(AB87*'Inputs & Assumptions'!$Q$48,"--") -> 4392630 | AM87: =IFERROR(AC87*'Inputs & Assumptions'!$Q$49,"--") -> 605137.5
A88: 2002 | B88: Clark Township | C88: Union | D88: 3403913150 | E88: 85 | F88: 767351624 | G88: 18972362 | H88: 2.472446973 | I88: 5667196.5 | J88: 2734.86215 | K88: 8.889728574 | L88: 14463310.58 | M88: 34779804 | N88: 68215476.58 | O88: 0.2781240116 | P88: 0.2120238882 | Q88: 0.5098521002 | R88: 22965 | S88: 246.7753756 | T88: 2801938 | U88: 57049 | V88: 566234 | W88: 6661995 | X88: 2475088 | Y88: 335499 | Z88: 978361 | AA88: 0 | AB88: 2506782 | AC88: 269795 | AD88: =IFERROR(T88*'Inputs & Assumptions'!$Q$40,"--") -> 280193.8 | AE88: =IFERROR(U88*'Inputs & Assumptions'!$Q$41,"--") -> 5704.9 | AF88: =IFERROR(V88*'Inputs & Assumptions'!$Q$42,"--") -> 283117 | AG88: =IFERROR(W88*'Inputs & Assumptions'!$Q$43,"--") -> 3330997.5 | AH88: =IFERROR(X88*'Inputs & Assumptions'!$Q$44,"--") -> 247508.8 | AI88: =IFERROR(Y88*'Inputs & Assumptions'!$Q$45,"--") -> 33549.9 | AJ88: =IFERROR(Z88*'Inputs & Assumptions'!$Q$46,"--") -> 97836.1 | AK88: =IFERROR(AA88*'Inputs & Assumptions'!$Q$47,"--") -> 0 | AL88: =IFERROR(AB88*'Inputs & Assumptions'!$Q$48,"--") -> 1253391 | AM88: =IFERROR(AC88*'Inputs & Assumptions'!$Q$49,"--") -> 134897.5
A89: 0801 | B89: Clayton Borough | C89: Gloucester | D89: 3401513360 | E89: 86 | F89: 470251879 | G89: 4794621.87 | H89: 1.019585904 | I89: 2083606.618 | J89: 4527.823961 | K89: 3.948332978 | L89: 3642845.15 | M89: 10129643 | N89: 18567110.02 | O89: 0.2582319954 | P89: 0.1961988239 | Q89: 0.5455691806 | R89: 10038 | S89: 207.5718886 | T89: 958346.7 | U89: 30700 | V89: 125150 | W89: 2287399.36 | X89: 2151852.68 | Y89: 12400 | Z89: 0 | AA89: 311500 | AB89: 812504 | AC89: 0 | AD89: =IFERROR(T89*'Inputs & Assumptions'!$Q$40,"--") -> 95834.67 | AE89: =IFERROR(U89*'Inputs & Assumptions'!$Q$41,"--") -> 3070 | AF89: =IFERROR(V89*'Inputs & Assumptions'!$Q$42,"--") -> 62575 | AG89: =IFERROR(W89*'Inputs & Assumptions'!$Q$43,"--") -> 1143699.68 | AH89: =IFERROR(X89*'Inputs & Assumptions'!$Q$44,"--") -> 215185.268 | AI89: =IFERROR(Y89*'Inputs & Assumptions'!$Q$45,"--") -> 1240 | AJ89: =IFERROR(Z89*'Inputs & Assumptions'!$Q$46,"--") -> 0 | AK89: =IFERROR(AA89*'Inputs & Assumptions'!$Q$47,"--") -> 155750 | AL89: =IFERROR(AB89*'Inputs & Assumptions'!$Q$48,"--") -> 406252 | AM89: =IFERROR(AC89*'Inputs & Assumptions'!$Q$49,"--") -> 0
A90: 0411 | B90: Clementon Borough | C90: Camden | D90: 3400713420 | E90: 87 | F90: 249918390 | G90: 4240417.48 | H90: 1.69672087 | I90: 1585948.385 | J90: 1211.381743 | K90: 4.351597179 | L90: 2177113.13 | M90: 4457911 | N90: 10875441.61 | O90: 0.3899076131 | P90: 0.2001861817 | Q90: 0.4099062052 | R90: 5704 | S90: 278.041442 | T90: 645150 | U90: 16670 | V90: 118650 | W90: 1750230.59 | X90: 1499050.5 | Y90: 15701 | Z90: 0 | AA90: 160797.68 | AB90: 583504.2 | AC90: 123400 | AD90: =IFERROR(T90*'Inputs & Assumptions'!$Q$40,"--") -> 64515 | AE90: =IFERROR(U90*'Inputs & Assumptions'!$Q$41,"--") -> 1667 | AF90: =IFERROR(V90*'Inputs & Assumptions'!$Q$42,"--") -> 59325 | AG90: =IFERROR(W90*'Inputs & Assumptions'!$Q$43,"--") -> 875115.295 | AH90: =IFERROR(X90*'Inputs & Assumptions'!$Q$44,"--") -> 149905.05 | AI90: =IFERROR(Y90*'Inputs & Assumptions'!$Q$45,"--") -> 1570.1 | AJ90: =IFERROR(Z90*'Inputs & Assumptions'!$Q$46,"--") -> 0 | AK90: =IFERROR(AA90*'Inputs & Assumptions'!$Q$47,"--") -> 80398.84 | AL90: =IFERROR(AB90*'Inputs & Assumptions'!$Q$48,"--") -> 291752.1 | AM90: =IFERROR(AC90*'Inputs & Assumptions'!$Q$49,"--") -> 61700
A91: 0206 | B91: Cliffside Park Borough | C91: Bergen | D91: 3400313570 | E91: 88 | F91: 2955662658 | G91: 28610889 | H91: 0.9680025196 | I91: 7639205 | J91: 611.6945414 | K91: 2.516650807 | L91: 9139938.13 | M91: 36632881 | N91: 74383708.13 | O91: 0.3846391867 | P91: 0.1228755377 | Q91: 0.4924852756 | R91: 27010 | S91: 282.8287671 | T91: 2761000 | U91: 20500 | V91: 487000 | W91: 9061030 | X91: 3463920 | Y91: 248000 | Z91: 1185660 | AA91: 925000 | AB91: 2946564 | AC91: 323000 | AD91: =IFERROR(T91*'Inputs & Assumptions'!$Q$40,"--") -> 276100 | AE91: =IFERROR(U91*'Inputs & Assumptions'!$Q$41,"--") -> 2050 | AF91: =IFERROR(V91*'Inputs & Assumptions'!$Q$42,"--") -> 243500 | AG91: =IFERROR(W91*'Inputs & Assumptions'!$Q$43,"--") -> 4530515 | AH91: =IFERROR(X91*'Inputs & Assumptions'!$Q$44,"--") -> 346392 | AI91: =IFERROR(Y91*'Inputs & Assumptions'!$Q$45,"--") -> 24800 | AJ91: =IFERROR(Z91*'Inputs & Assumptions'!$Q$46,"--") -> 118566 | AK91: =IFERROR(AA91*'Inputs & Assumptions'!$Q$47,"--") -> 462500 | AL91: =IFERROR(AB91*'Inputs & Assumptions'!$Q$48,"--") -> 1473282 | AM91: =IFERROR(AC91*'Inputs & Assumptions'!$Q$49,"--") -> 161500
A92: 1602 | B92: Clifton City | C92: Passaic | D92: 3403113690 | E92: 89 | F92: 5340514422 | G92: 86259098 | H92: 1.615183317 | I92: 32567771.6 | J92: 7216.053885 | K92: 5.47422071 | L92: 70901188.52 | M92: 135191260 | N92: 292351546.5 | O92: 0.2950526482 | P92: 0.2425203128 | Q92: 0.462427039 | R92: 110435 | S92: 294.9044379 | T92: 14592648 | U92: 620150 | V92: 987300 | W92: 38198117 | X92: 6383050 | Y92: 2155168 | Z92: 3588975 | AA92: 5650000 | AB92: 13711878 | AC92: 1120250 | AD92: =IFERROR(T92*'Inputs & Assumptions'!$Q$40,"--") -> 1459264.8 | AE92: =IFERROR(U92*'Inputs & Assumptions'!$Q$41,"--") -> 62015 | AF92: =IFERROR(V92*'Inputs & Assumptions'!$Q$42,"--") -> 493650 | AG92: =IFERROR(W92*'Inputs & Assumptions'!$Q$43,"--") -> 19099058.5 | AH92: =IFERROR(X92*'Inputs & Assumptions'!$Q$44,"--") -> 638305 | AI92: =IFERROR(Y92*'Inputs & Assumptions'!$Q$45,"--") -> 215516.8 | AJ92: =IFERROR(Z92*'Inputs & Assumptions'!$Q$46,"--") -> 358897.5 | AK92: =IFERROR(AA92*'Inputs & Assumptions'!$Q$47,"--") -> 2825000 | AL92: =IFERROR(AB92*'Inputs & Assumptions'!$Q$48,"--") -> 6855939 | AM92: =IFERROR(AC92*'Inputs & Assumptions'!$Q$49,"--") -> 560125
A93: 1005 | B93: Clinton Town | C93: Hunterdon | D93: 3401913720 | E93: 90 | F93: 396809150 | G93: 3459859 | H93: 0.8719201662 | I93: 1709278.599 | J93: 861.7529766 | K93: 3.309553278 | L93: 1582047.23 | M93: 8090704 | N93: 13132610.23 | O93: 0.2634555461 | P93: 0.1204670817 | Q93: 0.6160773722 | R93: 4380 | S93: 390.2462555 | T93: 470720 | U93: 50680 | V93: 83585 | W93: 1446638.83 | X93: 4452236.84 | Y93: 9680 | Z93: 0 | AA93: 145000 | AB93: 746670 | AC93: 0 | AD93: =IFERROR(T93*'Inputs & Assumptions'!$Q$40,"--") -> 47072 | AE93: =IFERROR(U93*'Inputs & Assumptions'!$Q$41,"--") -> 5068 | AF93: =IFERROR(V93*'Inputs & Assumptions'!$Q$42,"--") -> 41792.5 | AG93: =IFERROR(W93*'Inputs & Assumptions'!$Q$43,"--") -> 723319.415 | AH93: =IFERROR(X93*'Inputs & Assumptions'!$Q$44,"--") -> 445223.684 | AI93: =IFERROR(Y93*'Inputs & Assumptions'!$Q$45,"--") -> 968 | AJ93: =IFERROR(Z93*'Inputs & Assumptions'!$Q$46,"--") -> 0 | AK93: =IFERROR(AA93*'Inputs & Assumptions'!$Q$47,"--") -> 72500 | AL93: =IFERROR(AB93*'Inputs & Assumptions'!$Q$48,"--") -> 373335 | AM93: =IFERROR(AC93*'Inputs & Assumptions'!$Q$49,"--") -> 0
A94: 1006 | B94: Clinton Township | C94: Hunterdon | D94: 3401913750 | E94: 91 | F94: 2153689900 | G94: 9775028.52 | H94: 0.4538735368 | I94: 2910793.449 | J94: 19115.92238 | K94: 2.732284359 | L94: 8689680.76 | M94: 40380223 | N94: 58844932.28 | O94: 0.1661150441 | P94: 0.1476708431 | Q94: 0.6862141128 | R94: 17551 | S94: 165.8477266 | T94: 1102000 | U94: 102000 | V94: 261000 | W94: 3291463.65 | X94: 1390436.24 | Y94: 8500 | Z94: 0 | AA94: 0 | AB94: 1396536 | AC94: 352000 | AD94: =IFERROR(T94*'Inputs & Assumptions'!$Q$40,"--") -> 110200 | AE94: =IFERROR(U94*'Inputs & Assumptions'!$Q$41,"--") -> 10200 | AF94: =IFERROR(V94*'Inputs & Assumptions'!$Q$42,"--") -> 130500 | AG94: =IFERROR(W94*'Inputs & Assumptions'!$Q$43,"--") -> 1645731.825 | AH94: =IFERROR(X94*'Inputs & Assumptions'!$Q$44,"--") -> 139043.624 | AI94: =IFERROR(Y94*'Inputs & Assumptions'!$Q$45,"--") -> 850 | AJ94: =IFERROR(Z94*'Inputs & Assumptions'!$Q$46,"--") -> 0 | AK94: =IFERROR(AA94*'Inputs & Assumptions'!$Q$47,"--") -> 0 | AL94: =IFERROR(AB94*'Inputs & Assumptions'!$Q$48,"--") -> 698268 | AM94: =IFERROR(AC94*'Inputs & Assumptions'!$Q$49,"--") -> 176000
A95: 0207 | B95: Closter Borough | C95: Bergen | D95: 3400313810 | E95: 92 | F95: 2258092300 | G95: 13086417 | H95: 0.5795341935 | I95: 3738881.5 | J95: 2022.550045 | K95: 2.303654879 | L95: 5674341.43 | M95: 33257895 | N95: 52018653.43 | O95: 0.2515716217 | P95: 0.1090828204 | Q95: 0.6393455579 | R95: 11288 | S95: 331.2262137 | T95: 1260625 | U95: 72000 | V95: 386725 | W95: 4127213 | X95: 2409240 | Y95: 171231 | Z95: 767704 | AA95: 328000 | AB95: 1588815 | AC95: 110850 | AD95: =IFERROR(T95*'Inputs & Assumptions'!$Q$40,"--") -> 126062.5 | AE95: =IFERROR(U95*'Inputs & Assumptions'!$Q$41,"--") -> 7200 | AF95: =IFERROR(V95*'Inputs & Assumptions'!$Q$42,"--") -> 193362.5 | AG95: =IFERROR(W95*'Inputs & Assumptions'!$Q$43,"--") -> 2063606.5 | AH95: =IFERROR(X95*'Inputs & Assumptions'!$Q$44,"--") -> 240924 | AI95: =IFERROR(Y95*'Inputs & Assumptions'!$Q$45,"--") -> 17123.1 | AJ95: =IFERROR(Z95*'Inputs & Assumptions'!$Q$46,"--") -> 76770.4 | AK95: =IFERROR(AA95*'Inputs & Assumptions'!$Q$47,"--") -> 164000 | AL95: =IFERROR(AB95*'Inputs & Assumptions'!$Q$48,"--") -> 794407.5 | AM95: =IFERROR(AC95*'Inputs & Assumptions'!$Q$49,"--") -> 55425
A96: 0412 | B96: Collingswood Borough | C96: Camden | D96: 3400714260 | E96: 93 | F96: 1071270700 | G96: 11711488.11 | H96: 1.093233308 | I96: 4642007.458 | J96: 1171.212556 | K96: 3.670315673 | L96: 9040007.29 | M96: 18567521 | N96: 39319016.4 | O96: 0.297858115 | P96: 0.2299143803 | Q96: 0.4722275047 | R96: 16909 | S96: 274.5287987 | T96: 1111050 | U96: 79100 | V96: 151500 | W96: 5388772.88 | X96: 4655223.27 | Y96: 68666.56 | Z96: 415000 | AA96: 480000 | AB96: 1778784.07 | AC96: 219150 | AD96: =IFERROR(T96*'Inputs & Assumptions'!$Q$40,"--") -> 111105 | AE96: =IFERROR(U96*'Inputs & Assumptions'!$Q$41,"--") -> 7910 | AF96: =IFERROR(V96*'Inputs & Assumptions'!$Q$42,"--") -> 75750 | AG96: =IFERROR(W96*'Inputs & Assumptions'!$Q$43,"--") -> 2694386.44 | AH96: =IFERROR(X96*'Inputs & Assumptions'!$Q$44,"--") -> 465522.327 | AI96: =IFERROR(Y96*'Inputs & Assumptions'!$Q$45,"--") -> 6866.656 | AJ96: =IFERROR(Z96*'Inputs & Assumptions'!$Q$46,"--") -> 41500 | AK96: =IFERROR(AA96*'Inputs & Assumptions'!$Q$47,"--") -> 240000 | AL96: =IFERROR(AB96*'Inputs & Assumptions'!$Q$48,"--") -> 889392.035 | AM96: =IFERROR(AC96*'Inputs & Assumptions'!$Q$49,"--") -> 109575
A97: 1309 | B97: Colts Neck Township | C97: Monmouth | D97: 3402514560 | E97: 94 | F97: 3080714657 | G97: 8651885.11 | H97: 0.2808401969 | I97: 2842846.426 | J97: 19657.74913 | K97: 1.745016815 | L97: 8536121.68 | M97: 36570982 | N97: 53758988.79 | O97: 0.1609383901 | P97: 0.158785012 | Q97: 0.6802765979 | R97: 12185 | S97: 233.3070518 | T97: 1226791.73 | U97: 185583.88 | V97: 62948.67 | W97: 2929852.09 | X97: 1841348.37 | Y97: 204731.38 | Z97: 52185 | AA97: 763255.24 | AB97: 1132130 | AC97: 95378.78 | AD97: =IFERROR(T97*'Inputs & Assumptions'!$Q$40,"--") -> 122679.173 | AE97: =IFERROR(U97*'Inputs & Assumptions'!$Q$41,"--") -> 18558.388 | AF97: =IFERROR(V97*'Inputs & Assumptions'!$Q$42,"--") -> 31474.335 | AG97: =IFERROR(W97*'Inputs & Assumptions'!$Q$43,"--") -> 1464926.045 | AH97: =IFERROR(X97*'Inputs & Assumptions'!$Q$44,"--") -> 184134.837 | AI97: =IFERROR(Y97*'Inputs & Assumptions'!$Q$45,"--") -> 20473.138 | AJ97: =IFERROR(Z97*'Inputs & Assumptions'!$Q$46,"--") -> 5218.5 | AK97: =IFERROR(AA97*'Inputs & Assumptions'!$Q$47,"--") -> 381627.62 | AL97: =IFERROR(AB97*'Inputs & Assumptions'!$Q$48,"--") -> 566065 | AM97: =IFERROR(AC97*'Inputs & Assumptions'!$Q$49,"--") -> 47689.39
A98: 0602 | B98: Commercial Township | C98: Cumberland | D98: 3401114710 | E98: 95 | F98: 272959900 | G98: 1601573.94 | H98: 0.5867433055 | I98: 429823.3 | J98: 20424.64556 | K98: 2.517412232 | L98: 3003565.97 | M98: 2266386 | N98: 6871525.91 | O98: 0.2330739869 | P98: 0.4371032009 | Q98: 0.3298228122 | R98: 5265 | S98: 81.63785375 | T98: 683905 | U98: 6600 | V98: 143700 | W98: 7600 | X98: 1090620 | Y98: 72466 | Z98: 24257 | AA98: 184500 | AB98: 148277 | AC98: 0 | AD98: =IFERROR(T98*'Inputs & Assumptions'!$Q$40,"--") -> 68390.5 | AE98: =IFERROR(U98*'Inputs & Assumptions'!$Q$41,"--") -> 660 | AF98: =IFERROR(V98*'Inputs & Assumptions'!$Q$42,"--") -> 71850 | AG98: =IFERROR(W98*'Inputs & Assumptions'!$Q$43,"--") -> 3800 | AH98: =IFERROR(X98*'Inputs & Assumptions'!$Q$44,"--") -> 109062 | AI98: =IFERROR(Y98*'Inputs & Assumptions'!$Q$45,"--") -> 7246.6 | AJ98: =IFERROR(Z98*'Inputs & Assumptions'!$Q$46,"--") -> 2425.7 | AK98: =IFERROR(AA98*'Inputs & Assumptions'!$Q$47,"--") -> 92250 | AL98: =IFERROR(AB98*'Inputs & Assumptions'!$Q$48,"--") -> 74138.5 | AM98: =IFERROR(AC98*'Inputs & Assumptions'!$Q$49,"--") -> 0
A99: 0106 | B99: Corbin City | C99: Atlantic | D99: 3400115160 | E99: 96 | F99: 51127800 | G99: 176589 | H99: 0.3453874409 | I99: 47860.7 | J99: 4926.259974 | K99: 1.963611479 | L99: 295882.35 | M99: 531480 | N99: 1003951.35 | O99: 0.1758939813 | P99: 0.2947178168 | Q99: 0.5293882019 | R99: 756 | S99: 63.30780423 | T99: 177041 | U99: 22472 | V99: 0 | W99: 7919 | X99: 97958 | Y99: 5801 | Z99: 0 | AA99: 0 | AB99: 22148 | AC99: 5000 | AD99: =IFERROR(T99*'Inputs & Assumptions'!$Q$40,"--") -> 17704.1 | AE99: =IFERROR(U99*'Inputs & Assumptions'!$Q$41,"--") -> 2247.2 | AF99: =IFERROR(V99*'Inputs & Assumptions'!$Q$42,"--") -> 0 | AG99: =IFERROR(W99*'Inputs & Assumptions'!$Q$43,"--") -> 3959.5 | AH99: =IFERROR(X99*'Inputs & Assumptions'!$Q$44,"--") -> 9795.8 | AI99: =IFERROR(Y99*'Inputs & Assumptions'!$Q$45,"--") -> 580.1 | AJ99: =IFERROR(Z99*'Inputs & Assumptions'!$Q$46,"--") -> 0 | AK99: =IFERROR(AA99*'Inputs & Assumptions'!$Q$47,"--") -> 0 | AL99: =IFERROR(AB99*'Inputs & Assumptions'!$Q$48,"--") -> 11074 | AM99: =IFERROR(AC99*'Inputs & Assumptions'!$Q$49,"--") -> 2500
A100: 1202 | B100: Cranbury Township | C100: Middlesex | D100: 3402315550 | E100: 97 | F100: 1914717652 | G100: 7654003.39 | H100: 0.3997457997 | I100: 2520402.703 | J100: 8501.251164 | K100: 1.78801004 | L100: 8269106.47 | M100: 18312234 | N100: 34235343.86 | O100: 0.2235702209 | P100: 0.2415371233 | Q100: 0.5348926558 | R100: 12078 | S100: 208.6771571 | T100: 985306.32 | U100: 331198.77 | V100: 393165 | W100: 2890379.96 | X100: 1111304.59 | Y100: 67588 | Z100: 667829 | AA100: 0 | AB100: 1124615.11 | AC100: 0 | AD100: =IFERROR(T100*'Inputs & Assumptions'!$Q$40,"--") -> 98530.632 | AE100: =IFERROR(U100*'Inputs & Assumptions'!$Q$41,"--") -> 33119.877 | AF100: =IFERROR(V100*'Inputs & Assumptions'!$Q$42,"--") -> 196582.5 | AG100: =IFERROR(W100*'Inputs & Assumptions'!$Q$43,"--") -> 1445189.98 | AH100: =IFERROR(X100*'Inputs & Assumptions'!$Q$44,"--") -> 111130.459 | AI100: =IFERROR(Y100*'Inputs & Assumptions'!$Q$45,"--") -> 6758.8 | AJ100: =IFERROR(Z100*'Inputs & Assumptions'!$Q$46,"--") -> 66782.9 | AK100: =IFERROR(AA100*'Inputs & Assumptions'!$Q$47,"--") -> 0 | AL100: =IFERROR(AB100*'Inputs & Assumptions'!$Q$48,"--") -> 562307.555 | AM100: =IFERROR(AC100*'Inputs & Assumptions'!$Q$49,"--") -> 0
A101: 2003 | B101: Cranford Township | C101: Union | D101: 3403915640 | E101: 98 | F101: 1669462618 | G101: 25377716.91 | H101: 1.520112918 | I101: 9234655.744 | J101: 3094.438634 | K101: 6.58252383 | L101: 23016812.76 | M101: 61498245 | N101: 109892774.7 | O101: 0.2309316239 | P101: 0.2094479171 | Q101: 0.559620459 | R101: 34044 | S101: 271.2564841 | T101: 2746003 | U101: 294590.68 | V101: 730425 | W101: 11898193.57 | X101: 3773270.91 | Y101: 349842 | Z101: 1563353 | AA101: 0 | AB101: 3818029 | AC101: 277252 | AD101: =IFERROR(T101*'Inputs & Assumptions'!$Q$40,"--") -> 274600.3 | AE101: =IFERROR(U101*'Inputs & Assumptions'!$Q$41,"--") -> 29459.068 | AF101: =IFERROR(V101*'Inputs & Assumptions'!$Q$42,"--") -> 365212.5 | AG101: =IFERROR(W101*'Inputs & Assumptions'!$Q$43,"--") -> 5949096.785 | AH101: =IFERROR(X101*'Inputs & Assumptions'!$Q$44,"--") -> 377327.091 | AI101: =IFERROR(Y101*'Inputs & Assumptions'!$Q$45,"--") -> 34984.2 | AJ101: =IFERROR(Z101*'Inputs & Assumptions'!$Q$46,"--") -> 156335.3 | AK101: =IFERROR(AA101*'Inputs & Assumptions'!$Q$47,"--") -> 0 | AL101: =IFERROR(AB101*'Inputs & Assumptions'!$Q$48,"--") -> 1909014.5 | AM101: =IFERROR(AC101*'Inputs & Assumptions'!$Q$49,"--") -> 138626
A102: 0208 | B102: Cresskill Borough | C102: Bergen | D102: 3400315820 | E102: 99 | F102: 2188583500 | G102: 17163359 | H102: 0.7842222607 | I102: 5186346.1 | J102: 1321.407593 | K102: 2.441071015 | L102: 5517523.45 | M102: 30743995 | N102: 53424877.45 | O102: 0.3212615512 | P102: 0.1032762959 | Q102: 0.575462153 | R102: 10513 | S102: 493.3269381 | T102: 1544400 | U102: 75300 | V102: 221100 | W102: 6491650 | X102: 3402800 | Y102: 85900 | Z102: 759801 | AA102: 282000 | AB102: 2106702 | AC102: 97600 | AD102: =IFERROR(T102*'Inputs & Assumptions'!$Q$40,"--") -> 154440 | AE102: =IFERROR(U102*'Inputs & Assumptions'!$Q$41,"--") -> 7530 | AF102: =IFERROR(V102*'Inputs & Assumptions'!$Q$42,"--") -> 110550 | AG102: =IFERROR(W102*'Inputs & Assumptions'!$Q$43,"--") -> 3245825 | AH102: =IFERROR(X102*'Inputs & Assumptions'!$Q$44,"--") -> 340280 | AI102: =IFERROR(Y102*'Inputs & Assumptions'!$Q$45,"--") -> 8590 | AJ102: =IFERROR(Z102*'Inputs & Assumptions'!$Q$46,"--") -> 75980.1 | AK102: =IFERROR(AA102*'Inputs & Assumptions'!$Q$47,"--") -> 141000 | AL102: =IFERROR(AB102*'Inputs & Assumptions'!$Q$48,"--") -> 1053351 | AM102: =IFERROR(AC102*'Inputs & Assumptions'!$Q$49,"--") -> 48800
A103: 1310 | B103: Deal Borough | C103: Monmouth | D103: 3402516660 | E103: 100 | F103: 2770169530 | G103: 8034954.94 | H103: 0.2900528236 | I103: 2580605.2 | J103: 757.9116777 | K103: 0.6494469727 | L103: 7867686.21 | M103: 2088141 | N103: 17990782.15 | O103: 0.4466150984 | P103: 0.4373176299 | Q103: 0.1160672717 | R103: 845 | S103: 3053.970651 | T103: 1968552 | U103: 102150 | V103: 251800 | W103: 2596600 | X103: 1026850 | Y103: 40000 | Z103: 0 | AA103: 250000 | AB103: 1251000 | AC103: 184300 | AD103: =IFERROR(T103*'Inputs & Assumptions'!$Q$40,"--") -> 196855.2 | AE103: =IFERROR(U103*'Inputs & Assumptions'!$Q$41,"--") -> 10215 | AF103: =IFERROR(V103*'Inputs & Assumptions'!$Q$42,"--") -> 125900 | AG103: =IFERROR(W103*'Inputs & Assumptions'!$Q$43,"--") -> 1298300 | AH103: =IFERROR(X103*'Inputs & Assumptions'!$Q$44,"--") -> 102685 | AI103: =IFERROR(Y103*'Inputs & Assumptions'!$Q$45,"--") -> 4000 | AJ103: =IFERROR(Z103*'Inputs & Assumptions'!$Q$46,"--") -> 0 | AK103: =IFERROR(AA103*'Inputs & Assumptions'!$Q$47,"--") -> 125000 | AL103: =IFERROR(AB103*'Inputs & Assumptions'!$Q$48,"--") -> 625500 | AM103: =IFERROR(AC103*'Inputs & Assumptions'!$Q$49,"--") -> 92150
A104: 0603 | B104: Deerfield Township | C104: Cumberland | D104: 3401116900 | E104: 101 | F104: 191535692 | G104: 172060.58 | H104: 0.08983212382 | I104: 261429.335 | J104: 10778.67251 | K104: 3.758486544 | L104: 2520964.63 | M104: 4505818 | N104: 7198843.21 | O104: 0.02390114286 | P104: 0.3501902398 | Q104: 0.6259086173 | R104: 4028 | S104: 64.90301266 | T104: 481321 | U104: 22201 | V104: 15252 | W104: 229605 | X104: 354862.35 | Y104: 51724 | Z104: 0 | AA104: 0 | AB104: 95980 | AC104: 0 | AD104: =IFERROR(T104*'Inputs & Assumptions'!$Q$40,"--") -> 48132.1 | AE104: =IFERROR(U104*'Inputs & Assumptions'!$Q$41,"--") -> 2220.1 | AF104: =IFERROR(V104*'Inputs & Assumptions'!$Q$42,"--") -> 7626 | AG104: =IFERROR(W104*'Inputs & Assumptions'!$Q$43,"--") -> 114802.5 | AH104: =IFERROR(X104*'Inputs & Assumptions'!$Q$44,"--") -> 35486.235 | AI104: =IFERROR(Y104*'Inputs & Assumptions'!$Q$45,"--") -> 5172.4 | AJ104: =IFERROR(Z104*'Inputs & Assumptions'!$Q$46,"--") -> 0 | AK104: =IFERROR(AA104*'Inputs & Assumptions'!$Q$47,"--") -> 0 | AL104: =IFERROR(AB104*'Inputs & Assumptions'!$Q$48,"--") -> 47990 | AM104: =IFERROR(AC104*'Inputs & Assumptions'!$Q$49,"--") -> 0
A105: 0309 | B105: Delanco Township | C105: Burlington | D105: 3400517080 | E105: 102 | F105: 403859491 | G105: 4426867.15 | H105: 1.096140427 | I105: 1605774.83 | J105: 1508.868083 | K105: 3.317127399 | L105: 1746831.68 | M105: 7222835 | N105: 13396533.83 | O105: 0.3304486971 | P105: 0.1303943022 | Q105: 0.5391570007 | R105: 5925 | S105: 271.0168489 | T105: 719265 | U105: 46000 | V105: 171000 | W105: 1844741.59 | X105: 739590.35 | Y105: 11730 | Z105: 80405 | AA105: 215000 | AB105: 592360 | AC105: 69050 | AD105: =IFERROR(T105*'Inputs & Assumptions'!$Q$40,"--") -> 71926.5 | AE105: =IFERROR(U105*'Inputs & Assumptions'!$Q$41,"--") -> 4600 | AF105: =IFERROR(V105*'Inputs & Assumptions'!$Q$42,"--") -> 85500 | AG105: =IFERROR(W105*'Inputs & Assumptions'!$Q$43,"--") -> 922370.795 | AH105: =IFERROR(X105*'Inputs & Assumptions'!$Q$44,"--") -> 73959.035 | AI105: =IFERROR(Y105*'Inputs & Assumptions'!$Q$45,"--") -> 1173 | AJ105: =IFERROR(Z105*'Inputs & Assumptions'!$Q$46,"--") -> 8040.5 | AK105: =IFERROR(AA105*'Inputs & Assumptions'!$Q$47,"--") -> 107500 | AL105: =IFERROR(AB105*'Inputs & Assumptions'!$Q$48,"--") -> 296180 | AM105: =IFERROR(AC105*'Inputs & Assumptions'!$Q$49,"--") -> 34525
A106: 1007 | B106: Delaware Township | C106: Hunterdon | D106: 3401917170 | E106: 103 | F106: 804851030 | G106: 3984002 | H106: 0.4949986832 | I106: 1031185.775 | J106: 23459.57333 | K106: 2.599144597 | L106: 3291181.06 | M106: 13644059 | N106: 20919242.06 | O106: 0.1904467661 | P106: 0.1573279305 | Q106: 0.6522253034 | R106: 4959 | S106: 207.9422817 | T106: 574681.74 | U106: 59061.48 | V106: 111685 | W106: 1068713.4 | X106: 848013.2 | Y106: 10400 | Z106: 34024.33 | AA106: 0 | AB106: 485727 | AC106: 91010 | AD106: =IFERROR(T106*'Inputs & Assumptions'!$Q$40,"--") -> 57468.174 | AE106: =IFERROR(U106*'Inputs & Assumptions'!$Q$41,"--") -> 5906.148 | AF106: =IFERROR(V106*'Inputs & Assumptions'!$Q$42,"--") -> 55842.5 | AG106: =IFERROR(W106*'Inputs & Assumptions'!$Q$43,"--") -> 534356.7 | AH106: =IFERROR(X106*'Inputs & Assumptions'!$Q$44,"--") -> 84801.32 | AI106: =IFERROR(Y106*'Inputs & Assumptions'!$Q$45,"--") -> 1040 | AJ106: =IFERROR(Z106*'Inputs & Assumptions'!$Q$46,"--") -> 3402.433 | AK106: =IFERROR(AA106*'Inputs & Assumptions'!$Q$47,"--") -> 0 | AL106: =IFERROR(AB106*'Inputs & Assumptions'!$Q$48,"--") -> 242863.5 | AM106: =IFERROR(AC106*'Inputs & Assumptions'!$Q$49,"--") -> 45505
A107: 0310 | B107: Delran Township | C107: Burlington | D107: 3400517440 | E107: 104 | F107: 1427628287 | G107: 11603695.45 | H107: 0.8127952882 | I107: 4139747.1 | J107: 4243.199204 | K107: 3.733034778 | L107: 6380863 | M107: 35309302 | N107: 53293860.45 | O107: 0.2177304356 | P107: 0.1197297953 | Q107: 0.6625397692 | R107: 20705 | S107: 199.939488 | T107: 3723784 | U107: 109400 | V107: 345350 | W107: 4215815 | X107: 2213657 | Y107: 64200 | Z107: 0 | AA107: 570000 | AB107: 1735456 | AC107: 190665 | AD107: =IFERROR(T107*'Inputs & Assumptions'!$Q$40,"--") -> 372378.4 | AE107: =IFERROR(U107*'Inputs & Assumptions'!$Q$41,"--") -> 10940 | AF107: =IFERROR(V107*'Inputs & Assumptions'!$Q$42,"--") -> 172675 | AG107: =IFERROR(W107*'Inputs & Assumptions'!$Q$43,"--") -> 2107907.5 | AH107: =IFERROR(X107*'Inputs & Assumptions'!$Q$44,"--") -> 221365.7 | AI107: =IFERROR(Y107*'Inputs & Assumptions'!$Q$45,"--") -> 6420 | AJ107: =IFERROR(Z107*'Inputs & Assumptions'!$Q$46,"--") -> 0 | AK107: =IFERROR(AA107*'Inputs & Assumptions'!$Q$47,"--") -> 285000 | AL107: =IFERROR(AB107*'Inputs & Assumptions'!$Q$48,"--") -> 867728 | AM107: =IFERROR(AC107*'Inputs & Assumptions'!$Q$49,"--") -> 95332.5
A108: 0209 | B108: Demarest Borough | C108: Bergen | D108: 3400317530 | E108: 105 | F108: 1359504610 | G108: 8407863 | H108: 0.6184504957 | I108: 2690399.9 | J108: 1326.364772 | K108: 2.768907131 | L108: 4121355.09 | M108: 25114202 | N108: 37643420.09 | O108: 0.2233554491 | P108: 0.1094840766 | Q108: 0.6671604743 | R108: 5680 | S108: 473.6619542 | T108: 901500 | U108: 28650 | V108: 141564 | W108: 3043458 | X108: 1967366 | Y108: 47745 | Z108: 545338 | AA108: 554200 | AB108: 888194 | AC108: 55264 | AD108: =IFERROR(T108*'Inputs & Assumptions'!$Q$40,"--") -> 90150 | AE108: =IFERROR(U108*'Inputs & Assumptions'!$Q$41,"--") -> 2865 | AF108: =IFERROR(V108*'Inputs & Assumptions'!$Q$42,"--") -> 70782 | AG108: =IFERROR(W108*'Inputs & Assumptions'!$Q$43,"--") -> 1521729 | AH108: =IFERROR(X108*'Inputs & Assumptions'!$Q$44,"--") -> 196736.6 | AI108: =IFERROR(Y108*'Inputs & Assumptions'!$Q$45,"--") -> 4774.5 | AJ108: =IFERROR(Z108*'Inputs & Assumptions'!$Q$46,"--") -> 54533.8 | AK108: =IFERROR(AA108*'Inputs & Assumptions'!$Q$47,"--") -> 277100 | AL108: =IFERROR(AB108*'Inputs & Assumptions'!$Q$48,"--") -> 444097 | AM108: =IFERROR(AC108*'Inputs & Assumptions'!$Q$49,"--") -> 27632
A109: 0504 | B109: Dennis Township | C109: Cape May | D109: 3400917560 | E109: 106 | F109: 891853385 | G109: 2047177.74 | H109: 0.22954196 | I109: 584725.625 | J109: 38669.25693 | K109: 1.743060061 | L109: 2640634.42 | M109: 10857728 | N109: 15545540.16 | O109: 0.1316890709 | P109: 0.1698644365 | Q109: 0.6984464926 | R109: 7236 | S109: 80.8078531 | T109: 785825 | U109: 43000 | V109: 0 | W109: 304466 | X109: 1014700 | Y109: 140801.25 | Z109: 0 | AA109: 240000 | AB109: 228120 | AC109: 0 | AD109: =IFERROR(T109*'Inputs & Assumptions'!$Q$40,"--") -> 78582.5 | AE109: =IFERROR(U109*'Inputs & Assumptions'!$Q$41,"--") -> 4300 | AF109: =IFERROR(V109*'Inputs & Assumptions'!$Q$42,"--") -> 0 | AG109: =IFERROR(W109*'Inputs & Assumptions'!$Q$43,"--") -> 152233 | AH109: =IFERROR(X109*'Inputs & Assumptions'!$Q$44,"--") -> 101470 | AI109: =IFERROR(Y109*'Inputs & Assumptions'!$Q$45,"--") -> 14080.125 | AJ109: =IFERROR(Z109*'Inputs & Assumptions'!$Q$46,"--") -> 0 | AK109: =IFERROR(AA109*'Inputs & Assumptions'!$Q$47,"--") -> 120000 | AL109: =IFERROR(AB109*'Inputs & Assumptions'!$Q$48,"--") -> 114060 | AM109: =IFERROR(AC109*'Inputs & Assumptions'!$Q$49,"--") -> 0
A110: 1408 | B110: Denville Township | C110: Morris | D110: 3402717650 | E110: 107 | F110: 3100424900 | G110: 15703309.64 | H110: 0.5064889538 | I110: 5580025.78 | J110: 7674.606659 | K110: 2.53288767 | L110: 8822034.37 | M110: 54004936 | N110: 78530280.01 | O110: 0.199965028 | P110: 0.1123392705 | Q110: 0.6876957015 | R110: 25337 | S110: 220.2322998 | T110: 2291083 | U110: 106988 | V110: 388327 | W110: 5384725.5 | X110: 5284521 | Y110: 360286 | Z110: 1116227.3 | AA110: 767000 | AB110: 2516564 | AC110: 271614 | AD110: =IFERROR(T110*'Inputs & Assumptions'!$Q$40,"--") -> 229108.3 | AE110: =IFERROR(U110*'Inputs & Assumptions'!$Q$41,"--") -> 10698.8 | AF110: =IFERROR(V110*'Inputs & Assumptions'!$Q$42,"--") -> 194163.5 | AG110: =IFERROR(W110*'Inputs & Assumptions'!$Q$43,"--") -> 2692362.75 | AH110: =IFERROR(X110*'Inputs & Assumptions'!$Q$44,"--") -> 528452.1 | AI110: =IFERROR(Y110*'Inputs & Assumptions'!$Q$45,"--") -> 36028.6 | AJ110: =IFERROR(Z110*'Inputs & Assumptions'!$Q$46,"--") -> 111622.73 | AK110: =IFERROR(AA110*'Inputs & Assumptions'!$Q$47,"--") -> 383500 | AL110: =IFERROR(AB110*'Inputs & Assumptions'!$Q$48,"--") -> 1258282 | AM110: =IFERROR(AC110*'Inputs & Assumptions'!$Q$49,"--") -> 135807
A111: 0802 | B111: Deptford Township | C111: Gloucester | D111: 3401517710 | E111: 108 | F111: 2838348378 | G111: 24846740.78 | H111: 0.8753943305 | I111: 7731104.025 | J111: 11092.03883 | K111: 3.223237105 | L111: 20760870.31 | M111: 45879087 | N111: 91486698.09 | O111: 0.271588562 | P111: 0.2269277473 | Q111: 0.5014836906 | R111: 41395 | S111: 186.7641992 | T111: 2606000 | U111: 385000 | V111: 552500 | W111: 7879148.65 | X111: 4035000 | Y111: 277000 | Z111: 1004797 | AA111: 1410000 | AB111: 3408000 | AC111: 551000 | AD111: =IFERROR(T111*'Inputs & Assumptions'!$Q$40,"--") -> 260600 | AE111: =IFERROR(U111*'Inputs & Assumptions'!$Q$41,"--") -> 38500 | AF111: =IFERROR(V111*'Inputs & Assumptions'!$Q$42,"--") -> 276250 | AG111: =IFERROR(W111*'Inputs & Assumptions'!$Q$43,"--") -> 3939574.325 | AH111: =IFERROR(X111*'Inputs & Assumptions'!$Q$44,"--") -> 403500 | AI111: =IFERROR(Y111*'Inputs & Assumptions'!$Q$45,"--") -> 27700 | AJ111: =IFERROR(Z111*'Inputs & Assumptions'!$Q$46,"--") -> 100479.7 | AK111: =IFERROR(AA111*'Inputs & Assumptions'!$Q$47,"--") -> 705000 | AL111: =IFERROR(AB111*'Inputs & Assumptions'!$Q$48,"--") -> 1704000 | AM111: =IFERROR(AC111*'Inputs & Assumptions'!$Q$49,"--") -> 275500
A112: 1409 | B112: Dover Town | C112: Morris | D112: 3402718070 | E112: 109 | F112: 1303176200 | G112: 18119924.79 | H112: 1.390443195 | I112: 6742209.981 | J112: 1712.433907 | K112: 2.902070073 | L112: 3729830.71 | M112: 15969331 | N112: 37819086.5 | O112: 0.4791211652 | P112: 0.09862297203 | Q112: 0.4222558628 | R112: 23159 | S112: 291.1269909 | T112: 4559759.114 | U112: 23632 | V112: 488075.3253 | W112: 7892729.078 | X112: 3153041.351 | Y112: 346250.95 | Z112: 470833.23 | AA112: 0 | AB112: 3096447.66 | AC112: 296464.57 | AD112: =IFERROR(T112*'Inputs & Assumptions'!$Q$40,"--") -> 455975.9114 | AE112: =IFERROR(U112*'Inputs & Assumptions'!$Q$41,"--") -> 2363.2 | AF112: =IFERROR(V112*'Inputs & Assumptions'!$Q$42,"--") -> 244037.6626 | AG112: =IFERROR(W112*'Inputs & Assumptions'!$Q$43,"--") -> 3946364.539 | AH112: =IFERROR(X112*'Inputs & Assumptions'!$Q$44,"--") -> 315304.1351 | AI112: =IFERROR(Y112*'Inputs & Assumptions'!$Q$45,"--") -> 34625.095 | AJ112: =IFERROR(Z112*'Inputs & Assumptions'!$Q$46,"--") -> 47083.323 | AK112: =IFERROR(AA112*'Inputs & Assumptions'!$Q$47,"--") -> 0 | AL112: =IFERROR(AB112*'Inputs & Assumptions'!$Q$48,"--") -> 1548223.83 | AM112: =IFERROR(AC112*'Inputs & Assumptions'!$Q$49,"--") -> 148232.285
A113: 0604 | B113: Downe Township | C113: Cumberland | D113: 3401118220 | E113: 110 | F113: 161779900 | G113: 520943.31 | H113: 0.3220074373 | I113: -- | J113: 30977.91704 | K113: 2.249517134 | L113: 1597395.26 | M113: 1520928 | N113: 3639266.57 | O113: 0.1431451365 | P113: 0.4389332931 | Q113: 0.4179215704 | R113: 1583 | S113: -- | T113: No data | U113: No data | V113: No data | W113: No data | X113: No data | Y113: No data | Z113: No data | AA113: No data | AB113: No data | AC113: No data | AD113: =IFERROR(T113*'Inputs & Assumptions'!$Q$40,"--") -> -- | AE113: =IFERROR(U113*'Inputs & Assumptions'!$Q$41,"--") -> -- | AF113: =IFERROR(V113*'Inputs & Assumptions'!$Q$42,"--") -> -- | AG113: =IFERROR(W113*'Inputs & Assumptions'!$Q$43,"--") -> -- | AH113: =IFERROR(X113*'Inputs & Assumptions'!$Q$44,"--") -> -- | AI113: =IFERROR(Y113*'Inputs & Assumptions'!$Q$45,"--") -> -- | AJ113: =IFERROR(Z113*'Inputs & Assumptions'!$Q$46,"--") -> -- | AK113: =IFERROR(AA113*'Inputs & Assumptions'!$Q$47,"--") -> -- | AL113: =IFERROR(AB113*'Inputs & Assumptions'!$Q$48,"--") -> -- | AM113: =IFERROR(AC113*'Inputs & Assumptions'!$Q$49,"--") -> --
A114: 0210 | B114: Dumont Borough | C114: Bergen | D114: 3400318400 | E114: 111 | F114: 1691290040 | G114: 21076676 | H114: 1.246189329 | I114: 5139956.3 | J114: 1247.617014 | K114: 3.863194915 | L114: 5630711.82 | M114: 38630443 | N114: 65337830.82 | O114: 0.3225799776 | P114: 0.08617843215 | Q114: 0.5912415903 | R114: 19363 | S114: 265.4524764 | T114: 1271006 | U114: 30470 | V114: 265425 | W114: 6035979 | X114: 4910574 | Y114: 311588 | Z114: 745415 | AA114: 0 | AB114: 2395346 | AC114: 129352 | AD114: =IFERROR(T114*'Inputs & Assumptions'!$Q$40,"--") -> 127100.6 | AE114: =IFERROR(U114*'Inputs & Assumptions'!$Q$41,"--") -> 3047 | AF114: =IFERROR(V114*'Inputs & Assumptions'!$Q$42,"--") -> 132712.5 | AG114: =IFERROR(W114*'Inputs & Assumptions'!$Q$43,"--") -> 3017989.5 | AH114: =IFERROR(X114*'Inputs & Assumptions'!$Q$44,"--") -> 491057.4 | AI114: =IFERROR(Y114*'Inputs & Assumptions'!$Q$45,"--") -> 31158.8 | AJ114: =IFERROR(Z114*'Inputs & Assumptions'!$Q$46,"--") -> 74541.5 | AK114: =IFERROR(AA114*'Inputs & Assumptions'!$Q$47,"--") -> 0 | AL114: =IFERROR(AB114*'Inputs & Assumptions'!$Q$48,"--") -> 1197673 | AM114: =IFERROR(AC114*'Inputs & Assumptions'!$Q$49,"--") -> 64676
A115: 1203 | B115: Dunellen Borough | C115: Middlesex | D115: 3402318490 | E115: 112 | F115: 695204401 | G115: 5731844 | H115: 0.8244832731 | I115: 1942376.11 | J115: 679.818749 | K115: 3.10713951 | L115: 2727640.62 | M115: 13141486 | N115: 21600970.62 | O115: 0.2653512243 | P115: 0.1262739841 | Q115: 0.6083747916 | R115: 8065 | S115: 240.8401872 | T115: 1329409 | U115: 25000 | V115: 114500 | W115: 2274081.1 | X115: 760649 | Y115: 59710 | Z115: 224668 | AA115: 29267.92 | AB115: 822856 | AC115: 164160 | AD115: =IFERROR(T115*'Inputs & Assumptions'!$Q$40,"--") -> 132940.9 | AE115: =IFERROR(U115*'Inputs & Assumptions'!$Q$41,"--") -> 2500 | AF115: =IFERROR(V115*'Inputs & Assumptions'!$Q$42,"--") -> 57250 | AG115: =IFERROR(W115*'Inputs & Assumptions'!$Q$43,"--") -> 1137040.55 | AH115: =IFERROR(X115*'Inputs & Assumptions'!$Q$44,"--") -> 76064.9 | AI115: =IFERROR(Y115*'Inputs & Assumptions'!$Q$45,"--") -> 5971 | AJ115: =IFERROR(Z115*'Inputs & Assumptions'!$Q$46,"--") -> 22466.8 | AK115: =IFERROR(AA115*'Inputs & Assumptions'!$Q$47,"--") -> 14633.96 | AL115: =IFERROR(AB115*'Inputs & Assumptions'!$Q$48,"--") -> 411428 | AM115: =IFERROR(AC115*'Inputs & Assumptions'!$Q$49,"--") -> 82080
A116: 1508 | B116: Eagleswood Township | C116: Ocean | D116: 3402918670 | E116: 113 | F116: 234078200 | G116: 995109.31 | H116: 0.4251183194 | I116: 201489.555 | J116: 10306.098 | K116: 2.658084666 | L116: 937687.43 | M116: 4289200 | N116: 6221996.74 | O116: 0.1599340777 | P116: 0.1507052268 | Q116: 0.6893606955 | R116: 1962 | S116: 102.6960015 | T116: 370683 | U116: 6501 | V116: 20150 | W116: 64501 | X116: 810720 | Y116: 3900 | Z116: 0 | AA116: 3200 | AB116: 76767.31 | AC116: 0 | AD116: =IFERROR(T116*'Inputs & Assumptions'!$Q$40,"--") -> 37068.3 | AE116: =IFERROR(U116*'Inputs & Assumptions'!$Q$41,"--") -> 650.1 | AF116: =IFERROR(V116*'Inputs & Assumptions'!$Q$42,"--") -> 10075 | AG116: =IFERROR(W116*'Inputs & Assumptions'!$Q$43,"--") -> 32250.5 | AH116: =IFERROR(X116*'Inputs & Assumptions'!$Q$44,"--") -> 81072 | AI116: =IFERROR(Y116*'Inputs & Assumptions'!$Q$45,"--") -> 390 | AJ116: =IFERROR(Z116*'Inputs & Assumptions'!$Q$46,"--") -> 0 | AK116: =IFERROR(AA116*'Inputs & Assumptions'!$Q$47,"--") -> 1600 | AL116: =IFERROR(AB116*'Inputs & Assumptions'!$Q$48,"--") -> 38383.655 | AM116: =IFERROR(AC116*'Inputs & Assumptions'!$Q$49,"--") -> 0
A117: 1008 | B117: East Amwell Township | C117: Hunterdon | D117: 3401918820 | E117: 114 | F117: 672503140 | G117: 1633600 | H117: 0.2429133639 | I117: 226521.955 | J117: 18211.15702 | K117: 2.511886542 | L117: 2837807.87 | M117: 12421108 | N117: 16892515.87 | O117: 0.09670554775 | P117: 0.1679920204 | Q117: 0.7353024319 | R117: 4550 | S117: 49.78504505 | T117: 427575 | U117: 105250 | V117: 0 | W117: 40090 | X117: 462340 | Y117: 66125 | Z117: 0 | AA117: 1939.97 | AB117: 142823.94 | AC117: 55932 | AD117: =IFERROR(T117*'Inputs & Assumptions'!$Q$40,"--") -> 42757.5 | AE117: =IFERROR(U117*'Inputs & Assumptions'!$Q$41,"--") -> 10525 | AF117: =IFERROR(V117*'Inputs & Assumptions'!$Q$42,"--") -> 0 | AG117: =IFERROR(W117*'Inputs & Assumptions'!$Q$43,"--") -> 20045 | AH117: =IFERROR(X117*'Inputs & Assumptions'!$Q$44,"--") -> 46234 | AI117: =IFERROR(Y117*'Inputs & Assumptions'!$Q$45,"--") -> 6612.5 | AJ117: =IFERROR(Z117*'Inputs & Assumptions'!$Q$46,"--") -> 0 | AK117: =IFERROR(AA117*'Inputs & Assumptions'!$Q$47,"--") -> 969.985 | AL117: =IFERROR(AB117*'Inputs & Assumptions'!$Q$48,"--") -> 71411.97 | AM117: =IFERROR(AC117*'Inputs & Assumptions'!$Q$49,"--") -> 27966
A118: 1204 | B118: East Brunswick Township | C118: Middlesex | D118: 3402319000 | E118: 115 | F118: 1911754466 | G118: 44657480.5 | H118: 2.335942261 | I118: 13919604.3 | J118: 13941.92058 | K118: 11.13630136 | L118: 30427943.13 | M118: 137813315 | N118: 212898738.6 | O118: 0.2097592536 | P118: 0.1429221391 | Q118: 0.6473186074 | R118: 65882 | S118: 211.28084 | T118: 3972856 | U118: 707989 | V118: 0 | W118: 13827400 | X118: 5024428 | Y118: 701150 | Z118: 3348000 | AA118: 3511438 | AB118: 7097586 | AC118: 651900 | AD118: =IFERROR(T118*'Inputs & Assumptions'!$Q$40,"--") -> 397285.6 | AE118: =IFERROR(U118*'Inputs & Assumptions'!$Q$41,"--") -> 70798.9 | AF118: =IFERROR(V118*'Inputs & Assumptions'!$Q$42,"--") -> 0 | AG118: =IFERROR(W118*'Inputs & Assumptions'!$Q$43,"--") -> 6913700 | AH118: =IFERROR(X118*'Inputs & Assumptions'!$Q$44,"--") -> 502442.8 | AI118: =IFERROR(Y118*'Inputs & Assumptions'!$Q$45,"--") -> 70115 | AJ118: =IFERROR(Z118*'Inputs & Assumptions'!$Q$46,"--") -> 334800 | AK118: =IFERROR(AA118*'Inputs & Assumptions'!$Q$47,"--") -> 1755719 | AL118: =IFERROR(AB118*'Inputs & Assumptions'!$Q$48,"--") -> 3548793 | AM118: =IFERROR(AC118*'Inputs & Assumptions'!$Q$49,"--") -> 325950
A119: 0803 | B119: East Greenwich Township | C119: Gloucester | D119: 3401519180 | E119: 116 | F119: 1229802600 | G119: 4271000 | H119: 0.3472915084 | I119: 2358843.245 | J119: 9243.792894 | K119: 3.010823415 | L119: 9214565.64 | M119: 23541619 | N119: 37027184.64 | O119: 0.1153476842 | P119: 0.2488594726 | Q119: 0.6357928433 | R119: 12601 | S119: 187.1949246 | T119: 3176814 | U119: 25448 | V119: 214760 | W119: 2670658.25 | X119: 1229444 | Y119: 61426 | Z119: 0 | AA119: 15266.84 | AB119: 918375 | AC119: 0 | AD119: =IFERROR(T119*'Inputs & Assumptions'!$Q$40,"--") -> 317681.4 | AE119: =IFERROR(U119*'Inputs & Assumptions'!$Q$41,"--") -> 2544.8 | AF119: =IFERROR(V119*'Inputs & Assumptions'!$Q$42,"--") -> 107380 | AG119: =IFERROR(W119*'Inputs & Assumptions'!$Q$43,"--") -> 1335329.125 | AH119: =IFERROR(X119*'Inputs & Assumptions'!$Q$44,"--") -> 122944.4 | AI119: =IFERROR(Y119*'Inputs & Assumptions'!$Q$45,"--") -> 6142.6 | AJ119: =IFERROR(Z119*'Inputs & Assumptions'!$Q$46,"--") -> 0 | AK119: =IFERROR(AA119*'Inputs & Assumptions'!$Q$47,"--") -> 7633.42 | AL119: =IFERROR(AB119*'Inputs & Assumptions'!$Q$48,"--") -> 459187.5 | AM119: =IFERROR(AC119*'Inputs & Assumptions'!$Q$49,"--") -> 0
A120: 1410 | B120: East Hanover Township | C120: Morris | D120: 3402719210 | E120: 117 | F120: 2515268569 | G120: 18935588 | H120: 0.7528256916 | I120: 5507743.768 | J120: 5039.882194 | K120: 2.437414412 | L120: 8843336.6 | M120: 33528594 | N120: 61307518.6 | O120: 0.3088624109 | P120: 0.1442455477 | Q120: 0.5468920414 | R120: 25668 | S120: 214.5762727 | T120: 1859653 | U120: 91000 | V120: 345200 | W120: 5746687.01 | X120: 6685722 | Y120: 409848.5 | Z120: 1142499.13 | AA120: 0 | AB120: 2690846 | AC120: 195010 | AD120: =IFERROR(T120*'Inputs & Assumptions'!$Q$40,"--") -> 185965.3 | AE120: =IFERROR(U120*'Inputs & Assumptions'!$Q$41,"--") -> 9100 | AF120: =IFERROR(V120*'Inputs & Assumptions'!$Q$42,"--") -> 172600 | AG120: =IFERROR(W120*'Inputs & Assumptions'!$Q$43,"--") -> 2873343.505 | AH120: =IFERROR(X120*'Inputs & Assumptions'!$Q$44,"--") -> 668572.2 | AI120: =IFERROR(Y120*'Inputs & Assumptions'!$Q$45,"--") -> 40984.85 | AJ120: =IFERROR(Z120*'Inputs & Assumptions'!$Q$46,"--") -> 114249.913 | AK120: =IFERROR(AA120*'Inputs & Assumptions'!$Q$47,"--") -> 0 | AL120: =IFERROR(AB120*'Inputs & Assumptions'!$Q$48,"--") -> 1345423 | AM120: =IFERROR(AC120*'Inputs & Assumptions'!$Q$49,"--") -> 97505
A121: 0902 | B121: East Newark Borough | C121: Hudson | D121: 3401719360 | E121: 118 | F121: 158673917 | G121: 1926525.88 | H121: 1.214141503 | I121: 996682.35 | J121: 65.61510052 | K121: 2.716377582 | L121: 891243.83 | M121: 1492413 | N121: 4310182.71 | O121: 0.4469708153 | P121: 0.2067763457 | Q121: 0.346252839 | R121: 2875 | S121: 346.6721217 | T121: 949645 | U121: 54000 | V121: 41000 | W121: 951741.06 | X121: 266560.48 | Y121: 87647.72 | Z121: 0 | AA121: 295500 | AB121: 321753 | AC121: 111800 | AD121: =IFERROR(T121*'Inputs & Assumptions'!$Q$40,"--") -> 94964.5 | AE121: =IFERROR(U121*'Inputs & Assumptions'!$Q$41,"--") -> 5400 | AF121: =IFERROR(V121*'Inputs & Assumptions'!$Q$42,"--") -> 20500 | AG121: =IFERROR(W121*'Inputs & Assumptions'!$Q$43,"--") -> 475870.53 | AH121: =IFERROR(X121*'Inputs & Assumptions'!$Q$44,"--") -> 26656.048 | AI121: =IFERROR(Y121*'Inputs & Assumptions'!$Q$45,"--") -> 8764.772 | AJ121: =IFERROR(Z121*'Inputs & Assumptions'!$Q$46,"--") -> 0 | AK121: =IFERROR(AA121*'Inputs & Assumptions'!$Q$47,"--") -> 147750 | AL121: =IFERROR(AB121*'Inputs & Assumptions'!$Q$48,"--") -> 160876.5 | AM121: =IFERROR(AC121*'Inputs & Assumptions'!$Q$49,"--") -> 55900
A122: 0705 | B122: East Orange City | C122: Essex | D122: 3401319390 | E122: 119 | F122: 2428874905 | G122: 93248991.98 | H122: 3.839184628 | I122: 44478808.45 | J122: 2513.656221 | K122: 5.540065566 | L122: 16769515.28 | M122: 24542755 | N122: 134561262.3 | O122: 0.6929854136 | P122: 0.1246236472 | Q122: 0.1823909392 | R122: 74287 | S122: 598.7428279 | T122: 16242414.52 | U122: 68130.36 | V122: 2856278.63 | W122: 49788460.68 | X122: 26675766.18 | Y122: 23522583.64 | Z122: 4529067 | AA122: 0 | AB122: 19448513.02 | AC122: 2656772.24 | AD122: =IFERROR(T122*'Inputs & Assumptions'!$Q$40,"--") -> 1624241.452 | AE122: =IFERROR(U122*'Inputs & Assumptions'!$Q$41,"--") -> 6813.036 | AF122: =IFERROR(V122*'Inputs & Assumptions'!$Q$42,"--") -> 1428139.315 | AG122: =IFERROR(W122*'Inputs & Assumptions'!$Q$43,"--") -> 24894230.34 | AH122: =IFERROR(X122*'Inputs & Assumptions'!$Q$44,"--") -> 2667576.618 | AI122: =IFERROR(Y122*'Inputs & Assumptions'!$Q$45,"--") -> 2352258.364 | AJ122: =IFERROR(Z122*'Inputs & Assumptions'!$Q$46,"--") -> 452906.7 | AK122: =IFERROR(AA122*'Inputs & Assumptions'!$Q$47,"--") -> 0 | AL122: =IFERROR(AB122*'Inputs & Assumptions'!$Q$48,"--") -> 9724256.51 | AM122: =IFERROR(AC122*'Inputs & Assumptions'!$Q$49,"--") -> 1328386.12
A123: 0212 | B123: East Rutherford Borough | C123: Bergen | D123: 3400319510 | E123: 120 | F123: 2376807910 | G123: 12398222.26 | H123: 0.5216333305 | I123: 6581373.876 | J123: 2375.36474 | K123: 1.796866066 | L123: 6350173.52 | M123: 23959659 | N123: 42708054.78 | O123: 0.2903017317 | P123: 0.1486879595 | Q123: 0.5610103088 | R123: 17865 | S123: 368.3948433 | T123: 2071150 | U123: 63200 | V123: 252000 | W123: 7786300 | X123: 4950350 | Y123: 89000 | Z123: 871302.16 | AA123: 460000 | AB123: 2771747.32 | AC123: 283700 | AD123: =IFERROR(T123*'Inputs & Assumptions'!$Q$40,"--") -> 207115 | AE123: =IFERROR(U123*'Inputs & Assumptions'!$Q$41,"--") -> 6320 | AF123: =IFERROR(V123*'Inputs & Assumptions'!$Q$42,"--") -> 126000 | AG123: =IFERROR(W123*'Inputs & Assumptions'!$Q$43,"--") -> 3893150 | AH123: =IFERROR(X123*'Inputs & Assumptions'!$Q$44,"--") -> 495035 | AI123: =IFERROR(Y123*'Inputs & Assumptions'!$Q$45,"--") -> 8900 | AJ123: =IFERROR(Z123*'Inputs & Assumptions'!$Q$46,"--") -> 87130.216 | AK123: =IFERROR(AA123*'Inputs & Assumptions'!$Q$47,"--") -> 230000 | AL123: =IFERROR(AB123*'Inputs & Assumptions'!$Q$48,"--") -> 1385873.66 | AM123: =IFERROR(AC123*'Inputs & Assumptions'!$Q$49,"--") -> 141850
A124: 1101 | B124: East Windsor Township | C124: Mercer | D124: 3402119780 | E124: 121 | F124: 2831414658 | G124: 12266727.76 | H124: 0.4332367117 | I124: 6383378.1 | J124: 9963.114387 | K124: 3.281678268 | L124: 19624702.76 | M124: 61026489 | N124: 92917919.52 | O124: 0.1320168147 | P124: 0.2112047155 | Q124: 0.6567784698 | R124: 32640 | S124: 195.569182 | T124: 1367588 | U124: 60125 | V124: 401441 | W124: 7303529 | X124: 2229436 | Y124: 492562 | Z124: 0 | AA124: 973000 | AB124: 2838680 | AC124: 420164 | AD124: =IFERROR(T124*'Inputs & Assumptions'!$Q$40,"--") -> 136758.8 | AE124: =IFERROR(U124*'Inputs & Assumptions'!$Q$41,"--") -> 6012.5 | AF124: =IFERROR(V124*'Inputs & Assumptions'!$Q$42,"--") -> 200720.5 | AG124: =IFERROR(W124*'Inputs & Assumptions'!$Q$43,"--") -> 3651764.5 | AH124: =IFERROR(X124*'Inputs & Assumptions'!$Q$44,"--") -> 222943.6 | AI124: =IFERROR(Y124*'Inputs & Assumptions'!$Q$45,"--") -> 49256.2 | AJ124: =IFERROR(Z124*'Inputs & Assumptions'!$Q$46,"--") -> 0 | AK124: =IFERROR(AA124*'Inputs & Assumptions'!$Q$47,"--") -> 486500 | AL124: =IFERROR(AB124*'Inputs & Assumptions'!$Q$48,"--") -> 1419340 | AM124: =IFERROR(AC124*'Inputs & Assumptions'!$Q$49,"--") -> 210082
A125: 0311 | B125: Eastampton Township | C125: Burlington | D125: 3400518790 | E125: 122 | F125: 469945907 | G125: 4498677.72 | H125: 0.9572756466 | I125: 1740459.69 | J125: 3667.283777 | K125: 3.115391534 | L125: 2110277.28 | M125: 8031700 | N125: 14640655 | O125: 0.307272982 | P125: 0.1441381741 | Q125: 0.5485888439 | R125: 7137 | S125: 243.8643253 | T125: 787580 | U125: 40400 | V125: 174000 | W125: 2029904.89 | X125: 753092.45 | Y125: 7000 | Z125: 0 | AA125: 200800 | AB125: 758600 | AC125: 0 | AD125: =IFERROR(T125*'Inputs & Assumptions'!$Q$40,"--") -> 78758 | AE125: =IFERROR(U125*'Inputs & Assumptions'!$Q$41,"--") -> 4040 | AF125: =IFERROR(V125*'Inputs & Assumptions'!$Q$42,"--") -> 87000 | AG125: =IFERROR(W125*'Inputs & Assumptions'!$Q$43,"--") -> 1014952.445 | AH125: =IFERROR(X125*'Inputs & Assumptions'!$Q$44,"--") -> 75309.245 | AI125: =IFERROR(Y125*'Inputs & Assumptions'!$Q$45,"--") -> 700 | AJ125: =IFERROR(Z125*'Inputs & Assumptions'!$Q$46,"--") -> 0 | AK125: =IFERROR(AA125*'Inputs & Assumptions'!$Q$47,"--") -> 100400 | AL125: =IFERROR(AB125*'Inputs & Assumptions'!$Q$48,"--") -> 379300 | AM125: =IFERROR(AC125*'Inputs & Assumptions'!$Q$49,"--") -> 0
A126: 1311 | B126: Eatontown Borough | C126: Monmouth | D126: 3402519840 | E126: 123 | F126: 2371170730 | G126: 19586246 | H126: 0.8260158475 | I126: 6161226.91 | J126: 3738.026312 | K126: 2.299542949 | L126: 7156663.33 | M126: 27783180 | N126: 54526089.33 | O126: 0.3592087062 | P126: 0.1312520927 | Q126: 0.5095392012 | R126: 23325 | S126: 264.14692 | T126: 1895036 | U126: 344000 | V126: 462800 | W126: 7506747.33 | X126: 4380321.45 | Y126: 46425 | Z126: 97880 | AA126: 364800 | AB126: 2516000 | AC126: 119374 | AD126: =IFERROR(T126*'Inputs & Assumptions'!$Q$40,"--") -> 189503.6 | AE126: =IFERROR(U126*'Inputs & Assumptions'!$Q$41,"--") -> 34400 | AF126: =IFERROR(V126*'Inputs & Assumptions'!$Q$42,"--") -> 231400 | AG126: =IFERROR(W126*'Inputs & Assumptions'!$Q$43,"--") -> 3753373.665 | AH126: =IFERROR(X126*'Inputs & Assumptions'!$Q$44,"--") -> 438032.145 | AI126: =IFERROR(Y126*'Inputs & Assumptions'!$Q$45,"--") -> 4642.5 | AJ126: =IFERROR(Z126*'Inputs & Assumptions'!$Q$46,"--") -> 9788 | AK126: =IFERROR(AA126*'Inputs & Assumptions'!$Q$47,"--") -> 182400 | AL126: =IFERROR(AB126*'Inputs & Assumptions'!$Q$48,"--") -> 1258000 | AM126: =IFERROR(AC126*'Inputs & Assumptions'!$Q$49,"--") -> 59687
A127: 0213 | B127: Edgewater Borough | C127: Bergen | D127: 3400320020 | E127: 124 | F127: 2985547360 | G127: 24709738 | H127: 0.8276451525 | I127: -- | J127: 621.4789221 | K127: 2.252705796 | L127: 9840492.42 | M127: 32705368 | N127: 67255598.42 | O127: 0.367400463 | P127: 0.1463148444 | Q127: 0.4862846926 | R127: 17596 | S127: -- | T127: No data | U127: No data | V127: No data | W127: No data | X127: No data | Y127: No data | Z127: No data | AA127: No data | AB127: No data | AC127: No data | AD127: =IFERROR(T127*'Inputs & Assumptions'!$Q$40,"--") -> -- | AE127: =IFERROR(U127*'Inputs & Assumptions'!$Q$41,"--") -> -- | AF127: =IFERROR(V127*'Inputs & Assumptions'!$Q$42,"--") -> -- | AG127: =IFERROR(W127*'Inputs & Assumptions'!$Q$43,"--") -> -- | AH127: =IFERROR(X127*'Inputs & Assumptions'!$Q$44,"--") -> -- | AI127: =IFERROR(Y127*'Inputs & Assumptions'!$Q$45,"--") -> -- | AJ127: =IFERROR(Z127*'Inputs & Assumptions'!$Q$46,"--") -> -- | AK127: =IFERROR(AA127*'Inputs & Assumptions'!$Q$47,"--") -> -- | AL127: =IFERROR(AB127*'Inputs & Assumptions'!$Q$48,"--") -> -- | AM127: =IFERROR(AC127*'Inputs & Assumptions'!$Q$49,"--") -> --
A128: 0312 | B128: Edgewater Park Township | C128: Burlington | D128: 3400520050 | E128: 125 | F128: 580132460 | G128: 5605350.26 | H128: 0.9662190356 | I128: 1963573.628 | J128: 1868.425787 | K128: 3.290842464 | L128: 2255828.08 | M128: 11230067 | N128: 19091245.34 | O128: 0.2936084137 | P128: 0.1181603421 | Q128: 0.5882312442 | R128: 9860 | S128: 199.1453984 | T128: 809900 | U128: 46100 | V128: 289250 | W128: 2100210 | X128: 980916.28 | Y128: 14350 | Z128: 0 | AA128: 276000 | AB128: 717934 | AC128: 173500 | AD128: =IFERROR(T128*'Inputs & Assumptions'!$Q$40,"--") -> 80990 | AE128: =IFERROR(U128*'Inputs & Assumptions'!$Q$41,"--") -> 4610 | AF128: =IFERROR(V128*'Inputs & Assumptions'!$Q$42,"--") -> 144625 | AG128: =IFERROR(W128*'Inputs & Assumptions'!$Q$43,"--") -> 1050105 | AH128: =IFERROR(X128*'Inputs & Assumptions'!$Q$44,"--") -> 98091.628 | AI128: =IFERROR(Y128*'Inputs & Assumptions'!$Q$45,"--") -> 1435 | AJ128: =IFERROR(Z128*'Inputs & Assumptions'!$Q$46,"--") -> 0 | AK128: =IFERROR(AA128*'Inputs & Assumptions'!$Q$47,"--") -> 138000 | AL128: =IFERROR(AB128*'Inputs & Assumptions'!$Q$48,"--") -> 358967 | AM128: =IFERROR(AC128*'Inputs & Assumptions'!$Q$49,"--") -> 86750
A129: 1205 | B129: Edison Township | C129: Middlesex | D129: 3402320230 | E129: 126 | F129: 7281979991 | G129: 107084919.7 | H129: 1.470546744 | I129: 44234051.53 | J129: 19243.40522 | K129: 5.682421755 | L129: 71694727.52 | M129: 235013168 | N129: 413792815.2 | O129: 0.2587887361 | P129: 0.1732623789 | Q129: 0.567948885 | R129: 153634 | S129: 287.9183744 | T129: 33249150 | U129: 0 | V129: 2007793 | W129: 57411444 | X129: 8157890 | Y129: 2159567 | Z129: 7645818.78 | AA129: 1186037 | AB129: 16879777.91 | AC129: 740566 | AD129: =IFERROR(T129*'Inputs & Assumptions'!$Q$40,"--") -> 3324915 | AE129: =IFERROR(U129*'Inputs & Assumptions'!$Q$41,"--") -> 0 | AF129: =IFERROR(V129*'Inputs & Assumptions'!$Q$42,"--") -> 1003896.5 | AG129: =IFERROR(W129*'Inputs & Assumptions'!$Q$43,"--") -> 28705722 | AH129: =IFERROR(X129*'Inputs & Assumptions'!$Q$44,"--") -> 815789 | AI129: =IFERROR(Y129*'Inputs & Assumptions'!$Q$45,"--") -> 215956.7 | AJ129: =IFERROR(Z129*'Inputs & Assumptions'!$Q$46,"--") -> 764581.878 | AK129: =IFERROR(AA129*'Inputs & Assumptions'!$Q$47,"--") -> 593018.5 | AL129: =IFERROR(AB129*'Inputs & Assumptions'!$Q$48,"--") -> 8439888.955 | AM129: =IFERROR(AC129*'Inputs & Assumptions'!$Q$49,"--") -> 370283
A130: 0107 | B130: Egg Harbor City | C130: Atlantic | D130: 3400120350 | E130: 127 | F130: 198233900 | G130: 4557628.79 | H130: 2.299116745 | I130: 1698835.8 | J130: 6944.599098 | K130: 5.224973816 | L130: 1129523.58 | M130: 4670517 | N130: 10357669.37 | O130: 0.4400245487 | P130: 0.1090519054 | Q130: 0.4509235459 | R130: 5384 | S130: 315.5341382 | T130: 496900 | U130: 100500 | V130: 67350 | W130: 1710400 | X130: 1459608 | Y130: 10200 | Z130: 0 | AA130: 475000 | AB130: 655480 | AC130: 76000 | AD130: =IFERROR(T130*'Inputs & Assumptions'!$Q$40,"--") -> 49690 | AE130: =IFERROR(U130*'Inputs & Assumptions'!$Q$41,"--") -> 10050 | AF130: =IFERROR(V130*'Inputs & Assumptions'!$Q$42,"--") -> 33675 | AG130: =IFERROR(W130*'Inputs & Assumptions'!$Q$43,"--") -> 855200 | AH130: =IFERROR(X130*'Inputs & Assumptions'!$Q$44,"--") -> 145960.8 | AI130: =IFERROR(Y130*'Inputs & Assumptions'!$Q$45,"--") -> 1020 | AJ130: =IFERROR(Z130*'Inputs & Assumptions'!$Q$46,"--") -> 0 | AK130: =IFERROR(AA130*'Inputs & Assumptions'!$Q$47,"--") -> 237500 | AL130: =IFERROR(AB130*'Inputs & Assumptions'!$Q$48,"--") -> 327740 | AM130: =IFERROR(AC130*'Inputs & Assumptions'!$Q$49,"--") -> 38000
A131: 0108 | B131: Egg Harbor Township | C131: Atlantic | D131: 3400120290 | E131: 128 | F131: 4051333089 | G131: 25672172 | H131: 0.633672212 | I131: 11032337 | J131: 42910.03104 | K131: 3.361365967 | L131: 23833808.66 | M131: 86674151 | N131: 136180131.7 | O131: 0.1885162812 | P131: 0.1750167838 | Q131: 0.636466935 | R131: 56345 | S131: 195.7997515 | T131: 3011955 | U131: 233454 | V131: 501856 | W131: 12696647 | X131: 4004016 | Y131: 24000 | Z131: 0 | AA131: 1693533 | AB131: 5108803 | AC131: 609150 | AD131: =IFERROR(T131*'Inputs & Assumptions'!$Q$40,"--") -> 301195.5 | AE131: =IFERROR(U131*'Inputs & Assumptions'!$Q$41,"--") -> 23345.4 | AF131: =IFERROR(V131*'Inputs & Assumptions'!$Q$42,"--") -> 250928 | AG131: =IFERROR(W131*'Inputs & Assumptions'!$Q$43,"--") -> 6348323.5 | AH131: =IFERROR(X131*'Inputs & Assumptions'!$Q$44,"--") -> 400401.6 | AI131: =IFERROR(Y131*'Inputs & Assumptions'!$Q$45,"--") -> 2400 | AJ131: =IFERROR(Z131*'Inputs & Assumptions'!$Q$46,"--") -> 0 | AK131: =IFERROR(AA131*'Inputs & Assumptions'!$Q$47,"--") -> 846766.5 | AL131: =IFERROR(AB131*'Inputs & Assumptions'!$Q$48,"--") -> 2554401.5 | AM131: =IFERROR(AC131*'Inputs & Assumptions'!$Q$49,"--") -> 304575
A132: 2004 | B132: Elizabeth City | C132: Union | D132: 3403921000 | E132: 129 | F132: 929834135 | G132: 172688087.1 | H132: 18.57192381 | I132: 69630463.18 | J132: 7884.010098 | K132: 29.94700513 | L132: 45956265.03 | M132: 59813124 | N132: 278457476.1 | O132: =G132/N132 -> 0.6201596362 | P132: =L132/N132 -> 0.1650387185 | Q132: =M132/N132 -> 0.2148016452 | R132: 163794 | S132: =IFERROR(I132/R132,"--") -> 425.1099746 | T132: 17848179.84 | U132: 0 | V132: 0 | W132: 80489659 | X132: 44544270 | Y132: 11487023 | Z132: 4300000 | AA132: 10000000 | AB132: 29822724.8 | AC132: 3312648 | AD132: =IFERROR(T132*'Inputs & Assumptions'!$Q$40,"--") -> 1784817.984 | AE132: =IFERROR(U132*'Inputs & Assumptions'!$Q$41,"--") -> 0 | AF132: =IFERROR(V132*'Inputs & Assumptions'!$Q$42,"--") -> 0 | AG132: =IFERROR(W132*'Inputs & Assumptions'!$Q$43,"--") -> 40244829.5 | AH132: =IFERROR(X132*'Inputs & Assumptions'!$Q$44,"--") -> 4454427 | AI132: =IFERROR(Y132*'Inputs & Assumptions'!$Q$45,"--") -> 1148702.3 | AJ132: =IFERROR(Z132*'Inputs & Assumptions'!$Q$46,"--") -> 430000 | AK132: =IFERROR(AA132*'Inputs & Assumptions'!$Q$47,"--") -> 5000000 | AL132: =IFERROR(AB132*'Inputs & Assumptions'!$Q$48,"--") -> 14911362.4 | AM132: =IFERROR(AC132*'Inputs & Assumptions'!$Q$49,"--") -> 1656324
A133: 0804 | B133: Elk Township | C133: Gloucester | D133: 3401521060 | E133: =E132+1 -> 130 | F133: 378382373 | G133: 3471578.38 | H133: 0.9174788858 | I133: =IF(IFERROR(SUM(AD133:AM133),"--")=0,"--",IFERROR(SUM(AD133:AM133),"--")) -> 1354778.48 | J133: 12260.4586 | K133: 3.716398586 | L133: 3006138.78 | M133: 7584480 | N133: 14062197.16 | O133: 0.2468731124 | P133: 0.2137744725 | Q133: 0.5393524151 | R133: 4909 | S133: 275.9785048 | T133: 466180 | U133: 82150 | V133: 69750 | W133: 1634790.21 | X133: 618423.45 | Y133: 4400 | Z133: 0 | AA133: 253000 | AB133: 460836 | AC133: 56950.06 | AD133: =IFERROR(T133*'Inputs & Assumptions'!$Q$40,"--") -> 46618 | AE133: =IFERROR(U133*'Inputs & Assumptions'!$Q$41,"--") -> 8215 | AF133: =IFERROR(V133*'Inputs & Assumptions'!$Q$42,"--") -> 34875 | AG133: =IFERROR(W133*'Inputs & Assumptions'!$Q$43,"--") -> 817395.105 | AH133: =IFERROR(X133*'Inputs & Assumptions'!$Q$44,"--") -> 61842.345 | AI133: =IFERROR(Y133*'Inputs & Assumptions'!$Q$45,"--") -> 440 | AJ133: =IFERROR(Z133*'Inputs & Assumptions'!$Q$46,"--") -> 0 | AK133: =IFERROR(AA133*'Inputs & Assumptions'!$Q$47,"--") -> 126500 | AL133: =IFERROR(AB133*'Inputs & Assumptions'!$Q$48,"--") -> 230418 | AM133: =IFERROR(AC133*'Inputs & Assumptions'!$Q$49,"--") -> 28475.03
A134: 1702 | B134: Elmer Borough | C134: Salem | D134: 3403321240 | E134: 131 | F134: 105296800 | G134: 714050 | H134: =G134/(F134/100) -> 0.6781307694 | I134: -- | J134: 571.9624835 | K134: 3.753703636 | L134: 1310434.81 | M134: 1928045 | N134: 3952529.81 | O134: 0.180656449 | P134: 0.3315433085 | Q134: 0.4878002425 | R134: 2025 | S134: -- | T134: No data | U134: No data | V134: No data | W134: No data | X134: No data | Y134: No data | Z134: No data | AA134: No data | AB134: No data | AC134: No data | AD134: =IFERROR(T134*'Inputs & Assumptions'!$Q$40,"--") -> -- | AE134: =IFERROR(U134*'Inputs & Assumptions'!$Q$41,"--") -> -- | AF134: =IFERROR(V134*'Inputs & Assumptions'!$Q$42,"--") -> -- | AG134: =IFERROR(W134*'Inputs & Assumptions'!$Q$43,"--") -> -- | AH134: =IFERROR(X134*'Inputs & Assumptions'!$Q$44,"--") -> -- | AI134: =IFERROR(Y134*'Inputs & Assumptions'!$Q$45,"--") -> -- | AJ134: =IFERROR(Z134*'Inputs & Assumptions'!$Q$46,"--") -> -- | AK134: =IFERROR(AA134*'Inputs & Assumptions'!$Q$47,"--") -> -- | AL134: =IFERROR(AB134*'Inputs & Assumptions'!$Q$48,"--") -> -- | AM134: =IFERROR(AC134*'Inputs & Assumptions'!$Q$49,"--") -> --
A135: 0211 | B135: Elmwood Park Borough | C135: Bergen | D135: 3400321300 | E135: 132 | F135: 2082338189 | G135: 19833360 | H135: 0.9524562391 | I135: 8136227.875 | J135: 1691.463564 | K135: 3.025547702 | L135: 6092920.23 | M135: 37075855 | N135: 63002135.23 | O135: 0.3148045686 | P135: 0.09670974179 | Q135: 0.5884856896 | R135: 27005 | S135: 301.2859794 | T135: 2171700 | U135: 148100 | V135: 370000 | W135: 7681972.5 | X135: 1591000 | Y135: 40700 | Z135: 800960 | AA135: 4149232.25 | AB135: 2840959 | AC135: 279800 | AD135: =IFERROR(T135*'Inputs & Assumptions'!$Q$40,"--") -> 217170 | AE135: =IFERROR(U135*'Inputs & Assumptions'!$Q$41,"--") -> 14810 | AF135: =IFERROR(V135*'Inputs & Assumptions'!$Q$42,"--") -> 185000 | AG135: =IFERROR(W135*'Inputs & Assumptions'!$Q$43,"--") -> 3840986.25 | AH135: =IFERROR(X135*'Inputs & Assumptions'!$Q$44,"--") -> 159100 | AI135: =IFERROR(Y135*'Inputs & Assumptions'!$Q$45,"--") -> 4070 | AJ135: =IFERROR(Z135*'Inputs & Assumptions'!$Q$46,"--") -> 80096 | AK135: =IFERROR(AA135*'Inputs & Assumptions'!$Q$47,"--") -> 2074616.125 | AL135: =IFERROR(AB135*'Inputs & Assumptions'!$Q$48,"--") -> 1420479.5 | AM135: =IFERROR(AC135*'Inputs & Assumptions'!$Q$49,"--") -> 139900
A136: 1703 | B136: Elsinboro Township | C136: Salem | D136: 3403321330 | E136: 133 | F136: 115683863 | G136: 466211.76 | H136: 0.4030050068 | I136: 141148.2 | J136: 7635.992258 | K136: 2.855820721 | L136: 1283775.97 | M136: 1553736 | N136: 3303723.73 | O136: 0.141117054 | P136: 0.3885845412 | Q136: 0.4702984048 | R136: 962 | S136: 146.7237006 | T136: 155392 | U136: 10096.6 | V136: 17560.24 | W136: 155027 | X136: 151054 | Y136: 9654 | Z136: 0 | AA136: 33400 | AB136: 11069.84 | AC136: 0 | AD136: =IFERROR(T136*'Inputs & Assumptions'!$Q$40,"--") -> 15539.2 | AE136: =IFERROR(U136*'Inputs & Assumptions'!$Q$41,"--") -> 1009.66 | AF136: =IFERROR(V136*'Inputs & Assumptions'!$Q$42,"--") -> 8780.12 | AG136: =IFERROR(W136*'Inputs & Assumptions'!$Q$43,"--") -> 77513.5 | AH136: =IFERROR(X136*'Inputs & Assumptions'!$Q$44,"--") -> 15105.4 | AI136: =IFERROR(Y136*'Inputs & Assumptions'!$Q$45,"--") -> 965.4 | AJ136: =IFERROR(Z136*'Inputs & Assumptions'!$Q$46,"--") -> 0 | AK136: =IFERROR(AA136*'Inputs & Assumptions'!$Q$47,"--") -> 16700 | AL136: =IFERROR(AB136*'Inputs & Assumptions'!$Q$48,"--") -> 5534.92 | AM136: =IFERROR(AC136*'Inputs & Assumptions'!$Q$49,"--") -> 0
A137: 0214 | B137: Emerson Borough | C137: Bergen | D137: 3400321450 | E137: 134 | F137: 1207796035 | G137: 10159101 | H137: 0.8411272024 | I137: 3102379.9 | J137: 1427.78098 | K137: 2.968533852 | L137: 3393665.16 | M137: 22301068 | N137: 35853834.16 | O137: 0.2833476876 | P137: 0.09465278232 | Q137: 0.6219995301 | R137: 9617 | S137: 322.5933139 | T137: 964080 | U137: 28400 | V137: 208232 | W137: 3582786 | X137: 3094787 | Y137: 254456 | Z137: 450106 | AA137: 147180 | AB137: 1221921 | AC137: 86275 | AD137: =IFERROR(T137*'Inputs & Assumptions'!$Q$40,"--") -> 96408 | AE137: =IFERROR(U137*'Inputs & Assumptions'!$Q$41,"--") -> 2840 | AF137: =IFERROR(V137*'Inputs & Assumptions'!$Q$42,"--") -> 104116 | AG137: =IFERROR(W137*'Inputs & Assumptions'!$Q$43,"--") -> 1791393 | AH137: =IFERROR(X137*'Inputs & Assumptions'!$Q$44,"--") -> 309478.7 | AI137: =IFERROR(Y137*'Inputs & Assumptions'!$Q$45,"--") -> 25445.6 | AJ137: =IFERROR(Z137*'Inputs & Assumptions'!$Q$46,"--") -> 45010.6 | AK137: =IFERROR(AA137*'Inputs & Assumptions'!$Q$47,"--") -> 73590 | AL137: =IFERROR(AB137*'Inputs & Assumptions'!$Q$48,"--") -> 610960.5 | AM137: =IFERROR(AC137*'Inputs & Assumptions'!$Q$49,"--") -> 43137.5
A138: 0215 | B138: Englewood City | C138: Bergen | D138: 3400321480 | E138: 135 | F138: 4487503500 | G138: 58156397 | H138: 1.295963268 | I138: 17557751 | J138: 3152.29957 | K138: 2.889703569 | L138: 13156758.8 | M138: 58362393 | N138: 129675548.8 | O138: 0.4484761972 | P138: 0.1014590563 | Q138: 0.4500647465 | R138: 39828 | S138: 440.8393844 | T138: 3730750 | U138: 87500 | V138: 1236500 | W138: 22315200 | X138: 6050750 | Y138: 859100 | Z138: 2105870 | AA138: 1296000 | AB138: 7158008 | AC138: 543000 | AD138: =IFERROR(T138*'Inputs & Assumptions'!$Q$40,"--") -> 373075 | AE138: =IFERROR(U138*'Inputs & Assumptions'!$Q$41,"--") -> 8750 | AF138: =IFERROR(V138*'Inputs & Assumptions'!$Q$42,"--") -> 618250 | AG138: =IFERROR(W138*'Inputs & Assumptions'!$Q$43,"--") -> 11157600 | AH138: =IFERROR(X138*'Inputs & Assumptions'!$Q$44,"--") -> 605075 | AI138: =IFERROR(Y138*'Inputs & Assumptions'!$Q$45,"--") -> 85910 | AJ138: =IFERROR(Z138*'Inputs & Assumptions'!$Q$46,"--") -> 210587 | AK138: =IFERROR(AA138*'Inputs & Assumptions'!$Q$47,"--") -> 648000 | AL138: =IFERROR(AB138*'Inputs & Assumptions'!$Q$48,"--") -> 3579004 | AM138: =IFERROR(AC138*'Inputs & Assumptions'!$Q$49,"--") -> 271500
A139: 0216 | B139: Englewood Cliffs Borough | C139: Bergen | D139: 3400321510 | E139: 136 | F139: 3522873275 | G139: 16348525 | H139: 0.4640679276 | I139: 3921691.786 | J139: 1360.726738 | K139: 1.123306224 | L139: 9095049.75 | M139: 14129080 | N139: 39572654.75 | O139: 0.4131268196 | P139: 0.2298316807 | Q139: 0.3570414997 | R139: 14079 | S139: 278.5490295 | T139: 1756750 | U139: 1414157.2 | V139: 234180 | W139: 4856122.89 | X139: 2040353.21 | Y139: 72608 | Z139: 150000 | AA139: 0 | AB139: 1585857 | AC139: 80450 | AD139: =IFERROR(T139*'Inputs & Assumptions'!$Q$40,"--") -> 175675 | AE139: =IFERROR(U139*'Inputs & Assumptions'!$Q$41,"--") -> 141415.72 | AF139: =IFERROR(V139*'Inputs & Assumptions'!$Q$42,"--") -> 117090 | AG139: =IFERROR(W139*'Inputs & Assumptions'!$Q$43,"--") -> 2428061.445 | AH139: =IFERROR(X139*'Inputs & Assumptions'!$Q$44,"--") -> 204035.321 | AI139: =IFERROR(Y139*'Inputs & Assumptions'!$Q$45,"--") -> 7260.8 | AJ139: =IFERROR(Z139*'Inputs & Assumptions'!$Q$46,"--") -> 15000 | AK139: =IFERROR(AA139*'Inputs & Assumptions'!$Q$47,"--") -> 0 | AL139: =IFERROR(AB139*'Inputs & Assumptions'!$Q$48,"--") -> 792928.5 | AM139: =IFERROR(AC139*'Inputs & Assumptions'!$Q$49,"--") -> 40225
A140: 1312 | B140: Englishtown Borough | C140: Monmouth | D140: 3402521570 | E140: 137 | F140: 276798200 | G140: 1794227.18 | H140: 0.6482076762 | I140: 710632.1 | J140: 364.6930456 | K140: 2.151422253 | L140: 728230.89 | M140: 3432640 | N140: 5955098.07 | O140: 0.3012926335 | P140: 0.1222869685 | Q140: 0.5764203981 | R140: 3092 | S140: 229.8292691 | T140: 718545 | U140: 10625 | V140: 26905 | W140: 780431.54 | X140: 310700 | Y140: 600 | Z140: 0 | AA140: 3300 | AB140: 274200 | AC140: 128333.66 | AD140: =IFERROR(T140*'Inputs & Assumptions'!$Q$40,"--") -> 71854.5 | AE140: =IFERROR(U140*'Inputs & Assumptions'!$Q$41,"--") -> 1062.5 | AF140: =IFERROR(V140*'Inputs & Assumptions'!$Q$42,"--") -> 13452.5 | AG140: =IFERROR(W140*'Inputs & Assumptions'!$Q$43,"--") -> 390215.77 | AH140: =IFERROR(X140*'Inputs & Assumptions'!$Q$44,"--") -> 31070 | AI140: =IFERROR(Y140*'Inputs & Assumptions'!$Q$45,"--") -> 60 | AJ140: =IFERROR(Z140*'Inputs & Assumptions'!$Q$46,"--") -> 0 | AK140: =IFERROR(AA140*'Inputs & Assumptions'!$Q$47,"--") -> 1650 | AL140: =IFERROR(AB140*'Inputs & Assumptions'!$Q$48,"--") -> 137100 | AM140: =IFERROR(AC140*'Inputs & Assumptions'!$Q$49,"--") -> 64166.83
A141: 0706 | B141: Essex Fells Borough | C141: Essex | D141: 3401321840 | E141: 138 | F141: 752285305 | G141: 4113095.07 | H141: 0.5467466987 | I141: 2049837.85 | J141: 901.3197212 | K141: 2.187608745 | L141: 3824201.05 | M141: 8519763 | N141: 16457059.12 | O141: 0.2499289235 | P141: 0.2323745101 | Q141: 0.5176965664 | R141: 2364 | S141: 867.1056895 | T141: 352265 | U141: 147996 | V141: 0 | W141: 2651273 | X141: 3022202.5 | Y141: 0 | Z141: 3500 | AA141: 0 | AB141: 743210 | AC141: 0 | AD141: =IFERROR(T141*'Inputs & Assumptions'!$Q$40,"--") -> 35226.5 | AE141: =IFERROR(U141*'Inputs & Assumptions'!$Q$41,"--") -> 14799.6 | AF141: =IFERROR(V141*'Inputs & Assumptions'!$Q$42,"--") -> 0 | AG141: =IFERROR(W141*'Inputs & Assumptions'!$Q$43,"--") -> 1325636.5 | AH141: =IFERROR(X141*'Inputs & Assumptions'!$Q$44,"--") -> 302220.25 | AI141: =IFERROR(Y141*'Inputs & Assumptions'!$Q$45,"--") -> 0 | AJ141: =IFERROR(Z141*'Inputs & Assumptions'!$Q$46,"--") -> 350 | AK141: =IFERROR(AA141*'Inputs & Assumptions'!$Q$47,"--") -> 0 | AL141: =IFERROR(AB141*'Inputs & Assumptions'!$Q$48,"--") -> 371605 | AM141: =IFERROR(AC141*'Inputs & Assumptions'!$Q$49,"--") -> 0
A142: 0109 | B142: Estell Manor City | C142: Atlantic | D142: 3400121870 | E142: 139 | F142: 156943447 | G142: 584386.31 | H142: 0.3723547056 | I142: 247678.2 | J142: 34167.69507 | K142: 2.656425311 | L142: 929431.14 | M142: 2655268 | N142: 4169085.45 | O142: 0.1401713438 | P142: 0.2229340586 | Q142: 0.6368945976 | R142: 1756 | S142: 141.0468109 | T142: 390657 | U142: 28850 | V142: 0 | W142: 78000 | X142: 371170 | Y142: 8000 | Z142: 0 | AA142: 187000 | AB142: 41821 | AC142: 28800 | AD142: =IFERROR(T142*'Inputs & Assumptions'!$Q$40,"--") -> 39065.7 | AE142: =IFERROR(U142*'Inputs & Assumptions'!$Q$41,"--") -> 2885 | AF142: =IFERROR(V142*'Inputs & Assumptions'!$Q$42,"--") -> 0 | AG142: =IFERROR(W142*'Inputs & Assumptions'!$Q$43,"--") -> 39000 | AH142: =IFERROR(X142*'Inputs & Assumptions'!$Q$44,"--") -> 37117 | AI142: =IFERROR(Y142*'Inputs & Assumptions'!$Q$45,"--") -> 800 | AJ142: =IFERROR(Z142*'Inputs & Assumptions'!$Q$46,"--") -> 0 | AK142: =IFERROR(AA142*'Inputs & Assumptions'!$Q$47,"--") -> 93500 | AL142: =IFERROR(AB142*'Inputs & Assumptions'!$Q$48,"--") -> 20910.5 | AM142: =IFERROR(AC142*'Inputs & Assumptions'!$Q$49,"--") -> 14400
A143: 0313 | B143: Evesham Township | C143: Burlington | D143: 3400522110 | E143: 140 | F143: 5285568270 | G143: 23940554.79 | H143: 0.4529419273 | I143: 10120959.83 | J143: 18659.74898 | K143: 2.806868089 | L143: 21919816.3 | M143: 102498558 | N143: 148358929.1 | O143: 0.1613691534 | P143: 0.1477485476 | Q143: 0.690882299 | R143: 60505 | S143: 167.2747679 | T143: 2932962 | U143: 383700 | V143: 571400 | W143: 10181728 | X143: 4985210 | Y143: 23668 | Z143: 0 | AA143: 2833655.66 | AB143: 4669088 | AC143: 320940 | AD143: =IFERROR(T143*'Inputs & Assumptions'!$Q$40,"--") -> 293296.2 | AE143: =IFERROR(U143*'Inputs & Assumptions'!$Q$41,"--") -> 38370 | AF143: =IFERROR(V143*'Inputs & Assumptions'!$Q$42,"--") -> 285700 | AG143: =IFERROR(W143*'Inputs & Assumptions'!$Q$43,"--") -> 5090864 | AH143: =IFERROR(X143*'Inputs & Assumptions'!$Q$44,"--") -> 498521 | AI143: =IFERROR(Y143*'Inputs & Assumptions'!$Q$45,"--") -> 2366.8 | AJ143: =IFERROR(Z143*'Inputs & Assumptions'!$Q$46,"--") -> 0 | AK143: =IFERROR(AA143*'Inputs & Assumptions'!$Q$47,"--") -> 1416827.83 | AL143: =IFERROR(AB143*'Inputs & Assumptions'!$Q$48,"--") -> 2334544 | AM143: =IFERROR(AC143*'Inputs & Assumptions'!$Q$49,"--") -> 160470
A144: 1102 | B144: Ewing Township | C144: Mercer | D144: 3402122185 | E144: 141 | F144: 3300269197 | G144: 31410815.46 | H144: 0.9517652526 | I144: 12638063.51 | J144: 9732.050935 | K144: 3.50865214 | L144: 21708818.33 | M144: 62675332 | N144: 115794965.8 | O144: 0.271262358 | P144: 0.1874763569 | Q144: 0.5412612852 | R144: 55429 | S144: 228.0045375 | T144: 3743550 | U144: 95000 | V144: 324000 | W144: 14492907.38 | X144: 3077000 | Y144: 575700 | Z144: 0 | AA144: 2524958.64 | AB144: 5964511 | AC144: 471500 | AD144: =IFERROR(T144*'Inputs & Assumptions'!$Q$40,"--") -> 374355 | AE144: =IFERROR(U144*'Inputs & Assumptions'!$Q$41,"--") -> 9500 | AF144: =IFERROR(V144*'Inputs & Assumptions'!$Q$42,"--") -> 162000 | AG144: =IFERROR(W144*'Inputs & Assumptions'!$Q$43,"--") -> 7246453.69 | AH144: =IFERROR(X144*'Inputs & Assumptions'!$Q$44,"--") -> 307700 | AI144: =IFERROR(Y144*'Inputs & Assumptions'!$Q$45,"--") -> 57570 | AJ144: =IFERROR(Z144*'Inputs & Assumptions'!$Q$46,"--") -> 0 | AK144: =IFERROR(AA144*'Inputs & Assumptions'!$Q$47,"--") -> 1262479.32 | AL144: =IFERROR(AB144*'Inputs & Assumptions'!$Q$48,"--") -> 2982255.5 | AM144: =IFERROR(AC144*'Inputs & Assumptions'!$Q$49,"--") -> 235750
A145: 1313 | B145: Fair Haven Borough | C145: Monmouth | D145: 3402522440 | E145: 142 | F145: 1883417523 | G145: 7635927.6 | H145: 0.4054293595 | I145: 1937522.414 | J145: 1019.824247 | K145: 1.854660144 | L145: 5167934.54 | M145: 22127132 | N145: 34930994.14 | O145: 0.2186003516 | P145: 0.1479469642 | Q145: 0.6334526842 | R145: 6840 | S145: 283.2635108 | T145: 1079951 | U145: 190937 | V145: 30500 | W145: 2071162.98 | X145: 1230556.24 | Y145: 55300 | Z145: 105000 | AA145: 411500 | AB145: 813123 | AC145: 16410 | AD145: =IFERROR(T145*'Inputs & Assumptions'!$Q$40,"--") -> 107995.1 | AE145: =IFERROR(U145*'Inputs & Assumptions'!$Q$41,"--") -> 19093.7 | AF145: =IFERROR(V145*'Inputs & Assumptions'!$Q$42,"--") -> 15250 | AG145: =IFERROR(W145*'Inputs & Assumptions'!$Q$43,"--") -> 1035581.49 | AH145: =IFERROR(X145*'Inputs & Assumptions'!$Q$44,"--") -> 123055.624 | AI145: =IFERROR(Y145*'Inputs & Assumptions'!$Q$45,"--") -> 5530 | AJ145: =IFERROR(Z145*'Inputs & Assumptions'!$Q$46,"--") -> 10500 | AK145: =IFERROR(AA145*'Inputs & Assumptions'!$Q$47,"--") -> 205750 | AL145: =IFERROR(AB145*'Inputs & Assumptions'!$Q$48,"--") -> 406561.5 | AM145: =IFERROR(AC145*'Inputs & Assumptions'!$Q$49,"--") -> 8205
A146: 0217 | B146: Fair Lawn Borough | C146: Bergen | D146: 3400322470 | E146: 143 | F146: 4272422989 | G146: 38495118 | H146: 0.9010137362 | I146: 12556044 | J146: 3286.424363 | K146: 3.455389508 | L146: 13676539.71 | M146: 95457198 | N146: 147628855.7 | O146: 0.2607560549 | P146: 0.0926413718 | Q146: 0.6466025733 | R146: 41677 | S146: 301.270341 | T146: 9922250 | U146: 67400 | V146: 907650 | W146: 12530950 | X146: 4900150 | Y146: 581090 | Z146: 2425800 | AA146: 2413000 | AB146: 5331000 | AC146: 350150 | AD146: =IFERROR(T146*'Inputs & Assumptions'!$Q$40,"--") -> 992225 | AE146: =IFERROR(U146*'Inputs & Assumptions'!$Q$41,"--") -> 6740 | AF146: =IFERROR(V146*'Inputs & Assumptions'!$Q$42,"--") -> 453825 | AG146: =IFERROR(W146*'Inputs & Assumptions'!$Q$43,"--") -> 6265475 | AH146: =IFERROR(X146*'Inputs & Assumptions'!$Q$44,"--") -> 490015 | AI146: =IFERROR(Y146*'Inputs & Assumptions'!$Q$45,"--") -> 58109 | AJ146: =IFERROR(Z146*'Inputs & Assumptions'!$Q$46,"--") -> 242580 | AK146: =IFERROR(AA146*'Inputs & Assumptions'!$Q$47,"--") -> 1206500 | AL146: =IFERROR(AB146*'Inputs & Assumptions'!$Q$48,"--") -> 2665500 | AM146: =IFERROR(AC146*'Inputs & Assumptions'!$Q$49,"--") -> 175075
A147: 0605 | B147: Fairfield Township | C147: Cumberland | D147: 3401122350 | E147: 144 | F147: 312581721 | G147: 1370935.31 | H147: 0.4385846062 | I147: 342491 | J147: 26316.08319 | K147: 2.66999427 | L147: 3466799.73 | M147: 3508179 | N147: 8345914.04 | O147: 0.16426425 | P147: 0.4153888613 | Q147: 0.4203468887 | R147: 6988 | S147: 49.01130509 | T147: 595450 | U147: 43500 | V147: 67250 | W147: 233650 | X147: 390750 | Y147: 54000 | Z147: 0 | AA147: 0 | AB147: 107342 | AC147: 60000 | AD147: =IFERROR(T147*'Inputs & Assumptions'!$Q$40,"--") -> 59545 | AE147: =IFERROR(U147*'Inputs & Assumptions'!$Q$41,"--") -> 4350 | AF147: =IFERROR(V147*'Inputs & Assumptions'!$Q$42,"--") -> 33625 | AG147: =IFERROR(W147*'Inputs & Assumptions'!$Q$43,"--") -> 116825 | AH147: =IFERROR(X147*'Inputs & Assumptions'!$Q$44,"--") -> 39075 | AI147: =IFERROR(Y147*'Inputs & Assumptions'!$Q$45,"--") -> 5400 | AJ147: =IFERROR(Z147*'Inputs & Assumptions'!$Q$46,"--") -> 0 | AK147: =IFERROR(AA147*'Inputs & Assumptions'!$Q$47,"--") -> 0 | AL147: =IFERROR(AB147*'Inputs & Assumptions'!$Q$48,"--") -> 53671 | AM147: =IFERROR(AC147*'Inputs & Assumptions'!$Q$49,"--") -> 30000
A148: 0707 | B148: Fairfield Township | C148: Essex | D148: 3401322385 | E148: 145 | F148: 3205111977 | G148: 15872961.14 | H148: 0.495238895 | I148: 5731326.3 | J148: 6482.060763 | K148: 2.02697759 | L148: 17624437.38 | M148: 31469503 | N148: 64966901.52 | O148: 0.2443238136 | P148: 0.2712833299 | Q148: 0.4843928564 | R148: 26614 | S148: 215.3500526 | T148: 1972142.52 | U148: 33000 | V148: 405000 | W148: 6050001 | X148: 4945457.48 | Y148: 164000 | Z148: 1216048 | AA148: 930000 | AB148: 2218522 | AC148: 193000 | AD148: =IFERROR(T148*'Inputs & Assumptions'!$Q$40,"--") -> 197214.252 | AE148: =IFERROR(U148*'Inputs & Assumptions'!$Q$41,"--") -> 3300 | AF148: =IFERROR(V148*'Inputs & Assumptions'!$Q$42,"--") -> 202500 | AG148: =IFERROR(W148*'Inputs & Assumptions'!$Q$43,"--") -> 3025000.5 | AH148: =IFERROR(X148*'Inputs & Assumptions'!$Q$44,"--") -> 494545.748 | AI148: =IFERROR(Y148*'Inputs & Assumptions'!$Q$45,"--") -> 16400 | AJ148: =IFERROR(Z148*'Inputs & Assumptions'!$Q$46,"--") -> 121604.8 | AK148: =IFERROR(AA148*'Inputs & Assumptions'!$Q$47,"--") -> 465000 | AL148: =IFERROR(AB148*'Inputs & Assumptions'!$Q$48,"--") -> 1109261 | AM148: =IFERROR(AC148*'Inputs & Assumptions'!$Q$49,"--") -> 96500
A149: 0218 | B149: Fairview Borough | C149: Bergen | D149: 3400322560 | E149: 146 | F149: 1448846563 | G149: 16062812.54 | H149: 1.108662087 | I149: 2488331.222 | J149: 539.9435697 | K149: 2.47853928 | L149: 3633516.63 | M149: 16213902 | N149: 35910231.17 | O149: 0.4473046265 | P149: 0.1011833261 | Q149: 0.4515120475 | R149: 16222 | S149: 153.3923821 | T149: 14277386.87 | U149: 0 | V149: 0 | W149: 0 | X149: 0 | Y149: 0 | Z149: 0 | AA149: 102660.53 | AB149: 2018524.54 | AC149: 0 | AD149: =IFERROR(T149*'Inputs & Assumptions'!$Q$40,"--") -> 1427738.687 | AE149: =IFERROR(U149*'Inputs & Assumptions'!$Q$41,"--") -> 0 | AF149: =IFERROR(V149*'Inputs & Assumptions'!$Q$42,"--") -> 0 | AG149: =IFERROR(W149*'Inputs & Assumptions'!$Q$43,"--") -> 0 | AH149: =IFERROR(X149*'Inputs & Assumptions'!$Q$44,"--") -> 0 | AI149: =IFERROR(Y149*'Inputs & Assumptions'!$Q$45,"--") -> 0 | AJ149: =IFERROR(Z149*'Inputs & Assumptions'!$Q$46,"--") -> 0 | AK149: =IFERROR(AA149*'Inputs & Assumptions'!$Q$47,"--") -> 51330.265 | AL149: =IFERROR(AB149*'Inputs & Assumptions'!$Q$48,"--") -> 1009262.27 | AM149: =IFERROR(AC149*'Inputs & Assumptions'!$Q$49,"--") -> 0
A150: 2005 | B150: Fanwood Borough | C150: Union | D150: 3403922860 | E150: 147 | F150: 1258414736 | G150: 6773468 | H150: 0.5382540276 | I150: 2165004.547 | J150: 857.3735298 | K150: 2.778968907 | L150: 6345325.24 | M150: 21852161 | N150: 34970954.24 | O150: 0.193688395 | P150: 0.1814455847 | Q150: 0.6248660202 | R150: 8495 | S150: 254.8563328 | T150: 1766394.22 | U150: 87675 | V150: 0 | W150: 2502425 | X150: 974600 | Y150: 87182 | Z150: 431729 | AA150: 0 | AB150: 1048618.05 | AC150: 109450 | AD150: =IFERROR(T150*'Inputs & Assumptions'!$Q$40,"--") -> 176639.422 | AE150: =IFERROR(U150*'Inputs & Assumptions'!$Q$41,"--") -> 8767.5 | AF150: =IFERROR(V150*'Inputs & Assumptions'!$Q$42,"--") -> 0 | AG150: =IFERROR(W150*'Inputs & Assumptions'!$Q$43,"--") -> 1251212.5 | AH150: =IFERROR(X150*'Inputs & Assumptions'!$Q$44,"--") -> 97460 | AI150: =IFERROR(Y150*'Inputs & Assumptions'!$Q$45,"--") -> 8718.2 | AJ150: =IFERROR(Z150*'Inputs & Assumptions'!$Q$46,"--") -> 43172.9 | AK150: =IFERROR(AA150*'Inputs & Assumptions'!$Q$47,"--") -> 0 | AL150: =IFERROR(AB150*'Inputs & Assumptions'!$Q$48,"--") -> 524309.025 | AM150: =IFERROR(AC150*'Inputs & Assumptions'!$Q$49,"--") -> 54725
A151: 1807 | B151: Far Hills Borough | C151: Somerset | D151: 3403522890 | E151: 148 | F151: 418295748 | G151: 2321046.65 | H151: 0.5548817221 | I151: 821002.698 | J151: 3101.862417 | K151: 1.344651992 | L151: 1453362.46 | M151: 1850213 | N151: 5624622.11 | O151: 0.4126582381 | P151: 0.2583929074 | Q151: 0.3289488545 | R151: 1623 | S151: 505.8550203 | T151: 489318 | U151: 133625 | V151: 72430 | W151: 1008315.06 | X151: 185798.06 | Y151: 14683 | Z151: 138189.27 | AA151: 0 | AB151: 297155.67 | AC151: 71782 | AD151: =IFERROR(T151*'Inputs & Assumptions'!$Q$40,"--") -> 48931.8 | AE151: =IFERROR(U151*'Inputs & Assumptions'!$Q$41,"--") -> 13362.5 | AF151: =IFERROR(V151*'Inputs & Assumptions'!$Q$42,"--") -> 36215 | AG151: =IFERROR(W151*'Inputs & Assumptions'!$Q$43,"--") -> 504157.53 | AH151: =IFERROR(X151*'Inputs & Assumptions'!$Q$44,"--") -> 18579.806 | AI151: =IFERROR(Y151*'Inputs & Assumptions'!$Q$45,"--") -> 1468.3 | AJ151: =IFERROR(Z151*'Inputs & Assumptions'!$Q$46,"--") -> 13818.927 | AK151: =IFERROR(AA151*'Inputs & Assumptions'!$Q$47,"--") -> 0 | AL151: =IFERROR(AB151*'Inputs & Assumptions'!$Q$48,"--") -> 148577.835 | AM151: =IFERROR(AC151*'Inputs & Assumptions'!$Q$49,"--") -> 35891
A152: 1314 | B152: Farmingdale Borough | C152: Monmouth | D152: 3402522950 | E152: 149 | F152: 177502100 | G152: 564280.59 | H152: 0.3179007967 | I152: 179530.5 | J152: 333.0665351 | K152: 2.293948663 | L152: 493567.46 | M152: 3013959 | N152: 4071807.05 | O152: 0.1385823501 | P152: 0.1212158273 | Q152: 0.7402018227 | R152: 2291 | S152: 78.36337844 | T152: 201450 | U152: 11600 | V152: 27070 | W152: 83200 | X152: 654750 | Y152: 0 | Z152: 0 | AA152: 0 | AB152: 68231 | AC152: 7000 | AD152: =IFERROR(T152*'Inputs & Assumptions'!$Q$40,"--") -> 20145 | AE152: =IFERROR(U152*'Inputs & Assumptions'!$Q$41,"--") -> 1160 | AF152: =IFERROR(V152*'Inputs & Assumptions'!$Q$42,"--") -> 13535 | AG152: =IFERROR(W152*'Inputs & Assumptions'!$Q$43,"--") -> 41600 | AH152: =IFERROR(X152*'Inputs & Assumptions'!$Q$44,"--") -> 65475 | AI152: =IFERROR(Y152*'Inputs & Assumptions'!$Q$45,"--") -> 0 | AJ152: =IFERROR(Z152*'Inputs & Assumptions'!$Q$46,"--") -> 0 | AK152: =IFERROR(AA152*'Inputs & Assumptions'!$Q$47,"--") -> 0 | AL152: =IFERROR(AB152*'Inputs & Assumptions'!$Q$48,"--") -> 34115.5 | AM152: =IFERROR(AC152*'Inputs & Assumptions'!$Q$49,"--") -> 3500
A153: 0314 | B153: Fieldsboro Borough | C153: Burlington | D153: 3400523250 | E153: 150 | F153: 52663399 | G153: 298818 | H153: 0.567411154 | I153: 169421.5 | J153: 178.4077882 | K153: 3.012679299 | L153: 225360.32 | M153: 1062401 | N153: 1586579.32 | O153: 0.1883410405 | P153: 0.1420416346 | Q153: 0.6696173249 | R153: 930 | S153: 182.1736559 | T153: 484220 | U153: 4500 | V153: 4000 | W153: 45200 | X153: 58700 | Y153: 300 | Z153: 0 | AA153: 63250 | AB153: 31749 | AC153: 85100 | AD153: =IFERROR(T153*'Inputs & Assumptions'!$Q$40,"--") -> 48422 | AE153: =IFERROR(U153*'Inputs & Assumptions'!$Q$41,"--") -> 450 | AF153: =IFERROR(V153*'Inputs & Assumptions'!$Q$42,"--") -> 2000 | AG153: =IFERROR(W153*'Inputs & Assumptions'!$Q$43,"--") -> 22600 | AH153: =IFERROR(X153*'Inputs & Assumptions'!$Q$44,"--") -> 5870 | AI153: =IFERROR(Y153*'Inputs & Assumptions'!$Q$45,"--") -> 30 | AJ153: =IFERROR(Z153*'Inputs & Assumptions'!$Q$46,"--") -> 0 | AK153: =IFERROR(AA153*'Inputs & Assumptions'!$Q$47,"--") -> 31625 | AL153: =IFERROR(AB153*'Inputs & Assumptions'!$Q$48,"--") -> 15874.5 | AM153: =IFERROR(AC153*'Inputs & Assumptions'!$Q$49,"--") -> 42550
A154: 1009 | B154: Flemington Borough | C154: Hunterdon | D154: 3401923700 | E154: 151 | F154: 469465400 | G154: 4879801 | H154: 1.039437837 | I154: 2258523.973 | J154: 689.5952223 | K154: 3.153605179 | L154: 1527372.17 | M154: 8397912 | N154: 14805085.17 | O154: 0.3296030346 | P154: 0.1031653754 | Q154: 0.5672315899 | R154: 8811 | S154: 256.3300389 | T154: 3911382.38 | U154: 65100 | V154: 121970 | W154: 2045346.27 | X154: 317136 | Y154: 30000 | Z154: 0 | AA154: 294400 | AB154: 868508 | AC154: 322100 | AD154: =IFERROR(T154*'Inputs & Assumptions'!$Q$40,"--") -> 391138.238 | AE154: =IFERROR(U154*'Inputs & Assumptions'!$Q$41,"--") -> 6510 | AF154: =IFERROR(V154*'Inputs & Assumptions'!$Q$42,"--") -> 60985 | AG154: =IFERROR(W154*'Inputs & Assumptions'!$Q$43,"--") -> 1022673.135 | AH154: =IFERROR(X154*'Inputs & Assumptions'!$Q$44,"--") -> 31713.6 | AI154: =IFERROR(Y154*'Inputs & Assumptions'!$Q$45,"--") -> 3000 | AJ154: =IFERROR(Z154*'Inputs & Assumptions'!$Q$46,"--") -> 0 | AK154: =IFERROR(AA154*'Inputs & Assumptions'!$Q$47,"--") -> 147200 | AL154: =IFERROR(AB154*'Inputs & Assumptions'!$Q$48,"--") -> 434254 | AM154: =IFERROR(AC154*'Inputs & Assumptions'!$Q$49,"--") -> 161050
A155: 0315 | B155: Florence Township | C155: Burlington | D155: 3400523850 | E155: 152 | F155: 1274255100 | G155: 5722779.37 | H155: 0.4491078254 | I155: 4015847.857 | J155: 6251.917036 | K155: 2.404840624 | L155: 5197843.93 | M155: 19723181 | N155: 30643804.3 | O155: 0.1867515963 | P155: 0.1696213655 | Q155: 0.6436270382 | R155: 17194 | S155: 233.5610013 | T155: 6332017.57 | U155: 77570 | V155: 583589 | W155: 4127877 | X155: 1708932 | Y155: 5725 | Z155: 159200 | AA155: 31200 | AB155: 1632340.8 | AC155: 0 | AD155: =IFERROR(T155*'Inputs & Assumptions'!$Q$40,"--") -> 633201.757 | AE155: =IFERROR(U155*'Inputs & Assumptions'!$Q$41,"--") -> 7757 | AF155: =IFERROR(V155*'Inputs & Assumptions'!$Q$42,"--") -> 291794.5 | AG155: =IFERROR(W155*'Inputs & Assumptions'!$Q$43,"--") -> 2063938.5 | AH155: =IFERROR(X155*'Inputs & Assumptions'!$Q$44,"--") -> 170893.2 | AI155: =IFERROR(Y155*'Inputs & Assumptions'!$Q$45,"--") -> 572.5 | AJ155: =IFERROR(Z155*'Inputs & Assumptions'!$Q$46,"--") -> 15920 | AK155: =IFERROR(AA155*'Inputs & Assumptions'!$Q$47,"--") -> 15600 | AL155: =IFERROR(AB155*'Inputs & Assumptions'!$Q$48,"--") -> 816170.4 | AM155: =IFERROR(AC155*'Inputs & Assumptions'!$Q$49,"--") -> 0
A156: 1411 | B156: Florham Park Borough | C156: Morris | D156: 3402723910 | E156: 153 | F156: 3590106159 | G156: 15819138.6 | H156: 0.4406314994 | I156: 5547717.813 | J156: 4676.802005 | K156: 1.599129493 | L156: 9636246.81 | M156: 31955061 | N156: 57410446.41 | O156: 0.2755446019 | P156: 0.167848317 | Q156: 0.5566070811 | R156: 28340 | S156: 195.755745 | T156: 7831480.13 | U156: 130810 | V156: 898715 | W156: 5357078 | X156: 2663345 | Y156: 265880 | Z156: 1199600 | AA156: 216000 | AB156: 2035549.6 | AC156: 169870 | AD156: =IFERROR(T156*'Inputs & Assumptions'!$Q$40,"--") -> 783148.013 | AE156: =IFERROR(U156*'Inputs & Assumptions'!$Q$41,"--") -> 13081 | AF156: =IFERROR(V156*'Inputs & Assumptions'!$Q$42,"--") -> 449357.5 | AG156: =IFERROR(W156*'Inputs & Assumptions'!$Q$43,"--") -> 2678539 | AH156: =IFERROR(X156*'Inputs & Assumptions'!$Q$44,"--") -> 266334.5 | AI156: =IFERROR(Y156*'Inputs & Assumptions'!$Q$45,"--") -> 26588 | AJ156: =IFERROR(Z156*'Inputs & Assumptions'!$Q$46,"--") -> 119960 | AK156: =IFERROR(AA156*'Inputs & Assumptions'!$Q$47,"--") -> 108000 | AL156: =IFERROR(AB156*'Inputs & Assumptions'!$Q$48,"--") -> 1017774.8 | AM156: =IFERROR(AC156*'Inputs & Assumptions'!$Q$49,"--") -> 84935
A157: 0110 | B157: Folsom Borough | C157: Atlantic | D157: 3400123940 | E157: 154 | F157: 174601400 | G157: 724810.42 | H157: 0.4151229142 | I157: 171846.518 | J157: 5289.066618 | K157: 2.144442479 | L157: 988980.17 | M157: 2030436 | N157: 3744226.59 | O157: 0.193580811 | P157: 0.2641347008 | Q157: 0.5422844882 | R157: 3087 | S157: 55.66780628 | T157: 243615 | U157: 20525 | V157: 0 | W157: 1300 | X157: 210001 | Y157: 14559.18 | Z157: 0 | AA157: 177000 | AB157: 67653 | AC157: 0 | AD157: =IFERROR(T157*'Inputs & Assumptions'!$Q$40,"--") -> 24361.5 | AE157: =IFERROR(U157*'Inputs & Assumptions'!$Q$41,"--") -> 2052.5 | AF157: =IFERROR(V157*'Inputs & Assumptions'!$Q$42,"--") -> 0 | AG157: =IFERROR(W157*'Inputs & Assumptions'!$Q$43,"--") -> 650 | AH157: =IFERROR(X157*'Inputs & Assumptions'!$Q$44,"--") -> 21000.1 | AI157: =IFERROR(Y157*'Inputs & Assumptions'!$Q$45,"--") -> 1455.918 | AJ157: =IFERROR(Z157*'Inputs & Assumptions'!$Q$46,"--") -> 0 | AK157: =IFERROR(AA157*'Inputs & Assumptions'!$Q$47,"--") -> 88500 | AL157: =IFERROR(AB157*'Inputs & Assumptions'!$Q$48,"--") -> 33826.5 | AM157: =IFERROR(AC157*'Inputs & Assumptions'!$Q$49,"--") -> 0
A158: 0219 | B158: Fort Lee Borough | C158: Bergen | D158: 3400324420 | E158: 155 | F158: 6679555183 | G158: 71144415 | H158: 1.065107078 | I158: 19167096.84 | J158: 1611.292975 | K158: 2.431197071 | L158: 18521137.99 | M158: 72727597 | N158: 162393150 | O158: 0.4380998521 | P158: 0.1140512269 | Q158: 0.447848921 | R158: 47894 | S158: 400.1982887 | T158: 3676711.68 | U158: 219230 | V158: 960241 | W158: 23036080.14 | X158: 5464305 | Y158: 1792201 | Z158: 2805940 | AA158: 3124593 | AB158: 7490122 | AC158: 931480 | AD158: =IFERROR(T158*'Inputs & Assumptions'!$Q$40,"--") -> 367671.168 | AE158: =IFERROR(U158*'Inputs & Assumptions'!$Q$41,"--") -> 21923 | AF158: =IFERROR(V158*'Inputs & Assumptions'!$Q$42,"--") -> 480120.5 | AG158: =IFERROR(W158*'Inputs & Assumptions'!$Q$43,"--") -> 11518040.07 | AH158: =IFERROR(X158*'Inputs & Assumptions'!$Q$44,"--") -> 546430.5 | AI158: =IFERROR(Y158*'Inputs & Assumptions'!$Q$45,"--") -> 179220.1 | AJ158: =IFERROR(Z158*'Inputs & Assumptions'!$Q$46,"--") -> 280594 | AK158: =IFERROR(AA158*'Inputs & Assumptions'!$Q$47,"--") -> 1562296.5 | AL158: =IFERROR(AB158*'Inputs & Assumptions'!$Q$48,"--") -> 3745061 | AM158: =IFERROR(AC158*'Inputs & Assumptions'!$Q$49,"--") -> 465740
A159: 1905 | B159: Frankford Township | C159: Sussex | D159: 3403724810 | E159: 156 | F159: 739153000 | G159: 2871177.33 | H159: 0.3884415446 | I159: 623694.5 | J159: 21680.66514 | K159: 2.729800151 | L159: 4736577.38 | M159: 12569645 | N159: 20177399.71 | O159: 0.1422966969 | P159: 0.2347466694 | Q159: 0.6229566337 | R159: 6956 | S159: 89.66280909 | T159: 587100 | U159: 40000 | V159: 100000 | W159: 230500 | X159: 1227700 | Y159: 10700 | Z159: 0 | AA159: 12900 | AB159: 245389 | AC159: 285500 | AD159: =IFERROR(T159*'Inputs & Assumptions'!$Q$40,"--") -> 58710 | AE159: =IFERROR(U159*'Inputs & Assumptions'!$Q$41,"--") -> 4000 | AF159: =IFERROR(V159*'Inputs & Assumptions'!$Q$42,"--") -> 50000 | AG159: =IFERROR(W159*'Inputs & Assumptions'!$Q$43,"--") -> 115250 | AH159: =IFERROR(X159*'Inputs & Assumptions'!$Q$44,"--") -> 122770 | AI159: =IFERROR(Y159*'Inputs & Assumptions'!$Q$45,"--") -> 1070 | AJ159: =IFERROR(Z159*'Inputs & Assumptions'!$Q$46,"--") -> 0 | AK159: =IFERROR(AA159*'Inputs & Assumptions'!$Q$47,"--") -> 6450 | AL159: =IFERROR(AB159*'Inputs & Assumptions'!$Q$48,"--") -> 122694.5 | AM159: =IFERROR(AC159*'Inputs & Assumptions'!$Q$49,"--") -> 142750
A160: 1906 | B160: Franklin Borough | C160: Sussex | D160: 3403724930 | E160: 157 | F160: 393621192 | G160: 4969836 | H160: 1.262593605 | I160: 1978452.8 | J160: 2787.889707 | K160: 4.103295467 | L160: 2557021.53 | M160: 8624583 | N160: 16151440.53 | O160: 0.3077023372 | P160: 0.1583153853 | Q160: 0.5339822776 | R160: 6171 | S160: 320.6048939 | T160: 738643 | U160: 42249 | V160: 34692 | W160: 2230852 | X160: 576974 | Y160: 51602 | Z160: 0 | AA160: 460000 | AB160: 782073 | AC160: 167395 | AD160: =IFERROR(T160*'Inputs & Assumptions'!$Q$40,"--") -> 73864.3 | AE160: =IFERROR(U160*'Inputs & Assumptions'!$Q$41,"--") -> 4224.9 | AF160: =IFERROR(V160*'Inputs & Assumptions'!$Q$42,"--") -> 17346 | AG160: =IFERROR(W160*'Inputs & Assumptions'!$Q$43,"--") -> 1115426 | AH160: =IFERROR(X160*'Inputs & Assumptions'!$Q$44,"--") -> 57697.4 | AI160: =IFERROR(Y160*'Inputs & Assumptions'!$Q$45,"--") -> 5160.2 | AJ160: =IFERROR(Z160*'Inputs & Assumptions'!$Q$46,"--") -> 0 | AK160: =IFERROR(AA160*'Inputs & Assumptions'!$Q$47,"--") -> 230000 | AL160: =IFERROR(AB160*'Inputs & Assumptions'!$Q$48,"--") -> 391036.5 | AM160: =IFERROR(AC160*'Inputs & Assumptions'!$Q$49,"--") -> 83697.5
A161: 0220 | B161: Franklin Lakes Borough | C161: Bergen | D161: 3400324990 | E161: 158 | F161: 4365160800 | G161: 12759758 | H161: 0.2923090027 | I161: 3829335.1 | J161: 6025.202637 | K161: 1.661537554 | L161: 11069465.97 | M161: 48699562 | N161: 72528785.97 | O161: 0.1759268107 | P161: 0.1526216911 | Q161: 0.6714514982 | R161: 17759 | S161: 215.6278563 | T161: 1405130 | U161: 50980 | V161: 376560 | W161: 4346459 | X161: 2998285 | Y161: 217790 | Z161: 1445696 | AA161: 8000 | AB161: 1535000 | AC161: 169075 | AD161: =IFERROR(T161*'Inputs & Assumptions'!$Q$40,"--") -> 140513 | AE161: =IFERROR(U161*'Inputs & Assumptions'!$Q$41,"--") -> 5098 | AF161: =IFERROR(V161*'Inputs & Assumptions'!$Q$42,"--") -> 188280 | AG161: =IFERROR(W161*'Inputs & Assumptions'!$Q$43,"--") -> 2173229.5 | AH161: =IFERROR(X161*'Inputs & Assumptions'!$Q$44,"--") -> 299828.5 | AI161: =IFERROR(Y161*'Inputs & Assumptions'!$Q$45,"--") -> 21779 | AJ161: =IFERROR(Z161*'Inputs & Assumptions'!$Q$46,"--") -> 144569.6 | AK161: =IFERROR(AA161*'Inputs & Assumptions'!$Q$47,"--") -> 4000 | AL161: =IFERROR(AB161*'Inputs & Assumptions'!$Q$48,"--") -> 767500 | AM161: =IFERROR(AC161*'Inputs & Assumptions'!$Q$49,"--") -> 84537.5
A162: 0805 | B162: Franklin Township | C162: Gloucester | D162: 3401524840 | E162: 159 | F162: 1234106285 | G162: 8840848.95 | H162: 0.7163766247 | I162: 3179135.455 | J162: 35731.39408 | K162: 3.417297701 | L162: 9382977.76 | M162: 23949259 | N162: 42173085.71 | O162: 0.2096324896 | P162: 0.2224873424 | Q162: 0.567880168 | R162: 18904 | S162: 168.172633 | T162: 1064356.01 | U162: 342526.62 | V162: 149502 | W162: 2675675 | X162: 1746000 | Y162: 104100 | Z162: 454386.17 | AA162: 901551.67 | AB162: 1564944.23 | AC162: 324324.25 | AD162: =IFERROR(T162*'Inputs & Assumptions'!$Q$40,"--") -> 106435.601 | AE162: =IFERROR(U162*'Inputs & Assumptions'!$Q$41,"--") -> 34252.662 | AF162: =IFERROR(V162*'Inputs & Assumptions'!$Q$42,"--") -> 74751 | AG162: =IFERROR(W162*'Inputs & Assumptions'!$Q$43,"--") -> 1337837.5 | AH162: =IFERROR(X162*'Inputs & Assumptions'!$Q$44,"--") -> 174600 | AI162: =IFERROR(Y162*'Inputs & Assumptions'!$Q$45,"--") -> 10410 | AJ162: =IFERROR(Z162*'Inputs & Assumptions'!$Q$46,"--") -> 45438.617 | AK162: =IFERROR(AA162*'Inputs & Assumptions'!$Q$47,"--") -> 450775.835 | AL162: =IFERROR(AB162*'Inputs & Assumptions'!$Q$48,"--") -> 782472.115 | AM162: =IFERROR(AC162*'Inputs & Assumptions'!$Q$49,"--") -> 162162.125
A163: 1010 | B163: Franklin Township | C163: Hunterdon | D163: 3401924870 | E163: 160 | F163: 544063900 | G163: 2241743.2 | H163: 0.4120367479 | I163: 675118.367 | J163: 14742.40973 | K163: 2.645297328 | L163: 2047574.61 | M163: 10102790 | N163: 14392107.81 | O163: 0.1557619794 | P163: 0.1422706554 | Q163: 0.7019673653 | R163: 4640 | S163: 145.4996481 | T163: 620661.67 | U163: 23500 | V163: 93955 | W163: 593860 | X163: 556267 | Y163: 20060 | Z163: 0 | AA163: 0 | AB163: 333324 | AC163: 85000 | AD163: =IFERROR(T163*'Inputs & Assumptions'!$Q$40,"--") -> 62066.167 | AE163: =IFERROR(U163*'Inputs & Assumptions'!$Q$41,"--") -> 2350 | AF163: =IFERROR(V163*'Inputs & Assumptions'!$Q$42,"--") -> 46977.5 | AG163: =IFERROR(W163*'Inputs & Assumptions'!$Q$43,"--") -> 296930 | AH163: =IFERROR(X163*'Inputs & Assumptions'!$Q$44,"--") -> 55626.7 | AI163: =IFERROR(Y163*'Inputs & Assumptions'!$Q$45,"--") -> 2006 | AJ163: =IFERROR(Z163*'Inputs & Assumptions'!$Q$46,"--") -> 0 | AK163: =IFERROR(AA163*'Inputs & Assumptions'!$Q$47,"--") -> 0 | AL163: =IFERROR(AB163*'Inputs & Assumptions'!$Q$48,"--") -> 166662 | AM163: =IFERROR(AC163*'Inputs & Assumptions'!$Q$49,"--") -> 42500
A164: 1808 | B164: Franklin Township | C164: Somerset | D164: 3403524900 | E164: 161 | F164: 11094767831 | G164: 44459316 | H164: 0.4007232659 | I164: -- | J164: 29548.93883 | K164: 2.144551104 | L164: 39010106.96 | M164: 154463543 | N164: 237932966 | O164: 0.1868564779 | P164: 0.1639541911 | Q164: 0.649189331 | R164: 92310 | S164: -- | T164: No data | U164: No data | V164: No data | W164: No data | X164: No data | Y164: No data | Z164: No data | AA164: No data | AB164: No data | AC164: No data | AD164: =IFERROR(T164*'Inputs & Assumptions'!$Q$40,"--") -> -- | AE164: =IFERROR(U164*'Inputs & Assumptions'!$Q$41,"--") -> -- | AF164: =IFERROR(V164*'Inputs & Assumptions'!$Q$42,"--") -> -- | AG164: =IFERROR(W164*'Inputs & Assumptions'!$Q$43,"--") -> -- | AH164: =IFERROR(X164*'Inputs & Assumptions'!$Q$44,"--") -> -- | AI164: =IFERROR(Y164*'Inputs & Assumptions'!$Q$45,"--") -> -- | AJ164: =IFERROR(Z164*'Inputs & Assumptions'!$Q$46,"--") -> -- | AK164: =IFERROR(AA164*'Inputs & Assumptions'!$Q$47,"--") -> -- | AL164: =IFERROR(AB164*'Inputs & Assumptions'!$Q$48,"--") -> -- | AM164: =IFERROR(AC164*'Inputs & Assumptions'!$Q$49,"--") -> --
A165: 2105 | B165: Franklin Township | C165: Warren | D165: 3404124960 | E165: 162 | F165: 414608056 | G165: 1292537 | H165: 0.3117491282 | I165: 224282.9 | J165: 14988.6751 | K165: 3.068435226 | L165: 2909587.64 | M165: 8519855 | N165: 12721979.64 | O165: 0.101598732 | P165: 0.2287055727 | Q165: 0.6696956953 | R165: 3743 | S165: 59.92062517 | T165: 351409 | U165: 71881 | V165: 0 | W165: 185849 | X165: 403396 | Y165: 12133 | Z165: 0 | AA165: 0 | AB165: 94953 | AC165: 0 | AD165: =IFERROR(T165*'Inputs & Assumptions'!$Q$40,"--") -> 35140.9 | AE165: =IFERROR(U165*'Inputs & Assumptions'!$Q$41,"--") -> 7188.1 | AF165: =IFERROR(V165*'Inputs & Assumptions'!$Q$42,"--") -> 0 | AG165: =IFERROR(W165*'Inputs & Assumptions'!$Q$43,"--") -> 92924.5 | AH165: =IFERROR(X165*'Inputs & Assumptions'!$Q$44,"--") -> 40339.6 | AI165: =IFERROR(Y165*'Inputs & Assumptions'!$Q$45,"--") -> 1213.3 | AJ165: =IFERROR(Z165*'Inputs & Assumptions'!$Q$46,"--") -> 0 | AK165: =IFERROR(AA165*'Inputs & Assumptions'!$Q$47,"--") -> 0 | AL165: =IFERROR(AB165*'Inputs & Assumptions'!$Q$48,"--") -> 47476.5 | AM165: =IFERROR(AC165*'Inputs & Assumptions'!$Q$49,"--") -> 0
A166: 1907 | B166: Fredon Township | C166: Sussex | D166: 3403725140 | E166: 163 | F166: 435738400 | G166: 1892265 | H166: 0.4342662937 | I166: 292048.1 | J166: 11289.36154 | K166: 2.990660975 | L166: 2572932.28 | M166: 8566261 | N166: 13031458.28 | O166: 0.1452074633 | P166: 0.1974400888 | Q166: 0.6573524479 | R166: 3547 | S166: 82.33665069 | T166: 461108 | U166: 57101 | V166: 21325 | W166: 110008 | X166: 917872 | Y166: 22295 | Z166: 0 | AA166: 0 | AB166: 135013 | AC166: 26075 | AD166: =IFERROR(T166*'Inputs & Assumptions'!$Q$40,"--") -> 46110.8 | AE166: =IFERROR(U166*'Inputs & Assumptions'!$Q$41,"--") -> 5710.1 | AF166: =IFERROR(V166*'Inputs & Assumptions'!$Q$42,"--") -> 10662.5 | AG166: =IFERROR(W166*'Inputs & Assumptions'!$Q$43,"--") -> 55004 | AH166: =IFERROR(X166*'Inputs & Assumptions'!$Q$44,"--") -> 91787.2 | AI166: =IFERROR(Y166*'Inputs & Assumptions'!$Q$45,"--") -> 2229.5 | AJ166: =IFERROR(Z166*'Inputs & Assumptions'!$Q$46,"--") -> 0 | AK166: =IFERROR(AA166*'Inputs & Assumptions'!$Q$47,"--") -> 0 | AL166: =IFERROR(AB166*'Inputs & Assumptions'!$Q$48,"--") -> 67506.5 | AM166: =IFERROR(AC166*'Inputs & Assumptions'!$Q$49,"--") -> 13037.5
A167: 1315 | B167: Freehold Borough | C167: Monmouth | D167: 3402525200 | E167: 164 | F167: 1137898000 | G167: 12009887.93 | H167: 1.055445034 | I167: 4617533.211 | J167: 1236.630466 | K167: 2.622176069 | L167: 2981890.12 | M167: 14845911 | N167: 29837689.05 | O167: 0.4025073091 | P167: 0.09993703316 | Q167: 0.4975556577 | R167: 19215 | S167: 240.3087802 | T167: 1832375 | U167: 18600 | V167: 190180 | W167: 5013079.1 | X167: 3296233.61 | Y167: 26150 | Z167: 489508 | AA167: 709768 | AB167: 1854166 | AC167: 335300 | AD167: =IFERROR(T167*'Inputs & Assumptions'!$Q$40,"--") -> 183237.5 | AE167: =IFERROR(U167*'Inputs & Assumptions'!$Q$41,"--") -> 1860 | AF167: =IFERROR(V167*'Inputs & Assumptions'!$Q$42,"--") -> 95090 | AG167: =IFERROR(W167*'Inputs & Assumptions'!$Q$43,"--") -> 2506539.55 | AH167: =IFERROR(X167*'Inputs & Assumptions'!$Q$44,"--") -> 329623.361 | AI167: =IFERROR(Y167*'Inputs & Assumptions'!$Q$45,"--") -> 2615 | AJ167: =IFERROR(Z167*'Inputs & Assumptions'!$Q$46,"--") -> 48950.8 | AK167: =IFERROR(AA167*'Inputs & Assumptions'!$Q$47,"--") -> 354884 | AL167: =IFERROR(AB167*'Inputs & Assumptions'!$Q$48,"--") -> 927083 | AM167: =IFERROR(AC167*'Inputs & Assumptions'!$Q$49,"--") -> 167650
A168: 1316 | B168: Freehold Township | C168: Monmouth | D168: 3402525230 | E168: 165 | F168: 6868119600 | G168: 25093418.88 | H168: 0.3653608315 | I168: 9550424.652 | J168: 24738.07283 | K168: 2.120539233 | L168: 19433292.79 | M168: 101114459 | N168: 145641170.7 | O168: 0.1722961905 | P168: 0.1334326873 | Q168: 0.6942711222 | R168: 52326 | S168: 182.5177665 | T168: 3397225 | U168: 373600 | V168: 793200 | W168: 10317215.83 | X168: 8010431 | Y168: 796566.37 | Z168: 951185 | AA168: 0 | AB168: 4857632 | AC168: 427000 | AD168: =IFERROR(T168*'Inputs & Assumptions'!$Q$40,"--") -> 339722.5 | AE168: =IFERROR(U168*'Inputs & Assumptions'!$Q$41,"--") -> 37360 | AF168: =IFERROR(V168*'Inputs & Assumptions'!$Q$42,"--") -> 396600 | AG168: =IFERROR(W168*'Inputs & Assumptions'!$Q$43,"--") -> 5158607.915 | AH168: =IFERROR(X168*'Inputs & Assumptions'!$Q$44,"--") -> 801043.1 | AI168: =IFERROR(Y168*'Inputs & Assumptions'!$Q$45,"--") -> 79656.637 | AJ168: =IFERROR(Z168*'Inputs & Assumptions'!$Q$46,"--") -> 95118.5 | AK168: =IFERROR(AA168*'Inputs & Assumptions'!$Q$47,"--") -> 0 | AL168: =IFERROR(AB168*'Inputs & Assumptions'!$Q$48,"--") -> 2428816 | AM168: =IFERROR(AC168*'Inputs & Assumptions'!$Q$49,"--") -> 213500
A169: 2106 | B169: Frelinghuysen Township | C169: Warren | D169: 3404125320 | E169: 166 | F169: 289800319 | G169: 914018 | H169: 0.3153957881 | I169: 147855 | J169: 15118.95073 | K169: 2.417211684 | L169: 1947687.17 | M169: 4143382 | N169: 7005087.17 | O169: 0.1304791758 | P169: 0.2780389626 | Q169: 0.5914818616 | R169: 2402 | S169: 61.5549542 | T169: 294844 | U169: 10199 | V169: 43857 | W169: 43010 | X169: 315687 | Y169: 8440 | Z169: 0 | AA169: 0 | AB169: 82759 | AC169: 250 | AD169: =IFERROR(T169*'Inputs & Assumptions'!$Q$40,"--") -> 29484.4 | AE169: =IFERROR(U169*'Inputs & Assumptions'!$Q$41,"--") -> 1019.9 | AF169: =IFERROR(V169*'Inputs & Assumptions'!$Q$42,"--") -> 21928.5 | AG169: =IFERROR(W169*'Inputs & Assumptions'!$Q$43,"--") -> 21505 | AH169: =IFERROR(X169*'Inputs & Assumptions'!$Q$44,"--") -> 31568.7 | AI169: =IFERROR(Y169*'Inputs & Assumptions'!$Q$45,"--") -> 844 | AJ169: =IFERROR(Z169*'Inputs & Assumptions'!$Q$46,"--") -> 0 | AK169: =IFERROR(AA169*'Inputs & Assumptions'!$Q$47,"--") -> 0 | AL169: =IFERROR(AB169*'Inputs & Assumptions'!$Q$48,"--") -> 41379.5 | AM169: =IFERROR(AC169*'Inputs & Assumptions'!$Q$49,"--") -> 125
A170: 1011 | B170: Frenchtown Borough | C170: Hunterdon | D170: 3401925350 | E170: 167 | F170: 147554870 | G170: 1429752 | H170: 0.9689629356 | I170: 478707.2 | J170: 722.1090879 | K170: 3.695665687 | L170: 646721.7 | M170: 3376661 | N170: 5453134.7 | O170: 0.2621890121 | P170: 0.1185963186 | Q170: 0.6192146693 | R170: 1750 | S170: 273.5469714 | T170: 728128 | U170: 42589 | V170: 0 | W170: 407020 | X170: 210250 | Y170: 10790 | Z170: 14465 | AA170: 120000 | AB170: 150800 | AC170: 78350 | AD170: =IFERROR(T170*'Inputs & Assumptions'!$Q$40,"--") -> 72812.8 | AE170: =IFERROR(U170*'Inputs & Assumptions'!$Q$41,"--") -> 4258.9 | AF170: =IFERROR(V170*'Inputs & Assumptions'!$Q$42,"--") -> 0 | AG170: =IFERROR(W170*'Inputs & Assumptions'!$Q$43,"--") -> 203510 | AH170: =IFERROR(X170*'Inputs & Assumptions'!$Q$44,"--") -> 21025 | AI170: =IFERROR(Y170*'Inputs & Assumptions'!$Q$45,"--") -> 1079 | AJ170: =IFERROR(Z170*'Inputs & Assumptions'!$Q$46,"--") -> 1446.5 | AK170: =IFERROR(AA170*'Inputs & Assumptions'!$Q$47,"--") -> 60000 | AL170: =IFERROR(AB170*'Inputs & Assumptions'!$Q$48,"--") -> 75400 | AM170: =IFERROR(AC170*'Inputs & Assumptions'!$Q$49,"--") -> 39175
A171: 0111 | B171: Galloway Township | C171: Atlantic | D171: 3400125560 | E171: 168 | F171: 2739994100 | G171: 16841585.1 | H171: 0.614657714 | I171: 7185518.4 | J171: 56747.40706 | K171: 3.146453724 | L171: 15977434.29 | M171: 53393627 | N171: 86212646.39 | O171: 0.1953493577 | P171: 0.1853258769 | Q171: 0.6193247654 | R171: 44624 | S171: 161.0236285 | T171: 7647724 | U171: 121050 | V171: 585251 | W171: 8423230 | X171: 2178200 | Y171: 3000 | Z171: 0 | AA171: 105000 | AB171: 3267561 | AC171: 0 | AD171: =IFERROR(T171*'Inputs & Assumptions'!$Q$40,"--") -> 764772.4 | AE171: =IFERROR(U171*'Inputs & Assumptions'!$Q$41,"--") -> 12105 | AF171: =IFERROR(V171*'Inputs & Assumptions'!$Q$42,"--") -> 292625.5 | AG171: =IFERROR(W171*'Inputs & Assumptions'!$Q$43,"--") -> 4211615 | AH171: =IFERROR(X171*'Inputs & Assumptions'!$Q$44,"--") -> 217820 | AI171: =IFERROR(Y171*'Inputs & Assumptions'!$Q$45,"--") -> 300 | AJ171: =IFERROR(Z171*'Inputs & Assumptions'!$Q$46,"--") -> 0 | AK171: =IFERROR(AA171*'Inputs & Assumptions'!$Q$47,"--") -> 52500 | AL171: =IFERROR(AB171*'Inputs & Assumptions'!$Q$48,"--") -> 1633780.5 | AM171: =IFERROR(AC171*'Inputs & Assumptions'!$Q$49,"--") -> 0
A172: 0221 | B172: Garfield City | C172: Bergen | D172: 3400325770 | E172: 169 | F172: 2149357200 | G172: 26844651 | H172: 1.248961829 | I172: 10120431.5 | J172: 1351.06418 | K172: 3.027129569 | L172: 7053809.34 | M172: 31165367 | N172: 65063827.34 | O172: 0.4125894848 | P172: 0.1084136859 | Q172: 0.4789968293 | R172: 36104 | S172: 280.3133032 | T172: 3912271 | U172: 46025 | V172: 398357 | W172: 10087297 | X172: 1765414 | Y172: 459111 | Z172: 922239 | AA172: 4247800 | AB172: 3645334 | AC172: 441063 | AD172: =IFERROR(T172*'Inputs & Assumptions'!$Q$40,"--") -> 391227.1 | AE172: =IFERROR(U172*'Inputs & Assumptions'!$Q$41,"--") -> 4602.5 | AF172: =IFERROR(V172*'Inputs & Assumptions'!$Q$42,"--") -> 199178.5 | AG172: =IFERROR(W172*'Inputs & Assumptions'!$Q$43,"--") -> 5043648.5 | AH172: =IFERROR(X172*'Inputs & Assumptions'!$Q$44,"--") -> 176541.4 | AI172: =IFERROR(Y172*'Inputs & Assumptions'!$Q$45,"--") -> 45911.1 | AJ172: =IFERROR(Z172*'Inputs & Assumptions'!$Q$46,"--") -> 92223.9 | AK172: =IFERROR(AA172*'Inputs & Assumptions'!$Q$47,"--") -> 2123900 | AL172: =IFERROR(AB172*'Inputs & Assumptions'!$Q$48,"--") -> 1822667 | AM172: =IFERROR(AC172*'Inputs & Assumptions'!$Q$49,"--") -> 220531.5
A173: 2006 | B173: Garwood Borough | C173: Union | D173: 3403925800 | E173: 170 | F173: 739593433 | G173: 6600921.19 | H173: 0.8925067335 | I173: 2003491.677 | J173: 416.2473615 | K173: 2.557859702 | L173: 3688380.19 | M173: 8628461 | N173: 18917762.38 | O173: 0.3489271647 | P173: 0.1949691573 | Q173: 0.4561036779 | R173: 6030 | S173: 332.2540095 | T173: 888738.56 | U173: 50400 | V173: 0 | W173: 2364143.37 | X173: 864847.36 | Y173: 70965 | Z173: 248409 | AA173: 260040 | AB173: 866528 | AC173: 91600 | AD173: =IFERROR(T173*'Inputs & Assumptions'!$Q$40,"--") -> 88873.856 | AE173: =IFERROR(U173*'Inputs & Assumptions'!$Q$41,"--") -> 5040 | AF173: =IFERROR(V173*'Inputs & Assumptions'!$Q$42,"--") -> 0 | AG173: =IFERROR(W173*'Inputs & Assumptions'!$Q$43,"--") -> 1182071.685 | AH173: =IFERROR(X173*'Inputs & Assumptions'!$Q$44,"--") -> 86484.736 | AI173: =IFERROR(Y173*'Inputs & Assumptions'!$Q$45,"--") -> 7096.5 | AJ173: =IFERROR(Z173*'Inputs & Assumptions'!$Q$46,"--") -> 24840.9 | AK173: =IFERROR(AA173*'Inputs & Assumptions'!$Q$47,"--") -> 130020 | AL173: =IFERROR(AB173*'Inputs & Assumptions'!$Q$48,"--") -> 433264 | AM173: =IFERROR(AC173*'Inputs & Assumptions'!$Q$49,"--") -> 45800
A174: 0413 | B174: Gibbsboro Borough | C174: Camden | D174: 3400726070 | E174: 171 | F174: 226969400 | G174: 2268838.64 | H174: 0.9996231386 | I174: 644777.674 | J174: 1377.324553 | K174: 4.127311598 | L174: 2148581.73 | M174: 4950314 | N174: 9367734.37 | O174: 0.2421971579 | P174: 0.2293598052 | Q174: 0.528443037 | R174: 3394 | S174: 189.9757437 | T174: 301500 | U174: 50000 | V174: 77600 | W174: 758285.7 | X174: 558000 | Y174: 7500 | Z174: 36478.24 | AA174: 0 | AB174: 204474 | AC174: 58500 | AD174: =IFERROR(T174*'Inputs & Assumptions'!$Q$40,"--") -> 30150 | AE174: =IFERROR(U174*'Inputs & Assumptions'!$Q$41,"--") -> 5000 | AF174: =IFERROR(V174*'Inputs & Assumptions'!$Q$42,"--") -> 38800 | AG174: =IFERROR(W174*'Inputs & Assumptions'!$Q$43,"--") -> 379142.85 | AH174: =IFERROR(X174*'Inputs & Assumptions'!$Q$44,"--") -> 55800 | AI174: =IFERROR(Y174*'Inputs & Assumptions'!$Q$45,"--") -> 750 | AJ174: =IFERROR(Z174*'Inputs & Assumptions'!$Q$46,"--") -> 3647.824 | AK174: =IFERROR(AA174*'Inputs & Assumptions'!$Q$47,"--") -> 0 | AL174: =IFERROR(AB174*'Inputs & Assumptions'!$Q$48,"--") -> 102237 | AM174: =IFERROR(AC174*'Inputs & Assumptions'!$Q$49,"--") -> 29250
A175: 0806 | B175: Glassboro Borough | C175: Gloucester | D175: 3401526340 | E175: 172 | F175: 1283858451 | G175: 13414030.65 | H175: 1.044821619 | I175: 8362265.745 | J175: 5964.906725 | K175: 3.52216 | L175: 9865150.17 | M175: 21940368 | N175: 45219548.82 | O175: 0.296642293 | P175: 0.2181611809 | Q175: 0.4851965261 | R175: 26912 | S175: 310.7262836 | T175: 3187404 | U175: 107201 | V175: 183139 | W175: 7936969.89 | X175: 5311949 | Y175: 39811 | Z175: 82443 | AA175: 3056500 | AB175: 3392767 | AC175: 409394 | AD175: =IFERROR(T175*'Inputs & Assumptions'!$Q$40,"--") -> 318740.4 | AE175: =IFERROR(U175*'Inputs & Assumptions'!$Q$41,"--") -> 10720.1 | AF175: =IFERROR(V175*'Inputs & Assumptions'!$Q$42,"--") -> 91569.5 | AG175: =IFERROR(W175*'Inputs & Assumptions'!$Q$43,"--") -> 3968484.945 | AH175: =IFERROR(X175*'Inputs & Assumptions'!$Q$44,"--") -> 531194.9 | AI175: =IFERROR(Y175*'Inputs & Assumptions'!$Q$45,"--") -> 3981.1 | AJ175: =IFERROR(Z175*'Inputs & Assumptions'!$Q$46,"--") -> 8244.3 | AK175: =IFERROR(AA175*'Inputs & Assumptions'!$Q$47,"--") -> 1528250 | AL175: =IFERROR(AB175*'Inputs & Assumptions'!$Q$48,"--") -> 1696383.5 | AM175: =IFERROR(AC175*'Inputs & Assumptions'!$Q$49,"--") -> 204697
A176: 1012 | B176: Glen Gardner Borough | C176: Hunterdon | D176: 3401926550 | E176: 173 | F176: 140063863 | G176: 944450 | H176: 0.6742995515 | I176: 212748 | J176: 990.7036315 | K176: 3.461149254 | L176: 643611.35 | M176: 3259758 | N176: 4847819.35 | O176: 0.1948195532 | P176: 0.1327630639 | Q176: 0.6724173829 | R176: 1711 | S176: 124.3413209 | T176: 439910 | U176: 29910 | V176: 6100 | W176: 82000 | X176: 247900 | Y176: 5410 | Z176: 30000 | AA176: 77500 | AB176: 73570 | AC176: 35700 | AD176: =IFERROR(T176*'Inputs & Assumptions'!$Q$40,"--") -> 43991 | AE176: =IFERROR(U176*'Inputs & Assumptions'!$Q$41,"--") -> 2991 | AF176: =IFERROR(V176*'Inputs & Assumptions'!$Q$42,"--") -> 3050 | AG176: =IFERROR(W176*'Inputs & Assumptions'!$Q$43,"--") -> 41000 | AH176: =IFERROR(X176*'Inputs & Assumptions'!$Q$44,"--") -> 24790 | AI176: =IFERROR(Y176*'Inputs & Assumptions'!$Q$45,"--") -> 541 | AJ176: =IFERROR(Z176*'Inputs & Assumptions'!$Q$46,"--") -> 3000 | AK176: =IFERROR(AA176*'Inputs & Assumptions'!$Q$47,"--") -> 38750 | AL176: =IFERROR(AB176*'Inputs & Assumptions'!$Q$48,"--") -> 36785 | AM176: =IFERROR(AC176*'Inputs & Assumptions'!$Q$49,"--") -> 17850
A177: 0708 | B177: Glen Ridge Borough | C177: Essex | D177: 3401326610 | E177: 174 | F177: 1712143200 | G177: 12612940.54 | H177: 0.736675562 | I177: 3699814.789 | J177: 815.8479817 | K177: 3.244652502 | L177: 9193542.64 | M177: 33746614 | N177: 55553097.18 | O177: 0.2270429765 | P177: 0.1654910906 | Q177: 0.6074659328 | R177: 8663 | S177: 427.0823951 | T177: 1150330.14 | U177: 25000 | V177: 215400 | W177: 3511219.95 | X177: 1571778 | Y177: 67300 | Z177: 732360 | AA177: 1300000 | AB177: 1488336 | AC177: 175320 | AD177: =IFERROR(T177*'Inputs & Assumptions'!$Q$40,"--") -> 115033.014 | AE177: =IFERROR(U177*'Inputs & Assumptions'!$Q$41,"--") -> 2500 | AF177: =IFERROR(V177*'Inputs & Assumptions'!$Q$42,"--") -> 107700 | AG177: =IFERROR(W177*'Inputs & Assumptions'!$Q$43,"--") -> 1755609.975 | AH177: =IFERROR(X177*'Inputs & Assumptions'!$Q$44,"--") -> 157177.8 | AI177: =IFERROR(Y177*'Inputs & Assumptions'!$Q$45,"--") -> 6730 | AJ177: =IFERROR(Z177*'Inputs & Assumptions'!$Q$46,"--") -> 73236 | AK177: =IFERROR(AA177*'Inputs & Assumptions'!$Q$47,"--") -> 650000 | AL177: =IFERROR(AB177*'Inputs & Assumptions'!$Q$48,"--") -> 744168 | AM177: =IFERROR(AC177*'Inputs & Assumptions'!$Q$49,"--") -> 87660
A178: 0222 | B178: Glen Rock Borough | C178: Bergen | D178: 3400326640 | E178: 175 | F178: 2408386755 | G178: 15803207.62 | H178: 0.6561739964 | I178: 4310938.292 | J178: 1730.224746 | K178: 3.042273867 | L178: 6978783.24 | M178: 50487730 | N178: 73269720.86 | O178: 0.2156853805 | P178: 0.09524784806 | Q178: 0.6890667715 | R178: 15263 | S178: 282.4437065 | T178: 1165284.92 | U178: 104021 | V178: 350263 | W178: 4664849 | X178: 4308359 | Y178: 67813 | Z178: 917555 | AA178: 315000 | AB178: 1840808 | AC178: 138350 | AD178: =IFERROR(T178*'Inputs & Assumptions'!$Q$40,"--") -> 116528.492 | AE178: =IFERROR(U178*'Inputs & Assumptions'!$Q$41,"--") -> 10402.1 | AF178: =IFERROR(V178*'Inputs & Assumptions'!$Q$42,"--") -> 175131.5 | AG178: =IFERROR(W178*'Inputs & Assumptions'!$Q$43,"--") -> 2332424.5 | AH178: =IFERROR(X178*'Inputs & Assumptions'!$Q$44,"--") -> 430835.9 | AI178: =IFERROR(Y178*'Inputs & Assumptions'!$Q$45,"--") -> 6781.3 | AJ178: =IFERROR(Z178*'Inputs & Assumptions'!$Q$46,"--") -> 91755.5 | AK178: =IFERROR(AA178*'Inputs & Assumptions'!$Q$47,"--") -> 157500 | AL178: =IFERROR(AB178*'Inputs & Assumptions'!$Q$48,"--") -> 920404 | AM178: =IFERROR(AC178*'Inputs & Assumptions'!$Q$49,"--") -> 69175
A179: 0414 | B179: Gloucester City City | C179: Camden | D179: 3400726820 | E179: 176 | F179: 519128250 | G179: 13336893 | H179: 2.569094053 | I179: -- | J179: 1481.430501 | K179: 4.657459271 | L179: 4341409.81 | M179: 6499884 | N179: 24178186.81 | O179: 0.5516084852 | P179: 0.1795589489 | Q179: 0.2688325659 | R179: 13053 | S179: -- | T179: No data | U179: No data | V179: No data | W179: No data | X179: No data | Y179: No data | Z179: No data | AA179: No data | AB179: No data | AC179: No data | AD179: =IFERROR(T179*'Inputs & Assumptions'!$Q$40,"--") -> -- | AE179: =IFERROR(U179*'Inputs & Assumptions'!$Q$41,"--") -> -- | AF179: =IFERROR(V179*'Inputs & Assumptions'!$Q$42,"--") -> -- | AG179: =IFERROR(W179*'Inputs & Assumptions'!$Q$43,"--") -> -- | AH179: =IFERROR(X179*'Inputs & Assumptions'!$Q$44,"--") -> -- | AI179: =IFERROR(Y179*'Inputs & Assumptions'!$Q$45,"--") -> -- | AJ179: =IFERROR(Z179*'Inputs & Assumptions'!$Q$46,"--") -> -- | AK179: =IFERROR(AA179*'Inputs & Assumptions'!$Q$47,"--") -> -- | AL179: =IFERROR(AB179*'Inputs & Assumptions'!$Q$48,"--") -> -- | AM179: =IFERROR(AC179*'Inputs & Assumptions'!$Q$49,"--") -> --
A180: 0415 | B180: Gloucester Township | C180: Camden | D180: 3400726760 | E180: 177 | F180: 4514607300 | G180: 54235952.38 | H180: 1.201343744 | I180: 16464692.05 | J180: 14690.80698 | K180: 3.885634957 | L180: 40695191.05 | M180: 80490016 | N180: 175421159.4 | O180: 0.3091756579 | P180: 0.2319856463 | Q180: 0.4588386958 | R180: 74798 | S180: 220.1220894 | T180: 3318470 | U180: 152400 | V180: 913150 | W180: 18170689 | X180: 10946321.46 | Y180: 289724 | Z180: 510000 | AA180: 1985000 | AB180: 8062062 | AC180: 755100 | AD180: =IFERROR(T180*'Inputs & Assumptions'!$Q$40,"--") -> 331847 | AE180: =IFERROR(U180*'Inputs & Assumptions'!$Q$41,"--") -> 15240 | AF180: =IFERROR(V180*'Inputs & Assumptions'!$Q$42,"--") -> 456575 | AG180: =IFERROR(W180*'Inputs & Assumptions'!$Q$43,"--") -> 9085344.5 | AH180: =IFERROR(X180*'Inputs & Assumptions'!$Q$44,"--") -> 1094632.146 | AI180: =IFERROR(Y180*'Inputs & Assumptions'!$Q$45,"--") -> 28972.4 | AJ180: =IFERROR(Z180*'Inputs & Assumptions'!$Q$46,"--") -> 51000 | AK180: =IFERROR(AA180*'Inputs & Assumptions'!$Q$47,"--") -> 992500 | AL180: =IFERROR(AB180*'Inputs & Assumptions'!$Q$48,"--") -> 4031031 | AM180: =IFERROR(AC180*'Inputs & Assumptions'!$Q$49,"--") -> 377550
